Workbook

Sheet Choix (hidden)
B1: Choix pour les listes
B3: Produit d'assurance vie | E3: Produit Assurance maladies graves | I3: Paiement des primes (Client) | L3: Paiement des primes (Conjoint) | O3: Paiement des primes (Gestion) | S3: Produit d'assurance vie (Outil de comparaison) | W3: iA PAR (Option de comparaison)
A4: 1 | B4: Genesis | E4: Transition T10 | I4: Nouvelle argent | L4: Nouvelle argent | O4: Nouvelle argent | W4: Taux -1%
A5: 2 | B5: iA PAR | E5: Transition T20 | I5: Argent provenant du N-Enr. | L5: Argent provenant du N-Enr. | O5: Argent provenant de l'épargne | S5: =B4 -> Genesis | W5: Taux -2%
A6: 3 | B6: Capital Valeur | E6: Transition T25 | I6: Nouvelle argent et N-Enr. | L6: Nouvelle argent et N-Enr. | O6: Nouvelle argent et Épargne | S6: =B5 -> iA PAR | W6: Taux garanti
A7: 4 | B7: Traditionnel | E7: Transition T75 | I7: Non enregistré du conjoint | L7: Non enregistré du client | S7: Capital Valeur
A8: 5 | B8: Héritage | C8: Legacy | E8: Transition T100 | S8: Traditionnel
A9: 6 | B9: Multiterme | E9: T100, paiement 10 ans
A10: 7 | B10: Accès-vie | E10: T100, paiement 20 ans
O11: VRAI ou FAUX
B12: Âge RRQ | D12: Âge FRV + FRVR | O12: TRUE | S12: Produit d'assurance vie et nom long (français et anglais)
B13: 60 | D13: 55 | O13: FALSE | R13: =A4 -> 1 | S13: =B4 -> Genesis | U13: Assurance vie universelle Genesis | X13: Genesis universal life insurance
B14: 61 | D14: 56 | R14: =A5 -> 2 | S14: =B5 -> iA PAR | U14: Assurance vie avec participation | X14: Participating life insurance
B15: 62 | D15: 57 | R15: 3 | S15: =B6 -> Capital Valeur | U15: Assurance vie universelle Capital valeur | X15: Equibuild universal life insurance
B16: 63 | D16: 58 | R16: 4 | S16: =B7 -> Traditionnel | U16: Assurance traditionnelle | X16: Traditional insurance
B17: 64 | D17: 59 | R17: 5 | S17: =B8 -> Héritage | U17: Assurance vie Héritage | X17: Legacy life insurance
B18: 65 | D18: 60 | J18: Historique de version Sharepoint | N18: Historique de version WEB
B19: 66 | D19: 61 | J19: Date | K19: 2025-02-06 | N19: Date | O19: 2025-02-21
B20: 67 | D20: 62 | J20: Jour #1 | K20: 1900-01-01 | N20: Jour #1 | O20: 1900-01-01
B21: 68 | D21: 63 | J21: Nb jours écoulés | K21: =K19-K20 -> 45693 | N21: Nb jours écoulés | O21: =O19-O20 -> 45708
B22: 69 | D22: 64
B23: 70 | D23: 65 | N23: Choix de version de l'outil
D24: 66 | I24: Formule case A1 "Données Générales" | N24: 2 | O24: 1 = Version SharePoint SFFA
D25: 67 | I25: =Mapping!E78 -> Ontario | O25: 2 = Version SharePoint WEB
B26: Âge PSV | D26: 68
B27: 65 | D27: 69
B28: 66 | D28: 70
B29: 67 | D29: 71
B30: 68
B31: 69
B32: 70
B35: Langue | D35: Analyse
B36: Français | D36: Individuelle
B37: Anglais | D37: Conjointe
B40: Sexe (Client) | E40: Sexe (Conjoint)
B41: Homme | C41: Male | E41: Homme
B42: Femme | C42: Female | E42: Femme
B45: Revenu (Client) | E45: Revenu (Conjoint)
B46: Brut | E46: Brut
B47: Net | E47: Net
B50: Choix indexation (Client) | E50: Choix indexation (Conjoint) | H50: Choix indexation (Gestion) | K50: Choix indexation (périodes alternatives ex. revenu de location)
B51: Immédiatement | E51: Immédiatement | H51: Immédiatement | K51: Immédiatement
B52: À la retraite | E52: À la retraite | H52: À la retraite | K52: À l'âge indiqué
B55: Profil d'investisseur (Client) | E55: Profil d'investisseur (Conjoint)
B56: 100% CPG | E56: 100% CPG
B57: Prudent | E57: Prudent
B58: Modéré | E58: Modéré
B59: Équilibré | E59: Équilibré
B60: Croissance | E60: Croissance
B61: Audacieux | E61: Audacieux
B63: Profil d'investisseur (Société)
B64: 100% CPG
B65: Prudent
B66: Modéré
B67: Équilibré
B68: Croissance
B69: Audacieux
B71: Provision pour gains en capital (G/C) - Client | E71: Provision pour gains en capital (G/C) - Conjoint
B72: 0 | E72: 0 | G72: Aucune provision pour G/C pour une société dans notre plan de retraite (trop difficile d'application)
B73: 1 | E73: 1
B74: 2 | E74: 2
B75: 3 | E75: 3
B76: 4 | E76: 4
B77: 5 | E77: 5
B78: 6 | E78: 6
B79: 7 | E79: 7
B80: 8 | E80: 8
B81: 9 | E81: 9
B82: 10 | E82: 10
B85: Cotisations CÉLI | F85: Cotisations CÉLI à la retraite
B86: Cotisation régulière | F86: Cotisation régulière
B87: Transfert du N-Enr. | F87: Transfert du N-Enr.
B88: Maximisation | F88: Maximisation
B89: Maximisation limitée au Non-Enr. | F89: Maximisation limitée au Non-Enr.
F90: À déterminer
B91: Ordre de décaissement
B92: Non enregistré
B93: FRV maximum (QC)
B94: FRVR maximum (féd.)
B95: S. de gestion (div. ordinaire)
B96: CELI
B97: FERR
B98: S. de gestion (div. déterminé)
B100: Taux imposition à utiliser pour les autres revenus dans la inc
B101: REEA | F101: ='Données Générales'!D35 -> 0.265
B102: DPE - Général | F102: ='Données Générales'!D36 -> 0.122
B103: DPE - Agriculture | F103: ='Données Générales'!E36 -> 0.13
B104: DPE - BFT (transformation et fabrication) | F104: ='Données Générales'!G38 -> 0.122
B105: BFT (transformation et fabrication) | F105: ='Données Générales'!F37 -> 0.25
B106: Pas 5 500 heures au Québec | F106: ='Données Générales'!F36 -> 0
B107: Prestation de service | F107: ='Données Générales'!G36 -> 0
B108: Placement | F108: ='Données Générales'!D37 -> 0.5017 | G108: ='Données Générales'!D41 -> 0.3067
F109: Taux impôt | G109: IMRTD non déterminé (ordinaire)
B110: Concept à illustrer | I110: Graphique à illustrer | N110: Nom des axes | Q110: Concept à illustrer
B111: Assurance maladies graves en propriété partagée | I111: Décaissement d'un seul scénario | N111: Montant net | Q111: Shared ownership critical illness insurance
B112: Rentabilité de l'assurance vie | I112: Décaissement de plusieurs scénarios | N112: Âge | Q112: Life insurance as an asset class
B113: Stratégie d'assurance retraite | I113: Valeur successorale de plusieurs scénarios | N113: Impôts à payer | Q113: Insured retirement strategy
B114: Rentabilité de l'assurance vie et Stratégie d'assurance retraite | I114: Assurance vie par rapport à la facture au décès | Q114: Life insurance as an asset class and Insured retirement strategy
B117: Choix paiement remboursement flexible des primes | H117: Choix Roulement au décès | K117: Profil d'investisseur (Client) | N117: Profil d'investisseur (Client) - Anglais
B118: Épargne personnelle | E118: Personal savings | H118: ='Scénario initial'!F1 -> 6 | K118: Prudent | N118: Prudent | O118: =K118 -> Prudent
B119: Dividendes versés | E119: Paid dividends | H119: ='Scénario initial'!I1 -> 9 | K119: Modéré | N119: Moderate | O119: =K119 -> Modéré
B120: Avantage imposable | E120: Taxable benefit | K120: Équilibré | N120: Balanced | O120: Équilibré
K121: Croissance | N121: Growth | O121: Croissance
B122: Choix du remboursement flexible des primes | F122: Méthode de paiement de la prime de l'actionnaire | K122: Audacieux | N122: Aggressive | O122: Audacieux
B123: RFP 15 | C123: FPR 15 | F123: Primes perso du N-Enr. | O123: (pour trouver l'équivalent en français)
B124: RFP 65 | C124: FPR 65 | F124: Avantage imposable | K124: RPD payé par
B125: RFP 20 | C125: FPR 20 | F125: Dividendes à l'actionnaire | K125: Actionnaire
K126: Société par actions
B128: Choix de l'illustration d'assurance vie | F128: Âge décès | H128: Comparer les rendements | N128: Fréquence des primes | R128: Emprunteur (SAR)
B129: =TabName1() ->  | F129: 85 | H129: Profil d'investisseur | K129: Investor profile | N129: Annuelle | P129: Annually | R129: Personnel | T129: Individual
B130: =TabName2() ->  | F130: 90 | H130: Pondération | K130: Ponderation | N130: Mensuelle | P130: Monthly | R130: Société | T130: Corporation
B131: =TabName3() ->  | F131: 95
B132: =TabName4() -> 
AA133: Problème avec les valeurs garanties (pas de CBR, CDC, etc.)
B134: 1 | C134: =B134+1 -> 2 | D134: =C134+1 -> 3 | E134: 4 | F134: 5 | G134: 6 | H134: 7 | I134: 8 | J134: 9 | K134: 10 | L134: 11 | M134: 12 | N134: 13 | O134: 14 | P134: 15 | Q134: 16 | R134: 17 | S134: 18 | T134: 19 | U134: 20 | V134: 21 | W134: 22 | X134: 23 | Y134: 24 | Z134: 25 | AA134: 26 | AB134: 27 | AC134: 28 | AD134: 29 | AE134: 30 | AF134: 31 | AG134: 32 | AH134: 33 | AI134: 34 | AJ134: 35 | AK134: 36 | AL134: 37 | AM134: =AL134+1 -> 38 | AN134: =AM134+1 -> 39 | AO134: =AN134+1 -> 40 | AP134: =AO134+1 -> 41
F135: ="Choix des entêtes - " & B4 -> Choix des entêtes - Genesis | M135: ="Choix des entêtes - " & B5 -> Choix des entêtes - iA PAR | AD135: ="Choix des entêtes - " & B6 -> Choix des entêtes - Capital Valeur | AK135: ="Choix des entêtes - " & B7 -> Choix des entêtes - Traditionnel
F136: Français | G136: 1er décès | H136: 2e décès | I136: Anglais | J136: JFTD | K136: JLTD | M136: Français | N136: 2e décès | O136: Français (taux -1) | P136: 2e décès (taux -1) | Q136: Français (taux -2) | R136: 2e décès (taux -2) | S136: Français (taux garanti) | T136: 2e décès (taux garanti) | U136: Anglais | V136: JLTD | W136: Anglais (Taux -1) | X136: JLTD (taux -1) | Y136: Anglais (taux -2) | Z136: JLTD (taux -2) | AA136: Anglais (taux garanti) | AB136: JLTD (taux garanti) | AD136: Français | AE136: 2e décès | AG136: Anglais | AH136: JLTD | AK136: Français | AL136: 2e décès | AN136: Anglais | AO136: JLTD
A137: 1 | B137: ='Scénario initial'!AD419 -> Annuals premiums | F137: Primes annuelles versées totales | G137: Primes annuelles versées totales | I137: Total Annual Premiums Paid | M137: Primes et contributions annuelles versées (Taux courant) | O137: Primes et contributions annuelles versées (Taux courant -1%) | Q137: Primes et contributions annuelles versées (Taux courant -2%) | U137: Annual Premiums and Contributions Paid (Current Rate) | W137: Annual Premiums and Contributions Paid (Current Rate -1%) | Y137: Annual Premiums and Contributions Paid (Current Rate -2%) | AD137: Primes annuelles versées | AG137: Annual Premiums Paid | AK137: Primes annuelles totales | AN137: Total Annual Premiums
A138: =A137+1 -> 2 | B138: ='Scénario initial'!AE419 -> Cumulated premiums | F138: Primes versées cumulées | G138: Primes versées cumulées | I138: Accumulated premiums paid | AD138: Primes versées cumulées | AG138: Accumulated premiums paid
A139: =A138+1 -> 3 | B139: ='Scénario initial'!AF419 -> Projected death benefit | F139: Prestation de décès Assuré 1 | G139: Prestation de décès Assurés conjoints | I139: Insured 1 Death Benefit | M139: Montant d'assurance vie total (Taux courant) | O139: Montant d'assurance vie total (Taux courant -1%) | Q139: Montant d'assurance vie total (Taux courant -2%) | S139: Montant d'assurance vie garanti | U139: Total Life Insurance Amount (Current Rate) | W139: Total Life Insurance Amount (Current Rate -1%) | Y139: Total Life Insurance Amount (Current Rate -2%) | AA139: Guaranteed Life Insurance Amount | AD139: Prestation de décès totale | AG139: Total Death Benefit | AK139: Montant d'assurance vie | AN139: Life Insurance Amount
A140: 4 | B140: ='Scénario initial'!AG419 -> Surrender value | F140: Valeur de rachat totale | G140: Valeur de rachat totale | I140: Total Surrender Value | M140: Valeur de rachat totale (Taux courant) | O140: Valeur de rachat totale (Taux courant -1%) | Q140: Valeur de rachat totale (Taux courant -2%) | S140: Valeur de rachat garantie | U140: Total Surrender Value (Current Rate) | W140: Total Surrender Value (Current Rate -1%) | Y140: Total Surrender Value (Current Rate -2%) | AA140: Guaranteed Surrender Value | AD140: Valeur de rachat totale | AG140: Total Surrender Value | AK140: Valeur de rachat garantie | AN140: Guaranteed Surrender Value
A141: 5 | B141: ='Scénario initial'!AH419 -> ACB | F141: Coût de base rajusté (CBR) | G141: Coût de base rajusté (CBR) | I141: Adjusted Cost Basis (ACB) | M141: Coût de base rajusté (CBR) (Taux courant) | O141: Coût de base rajusté (CBR) (Taux courant -1%) | Q141: Coût de base rajusté (CBR) (Taux courant -2%) | U141: Ajusted Cost Basis (ACB) (Current Rate) | W141: Ajusted Cost Basis (ACB) (Current Rate -1%) | Y141: Ajusted Cost Basis (ACB) (Current Rate -2%) | AD141: Coût de base rajusté (CBR) | AG141: Adjusted Cost Basis (ACB) | AK141: Coût de base rajusté (CBR) | AN141: Ajusted Cost Basis (ACB)
A142: 6 | B142: ='Scénario initial'!AI419 ->  | F142: Dividendes imposables CBR + compte transitoire | G142: Dividendes imposables CBR + compte transitoire | I142: Taxable Dividend ACB + Shuttle Fund | AD142: Dividendes imposables CBR + compte transitoire | AG142: Taxable Dividend ACB + Shuttle Fund
A143: 7 | B143: ='Scénario initial'!AJ419 -> CDA | F143: Fraction non imposable versée au CDC | G143: Fraction non imposable versée au CDC | I143: Non-Taxable portion sent to the CDA account | M143: Montant crédité au compte de dividende en capital (CDC) (Taux courant) | O143: Montant crédité au compte de dividende en capital (CDC) (Taux courant -1%) | Q143: Montant crédité au compte de dividende en capital (CDC) (Taux courant -2%) | U143: Amount Credited to the CDA (Current Rate) | W143: Amount Credited to the CDA (Current Rate -1%) | Y143: Amount Credited to the CDA (Current Rate -2%) | AD143: Fraction non imposable versée au CDC | AG143: Non-Taxable portion sent to the CDA account | AK143: Montant crédité au CDC | AN143: Amount credited to the CDA
A144: 8 | B144: ='Scénario initial'!AK419 -> Net amount to the estate | F144: Valeur successorale nette | G144: Valeur successorale nette | I144: Net Estate Value | M144: Valeur successorale nette (Taux courant) | O144: Valeur successorale nette (Taux courant -1%) | Q144: Valeur successorale nette (Taux courant -2%) | U144: Net Estate Value (Current Rate) | W144: Net Estate Value (Current Rate -1%) | Y144: Net Estate Value (Current Rate -2%) | AD144: Valeur successorale nette | AG144: Net Estate Value
A145: 9 | B145: ='Scénario initial'!AL419 -> Yield at death | F145: Rendement au décès (%) | G145: Rendement au décès (%) | I145: Rate of Return (Death) % | M145: Rendement au décès (Taux courant) | O145: Rendement au décès (Taux courant -1%) | Q145: Rendement net au décès (Taux courant -2%) | U145: Rate of Return (Death) % (Current Rate) | W145: Rate of Return (Death) % (Current Rate -1%) | Y145: Net Return on Death (Current Rate -2%) | AD145: Rendement au décès (%) | AG145: Rate of Return (Death) %
A146: 10 | B146: ='Scénario initial'!AM419 -> Net return to estate | M146: Rendement net au décès (Taux courant) | O146: Rendement net au décès (Taux courant -1%) | Q146: Rendement au décès (Taux courant -2%) | U146: Net Return on Death (Current Rate) | W146: Net Return on Death (Current Rate -1%) | Y146: Rate of Return (Death) % (Current Rate -2%)
A147: 11 | B147: ='Scénario initial'!AN419 -> Equivalent gross return on investment
A148: 12 | B148: Capital assuré initial | F148: Prestation de décès Assuré 1 | G148: Prestation de décès Assurés conjoints | H148: Prestation de décès Assurés conjoints | I148: Insured 1 Death Benefit | M148: Montant d'assurance vie garanti | O148: Montant d'assurance vie garanti | Q148: Montant d'assurance vie garanti | S148: Montant d'assurance vie garanti | U148: Guaranteed Life Insurance Amount | W148: Guaranteed Life Insurance Amount | Y148: Guaranteed Life Insurance Amount | AA148: Guaranteed Life Insurance Amount | AD148: Capital assuré total | AG148: Total Face Amount
A149: 13 | B149: Âge | F149: Âge | G149: Âge | I149: Age | M149: Âge | O149: Âge | Q149: Âge | U149: Age | W149: Age | Y149: Age | AD149: Âge | AG149: Age | AK149: Âge | AN149: Age
A150: 14 | B150: Capital décès garanti | M150: Montant d'assurance vie garanti | U150: Guaranteed Life Insurance Amount
A151: 15 | B151: Valeur de rachat garantie | M151: Valeur de rachat garantie | U151: Guaranteed Surrender Value
A152: 16
A153: 17

Sheet Mapping Calculation (hidden)
A1: 4 | B1: *Voir Colonnes HA à HD pour mapping en fonction de la langue de l'illustration | GV1: Illustration # 1 | GW1: Illustration # 2 | GX1: Illustration # 3 | GY1: Illustration # 4 | GZ1: Asset class - Taux alternatif (CORPO ou PERSO) | HA1: IRS/SAR - Taux choisi (CORPO ou PERSO) | HC1: =GV1 -> Illustration # 1 | HD1: Illustration # 2 | HE1: Illustration # 3 | HF1: Illustration # 4 | HG1: Asset class - Taux alternatif (CORPO ou PERSO) | HH1: IRS/SAR - Taux choisi (CORPO ou PERSO)
A2: 3 | B2: Compagnie d'assurance | C2: iA Groupe Financier | D2: iA Groupe Financier | E2: iA Groupe Financier | F2: iA Groupe Financier | G2: iA Groupe Financier | H2: iA Groupe Financier | K2: iA Groupe Financier | GV2: Choix | GW2: Choix | GX2: Choix | GY2: Choix | GZ2: Choix | HA2: Choix
A3: 2 | C3: 1 | D3: =C3+1 -> 2 | E3: 3 | F3: 4 | G3: 5 | H3: 6 | I3: 7 | J3: 8 | K3: 9 | L3: 10 | M3: 11 | N3: 12 | O3: 13 | P3: 14 | Q3: 15 | R3: 16 | S3: 17 | T3: 18 | U3: 19 | V3: 20 | W3: 21 | X3: 22 | Y3: 23 | Z3: 24 | AA3: 25 | AB3: 26 | AC3: 27 | AD3: 28 | AE3: 29 | AF3: 30 | AG3: 31 | AH3: 32 | AI3: 33 | AJ3: 34 | AK3: 35 | AL3: 36 | AM3: 37 | AN3: 38 | AO3: 39 | AP3: 40 | AQ3: 41 | AR3: 42 | AS3: 43 | AT3: 44 | AU3: 45 | AV3: 46 | AW3: 47 | AX3: 48 | AY3: 49 | AZ3: 50 | BA3: 51 | BB3: 52 | BC3: 53 | BD3: 54 | BE3: 55 | BF3: 56 | BG3: 57 | BH3: 58 | BI3: 59 | BJ3: 60 | BK3: 61 | BL3: 62 | BM3: 63 | BN3: 64 | BO3: 65 | BP3: =BO3+1 -> 66 | BQ3: 67 | BR3: 68 | BS3: 69 | BT3: 70 | BU3: 71 | BV3: 72 | BW3: 73 | BX3: 74 | BY3: 75 | BZ3: 76 | CA3: 77 | CB3: 78 | CC3: 79 | CD3: 80 | CE3: 81 | CF3: 82 | CG3: 83 | CH3: 84 | CI3: 85 | CJ3: 86 | CK3: 87 | CL3: 88 | CM3: 89 | CN3: 90 | CO3: 91 | CP3: 92 | CQ3: 93 | CR3: 94 | CS3: 95 | CT3: 96 | CU3: 97 | CV3: 98 | CW3: 99 | CX3: 100 | CY3: 101 | CZ3: 102 | DA3: 103 | DB3: 104 | DC3: 105 | DD3: 106 | DE3: 107 | DF3: 108 | DG3: 109 | DH3: 110 | DI3: 111 | DJ3: 112 | DK3: 113 | DL3: 114 | DM3: 115 | DN3: 116 | DO3: 117 | DP3: 118 | DQ3: 119 | DR3: 120 | DS3: 121 | DT3: 122 | DU3: 123 | DV3: 124 | DW3: 125 | DX3: 126 | DY3: 127 | DZ3: 128 | EA3: 129 | EB3: =EA3+1 -> 130 | EC3: 131 | ED3: 132 | EE3: 133 | EF3: 134 | EG3: 135 | EH3: 136 | EI3: 137 | EJ3: 138 | EK3: 139 | EL3: 140 | EM3: 141 | EN3: 142 | EO3: 143 | EP3: 144 | EQ3: 145 | ER3: 146 | ES3: 147 | ET3: 148 | EU3: 149 | EV3: 150 | EW3: 151 | EX3: 152 | EY3: 153 | EZ3: 154 | FA3: 155 | FB3: 156 | FC3: 157 | FD3: 158 | FE3: 159 | FF3: 160 | FG3: 161 | FH3: 162 | FI3: 163 | FJ3: 164 | FK3: 165 | FL3: 166 | FM3: 167 | FN3: 168 | FO3: 169 | FP3: 170 | FQ3: 171 | FR3: 172 | FS3: 173 | FT3: 174 | FU3: 175 | FV3: 176 | FW3: 177 | FX3: 178 | FY3: 179 | FZ3: 180 | GA3: 181 | GB3: 182 | GC3: 183 | GD3: 184 | GE3: 185 | GF3: 186 | GG3: 187 | GH3: 188 | GI3: 189 | GJ3: 190 | GK3: 191 | GL3: 192 | GM3: 193 | GN3: =GM3+1 -> 194 | GO3: 195 | GP3: 196 | GQ3: 197 | GR3: 198 | GS3: 199 | GT3: 200 | GU3: 201 | GV3: =IF(AND(Mapping!$C$121=Mapping!$B$123,'Scénario initial'!$Y$426=1), IFERROR(_xlfn.IFS(AND('Mapping - SAR'!$G$105='Mapping - SAR'!$G$106,'Mapping - SAR'!$G$122='Mapping - SAR'!$G$123),1, AND('Mapping - SAR'!$G$105='Mapping - SAR'!$G$106,'Mapping - SAR'!$G$122='Mapping - SAR'!$G$123),2, AND('Mapping - SAR'!$G$105='Mapping - SAR'!$G$106,'Mapping - SAR'!$G$122='Mapping - SAR'!$G$123),3, 'Mapping - SAR'!$G$105='Mapping - SAR'!$G$107,4, AND('Mapping - SAR'!$G$105='Mapping - SAR'!$G$108,'Mapping - SAR'!$G$137='Mapping - SAR'!$G$138),5, AND('Mapping - SAR'!$G$105='Mapping - SAR'!$G$108,'Mapping - SAR'!$G$137='Mapping - SAR'!$G$139),6, 'Mapping - SAR'!$G$105='Mapping - SAR'!$G$110,9),0), IF(AND(Mapping!$C$121=Mapping!$B$124,'Scénario initial'!$Y$650=1), IFERROR(_xlfn.IFS(AND('Mapping - SARP'!$G$105='Mapping - SARP'!$G$106,'Mapping - SARP'!$G$122='Mapping - SARP'!$G$122),1, AND('Mapping - SARP'!$G$105='Mapping - SARP'!$G$106,'Mapping - SARP'!$G$122='Mapping - SARP'!$G$123),2, AND('Mapping - SARP'!$G$105='Mapping - SARP'!$G$106,'Mapping - SARP'!$G$122='Mapping - SARP'!$G$124),3, 'Mapping - SARP'!$G$105='Mapping - SARP'!$G$107,4, AND('Mapping - SARP'!$G$105='Mapping - SARP'!$G$108,'Mapping - SARP'!$G$137='Mapping - SARP'!$G$138),5, AND('Mapping - SARP'!$G$105='Mapping - SARP'!$G$108,'Mapping - SARP'!$G$137='Mapping - SARP'!$G$139),6, 'Mapping - SARP'!$G$105='Mapping - SARP'!$G$110,9),0), 0)) -> 0 | GW3: =IF(AND(Mapping!$C$121=Mapping!$B$123,'Scénario initial'!$Y$426=2), IFERROR(_xlfn.IFS(AND('Mapping - SAR'!$G$105='Mapping - SAR'!$G$106,'Mapping - SAR'!$G$122='Mapping - SAR'!$G$123),1, AND('Mapping - SAR'!$G$105='Mapping - SAR'!$G$106,'Mapping - SAR'!$G$122='Mapping - SAR'!$G$123),2, AND('Mapping - SAR'!$G$105='Mapping - SAR'!$G$106,'Mapping - SAR'!$G$122='Mapping - SAR'!$G$123),3, 'Mapping - SAR'!$G$105='Mapping - SAR'!$G$107,4, AND('Mapping - SAR'!$G$105='Mapping - SAR'!$G$108,'Mapping - SAR'!$G$137='Mapping - SAR'!$G$138),5, AND('Mapping - SAR'!$G$105='Mapping - SAR'!$G$108,'Mapping - SAR'!$G$137='Mapping - SAR'!$G$139),6, 'Mapping - SAR'!$G$105='Mapping - SAR'!$G$110,9),0), IF(AND(Mapping!$C$121=Mapping!$B$124,'Scénario initial'!$Y$650=2), IFERROR(_xlfn.IFS(AND('Mapping - SARP'!$G$105='Mapping - SARP'!$G$106,'Mapping - SARP'!$G$122='Mapping - SARP'!$G$122),1, AND('Mapping - SARP'!$G$105='Mapping - SARP'!$G$106,'Mapping - SARP'!$G$122='Mapping - SARP'!$G$123),2, AND('Mapping - SARP'!$G$105='Mapping - SARP'!$G$106,'Mapping - SARP'!$G$122='Mapping - SARP'!$G$124),3, 'Mapping - SARP'!$G$105='Mapping - SARP'!$G$107,4, AND('Mapping - SARP'!$G$105='Mapping - SARP'!$G$108,'Mapping - SARP'!$G$137='Mapping - SARP'!$G$138),5, AND('Mapping - SARP'!$G$105='Mapping - SARP'!$G$108,'Mapping - SARP'!$G$137='Mapping - SARP'!$G$139),6, 'Mapping - SARP'!$G$105='Mapping - SARP'!$G$110,9),0), 0)) -> 0 | GX3: =IF(AND(Mapping!$C$121=Mapping!$B$123,'Scénario initial'!$Y$426=3), IFERROR(_xlfn.IFS(AND('Mapping - SAR'!$G$105='Mapping - SAR'!$G$106,'Mapping - SAR'!$G$122='Mapping - SAR'!$G$123),1, AND('Mapping - SAR'!$G$105='Mapping - SAR'!$G$106,'Mapping - SAR'!$G$122='Mapping - SAR'!$G$123),2, AND('Mapping - SAR'!$G$105='Mapping - SAR'!$G$106,'Mapping - SAR'!$G$122='Mapping - SAR'!$G$123),3, 'Mapping - SAR'!$G$105='Mapping - SAR'!$G$107,4, AND('Mapping - SAR'!$G$105='Mapping - SAR'!$G$108,'Mapping - SAR'!$G$137='Mapping - SAR'!$G$138),5, AND('Mapping - SAR'!$G$105='Mapping - SAR'!$G$108,'Mapping - SAR'!$G$137='Mapping - SAR'!$G$139),6, 'Mapping - SAR'!$G$105='Mapping - SAR'!$G$110,9),0), IF(AND(Mapping!$C$121=Mapping!$B$124,'Scénario initial'!$Y$650=3), IFERROR(_xlfn.IFS(AND('Mapping - SARP'!$G$105='Mapping - SARP'!$G$106,'Mapping - SARP'!$G$122='Mapping - SARP'!$G$122),1, AND('Mapping - SARP'!$G$105='Mapping - SARP'!$G$106,'Mapping - SARP'!$G$122='Mapping - SARP'!$G$123),2, AND('Mapping - SARP'!$G$105='Mapping - SARP'!$G$106,'Mapping - SARP'!$G$122='Mapping - SARP'!$G$124),3, 'Mapping - SARP'!$G$105='Mapping - SARP'!$G$107,4, AND('Mapping - SARP'!$G$105='Mapping - SARP'!$G$108,'Mapping - SARP'!$G$137='Mapping - SARP'!$G$138),5, AND('Mapping - SARP'!$G$105='Mapping - SARP'!$G$108,'Mapping - SARP'!$G$137='Mapping - SARP'!$G$139),6, 'Mapping - SARP'!$G$105='Mapping - SARP'!$G$110,9),0), 0)) -> 0 | GY3: =IF(AND(Mapping!$C$121=Mapping!$B$123,'Scénario initial'!$Y$426=4), IFERROR(_xlfn.IFS(AND('Mapping - SAR'!$G$105='Mapping - SAR'!$G$106,'Mapping - SAR'!$G$122='Mapping - SAR'!$G$123),1, AND('Mapping - SAR'!$G$105='Mapping - SAR'!$G$106,'Mapping - SAR'!$G$122='Mapping - SAR'!$G$123),2, AND('Mapping - SAR'!$G$105='Mapping - SAR'!$G$106,'Mapping - SAR'!$G$122='Mapping - SAR'!$G$123),3, 'Mapping - SAR'!$G$105='Mapping - SAR'!$G$107,4, AND('Mapping - SAR'!$G$105='Mapping - SAR'!$G$108,'Mapping - SAR'!$G$137='Mapping - SAR'!$G$138),5, AND('Mapping - SAR'!$G$105='Mapping - SAR'!$G$108,'Mapping - SAR'!$G$137='Mapping - SAR'!$G$139),6, 'Mapping - SAR'!$G$105='Mapping - SAR'!$G$110,9),0), IF(AND(Mapping!$C$121=Mapping!$B$124,'Scénario initial'!$Y$650=4), IFERROR(_xlfn.IFS(AND('Mapping - SARP'!$G$105='Mapping - SARP'!$G$106,'Mapping - SARP'!$G$122='Mapping - SARP'!$G$122),1, AND('Mapping - SARP'!$G$105='Mapping - SARP'!$G$106,'Mapping - SARP'!$G$122='Mapping - SARP'!$G$123),2, AND('Mapping - SARP'!$G$105='Mapping - SARP'!$G$106,'Mapping - SARP'!$G$122='Mapping - SARP'!$G$124),3, 'Mapping - SARP'!$G$105='Mapping - SARP'!$G$107,4, AND('Mapping - SARP'!$G$105='Mapping - SARP'!$G$108,'Mapping - SARP'!$G$137='Mapping - SARP'!$G$138),5, AND('Mapping - SARP'!$G$105='Mapping - SARP'!$G$108,'Mapping - SARP'!$G$137='Mapping - SARP'!$G$139),6, 'Mapping - SARP'!$G$105='Mapping - SARP'!$G$110,9),0), 0)) -> 0 | GZ3: =IF(Mapping!$C$121=Mapping!$B$123, IFERROR(_xlfn.IFS(AND('Mapping - SAR'!$G$105='Mapping - SAR'!$G$106,'Mapping - SAR'!$G$130='Mapping - SAR'!$G$131),1, AND('Mapping - SAR'!$G$105='Mapping - SAR'!$G$106,'Mapping - SAR'!$G$130='Mapping - SAR'!$G$132),2, AND('Mapping - SAR'!$G$105='Mapping - SAR'!$G$106,'Mapping - SAR'!$G$130='Mapping - SAR'!$G$133),3, 'Mapping - SAR'!$G$105='Mapping - SAR'!$G$107,4, AND('Mapping - SAR'!$G$105='Mapping - SAR'!$G$108,'Mapping - SAR'!$G$137='Mapping - SAR'!$G$138),5, AND('Mapping - SAR'!$G$105='Mapping - SAR'!$G$108,'Mapping - SAR'!$G$137='Mapping - SAR'!$G$139),6, 'Mapping - SAR'!$G$105='Mapping - SAR'!$G$110,9),0), IF(Mapping!$C$121=Mapping!$B$124, IFERROR(_xlfn.IFS(AND('Mapping - SARP'!$G$105='Mapping - SARP'!$G$106,'Mapping - SARP'!$G$130='Mapping - SARP'!$G$131),1, AND('Mapping - SARP'!$G$105='Mapping - SARP'!$G$106,'Mapping - SARP'!$G$130='Mapping - SARP'!$G$132),2, AND('Mapping - SARP'!$G$105='Mapping - SARP'!$G$106,'Mapping - SARP'!$G$130='Mapping - SARP'!$G$133),3, 'Mapping - SARP'!$G$105='Mapping - SARP'!$G$107,4, AND('Mapping - SARP'!$G$105='Mapping - SARP'!$G$108,'Mapping - SARP'!$G$137='Mapping - SARP'!$G$138),5, AND('Mapping - SARP'!$G$105='Mapping - SARP'!$G$108,'Mapping - SARP'!$G$137='Mapping - SARP'!$G$139),6, 'Mapping - SARP'!$G$105='Mapping - SARP'!$G$110,9),0), 0)) -> 0 | HA3: =IF(Mapping!$C$121=Mapping!$B$123, IFERROR(_xlfn.IFS(AND('Mapping - SAR'!$G$105='Mapping - SAR'!$G$106,'Mapping - SAR'!$K$122='Mapping - SAR'!$K$123),1, AND('Mapping - SAR'!$G$105='Mapping - SAR'!$G$106,'Mapping - SAR'!$K$122='Mapping - SAR'!$K$124),2, AND('Mapping - SAR'!$G$105='Mapping - SAR'!$G$106,'Mapping - SAR'!$K$122='Mapping - SAR'!$K$125),3, 'Mapping - SAR'!$G$105='Mapping - SAR'!$G$107,4, AND('Mapping - SAR'!$G$105='Mapping - SAR'!$G$108,'Mapping - SAR'!$G$137='Mapping - SAR'!$G$138),5, AND('Mapping - SAR'!$G$105='Mapping - SAR'!$G$108,'Mapping - SAR'!$G$137='Mapping - SAR'!$G$139),6, 'Mapping - SAR'!$G$105='Mapping - SAR'!$G$110,9),0), IF(Mapping!$C$121=Mapping!$B$124, IFERROR(_xlfn.IFS(AND('Mapping - SARP'!$G$105='Mapping - SARP'!$G$106,'Mapping - SARP'!$K$122='Mapping - SARP'!$K$123),1, AND('Mapping - SARP'!$G$105='Mapping - SARP'!$G$106,'Mapping - SARP'!$K$122='Mapping - SARP'!$K$124),2, AND('Mapping - SARP'!$G$105='Mapping - SARP'!$G$106,'Mapping - SARP'!$K$122='Mapping - SARP'!$K$125),3, 'Mapping - SARP'!$G$105='Mapping - SARP'!$G$107,4, AND('Mapping - SARP'!$G$105='Mapping - SARP'!$G$108,'Mapping - SARP'!$G$137='Mapping - SARP'!$G$138),5, AND('Mapping - SARP'!$G$105='Mapping - SARP'!$G$108,'Mapping - SARP'!$G$137='Mapping - SARP'!$G$139),6, 'Mapping - SARP'!$G$105='Mapping - SARP'!$G$110,9),0), 0)) -> 0 | HC3: =IF(AND('Illustration #1'!$A$1="",'Illustration #1'!$A$2="",'Illustration #1'!$A$3="",'Illustration #1'!$A$4="",'Illustration #1'!$A$5=""),"",IF(OR(ISNUMBER(SEARCH("Year",'Illustration #1'!$A$1)),ISNUMBER(SEARCH("Year",'Illustration #1'!$A$2)),ISNUMBER(SEARCH("Year",'Illustration #1'!$A$3)),ISNUMBER(SEARCH("Year",'Illustration #1'!$A$4)),ISNUMBER(SEARCH("Year",'Illustration #1'!$A$5)),ISNUMBER(SEARCH("Year",'Illustration #1'!$A$6)),ISNUMBER(SEARCH("Year",'Illustration #1'!$A$7)),ISNUMBER(SEARCH("Year",'Illustration #1'!$A$8))),"A","F")) ->  | HD3: =IF(AND('Illustration #2'!$A$1="",'Illustration #2'!$A$2="",'Illustration #2'!$A$3="",'Illustration #2'!$A$4="",'Illustration #2'!$A$5=""),"",IF(OR(ISNUMBER(SEARCH("Year",'Illustration #2'!$A$1)),ISNUMBER(SEARCH("Year",'Illustration #2'!$A$2)),ISNUMBER(SEARCH("Year",'Illustration #2'!$A$3)),ISNUMBER(SEARCH("Year",'Illustration #2'!$A$4)),ISNUMBER(SEARCH("Year",'Illustration #2'!$A$5)),ISNUMBER(SEARCH("Year",'Illustration #2'!$A$6)),ISNUMBER(SEARCH("Year",'Illustration #2'!$A$7)),ISNUMBER(SEARCH("Year",'Illustration #2'!$A$8))),"A","F")) ->  | HE3: =IF(AND('Illustration #3'!$A$1="",'Illustration #3'!$A$2="",'Illustration #3'!$A$3="",'Illustration #3'!$A$4="",'Illustration #3'!$A$5=""),"",IF(OR(ISNUMBER(SEARCH("Year",'Illustration #3'!$A$1)),ISNUMBER(SEARCH("Year",'Illustration #3'!$A$2)),ISNUMBER(SEARCH("Year",'Illustration #3'!$A$3)),ISNUMBER(SEARCH("Year",'Illustration #3'!$A$4)),ISNUMBER(SEARCH("Year",'Illustration #3'!$A$5)),ISNUMBER(SEARCH("Year",'Illustration #3'!$A$6)),ISNUMBER(SEARCH("Year",'Illustration #3'!$A$7)),ISNUMBER(SEARCH("Year",'Illustration #3'!$A$8))),"A","F")) ->  | HF3: =IF(AND('Illustration #4'!$A$1="",'Illustration #4'!$A$2="",'Illustration #4'!$A$3="",'Illustration #4'!$A$4="",'Illustration #4'!$A$5=""),"",IF(OR(ISNUMBER(SEARCH("Year",'Illustration #4'!$A$1)),ISNUMBER(SEARCH("Year",'Illustration #4'!$A$2)),ISNUMBER(SEARCH("Year",'Illustration #4'!$A$3)),ISNUMBER(SEARCH("Year",'Illustration #4'!$A$4)),ISNUMBER(SEARCH("Year",'Illustration #4'!$A$5)),ISNUMBER(SEARCH("Year",'Illustration #4'!$A$6)),ISNUMBER(SEARCH("Year",'Illustration #4'!$A$7)),ISNUMBER(SEARCH("Year",'Illustration #4'!$A$8))),"A","F")) ->  | HG3: =IF(Mapping!$C$121=Mapping!$B$123,_xlfn.IFS('Scénario initial'!$Y$426=1,HC3,'Scénario initial'!$Y$426=2,HD3,'Scénario initial'!$Y$426=3,HE3,'Scénario initial'!$Y$426=4,HF3),IF(Mapping!$C$121=Mapping!$B$124,_xlfn.IFS('Scénario initial'!$Y$650=1,HC3,'Scénario initial'!$Y$650=2,HD3,'Scénario initial'!$Y$650=3,HE3,'Scénario initial'!$Y$650=4,HF3),"")) ->  | HH3: =IF(Mapping!$C$121=Mapping!$B$123,_xlfn.IFS('Scénario initial'!$Y$426=1,HC3,'Scénario initial'!$Y$426=2,HD3,'Scénario initial'!$Y$426=3,HE3,'Scénario initial'!$Y$426=4,HF3),IF(Mapping!$C$121=Mapping!$B$124,_xlfn.IFS('Scénario initial'!$Y$650=1,HC3,'Scénario initial'!$Y$650=2,HD3,'Scénario initial'!$Y$650=3,HE3,'Scénario initial'!$Y$650=4,HF3),"")) -> 
A4: 1 | B4: =B58 -> Élément recherché | C4: PAR Current | D4: PAR Current -1% | E4: PAR Current -2% | F4: Equibuild | G4: Genesis IND | H4: Genesis JLTD | I4: iA Traditional (individual) | J4: iA Traditional (join) | K4: iA Legacy | L4: Libre | M4: Libre | N4: Libre | O4: Libre | P4: Libre | Q4: Libre | R4: Libre | S4: Libre | T4: Libre | U4: Libre | V4: Libre | W4: Libre | X4: Libre | Y4: Libre | Z4: Libre | AA4: Libre | AB4: Libre | AC4: Libre | AD4: Libre | AE4: Libre | AF4: Libre | AG4: Libre | AH4: Libre | AI4: Libre | AJ4: Libre | AK4: Libre | AL4: Libre | AM4: Libre | AN4: Libre | AO4: Libre | AP4: Libre | AQ4: Libre | AR4: Libre | AS4: Libre | AT4: Libre | AU4: Libre | AV4: Libre | AW4: Libre | AX4: Libre | AY4: Libre | AZ4: Libre | BA4: Libre | BB4: Libre | BC4: Libre | BD4: Libre | BE4: Libre | BF4: Libre | BG4: Libre | BH4: Libre | BI4: Libre | BJ4: Libre | BK4: Libre | BL4: Libre | BM4: Libre | BN4: Libre | BO4: Libre | BP4: Libre | BQ4: Libre | BR4: Libre | BS4: Libre | BT4: Libre | BU4: Libre | BV4: Libre | BW4: Libre | BX4: Libre | BY4: Libre | BZ4: Libre | CA4: Libre | CB4: Libre | CC4: Libre | CD4: Libre | CE4: Libre | CF4: Libre | CG4: Libre | CH4: Libre | CI4: Libre | CJ4: Libre | CK4: Libre | CL4: Libre | CM4: Libre | CN4: Libre | CO4: Libre | CP4: Libre | CQ4: Libre | CR4: Libre | CS4: Libre | CT4: Libre | CU4: Libre | CV4: Libre | CW4: Libre | CX4: Libre | CY4: Libre | CZ4: Libre | DA4: Libre | DB4: Libre | DC4: Libre | DD4: Libre | DE4: Libre | DF4: Libre | DG4: Libre | DH4: Libre | DI4: Libre | DJ4: Libre | DK4: Libre | DL4: Libre | DM4: Libre | DN4: Libre | DO4: Libre | DP4: Libre | DQ4: Libre | DR4: Libre | DS4: Libre | DT4: Libre | DU4: Libre | DV4: Libre | DW4: Libre | DX4: Libre | DY4: Libre | DZ4: Libre | EA4: Libre | EB4: Libre | EC4: Libre | ED4: Libre | EE4: Libre | EF4: Libre | EG4: Libre | EH4: Libre | EI4: Libre | EJ4: Libre | EK4: Libre | EL4: Libre | EM4: Libre | EN4: Libre | EO4: Libre | EP4: Libre | EQ4: Libre | ER4: Libre | ES4: Libre | ET4: Libre | EU4: Libre | EV4: Libre | EW4: Libre | EX4: Libre | EY4: Libre | EZ4: Libre | FA4: Libre | FB4: Libre | FC4: Libre | FD4: Libre | FE4: Libre | FF4: Libre | FG4: Libre | FH4: Libre | FI4: Libre | FJ4: Libre | FK4: Libre | FL4: Libre | FM4: Libre | FN4: Libre | FO4: Libre | FP4: Libre | FQ4: Libre | FR4: Libre | FS4: Libre | FT4: Libre | FU4: Libre | FV4: Libre | FW4: Libre | FX4: Libre | FY4: Libre | FZ4: Libre | GA4: Libre | GB4: Libre | GC4: Libre | GD4: Libre | GE4: Libre | GF4: Libre | GG4: Libre | GH4: Libre | GI4: Libre | GJ4: Libre | GK4: Libre | GL4: Libre | GM4: Libre | GN4: Libre | GO4: Libre | GP4: Libre | GQ4: Libre | GR4: Libre | GS4: Libre | GT4: Libre | GU4: Libre | GV4: Nom Anglais | GW4: Nom Anglais | GX4: Nom Anglais | GY4: Nom Anglais | GZ4: Nom Anglais | HA4: Nom Anglais | HC4: Choix selon la langue
A5: 1 | B5: =IF(B59="","",B59) -> Prime annuelle | C5: Annual Premiums and Contributions Paid (Current Rate) | D5: Annual Premiums and Contributions Paid (Current Rate -1%) | E5: Annual Premiums and Contributions Paid (Current Rate -2%) | F5: Annual Premiums Paid | G5: Total Annual Premiums Paid | H5: Total Annual Premiums Paid | I5: Total Annual Premiums | J5: Total Annual Premiums | K5: Annual premiums paid | GV5: =IF(GV$3>0,HLOOKUP(GV$3,$C$3:$GU$54,$A5+$A$3,FALSE),"") ->  | GW5: =IF(GW$3>0,HLOOKUP(GW$3,$C$3:$GU$54,$A5+$A$3,FALSE),"") ->  | HB5: =A5 -> 1 | HC5: =IF(HC$3="","",IF(HC$3=Mapping!$A$5,GV5,GV59)) ->  | HD5: =IF(HD$3="","",IF(HD$3=Mapping!$A$5,GW5,GW59)) ->  | HE5: =IF(HE$3="","",IF(HE$3=Mapping!$A$5,GX5,GX59)) ->  | HF5: =IF(HF$3="","",IF(HF$3=Mapping!$A$5,GY5,GY59)) ->  | HG5: =IF(HG$3="","",IF(HG$3=Mapping!$A$5,GZ5,GZ59)) ->  | HH5: =IF(HH$3="","",IF(HH$3=Mapping!$A$5,HA5,HA59)) -> 
A6: =A5+1 -> 2 | B6: Capital décès projeté | C6: Total Life Insurance Amount (Current Rate) | D6: Total Life Insurance Amount (Current Rate -1%) | E6: Total Life Insurance Amount (Current Rate -2%) | F6: Total Death Benefit | G6: Insured 1 Death Benefit | H6: Joint Insured Death Benefit | I6: Life Insurance Amount | J6: Life Insurance Amount | K6: Death Benefit | GV6: =IF(GV$3>0,HLOOKUP(GV$3,$C$3:$GU$54,$A6+$A$3,FALSE),"") ->  | HB6: 2 | HC6: =IF(HC$3="","",IF(HC$3=Mapping!$A$5,GV6,GV60)) ->  | HD6: =IF(HD$3="","",IF(HD$3=Mapping!$A$5,GW6,GW60)) ->  | HE6: =IF(HE$3="","",IF(HE$3=Mapping!$A$5,GX6,GX60)) ->  | HF6: =IF(HF$3="","",IF(HF$3=Mapping!$A$5,GY6,GY60)) ->  | HG6: =IF(HG$3="","",IF(HG$3=Mapping!$A$5,GZ6,GZ60)) ->  | HH6: =IF(HH$3="","",IF(HH$3=Mapping!$A$5,HA6,HA60)) -> 
A7: =A6+1 -> 3 | B7: Participation annuelle | C7: Annual Dividends (Current Rate) | D7: Annual Dividends (Current Rate -1%) | E7: Annual Dividends (Current Rate -2%) | F7: EquiBuild Bonus paid | G7: N/A | H7: N/A | I7: N/A | J7: N/A | K7: N/A | HB7: 3 | HC7: =IF(HC$3="","",IF(HC$3=Mapping!$A$5,GV7,GV61)) ->  | HD7: =IF(HD$3="","",IF(HD$3=Mapping!$A$5,GW7,GW61)) ->  | HE7: =IF(HE$3="","",IF(HE$3=Mapping!$A$5,GX7,GX61)) ->  | HF7: =IF(HF$3="","",IF(HF$3=Mapping!$A$5,GY7,GY61)) ->  | HG7: =IF(HG$3="","",IF(HG$3=Mapping!$A$5,GZ7,GZ61)) ->  | HH7: =IF(HH$3="","",IF(HH$3=Mapping!$A$5,HA7,HA61)) -> 
A8: 4 | B8: Valeur de rachat | C8: Total Surrender Value (Current Rate) | D8: Total Surrender Value (Current Rate -1%) | E8: Total Surrender Value (Current Rate -2%) | F8: Total Surrender Value | G8: Total Surrender Value | H8: Total Surrender Value | I8: =I12 -> Guaranteed Surrender Value | J8: =J12 -> Guaranteed Surrender Value | K8: Total Surrender Value | HB8: 4 | HC8: =IF(HC$3="","",IF(HC$3=Mapping!$A$5,GV8,GV62)) ->  | HD8: =IF(HD$3="","",IF(HD$3=Mapping!$A$5,GW8,GW62)) ->  | HE8: =IF(HE$3="","",IF(HE$3=Mapping!$A$5,GX8,GX62)) ->  | HF8: =IF(HF$3="","",IF(HF$3=Mapping!$A$5,GY8,GY62)) ->  | HG8: =IF(HG$3="","",IF(HG$3=Mapping!$A$5,GZ8,GZ62)) ->  | HH8: =IF(HH$3="","",IF(HH$3=Mapping!$A$5,HA8,HA62)) -> 
A9: 5 | B9: CBR | C9: Ajusted Cost Basis (ACB) (Current Rate) | D9: Ajusted Cost Basis (ACB) (Current Rate -1%) | E9: Ajusted Cost Basis (ACB) (Current Rate -2%) | F9: Adjusted Cost Basis (ACB) | G9: Adjusted Cost Basis (ACB) | H9: Adjusted Cost Basis (ACB) | I9: Ajusted Cost Basis (ACB) | J9: Ajusted Cost Basis (ACB) | K9: Adjusted Cost Basis (ACB) | HB9: 5 | HC9: =IF(HC$3="","",IF(HC$3=Mapping!$A$5,GV9,GV63)) ->  | HD9: =IF(HD$3="","",IF(HD$3=Mapping!$A$5,GW9,GW63)) ->  | HE9: =IF(HE$3="","",IF(HE$3=Mapping!$A$5,GX9,GX63)) ->  | HF9: =IF(HF$3="","",IF(HF$3=Mapping!$A$5,GY9,GY63)) ->  | HG9: =IF(HG$3="","",IF(HG$3=Mapping!$A$5,GZ9,GZ63)) ->  | HH9: =IF(HH$3="","",IF(HH$3=Mapping!$A$5,HA9,HA63)) -> 
A10: 6 | B10: CDC | C10: Amount Credited to the CDA (Current Rate) | D10: Amount Credited to the CDA (Current Rate -1%) | E10: Amount Credited to the CDA (Current Rate -2%) | F10: Amount Credited to the CDA | G10: Non-Taxable portion sent to the CDA account | H10: Non-Taxable portion sent to the CDA account | I10: Amount credited to the CDA | J10: Amount credited to the CDA | K10: Amount Credited to the CDA | HB10: 6 | HC10: =IF(HC$3="","",IF(HC$3=Mapping!$A$5,GV10,GV64)) ->  | HD10: =IF(HD$3="","",IF(HD$3=Mapping!$A$5,GW10,GW64)) ->  | HE10: =IF(HE$3="","",IF(HE$3=Mapping!$A$5,GX10,GX64)) ->  | HF10: =IF(HF$3="","",IF(HF$3=Mapping!$A$5,GY10,GY64)) ->  | HG10: =IF(HG$3="","",IF(HG$3=Mapping!$A$5,GZ10,GZ64)) ->  | HH10: =IF(HH$3="","",IF(HH$3=Mapping!$A$5,HA10,HA64)) -> 
A11: 7 | B11: CNAP | C11: Net Cost Of Pure Insurance (NCPI) (Current Rate) | D11: Net Cost Of Pure Insurance (NCPI) (Current Rate -1%) | E11: Net Cost Of Pure Insurance (NCPI) (Current Rate -2%) | F11: Net Cost of Pure Insurance (NCPI) | G11: Net Cost of Pure Insurance (NCPI) | H11: Net Cost of Pure Insurance (NCPI) | I11: Net Cost Of Pure Insurance | J11: Net Cost Of Pure Insurance | K11: Net Cost of Pure Insurance (NCPI) | HB11: 7 | HC11: =IF(HC$3="","",IF(HC$3=Mapping!$A$5,GV11,GV65)) ->  | HD11: =IF(HD$3="","",IF(HD$3=Mapping!$A$5,GW11,GW65)) ->  | HE11: =IF(HE$3="","",IF(HE$3=Mapping!$A$5,GX11,GX65)) ->  | HF11: =IF(HF$3="","",IF(HF$3=Mapping!$A$5,GY11,GY65)) ->  | HG11: =IF(HG$3="","",IF(HG$3=Mapping!$A$5,GZ11,GZ65)) ->  | HH11: =IF(HH$3="","",IF(HH$3=Mapping!$A$5,HA11,HA65)) -> 
A12: 8 | B12: Valeur de rachat garantie | C12: Guaranteed Surrender Value | D12: Guaranteed Surrender Value | E12: Guaranteed Surrender Value | F12: Base Guaranteed Surrender Value | G12: Guaranteed Surrender Value | H12: Guaranteed Surrender Value | I12: Guaranteed Surrender Value | J12: Guaranteed Surrender Value | K12: Base Guaranteed Surrender Value | HB12: 8 | HC12: =IF(HC$3="","",IF(HC$3=Mapping!$A$5,GV12,GV66)) ->  | HD12: =IF(HD$3="","",IF(HD$3=Mapping!$A$5,GW12,GW66)) ->  | HE12: =IF(HE$3="","",IF(HE$3=Mapping!$A$5,GX12,GX66)) ->  | HF12: =IF(HF$3="","",IF(HF$3=Mapping!$A$5,GY12,GY66)) ->  | HG12: =IF(HG$3="","",IF(HG$3=Mapping!$A$5,GZ12,GZ66)) ->  | HH12: =IF(HH$3="","",IF(HH$3=Mapping!$A$5,HA12,HA66)) -> 
A13: 9 | B13: Primes cumulées | C13: Accumulated Annual Premiums and Contributions Paid (Current Rate) | D13: Accumulated Annual Premiums and Contributions Paid (Current Rate -1%) | E13: Accumulated Annual Premiums and Contributions Paid (Current Rate -2%) | F13: Accumulated premiums paid | G13: Accumulated premiums paid | H13: Accumulated premiums paid | I13: N/A | J13: N/A | K13: Accumulated Annual Premiums Paid | HB13: 9 | HC13: =IF(HC$3="","",IF(HC$3=Mapping!$A$5,GV13,GV67)) ->  | HD13: =IF(HD$3="","",IF(HD$3=Mapping!$A$5,GW13,GW67)) ->  | HE13: =IF(HE$3="","",IF(HE$3=Mapping!$A$5,GX13,GX67)) ->  | HF13: =IF(HF$3="","",IF(HF$3=Mapping!$A$5,GY13,GY67)) ->  | HG13: =IF(HG$3="","",IF(HG$3=Mapping!$A$5,GZ13,GZ67)) ->  | HH13: =IF(HH$3="","",IF(HH$3=Mapping!$A$5,HA13,HA67)) -> 
A14: 10 | B14: Dividendes imposables (CBR + compte transitoire) | C14: N/A | D14: N/A | E14: N/A | F14: Taxable Dividend ACB + Shuttle Fund | G14: Taxable Dividend ACB + Shuttle Fund | H14: Taxable Dividend ACB + Shuttle Fund | I14: N/A | J14: N/A | K14: N/A | HB14: 10 | HC14: =IF(HC$3="","",IF(HC$3=Mapping!$A$5,GV14,GV68)) ->  | HD14: =IF(HD$3="","",IF(HD$3=Mapping!$A$5,GW14,GW68)) ->  | HE14: =IF(HE$3="","",IF(HE$3=Mapping!$A$5,GX14,GX68)) ->  | HF14: =IF(HF$3="","",IF(HF$3=Mapping!$A$5,GY14,GY68)) ->  | HG14: =IF(HG$3="","",IF(HG$3=Mapping!$A$5,GZ14,GZ68)) ->  | HH14: =IF(HH$3="","",IF(HH$3=Mapping!$A$5,HA14,HA68)) -> 
A15: 11 | B15: Montant net à la succession | C15: Net Estate Value (Current Rate) | D15: Net Estate Value (Current Rate -1%) | E15: Net Estate Value (Current Rate -2%) | F15: Net Estate Value | G15: Net Estate Value | H15: Net Estate Value | I15: N/A | J15: N/A | K15: Net Estate Value | HB15: 11 | HC15: =IF(HC$3="","",IF(HC$3=Mapping!$A$5,GV15,GV69)) ->  | HD15: =IF(HD$3="","",IF(HD$3=Mapping!$A$5,GW15,GW69)) ->  | HE15: =IF(HE$3="","",IF(HE$3=Mapping!$A$5,GX15,GX69)) ->  | HF15: =IF(HF$3="","",IF(HF$3=Mapping!$A$5,GY15,GY69)) ->  | HG15: =IF(HG$3="","",IF(HG$3=Mapping!$A$5,GZ15,GZ69)) ->  | HH15: =IF(HH$3="","",IF(HH$3=Mapping!$A$5,HA15,HA69)) -> 
A16: 12 | B16: Rendement au décès | C16: Rate of Return (Death) % (Current Rate) | D16: Rate of Return (Death) % (Current Rate -1%) | E16: Rate of Return (Death) % (Current Rate -2%) | F16: Rate of Return (Death) % | G16: Rate of Return (Death) % | H16: Rate of Return (Death) % | K16: Rate of Return (Death) | HB16: 12 | HC16: =IF(HC$3="","",IF(HC$3=Mapping!$A$5,GV16,GV70)) ->  | HD16: =IF(HD$3="","",IF(HD$3=Mapping!$A$5,GW16,GW70)) ->  | HE16: =IF(HE$3="","",IF(HE$3=Mapping!$A$5,GX16,GX70)) ->  | HF16: =IF(HF$3="","",IF(HF$3=Mapping!$A$5,GY16,GY70)) ->  | HG16: =IF(HG$3="","",IF(HG$3=Mapping!$A$5,GZ16,GZ70)) ->  | HH16: =IF(HH$3="","",IF(HH$3=Mapping!$A$5,HA16,HA70)) -> 
A17: 13 | B17: Rendement net à la succession | C17: Net Return on Death (Current Rate) | D17: Net Return on Death (Current Rate -1%) | E17: Net Return on Death (Current Rate -2%) | F17: N/A | G17: N/A | H17: N/A | K17: Net Return on Death | HB17: 13 | HC17: =IF(HC$3="","",IF(HC$3=Mapping!$A$5,GV17,GV71)) ->  | HD17: =IF(HD$3="","",IF(HD$3=Mapping!$A$5,GW17,GW71)) ->  | HE17: =IF(HE$3="","",IF(HE$3=Mapping!$A$5,GX17,GX71)) ->  | HF17: =IF(HF$3="","",IF(HF$3=Mapping!$A$5,GY17,GY71)) ->  | HG17: =IF(HG$3="","",IF(HG$3=Mapping!$A$5,GZ17,GZ71)) ->  | HH17: =IF(HH$3="","",IF(HH$3=Mapping!$A$5,HA17,HA71)) -> 
A18: 14 | B18: Capital assuré initial | C18: Guaranteed Life Insurance Amount | D18: Guaranteed Life Insurance Amount | E18: Guaranteed Life Insurance Amount | F18: Base Face Amount | G18: Base Face Amount | H18: Base Face Amount | K18: Guaranteed Life Insurance Face Amount | HB18: 14 | HC18: =IF(HC$3="","",IF(HC$3=Mapping!$A$5,GV18,GV72)) ->  | HD18: =IF(HD$3="","",IF(HD$3=Mapping!$A$5,GW18,GW72)) ->  | HE18: =IF(HE$3="","",IF(HE$3=Mapping!$A$5,GX18,GX72)) ->  | HF18: =IF(HF$3="","",IF(HF$3=Mapping!$A$5,GY18,GY72)) ->  | HG18: =IF(HG$3="","",IF(HG$3=Mapping!$A$5,GZ18,GZ72)) ->  | HH18: =IF(HH$3="","",IF(HH$3=Mapping!$A$5,HA18,HA72)) -> 
A19: 15 | B19: Transfert au fonds transitoire | C19: N/A | D19: N/A | E19: N/A | F19: Transfer to Shuttle Fund | G19: Transfer to Shuttle Fund | H19: Transfer to Shuttle Fund | I19: N/A | J19: N/A | K19: N/A | HB19: 15 | HC19: =IF(HC$3="","",IF(HC$3=Mapping!$A$5,GV19,GV73)) ->  | HD19: =IF(HD$3="","",IF(HD$3=Mapping!$A$5,GW19,GW73)) ->  | HE19: =IF(HE$3="","",IF(HE$3=Mapping!$A$5,GX19,GX73)) ->  | HF19: =IF(HF$3="","",IF(HF$3=Mapping!$A$5,GY19,GY73)) ->  | HG19: =IF(HG$3="","",IF(HG$3=Mapping!$A$5,GZ19,GZ73)) ->  | HH19: =IF(HH$3="","",IF(HH$3=Mapping!$A$5,HA19,HA73)) -> 
A20: 16 | B20: ODS | C20: ADO Contributions | D20: ADO Contributions | E20: ADO Contributions | F20: N/A | G20: N/A | H20: N/A | I20: N/A | J20: N/A | K20: N/A | HB20: 16 | HC20: =IF(HC$3="","",IF(HC$3=Mapping!$A$5,GV20,GV74)) ->  | HD20: =IF(HD$3="","",IF(HD$3=Mapping!$A$5,GW20,GW74)) ->  | HE20: =IF(HE$3="","",IF(HE$3=Mapping!$A$5,GX20,GX74)) ->  | HF20: =IF(HF$3="","",IF(HF$3=Mapping!$A$5,GY20,GY74)) ->  | HG20: =IF(HG$3="","",IF(HG$3=Mapping!$A$5,GZ20,GZ74)) ->  | HH20: =IF(HH$3="","",IF(HH$3=Mapping!$A$5,HA20,HA74)) -> 
A21: 17 | B21: Valeur de rachat ASL (garantie) | C21: N/A | D21: N/A | E21: N/A | F21: Guaranteed EquiBuild PUA Surrender Value | G21: N/A | H21: N/A | I21: N/A | J21: N/A | K21: Paid-Up Insurance Surrender Value | HB21: 17 | HC21: =IF(HC$3="","",IF(HC$3=Mapping!$A$5,GV21,GV75)) ->  | HD21: =IF(HD$3="","",IF(HD$3=Mapping!$A$5,GW21,GW75)) ->  | HE21: =IF(HE$3="","",IF(HE$3=Mapping!$A$5,GX21,GX75)) ->  | HF21: =IF(HF$3="","",IF(HF$3=Mapping!$A$5,GY21,GY75)) ->  | HG21: =IF(HG$3="","",IF(HG$3=Mapping!$A$5,GZ21,GZ75)) ->  | HH21: =IF(HH$3="","",IF(HH$3=Mapping!$A$5,HA21,HA75)) -> 
A22: 18 | B22: Boni sur Valeur Rachat ASL | C22: N/A | D22: N/A | E22: N/A | F22: Bonus EquiBuild PUA Surrender Value | G22: N/A | H22: N/A | I22: N/A | J22: N/A | K22: N/A | HB22: 18 | HC22: =IF(HC$3="","",IF(HC$3=Mapping!$A$5,GV22,GV76)) ->  | HD22: =IF(HD$3="","",IF(HD$3=Mapping!$A$5,GW22,GW76)) ->  | HE22: =IF(HE$3="","",IF(HE$3=Mapping!$A$5,GX22,GX76)) ->  | HF22: =IF(HF$3="","",IF(HF$3=Mapping!$A$5,GY22,GY76)) ->  | HG22: =IF(HG$3="","",IF(HG$3=Mapping!$A$5,GZ22,GZ76)) ->  | HH22: =IF(HH$3="","",IF(HH$3=Mapping!$A$5,HA22,HA76)) -> 
A23: 19 | B23: Remb. de L'IRP | C23: N/A | D23: N/A | E23: N/A | F23: IIT refund | G23: N/A | H23: N/A | I23: N/A | J23: N/A | K23: IIT Refund upon Surrender | HB23: 19 | HC23: =IF(HC$3="","",IF(HC$3=Mapping!$A$5,GV23,GV77)) ->  | HD23: =IF(HD$3="","",IF(HD$3=Mapping!$A$5,GW23,GW77)) ->  | HE23: =IF(HE$3="","",IF(HE$3=Mapping!$A$5,GX23,GX77)) ->  | HF23: =IF(HF$3="","",IF(HF$3=Mapping!$A$5,GY23,GY77)) ->  | HG23: =IF(HG$3="","",IF(HG$3=Mapping!$A$5,GZ23,GZ77)) ->  | HH23: =IF(HH$3="","",IF(HH$3=Mapping!$A$5,HA23,HA77)) -> 
A24: 20 | B24: Fonds de capitalisation | C24: N/A | D24: N/A | E24: N/A | F24: Accumulation Fund | G24: Accumulation Fund | H24: Accumulation Fund | I24: N/A | J24: N/A | K24: Accumulation Fund | HB24: 20 | HC24: =IF(HC$3="","",IF(HC$3=Mapping!$A$5,GV24,GV78)) ->  | HD24: =IF(HD$3="","",IF(HD$3=Mapping!$A$5,GW24,GW78)) ->  | HE24: =IF(HE$3="","",IF(HE$3=Mapping!$A$5,GX24,GX78)) ->  | HF24: =IF(HF$3="","",IF(HF$3=Mapping!$A$5,GY24,GY78)) ->  | HG24: =IF(HG$3="","",IF(HG$3=Mapping!$A$5,GZ24,GZ78)) ->  | HH24: =IF(HH$3="","",IF(HH$3=Mapping!$A$5,HA24,HA78)) -> 
A25: 21 | B25: Fonds transitoire avant impôt | C25: N/A | D25: N/A | E25: N/A | F25: Shuttle Fund (Before Taxes) | G25: Shuttle Fund (Before Taxes) | H25: Shuttle Fund (Before Taxes) | I25: N/A | J25: N/A | K25: Shuttle fund | HB25: 21 | HC25: =IF(HC$3="","",IF(HC$3=Mapping!$A$5,GV25,GV79)) ->  | HD25: =IF(HD$3="","",IF(HD$3=Mapping!$A$5,GW25,GW79)) ->  | HE25: =IF(HE$3="","",IF(HE$3=Mapping!$A$5,GX25,GX79)) ->  | HF25: =IF(HF$3="","",IF(HF$3=Mapping!$A$5,GY25,GY79)) ->  | HG25: =IF(HG$3="","",IF(HG$3=Mapping!$A$5,GZ25,GZ79)) ->  | HH25: =IF(HH$3="","",IF(HH$3=Mapping!$A$5,HA25,HA79)) -> 
A26: 22 | B26: Solde des avances sur police | C26: N/A | D26: N/A | E26: N/A | F26: Balance of Policy Loan | G26: N/A | H26: N/A | K26: Balance of Policy Loan | HB26: 22 | HC26: =IF(HC$3="","",IF(HC$3=Mapping!$A$5,GV26,GV80)) ->  | HD26: =IF(HD$3="","",IF(HD$3=Mapping!$A$5,GW26,GW80)) ->  | HE26: =IF(HE$3="","",IF(HE$3=Mapping!$A$5,GX26,GX80)) ->  | HF26: =IF(HF$3="","",IF(HF$3=Mapping!$A$5,GY26,GY80)) ->  | HG26: =IF(HG$3="","",IF(HG$3=Mapping!$A$5,GZ26,GZ80)) ->  | HH26: =IF(HH$3="","",IF(HH$3=Mapping!$A$5,HA26,HA80)) -> 
A27: 23 | B27: Charge au rachat (seulement Genesis TRA) | C27: N/A | D27: N/A | E27: N/A | F27: N/A | G27: Surrender charge | H27: Surrender charge | K27: N/A | HB27: 23 | HC27: =IF(HC$3="","",IF(HC$3=Mapping!$A$5,GV27,GV81)) ->  | HD27: =IF(HD$3="","",IF(HD$3=Mapping!$A$5,GW27,GW81)) ->  | HE27: =IF(HE$3="","",IF(HE$3=Mapping!$A$5,GX27,GX81)) ->  | HF27: =IF(HF$3="","",IF(HF$3=Mapping!$A$5,GY27,GY81)) ->  | HG27: =IF(HG$3="","",IF(HG$3=Mapping!$A$5,GZ27,GZ81)) ->  | HH27: =IF(HH$3="","",IF(HH$3=Mapping!$A$5,HA27,HA81)) -> 
A28: 24 | B28: Taxes sur primes | C28: N/A | D28: N/A | E28: N/A | F28: Annual Taxes on Premiums | G28: Annual Taxes on Premiums | H28: Annual Taxes on Premiums | K28: Premium Tax | HB28: 24 | HC28: =IF(HC$3="","",IF(HC$3=Mapping!$A$5,GV28,GV82)) ->  | HD28: =IF(HD$3="","",IF(HD$3=Mapping!$A$5,GW28,GW82)) ->  | HE28: =IF(HE$3="","",IF(HE$3=Mapping!$A$5,GX28,GX82)) ->  | HF28: =IF(HF$3="","",IF(HF$3=Mapping!$A$5,GY28,GY82)) ->  | HG28: =IF(HG$3="","",IF(HG$3=Mapping!$A$5,GZ28,GZ82)) ->  | HH28: =IF(HH$3="","",IF(HH$3=Mapping!$A$5,HA28,HA82)) -> 
A29: 25 | B29: Montant dédié achat ASL | C29: N/A | D29: N/A | E29: N/A | F29: Amount Devoted to PUA Purchase | G29: N/A | H29: N/A | I29: N/A | J29: N/A | K29: Effective PUA Allocation | HB29: 25 | HC29: =IF(HC$3="","",IF(HC$3=Mapping!$A$5,GV29,GV83)) ->  | HD29: =IF(HD$3="","",IF(HD$3=Mapping!$A$5,GW29,GW83)) ->  | HE29: =IF(HE$3="","",IF(HE$3=Mapping!$A$5,GX29,GX83)) ->  | HF29: =IF(HF$3="","",IF(HF$3=Mapping!$A$5,GY29,GY83)) ->  | HG29: =IF(HG$3="","",IF(HG$3=Mapping!$A$5,GZ29,GZ83)) ->  | HH29: =IF(HH$3="","",IF(HH$3=Mapping!$A$5,HA29,HA83)) -> 
A30: 26 | B30: Coût de la protection intégrée | C30: N/A | D30: N/A | E30: N/A | F30: Integrated Coverage Costs | G30: N/A | H30: N/A | K30: N/A | HB30: 26 | HC30: =IF(HC$3="","",IF(HC$3=Mapping!$A$5,GV30,GV84)) ->  | HD30: =IF(HD$3="","",IF(HD$3=Mapping!$A$5,GW30,GW84)) ->  | HE30: =IF(HE$3="","",IF(HE$3=Mapping!$A$5,GX30,GX84)) ->  | HF30: =IF(HF$3="","",IF(HF$3=Mapping!$A$5,GY30,GY84)) ->  | HG30: =IF(HG$3="","",IF(HG$3=Mapping!$A$5,GZ30,GZ84)) ->  | HH30: =IF(HH$3="","",IF(HH$3=Mapping!$A$5,HA30,HA84)) -> 
A31: 27 | B31: Coûts annuel des avenants et garanties supplémentaires | C31: N/A | D31: N/A | E31: N/A | F31: Riders and Additional Benefits Costs | G31: Riders and Additional Benefits Costs | H31: Riders and Additional Benefits Costs | K31: Riders and Additionnal Benefits Annual Premiums | HB31: 27 | HC31: =IF(HC$3="","",IF(HC$3=Mapping!$A$5,GV31,GV85)) ->  | HD31: =IF(HD$3="","",IF(HD$3=Mapping!$A$5,GW31,GW85)) ->  | HE31: =IF(HE$3="","",IF(HE$3=Mapping!$A$5,GX31,GX85)) ->  | HF31: =IF(HF$3="","",IF(HF$3=Mapping!$A$5,GY31,GY85)) ->  | HG31: =IF(HG$3="","",IF(HG$3=Mapping!$A$5,GZ31,GZ85)) ->  | HH31: =IF(HH$3="","",IF(HH$3=Mapping!$A$5,HA31,HA85)) -> 
A32: 28 | B32: Coût annuel totaux | C32: N/A | D32: N/A | E32: N/A | F32: Total Annual Costs | G32: Total Annual Costs | H32: Total Annual Costs | K32: Total Costs | HB32: 28 | HC32: =IF(HC$3="","",IF(HC$3=Mapping!$A$5,GV32,GV86)) ->  | HD32: =IF(HD$3="","",IF(HD$3=Mapping!$A$5,GW32,GW86)) ->  | HE32: =IF(HE$3="","",IF(HE$3=Mapping!$A$5,GX32,GX86)) ->  | HF32: =IF(HF$3="","",IF(HF$3=Mapping!$A$5,GY32,GY86)) ->  | HG32: =IF(HG$3="","",IF(HG$3=Mapping!$A$5,GZ32,GZ86)) ->  | HH32: =IF(HH$3="","",IF(HH$3=Mapping!$A$5,HA32,HA86)) -> 
A33: 29 | B33: Primes annuelles totales garanties | C33: Total Guaranteed Annual Premiums | D33: Total Guaranteed Annual Premiums | E33: Total Guaranteed Annual Premiums | F33: N/A | G33: N/A | H33: N/A | I33: N/A | J33: N/A | K33: N/A | HB33: 29 | HC33: =IF(HC$3="","",IF(HC$3=Mapping!$A$5,GV33,GV87)) ->  | HD33: =IF(HD$3="","",IF(HD$3=Mapping!$A$5,GW33,GW87)) ->  | HE33: =IF(HE$3="","",IF(HE$3=Mapping!$A$5,GX33,GX87)) ->  | HF33: =IF(HF$3="","",IF(HF$3=Mapping!$A$5,GY33,GY87)) ->  | HG33: =IF(HG$3="","",IF(HG$3=Mapping!$A$5,GZ33,GZ87)) ->  | HH33: =IF(HH$3="","",IF(HH$3=Mapping!$A$5,HA33,HA87)) -> 
A34: 30 | B34: Rendement au rachat (TRI) | C34: Rate of Return (Surrender) (Current Rate) | D34: Rate of Return (Surrender) (Current Rate -1%) | E34: Rate of Return (Surrender) (Current Rate -2%) | F34: Rate of Return (Surrender) % | G34: N/A | H34: N/A | I34: N/A | J34: N/A | K34: Rate of Returns (Surrender) | HB34: 30 | HC34: =IF(HC$3="","",IF(HC$3=Mapping!$A$5,GV34,GV88)) ->  | HD34: =IF(HD$3="","",IF(HD$3=Mapping!$A$5,GW34,GW88)) ->  | HE34: =IF(HE$3="","",IF(HE$3=Mapping!$A$5,GX34,GX88)) ->  | HF34: =IF(HF$3="","",IF(HF$3=Mapping!$A$5,GY34,GY88)) ->  | HG34: =IF(HG$3="","",IF(HG$3=Mapping!$A$5,GZ34,GZ88)) ->  | HH34: =IF(HH$3="","",IF(HH$3=Mapping!$A$5,HA34,HA88)) -> 
A35: 31 | B35: Rendement net au rachat (TRI) | C35: Net Return on Surrender (Current Rate) | D35: Net Return on Surrender (Current Rate -1%) | E35: Net Return on Surrender (Current Rate -2%) | F35: N/A | G35: Net Return on Surrender | H35: Net Return on Surrender | I35: N/A | J35: N/A | K35: Net Return on Surrender | GV35: =IF(GV$3>0,HLOOKUP(GV$3,$C$3:$GU$54,$A35+$A$3,FALSE),"") ->  | HB35: 31 | HC35: =IF(HC$3="","",IF(HC$3=Mapping!$A$5,GV35,GV89)) ->  | HD35: =IF(HD$3="","",IF(HD$3=Mapping!$A$5,GW35,GW89)) ->  | HE35: =IF(HE$3="","",IF(HE$3=Mapping!$A$5,GX35,GX89)) ->  | HF35: =IF(HF$3="","",IF(HF$3=Mapping!$A$5,GY35,GY89)) ->  | HG35: =IF(HG$3="","",IF(HG$3=Mapping!$A$5,GZ35,GZ89)) ->  | HH35: =IF(HH$3="","",IF(HH$3=Mapping!$A$5,HA35,HA89)) -> 
A36: 32 | B36: ODS / Dépôt supplémentaire | C36: =C20 -> ADO Contributions | D36: =D20 -> ADO Contributions | E36: =E20 -> ADO Contributions | F36: N/A | G36: N/A | H36: N/A | I36: N/A | J36: N/A | K36: N/A | HB36: 32 | HC36: =IF(HC$3="","",IF(HC$3=Mapping!$A$5,GV36,GV90)) ->  | HD36: =IF(HD$3="","",IF(HD$3=Mapping!$A$5,GW36,GW90)) ->  | HE36: =IF(HE$3="","",IF(HE$3=Mapping!$A$5,GX36,GX90)) ->  | HF36: =IF(HF$3="","",IF(HF$3=Mapping!$A$5,GY36,GY90)) ->  | HG36: =IF(HG$3="","",IF(HG$3=Mapping!$A$5,GZ36,GZ90)) ->  | HH36: =IF(HH$3="","",IF(HH$3=Mapping!$A$5,HA36,HA90)) -> 
A37: 33 | B37: Prime d'assurance (base/minimale) | C37: =C33 -> Total Guaranteed Annual Premiums | D37: =D33 -> Total Guaranteed Annual Premiums | E37: Total Guaranteed Annual Premiums | F37: N/A | G37: Minimum Premium | H37: Minimum Premium | I37: =I5 -> Total Annual Premiums | J37: =J5 -> Total Annual Premiums | K37: Total Minimum Annual Premiums | HB37: 33 | HC37: =IF(HC$3="","",IF(HC$3=Mapping!$A$5,GV37,GV91)) ->  | HD37: =IF(HD$3="","",IF(HD$3=Mapping!$A$5,GW37,GW91)) ->  | HE37: =IF(HE$3="","",IF(HE$3=Mapping!$A$5,GX37,GX91)) ->  | HF37: =IF(HF$3="","",IF(HF$3=Mapping!$A$5,GY37,GY91)) ->  | HG37: =IF(HG$3="","",IF(HG$3=Mapping!$A$5,GZ37,GZ91)) ->  | HH37: =IF(HH$3="","",IF(HH$3=Mapping!$A$5,HA37,HA91)) -> 
A38: 34 | B38: Année | C38: Year | D38: Year | E38: Year | F38: Year | G38: Year | H38: Year | I38: Year | J38: Year | K38: Year | HB38: 34 | HC38: =IF(HC$3="","",IF(HC$3=Mapping!$A$5,GV38,GV92)) ->  | HD38: =IF(HD$3="","",IF(HD$3=Mapping!$A$5,GW38,GW92)) ->  | HE38: =IF(HE$3="","",IF(HE$3=Mapping!$A$5,GX38,GX92)) ->  | HF38: =IF(HF$3="","",IF(HF$3=Mapping!$A$5,GY38,GY92)) ->  | HG38: =IF(HG$3="","",IF(HG$3=Mapping!$A$5,GZ38,GZ92)) ->  | HH38: =IF(HH$3="","",IF(HH$3=Mapping!$A$5,HA38,HA92)) -> 
A39: 35 | B39: Âge | C39: Age | D39: Age | E39: Age | F39: Age | G39: Age | H39: Age | I39: Age | J39: Age | K39: Age | HB39: 35 | HC39: =IF(HC$3="","",IF(HC$3=Mapping!$A$5,GV39,GV93)) ->  | HD39: =IF(HD$3="","",IF(HD$3=Mapping!$A$5,GW39,GW93)) ->  | HE39: =IF(HE$3="","",IF(HE$3=Mapping!$A$5,GX39,GX93)) ->  | HF39: =IF(HF$3="","",IF(HF$3=Mapping!$A$5,GY39,GY93)) ->  | HG39: =IF(HG$3="","",IF(HG$3=Mapping!$A$5,GZ39,GZ93)) ->  | HH39: =IF(HH$3="","",IF(HH$3=Mapping!$A$5,HA39,HA93)) -> 
A40: 36 | B40: Case A1 (si spéciale) | C40: N/A | D40: N/A | E40: N/A | F40: N/A | G40: N/A | H40: N/A | I40: N/A | J40: N/A | K40: N/A | HB40: 36 | HC40: =IF(HC$3="","",IF(HC$3=Mapping!$A$5,GV40,GV94)) ->  | HD40: =IF(HD$3="","",IF(HD$3=Mapping!$A$5,GW40,GW94)) ->  | HE40: =IF(HE$3="","",IF(HE$3=Mapping!$A$5,GX40,GX94)) ->  | HF40: =IF(HF$3="","",IF(HF$3=Mapping!$A$5,GY40,GY94)) ->  | HG40: =IF(HG$3="","",IF(HG$3=Mapping!$A$5,GZ40,GZ94)) ->  | HH40: =IF(HH$3="","",IF(HH$3=Mapping!$A$5,HA40,HA94)) -> 
A41: 37 | B41: Prime annuelle des avenants et garanties ??? | I41: N/A | J41: N/A | K41: Guaranteed Life Insurance Face Amount | HB41: 37 | HC41: =IF(HC$3="","",IF(HC$3=Mapping!$A$5,GV41,GV95)) ->  | HD41: =IF(HD$3="","",IF(HD$3=Mapping!$A$5,GW41,GW95)) ->  | HE41: =IF(HE$3="","",IF(HE$3=Mapping!$A$5,GX41,GX95)) ->  | HF41: =IF(HF$3="","",IF(HF$3=Mapping!$A$5,GY41,GY95)) ->  | HG41: =IF(HG$3="","",IF(HG$3=Mapping!$A$5,GZ41,GZ95)) ->  | HH41: =IF(HH$3="","",IF(HH$3=Mapping!$A$5,HA41,HA95)) -> 
A42: 38 | B42: Capital décès projeté (assurance seulement… pas fonds) | F42: Total Face Amount | G42: Insured 1 Face amount | K42: N/A | HB42: 38 | HC42: =IF(HC$3="","",IF(HC$3=Mapping!$A$5,GV42,GV96)) ->  | HD42: =IF(HD$3="","",IF(HD$3=Mapping!$A$5,GW42,GW96)) ->  | HE42: =IF(HE$3="","",IF(HE$3=Mapping!$A$5,GX42,GX96)) ->  | HF42: =IF(HF$3="","",IF(HF$3=Mapping!$A$5,GY42,GY96)) ->  | HG42: =IF(HG$3="","",IF(HG$3=Mapping!$A$5,GZ42,GZ96)) ->  | HH42: =IF(HH$3="","",IF(HH$3=Mapping!$A$5,HA42,HA96)) -> 
A43: 39 | B43: Valeur de rachat nette | F43: Total Net Surrender Value | G43: Total Net Surrender Value | K43: Total Net Surrender Value | HB43: 39 | HC43: =IF(HC$3="","",IF(HC$3=Mapping!$A$5,GV43,GV97)) ->  | HD43: =IF(HD$3="","",IF(HD$3=Mapping!$A$5,GW43,GW97)) ->  | HE43: =IF(HE$3="","",IF(HE$3=Mapping!$A$5,GX43,GX97)) ->  | HF43: =IF(HF$3="","",IF(HF$3=Mapping!$A$5,GY43,GY97)) ->  | HG43: =IF(HG$3="","",IF(HG$3=Mapping!$A$5,GZ43,GZ97)) ->  | HH43: =IF(HH$3="","",IF(HH$3=Mapping!$A$5,HA43,HA97)) -> 
A44: 40 | B44: 2e recherche pour la langue (français uniquement) | C44: N/A | D44: N/A | E44: N/A | F44: N/A | G44: N/A | H44: N/A | I44: N/A | J44: N/A | K44: N/A | HB44: 40 | HC44: =IF(HC$3="","",IF(HC$3=Mapping!$A$5,GV44,GV98)) ->  | HD44: =IF(HD$3="","",IF(HD$3=Mapping!$A$5,GW44,GW98)) ->  | HE44: =IF(HE$3="","",IF(HE$3=Mapping!$A$5,GX44,GX98)) ->  | HF44: =IF(HF$3="","",IF(HF$3=Mapping!$A$5,GY44,GY98)) ->  | HG44: =IF(HG$3="","",IF(HG$3=Mapping!$A$5,GZ44,GZ98)) ->  | HH44: =IF(HH$3="","",IF(HH$3=Mapping!$A$5,HA44,HA98)) -> 
A45: 41 | B45: Fonds transitoire | K45: Shuttle fund | HB45: 41 | HC45: =IF(HC$3="","",IF(HC$3=Mapping!$A$5,GV45,GV99)) ->  | HD45: =IF(HD$3="","",IF(HD$3=Mapping!$A$5,GW45,GW99)) ->  | HE45: =IF(HE$3="","",IF(HE$3=Mapping!$A$5,GX45,GX99)) ->  | HF45: =IF(HF$3="","",IF(HF$3=Mapping!$A$5,GY45,GY99)) ->  | HG45: =IF(HG$3="","",IF(HG$3=Mapping!$A$5,GZ45,GZ99)) ->  | HH45: =IF(HH$3="","",IF(HH$3=Mapping!$A$5,HA45,HA99)) -> 
A46: 42 | HB46: 42
A47: 43 | HB47: 43
A48: 44 | HB48: 44
A49: 45 | HB49: 45
A50: 46 | HB50: 46
A51: 47 | HB51: 47
A52: 48 | HB52: 48
A53: 49 | HB53: 49
A54: 50 | HB54: 50
GV55: =GV1 -> Illustration # 1 | GW55: Illustration # 2 | GX55: Illustration # 3 | GY55: Illustration # 4 | GZ55: Asset class - Taux alternatif (CORPO ou PERSO) | HA55: IRS/SAR - Taux choisi (CORPO ou PERSO)
A56: 3 | C56: FR | GV56: Choix | GW56: Choix | GX56: Choix | GY56: Choix | GZ56: Choix | HA56: Choix
A57: 2 | C57: 1 | D57: =C57+1 -> 2 | E57: 3 | F57: 4 | G57: 5 | H57: 6 | I57: 7 | J57: 8 | K57: 9 | L57: 10 | M57: 11 | N57: 12 | O57: 13 | P57: 14 | Q57: 15 | R57: 16 | S57: 17 | T57: 18 | U57: 19 | V57: 20 | W57: 21 | X57: 22 | Y57: 23 | Z57: 24 | AA57: 25 | AB57: 26 | AC57: 27 | AD57: 28 | AE57: 29 | AF57: 30 | AG57: 31 | AH57: 32 | AI57: 33 | AJ57: 34 | AK57: 35 | AL57: 36 | AM57: 37 | AN57: 38 | AO57: 39 | AP57: 40 | AQ57: 41 | AR57: 42 | AS57: 43 | AT57: 44 | AU57: 45 | AV57: 46 | AW57: 47 | AX57: 48 | AY57: 49 | AZ57: 50 | BA57: 51 | BB57: 52 | BC57: 53 | BD57: 54 | BE57: 55 | BF57: 56 | BG57: 57 | BH57: 58 | BI57: 59 | BJ57: 60 | BK57: 61 | BL57: 62 | BM57: 63 | BN57: 64 | BO57: 65 | BP57: =BO57+1 -> 66 | BQ57: 67 | BR57: 68 | BS57: 69 | BT57: 70 | BU57: 71 | BV57: 72 | BW57: 73 | BX57: 74 | BY57: 75 | BZ57: 76 | CA57: 77 | CB57: 78 | CC57: 79 | CD57: 80 | CE57: 81 | CF57: 82 | CG57: 83 | CH57: 84 | CI57: 85 | CJ57: 86 | CK57: 87 | CL57: 88 | CM57: 89 | CN57: 90 | CO57: 91 | CP57: 92 | CQ57: 93 | CR57: 94 | CS57: 95 | CT57: 96 | CU57: 97 | CV57: 98 | CW57: 99 | CX57: 100 | CY57: 101 | CZ57: 102 | DA57: 103 | DB57: 104 | DC57: 105 | DD57: 106 | DE57: 107 | DF57: 108 | DG57: 109 | DH57: 110 | DI57: 111 | DJ57: 112 | DK57: 113 | DL57: 114 | DM57: 115 | DN57: 116 | DO57: 117 | DP57: 118 | DQ57: 119 | DR57: 120 | DS57: 121 | DT57: 122 | DU57: 123 | DV57: 124 | DW57: 125 | DX57: 126 | DY57: 127 | DZ57: 128 | EA57: 129 | EB57: =EA57+1 -> 130 | EC57: 131 | ED57: 132 | EE57: 133 | EF57: 134 | EG57: 135 | EH57: 136 | EI57: 137 | EJ57: 138 | EK57: 139 | EL57: 140 | EM57: 141 | EN57: 142 | EO57: 143 | EP57: 144 | EQ57: 145 | ER57: 146 | ES57: 147 | ET57: 148 | EU57: 149 | EV57: 150 | EW57: 151 | EX57: 152 | EY57: 153 | EZ57: 154 | FA57: 155 | FB57: 156 | FC57: 157 | FD57: 158 | FE57: 159 | FF57: 160 | FG57: 161 | FH57: 162 | FI57: 163 | FJ57: 164 | FK57: 165 | FL57: 166 | FM57: 167 | FN57: 168 | FO57: 169 | FP57: 170 | FQ57: 171 | FR57: 172 | FS57: 173 | FT57: 174 | FU57: 175 | FV57: 176 | FW57: 177 | FX57: 178 | FY57: 179 | FZ57: 180 | GA57: 181 | GB57: 182 | GC57: 183 | GD57: 184 | GE57: 185 | GF57: 186 | GG57: 187 | GH57: 188 | GI57: 189 | GJ57: 190 | GK57: 191 | GL57: 192 | GM57: 193 | GN57: =GM57+1 -> 194 | GO57: 195 | GP57: 196 | GQ57: 197 | GR57: 198 | GS57: 199 | GT57: 200 | GU57: 201 | GV57: =GV3 -> 0 | GW57: 0 | GX57: 0 | GY57: 0 | GZ57: 0 | HA57: 0
A58: 1 | B58: Élément recherché | C58: PAR Actuel | D58: PAR Actuel -1% | E58: PAR Actuel -2% | F58: Capital Valeur | G58: Genesis IND | H58: Genesis Conjointe dernier décès | I58: iA Traditionnelle (individuelle) | J58: iA Traditionnelle (conjointe) | K58: iA Héritage | L58: Libre | M58: Libre | N58: Libre | O58: Libre | P58: Libre | Q58: Libre | R58: Libre | S58: Libre | T58: Libre | U58: Libre | V58: Libre | W58: Libre | X58: Libre | Y58: Libre | Z58: Libre | AA58: Libre | AB58: Libre | AC58: Libre | AD58: Libre | AE58: Libre | AF58: Libre | AG58: Libre | AH58: Libre | AI58: Libre | AJ58: Libre | AK58: Libre | AL58: Libre | AM58: Libre | AN58: Libre | AO58: Libre | AP58: Libre | AQ58: Libre | AR58: Libre | AS58: Libre | AT58: Libre | AU58: Libre | AV58: Libre | AW58: Libre | AX58: Libre | AY58: Libre | AZ58: Libre | BA58: Libre | BB58: Libre | BC58: Libre | BD58: Libre | BE58: Libre | BF58: Libre | BG58: Libre | BH58: Libre | BI58: Libre | BJ58: Libre | BK58: Libre | BL58: Libre | BM58: Libre | BN58: Libre | BO58: Libre | BP58: Libre | BQ58: Libre | BR58: Libre | BS58: Libre | BT58: Libre | BU58: Libre | BV58: Libre | BW58: Libre | BX58: Libre | BY58: Libre | BZ58: Libre | CA58: Libre | CB58: Libre | CC58: Libre | CD58: Libre | CE58: Libre | CF58: Libre | CG58: Libre | CH58: Libre | CI58: Libre | CJ58: Libre | CK58: Libre | CL58: Libre | CM58: Libre | CN58: Libre | CO58: Libre | CP58: Libre | CQ58: Libre | CR58: Libre | CS58: Libre | CT58: Libre | CU58: Libre | CV58: Libre | CW58: Libre | CX58: Libre | CY58: Libre | CZ58: Libre | DA58: Libre | DB58: Libre | DC58: Libre | DD58: Libre | DE58: Libre | DF58: Libre | DG58: Libre | DH58: Libre | DI58: Libre | DJ58: Libre | DK58: Libre | DL58: Libre | DM58: Libre | DN58: Libre | DO58: Libre | DP58: Libre | DQ58: Libre | DR58: Libre | DS58: Libre | DT58: Libre | DU58: Libre | DV58: Libre | DW58: Libre | DX58: Libre | DY58: Libre | DZ58: Libre | EA58: Libre | EB58: Libre | EC58: Libre | ED58: Libre | EE58: Libre | EF58: Libre | EG58: Libre | EH58: Libre | EI58: Libre | EJ58: Libre | EK58: Libre | EL58: Libre | EM58: Libre | EN58: Libre | EO58: Libre | EP58: Libre | EQ58: Libre | ER58: Libre | ES58: Libre | ET58: Libre | EU58: Libre | EV58: Libre | EW58: Libre | EX58: Libre | EY58: Libre | EZ58: Libre | FA58: Libre | FB58: Libre | FC58: Libre | FD58: Libre | FE58: Libre | FF58: Libre | FG58: Libre | FH58: Libre | FI58: Libre | FJ58: Libre | FK58: Libre | FL58: Libre | FM58: Libre | FN58: Libre | FO58: Libre | FP58: Libre | FQ58: Libre | FR58: Libre | FS58: Libre | FT58: Libre | FU58: Libre | FV58: Libre | FW58: Libre | FX58: Libre | FY58: Libre | FZ58: Libre | GA58: Libre | GB58: Libre | GC58: Libre | GD58: Libre | GE58: Libre | GF58: Libre | GG58: Libre | GH58: Libre | GI58: Libre | GJ58: Libre | GK58: Libre | GL58: Libre | GM58: Libre | GN58: Libre | GO58: Libre | GP58: Libre | GQ58: Libre | GR58: Libre | GS58: Libre | GT58: Libre | GU58: Libre | GV58: Nom Français
A59: 1 | B59: Prime annuelle | C59: Primes et contributions annuelles versées (Taux courant) | D59: Primes et contributions annuelles versées (Taux courant -1%) | E59: Primes et contributions annuelles versées (Taux courant -2%) | F59: Primes annuelles versées | G59: Primes annuelles versées totales | H59: Primes annuelles versées totales | I59: Primes annuelles totales | J59: Primes annuelles totales | K59: Primes annuelles versées | GV59: =IF(GV$57>0,HLOOKUP(GV$57,$C$57:$GU$108,$A59+$A$57,FALSE),"") -> 
A60: =A59+1 -> 2 | B60: Capital décès projeté | C60: Montant d'assurance vie total (Taux courant) | D60: Montant d'assurance vie total (Taux courant -1%) | E60: Montant d'assurance vie total (Taux courant -2%) | F60: Prestation de décès totale | G60: Prestation de décès Assuré 1 | H60: Prestation de décès Assurés conjoints | I60: Montant d'assurance vie | J60: Montant d'assurance vie | K60: Prestation de décès
A61: =A60+1 -> 3 | B61: Participation annuelle | C61: Participations annuelles (Taux courant) | D61: Participations annuelles (Taux courant -1%) | E61: Participations annuelles (Taux courant -2%) | F61: Boni Valeur versé | G61: N/A | H61: N/A | I61: N/A | J61: N/A | K61: N/A
A62: 4 | B62: Valeur de rachat | C62: Valeur de rachat totale (Taux courant) | D62: Valeur de rachat totale (Taux courant -1%) | E62: Valeur de rachat totale (Taux courant -2%) | F62: Valeur de rachat totale | G62: Valeur de rachat totale | H62: Valeur de rachat totale | I62: =I66 -> Valeur de rachat garantie | J62: =J66 -> Valeur de rachat garantie | K62: Valeur de rachat totale
A63: 5 | B63: CBR | C63: Coût de base rajusté (CBR) (Taux courant) | D63: Coût de base rajusté (CBR) (Taux courant -1%) | E63: Coût de base rajusté (CBR) (Taux courant -2%) | F63: Coût de base rajusté (CBR) | G63: Coût de base rajusté (CBR) | H63: Coût de base rajusté (CBR) | I63: Coût de base rajusté (CBR) | J63: Coût de base rajusté (CBR) | K63: Coût de base rajusté (CBR)
A64: 6 | B64: CDC | C64: Montant crédité au compte de dividende en capital (CDC) (Taux courant) | D64: Montant crédité au compte de dividende en capital (CDC) (Taux courant -1%) | E64: Montant crédité au compte de dividende en capital (CDC) (Taux courant -2%) | F64: Fraction non imposable versée au CDC | G64: Fraction non imposable versée au CDC | H64: Fraction non imposable versée au CDC | I64: Montant crédité au CDC | J64: Montant crédité au CDC | K64: Montant crédité au compte de dividende en capital (CDC)
A65: 7 | B65: CNAP | C65: Coût net d'assurance pure (CNAP) (Taux courant) | D65: Coût net d'assurance pure (CNAP) (Taux courant -1%) | E65: Coût net d'assurance pure (CNAP) (Taux courant -2%) | F65: Coût net d'assurance pure (CNAP) | G65: Coût net d'assurance pure (CNAP) | H65: Coût net d'assurance pure (CNAP) | I65: Coût net assurance pure | J65: Coût net assurance pure | K65: Coût net d'assurance pure (CNAP)
A66: 8 | B66: Valeur de rachat garantie | C66: Valeur de rachat garantie | D66: Valeur de rachat garantie | E66: Valeur de rachat garantie | F66: Valeur de rachat garantie de la base | G66: Valeur de rachat garantie | H66: Valeur de rachat garantie | I66: Valeur de rachat garantie | J66: Valeur de rachat garantie | K66: Valeur de rachat garantie de la base
A67: 9 | B67: Primes cumulées | C67: Primes et contributions annuelles cumulatives (Taux courant) | D67: Primes et contributions annuelles cumulatives (Taux courant -1%) | E67: Primes et contributions annuelles cumulatives (Taux courant -2%) | F67: Primes versées cumulées | G67: Primes versées cumulées | H67: Primes versées cumulées | I67: N/A | J67: N/A | K67: Primes annuelles cumulatives
A68: 10 | B68: Dividendes imposables (CBR + compte transitoire) | C68: N/A | D68: N/A | E68: N/A | F68: Dividendes imposables CBR + compte transitoire | G68: Dividendes imposables CBR + compte transitoire | H68: Dividendes imposables CBR + compte transitoire | I68: N/A | J68: N/A | K68: N/A
A69: 11 | B69: Montant net à la succession | C69: Valeur successorale nette (Taux courant) | D69: Valeur successorale nette (Taux courant -1%) | E69: Valeur successorale nette (Taux courant -2%) | F69: Valeur successorale nette | G69: Valeur successorale nette | H69: Valeur successorale nette | I69: N/A | J69: N/A | K69: Valeur successorale nette
A70: 12 | B70: Rendement au décès | C70: Rendement au décès (Taux courant) | D70: Rendement au décès (Taux courant -1%) | E70: Rendement au décès (Taux courant -2%) | F70: Rendement au décès (%) | G70: Rendement au décès (%) | H70: Rendement au décès (%) | K70: Rendement au décès
A71: 13 | B71: Rendement net à la succession | C71: Rendement net au décès (Taux courant) | D71: Rendement net au décès (Taux courant -1%) | E71: Rendement net au décès (Taux courant -2%) | F71: N/A | G71: N/A | H71: N/A | K71: Rendement net au décès
A72: 14 | B72: Capital assuré initial | C72: Montant d'assurance vie garanti | D72: Montant d'assurance vie garanti | E72: Montant d'assurance vie garanti | F72: Capital assuré de la base | G72: Capital assuré de la base | H72: Capital Assurés conjoints | K72: Capital assuré garanti
A73: 15 | B73: Transfert au fonds transitoire | C73: N/A | D73: N/A | E73: N/A | F73: Transferts au fonds transitoire | G73: Transferts au fonds transitoire | H73: Transferts au fonds transitoire | I73: N/A | J73: N/A | K73: N/A
A74: 16 | B74: ODS | C74: Contributions à l'ODS | D74: Contributions à l'ODS | E74: Contributions à l'ODS | F74: N/A | G74: N/A | H74: N/A | I74: N/A | J74: N/A | K74: N/A
A75: 17 | B75: Valeur de rachat ASL (garantie) | C75: N/A | D75: N/A | E75: N/A | F75: Valeur de rachat de l'ASL garantie | G75: N/A | H75: N/A | I75: N/A | J75: N/A | K75: Valeur de rachat de l'assurance libérée | GV75: =IF(GV$57>0,HLOOKUP(GV$57,$C$57:$GU$108,$A75+$A$57,FALSE),"") -> 
A76: 18 | B76: Boni sur Valeur Rachat ASL | C76: N/A | D76: N/A | E76: N/A | F76: Valeur de rachat de l'ASL boni | G76: N/A | H76: N/A | I76: N/A | J76: N/A | K76: N/A
A77: 19 | B77: Remb. de L'IRP | C77: N/A | D77: N/A | E77: N/A | F77: Remb. de l'IRP | G77: N/A | H77: N/A | I77: N/A | J77: N/A | K77: Remboursement de l'IRP au rachat
A78: 20 | B78: Fonds de capitalisation | C78: N/A | D78: N/A | E78: N/A | F78: Fonds de capitalisation | G78: Fonds de capitalisation | H78: Fonds de capitalisation | I78: N/A | J78: N/A | K78: Fonds de capitalisation
A79: 21 | B79: Fonds transitoire avant impôt | C79: N/A | D79: N/A | E79: N/A | F79: Fonds transitoire avant impôts | G79: Fonds transitoire avant impôts | H79: Fonds transitoire avant impôts | I79: N/A | J79: N/A | K79: Fonds transitoire
A80: 22 | B80: Solde des avances sur police | C80: N/A | D80: N/A | E80: N/A | F80: Solde des avances sur police | G80: N/A | H80: N/A | K80: Solde des avances sur polices
A81: 23 | B81: Charge au rachat (seulement Genesis TRA) | C81: N/A | D81: N/A | E81: N/A | F81: N/A | G81: Charge au rachat | H81: Charge au rachat | K81: N/A
A82: 24 | B82: Taxes sur primes | C82: N/A | D82: N/A | E82: N/A | F82: Taxes annuelles sur les primes | G82: Taxes annuelles sur les primes | H82: Taxes annuelles sur les primes | K82: Taxe sur primes
A83: 25 | B83: Montant dédié achat ASL | C83: N/A | D83: N/A | E83: N/A | F83: Montant dédié achat ASL | G83: N/A | H83: N/A | I83: N/A | J83: N/A | K83: Allocation d'ASL effective
A84: 26 | B84: Coût de la protection intégrée | C84: N/A | D84: N/A | E84: N/A | F84: Coûts de la Protection Intégrée | G84: N/A | H84: N/A | K84: N/A
A85: 27 | B85: Coûts annuel des avenants et garanties supplémentaires | C85: N/A | D85: N/A | E85: N/A | F85: Coûts des avenants et des garanties complémentaires | G85: Coûts des avenants et des garanties complémentaires | H85: Coûts des avenants et des garanties complémentaires | K85: Coûts avenants et garanties
A86: 28 | B86: Coût annuel totaux | C86: N/A | D86: N/A | E86: N/A | F86: Coûts annuels totaux | G86: Coûts annuels totaux | H86: Coûts annuels totaux | K86: Coûts totaux
A87: 29 | B87: Primes annuelles totales garanties | C87: Primes annuelles totales garanties | D87: Primes annuelles totales garanties | E87: Primes annuelles totales garanties | F87: N/A | G87: N/A | H87: N/A | I87: N/A | J87: N/A | K87: N/A
A88: 30 | B88: Rendement au rachat (TRI) | C88: Rendement au rachat (Taux courant) | D88: Rendement au rachat (Taux courant -1%) | E88: Rendement au rachat (Taux courant -2%) | F88: Rendement au rachat (%) | G88: N/A | H88: N/A | I88: N/A | J88: N/A | K88: Rendement au rachat
A89: 31 | B89: Rendement net au rachat (TRI) | C89: Rendement au rachat net (Taux courant) | D89: Rendement au rachat net (Taux courant -1%) | E89: Rendement au rachat net (Taux courant -2%) | F89: N/A | G89: Rendement au rachat net | H89: Rendement au rachat net | I89: N/A | J89: N/A | K89: Rendement au rachat net
A90: 32 | B90: ODS / Dépôt supplémentaire | C90: =C74 -> Contributions à l'ODS | D90: =D74 -> Contributions à l'ODS | E90: =E74 -> Contributions à l'ODS | F90: N/A | G90: N/A | H90: N/A | I90: N/A | J90: N/A | K90: N/A
A91: 33 | B91: Prime d'assurance (base/minimale) | C91: =C87 -> Primes annuelles totales garanties | D91: =D87 -> Primes annuelles totales garanties | E91: =E87 -> Primes annuelles totales garanties | F91: N/A | G91: Prime minimale | H91: Prime minimale | I91: =I59 -> Primes annuelles totales | J91: =J59 -> Primes annuelles totales | K91: Primes minimales annuelles totales
A92: 34 | B92: Année | C92: Année | D92: Année | E92: Année | F92: Année | G92: Année | H92: Année | I92: Année | J92: Année | K92: Année
A93: 35 | B93: Âge | C93: Âge | D93: Âge | E93: Âge | F93: Âge | G93: Âge | H93: Âge | I93: Âge | J93: Âge | K93: Âge
A94: 36 | B94: Case A1 (si spéciale) | C94: N/A | D94: N/A | E94: N/A | F94: N/A | G94: N/A | H94: N/A | I94: N/A | J94: N/A | K94: N/A
A95: 37 | B95: Prime annuelle des avenants et garanties ??? | I95: N/A | J95: N/A | K95: Capital assuré garanti
A96: 38 | B96: Capital décès projeté (assurance seulement… pas fonds) | F96: Capital assuré total | G96: Capital Assuré 1 | K96: N/A | GV96: =IF(GV$57>0,HLOOKUP(GV$57,$C$57:$GU$108,$A96+$A$57,FALSE),"") -> 
A97: 39 | B97: Valeur de rachat nette | F97: Valeur de rachat totale nette | G97: Valeur de rachat totale nette | K97: Valeur de rachat nette d'impôt | GV97: =IF(GV$57>0,HLOOKUP(GV$57,$C$57:$GU$108,$A97+$A$57,FALSE),"") -> 
A98: 40 | B98: 2e recherche pour la langue (français uniquement) | C98: N/A | D98: N/A | E98: N/A | F98: N/A | G98: N/A | H98: N/A | I98: N/A | J98: N/A | K98: N/A | GV98: =IF(GV$57>0,HLOOKUP(GV$57,$C$57:$GU$108,$A98+$A$57,FALSE),"") -> 
A99: 41 | B99: Fonds transitoire | K99: Fonds transitoire | GV99: =IF(GV$57>0,HLOOKUP(GV$57,$C$57:$GU$108,$A99+$A$57,FALSE),"") -> 
A100: 42
A101: 43
A102: 44
A103: 45
A104: 46
A105: 47
A106: 48
A107: 49
A108: 50

Sheet Input (hidden)
I1: 1 | J1: =I1+1 -> 2 | K1: =J1+1 -> 3 | L1: 4 | M1: 5 | N1: 6 | O1: 7 | P1: 8 | Q1: 9 | R1: 10 | S1: 11 | T1: 12 | U1: 13 | V1: 14
I2: Ajustement pour les taux de rendement inscrits en nombre entier ou en % (Décès et Rachat)… doit diviser par 100 si entier et diviser par 1 si en %... Case en jaune quand il n'y a pas de TRI disponible dans l'illustration
I4: # Produit | J4: Nom Anglais | K4: Nom Français | L4: Décès (brut) | M4: Décès (net) | N4: Rachat (brut) | O4: Rachat (net) | P4: Libre | Q4: Libre | R4: Libre | S4: Libre | T4: Libre | U4: Libre | V4: =I4 -> # Produit
I5: 1 | J5: =IF(HLOOKUP($I5,'Mapping Calculation'!$C$3:$GU$4,-('Mapping Calculation'!$A$4-'Mapping Calculation'!$A$3)+1,FALSE)="Libre","",HLOOKUP($I5,'Mapping Calculation'!$C$3:$GU$4,-('Mapping Calculation'!$A$4-'Mapping Calculation'!$A$3)+1,FALSE)) -> PAR Current | K5: =IF(HLOOKUP($I5,'Mapping Calculation'!$C$57:$GU$58,-('Mapping Calculation'!$A$58-'Mapping Calculation'!$A$57)+1,FALSE)="Libre","",HLOOKUP($I5,'Mapping Calculation'!$C$57:$GU$58,-('Mapping Calculation'!$A$58-'Mapping Calculation'!$A$57)+1,FALSE)) -> PAR Actuel | L5: 100 | M5: 100 | N5: 100 | O5: 100 | V5: =I5 -> 1
I6: =I5+1 -> 2 | J6: =IF(HLOOKUP($I6,'Mapping Calculation'!$C$3:$GU$4,-('Mapping Calculation'!$A$4-'Mapping Calculation'!$A$3)+1,FALSE)="Libre","",HLOOKUP($I6,'Mapping Calculation'!$C$3:$GU$4,-('Mapping Calculation'!$A$4-'Mapping Calculation'!$A$3)+1,FALSE)) -> PAR Current -1% | K6: =IF(HLOOKUP($I6,'Mapping Calculation'!$C$57:$GU$58,-('Mapping Calculation'!$A$58-'Mapping Calculation'!$A$57)+1,FALSE)="Libre","",HLOOKUP($I6,'Mapping Calculation'!$C$57:$GU$58,-('Mapping Calculation'!$A$58-'Mapping Calculation'!$A$57)+1,FALSE)) -> PAR Actuel -1% | L6: 100 | M6: 100 | N6: 100 | O6: 100 | V6: =I6 -> 2
I7: =I6+1 -> 3 | J7: =IF(HLOOKUP($I7,'Mapping Calculation'!$C$3:$GU$4,-('Mapping Calculation'!$A$4-'Mapping Calculation'!$A$3)+1,FALSE)="Libre","",HLOOKUP($I7,'Mapping Calculation'!$C$3:$GU$4,-('Mapping Calculation'!$A$4-'Mapping Calculation'!$A$3)+1,FALSE)) -> PAR Current -2% | K7: =IF(HLOOKUP($I7,'Mapping Calculation'!$C$57:$GU$58,-('Mapping Calculation'!$A$58-'Mapping Calculation'!$A$57)+1,FALSE)="Libre","",HLOOKUP($I7,'Mapping Calculation'!$C$57:$GU$58,-('Mapping Calculation'!$A$58-'Mapping Calculation'!$A$57)+1,FALSE)) -> PAR Actuel -2% | L7: 100 | M7: 100 | N7: 100 | O7: 100 | V7: 3
I8: 4 | J8: =IF(HLOOKUP($I8,'Mapping Calculation'!$C$3:$GU$4,-('Mapping Calculation'!$A$4-'Mapping Calculation'!$A$3)+1,FALSE)="Libre","",HLOOKUP($I8,'Mapping Calculation'!$C$3:$GU$4,-('Mapping Calculation'!$A$4-'Mapping Calculation'!$A$3)+1,FALSE)) -> Equibuild | K8: =IF(HLOOKUP($I8,'Mapping Calculation'!$C$57:$GU$58,-('Mapping Calculation'!$A$58-'Mapping Calculation'!$A$57)+1,FALSE)="Libre","",HLOOKUP($I8,'Mapping Calculation'!$C$57:$GU$58,-('Mapping Calculation'!$A$58-'Mapping Calculation'!$A$57)+1,FALSE)) -> Capital Valeur | L8: 1 | M8: 1 | N8: 1 | O8: 1 | V8: 4
I9: 5 | J9: =IF(HLOOKUP($I9,'Mapping Calculation'!$C$3:$GU$4,-('Mapping Calculation'!$A$4-'Mapping Calculation'!$A$3)+1,FALSE)="Libre","",HLOOKUP($I9,'Mapping Calculation'!$C$3:$GU$4,-('Mapping Calculation'!$A$4-'Mapping Calculation'!$A$3)+1,FALSE)) -> Genesis IND | K9: =IF(HLOOKUP($I9,'Mapping Calculation'!$C$57:$GU$58,-('Mapping Calculation'!$A$58-'Mapping Calculation'!$A$57)+1,FALSE)="Libre","",HLOOKUP($I9,'Mapping Calculation'!$C$57:$GU$58,-('Mapping Calculation'!$A$58-'Mapping Calculation'!$A$57)+1,FALSE)) -> Genesis IND | L9: 100 | M9: 100 | N9: 100 | O9: 100 | V9: 5
I10: 6 | J10: =IF(HLOOKUP($I10,'Mapping Calculation'!$C$3:$GU$4,-('Mapping Calculation'!$A$4-'Mapping Calculation'!$A$3)+1,FALSE)="Libre","",HLOOKUP($I10,'Mapping Calculation'!$C$3:$GU$4,-('Mapping Calculation'!$A$4-'Mapping Calculation'!$A$3)+1,FALSE)) -> Genesis JLTD | K10: =IF(HLOOKUP($I10,'Mapping Calculation'!$C$57:$GU$58,-('Mapping Calculation'!$A$58-'Mapping Calculation'!$A$57)+1,FALSE)="Libre","",HLOOKUP($I10,'Mapping Calculation'!$C$57:$GU$58,-('Mapping Calculation'!$A$58-'Mapping Calculation'!$A$57)+1,FALSE)) -> Genesis Conjointe dernier décès | L10: 100 | M10: 100 | N10: 100 | O10: 100 | V10: 6
I11: 7 | J11: =IF(HLOOKUP($I11,'Mapping Calculation'!$C$3:$GU$4,-('Mapping Calculation'!$A$4-'Mapping Calculation'!$A$3)+1,FALSE)="Libre","",HLOOKUP($I11,'Mapping Calculation'!$C$3:$GU$4,-('Mapping Calculation'!$A$4-'Mapping Calculation'!$A$3)+1,FALSE)) -> iA Traditional (individual) | K11: =IF(HLOOKUP($I11,'Mapping Calculation'!$C$57:$GU$58,-('Mapping Calculation'!$A$58-'Mapping Calculation'!$A$57)+1,FALSE)="Libre","",HLOOKUP($I11,'Mapping Calculation'!$C$57:$GU$58,-('Mapping Calculation'!$A$58-'Mapping Calculation'!$A$57)+1,FALSE)) -> iA Traditionnelle (individuelle) | V11: 7
I12: 8 | J12: =IF(HLOOKUP($I12,'Mapping Calculation'!$C$3:$GU$4,-('Mapping Calculation'!$A$4-'Mapping Calculation'!$A$3)+1,FALSE)="Libre","",HLOOKUP($I12,'Mapping Calculation'!$C$3:$GU$4,-('Mapping Calculation'!$A$4-'Mapping Calculation'!$A$3)+1,FALSE)) -> iA Traditional (join) | K12: =IF(HLOOKUP($I12,'Mapping Calculation'!$C$57:$GU$58,-('Mapping Calculation'!$A$58-'Mapping Calculation'!$A$57)+1,FALSE)="Libre","",HLOOKUP($I12,'Mapping Calculation'!$C$57:$GU$58,-('Mapping Calculation'!$A$58-'Mapping Calculation'!$A$57)+1,FALSE)) -> iA Traditionnelle (conjointe) | V12: 8
I13: 9 | J13: =IF(HLOOKUP($I13,'Mapping Calculation'!$C$3:$GU$4,-('Mapping Calculation'!$A$4-'Mapping Calculation'!$A$3)+1,FALSE)="Libre","",HLOOKUP($I13,'Mapping Calculation'!$C$3:$GU$4,-('Mapping Calculation'!$A$4-'Mapping Calculation'!$A$3)+1,FALSE)) -> iA Legacy | K13: =IF(HLOOKUP($I13,'Mapping Calculation'!$C$57:$GU$58,-('Mapping Calculation'!$A$58-'Mapping Calculation'!$A$57)+1,FALSE)="Libre","",HLOOKUP($I13,'Mapping Calculation'!$C$57:$GU$58,-('Mapping Calculation'!$A$58-'Mapping Calculation'!$A$57)+1,FALSE)) -> iA Héritage | L13: 100 | M13: 100 | N13: 100 | O13: 100 | V13: 9
I14: 10 | J14: =IF(HLOOKUP($I14,'Mapping Calculation'!$C$3:$GU$4,-('Mapping Calculation'!$A$4-'Mapping Calculation'!$A$3)+1,FALSE)="Libre","",HLOOKUP($I14,'Mapping Calculation'!$C$3:$GU$4,-('Mapping Calculation'!$A$4-'Mapping Calculation'!$A$3)+1,FALSE)) ->  | K14: =IF(HLOOKUP($I14,'Mapping Calculation'!$C$57:$GU$58,-('Mapping Calculation'!$A$58-'Mapping Calculation'!$A$57)+1,FALSE)="Libre","",HLOOKUP($I14,'Mapping Calculation'!$C$57:$GU$58,-('Mapping Calculation'!$A$58-'Mapping Calculation'!$A$57)+1,FALSE)) ->  | V14: 10
I15: 11 | J15: =IF(HLOOKUP($I15,'Mapping Calculation'!$C$3:$GU$4,-('Mapping Calculation'!$A$4-'Mapping Calculation'!$A$3)+1,FALSE)="Libre","",HLOOKUP($I15,'Mapping Calculation'!$C$3:$GU$4,-('Mapping Calculation'!$A$4-'Mapping Calculation'!$A$3)+1,FALSE)) ->  | K15: =IF(HLOOKUP($I15,'Mapping Calculation'!$C$57:$GU$58,-('Mapping Calculation'!$A$58-'Mapping Calculation'!$A$57)+1,FALSE)="Libre","",HLOOKUP($I15,'Mapping Calculation'!$C$57:$GU$58,-('Mapping Calculation'!$A$58-'Mapping Calculation'!$A$57)+1,FALSE)) ->  | V15: 11
I16: 12 | J16: =IF(HLOOKUP($I16,'Mapping Calculation'!$C$3:$GU$4,-('Mapping Calculation'!$A$4-'Mapping Calculation'!$A$3)+1,FALSE)="Libre","",HLOOKUP($I16,'Mapping Calculation'!$C$3:$GU$4,-('Mapping Calculation'!$A$4-'Mapping Calculation'!$A$3)+1,FALSE)) ->  | K16: =IF(HLOOKUP($I16,'Mapping Calculation'!$C$57:$GU$58,-('Mapping Calculation'!$A$58-'Mapping Calculation'!$A$57)+1,FALSE)="Libre","",HLOOKUP($I16,'Mapping Calculation'!$C$57:$GU$58,-('Mapping Calculation'!$A$58-'Mapping Calculation'!$A$57)+1,FALSE)) ->  | V16: 12
I17: 13 | J17: =IF(HLOOKUP($I17,'Mapping Calculation'!$C$3:$GU$4,-('Mapping Calculation'!$A$4-'Mapping Calculation'!$A$3)+1,FALSE)="Libre","",HLOOKUP($I17,'Mapping Calculation'!$C$3:$GU$4,-('Mapping Calculation'!$A$4-'Mapping Calculation'!$A$3)+1,FALSE)) ->  | K17: =IF(HLOOKUP($I17,'Mapping Calculation'!$C$57:$GU$58,-('Mapping Calculation'!$A$58-'Mapping Calculation'!$A$57)+1,FALSE)="Libre","",HLOOKUP($I17,'Mapping Calculation'!$C$57:$GU$58,-('Mapping Calculation'!$A$58-'Mapping Calculation'!$A$57)+1,FALSE)) ->  | V17: 13
I18: 14 | J18: =IF(HLOOKUP($I18,'Mapping Calculation'!$C$3:$GU$4,-('Mapping Calculation'!$A$4-'Mapping Calculation'!$A$3)+1,FALSE)="Libre","",HLOOKUP($I18,'Mapping Calculation'!$C$3:$GU$4,-('Mapping Calculation'!$A$4-'Mapping Calculation'!$A$3)+1,FALSE)) ->  | K18: =IF(HLOOKUP($I18,'Mapping Calculation'!$C$57:$GU$58,-('Mapping Calculation'!$A$58-'Mapping Calculation'!$A$57)+1,FALSE)="Libre","",HLOOKUP($I18,'Mapping Calculation'!$C$57:$GU$58,-('Mapping Calculation'!$A$58-'Mapping Calculation'!$A$57)+1,FALSE)) ->  | V18: 14
I19: 15 | J19: =IF(HLOOKUP($I19,'Mapping Calculation'!$C$3:$GU$4,-('Mapping Calculation'!$A$4-'Mapping Calculation'!$A$3)+1,FALSE)="Libre","",HLOOKUP($I19,'Mapping Calculation'!$C$3:$GU$4,-('Mapping Calculation'!$A$4-'Mapping Calculation'!$A$3)+1,FALSE)) ->  | K19: =IF(HLOOKUP($I19,'Mapping Calculation'!$C$57:$GU$58,-('Mapping Calculation'!$A$58-'Mapping Calculation'!$A$57)+1,FALSE)="Libre","",HLOOKUP($I19,'Mapping Calculation'!$C$57:$GU$58,-('Mapping Calculation'!$A$58-'Mapping Calculation'!$A$57)+1,FALSE)) ->  | V19: 15
I20: 16 | J20: =IF(HLOOKUP($I20,'Mapping Calculation'!$C$3:$GU$4,-('Mapping Calculation'!$A$4-'Mapping Calculation'!$A$3)+1,FALSE)="Libre","",HLOOKUP($I20,'Mapping Calculation'!$C$3:$GU$4,-('Mapping Calculation'!$A$4-'Mapping Calculation'!$A$3)+1,FALSE)) ->  | K20: =IF(HLOOKUP($I20,'Mapping Calculation'!$C$57:$GU$58,-('Mapping Calculation'!$A$58-'Mapping Calculation'!$A$57)+1,FALSE)="Libre","",HLOOKUP($I20,'Mapping Calculation'!$C$57:$GU$58,-('Mapping Calculation'!$A$58-'Mapping Calculation'!$A$57)+1,FALSE)) ->  | V20: 16
I21: 17 | J21: =IF(HLOOKUP($I21,'Mapping Calculation'!$C$3:$GU$4,-('Mapping Calculation'!$A$4-'Mapping Calculation'!$A$3)+1,FALSE)="Libre","",HLOOKUP($I21,'Mapping Calculation'!$C$3:$GU$4,-('Mapping Calculation'!$A$4-'Mapping Calculation'!$A$3)+1,FALSE)) ->  | K21: =IF(HLOOKUP($I21,'Mapping Calculation'!$C$57:$GU$58,-('Mapping Calculation'!$A$58-'Mapping Calculation'!$A$57)+1,FALSE)="Libre","",HLOOKUP($I21,'Mapping Calculation'!$C$57:$GU$58,-('Mapping Calculation'!$A$58-'Mapping Calculation'!$A$57)+1,FALSE)) ->  | V21: 17
I22: 18 | J22: =IF(HLOOKUP($I22,'Mapping Calculation'!$C$3:$GU$4,-('Mapping Calculation'!$A$4-'Mapping Calculation'!$A$3)+1,FALSE)="Libre","",HLOOKUP($I22,'Mapping Calculation'!$C$3:$GU$4,-('Mapping Calculation'!$A$4-'Mapping Calculation'!$A$3)+1,FALSE)) ->  | K22: =IF(HLOOKUP($I22,'Mapping Calculation'!$C$57:$GU$58,-('Mapping Calculation'!$A$58-'Mapping Calculation'!$A$57)+1,FALSE)="Libre","",HLOOKUP($I22,'Mapping Calculation'!$C$57:$GU$58,-('Mapping Calculation'!$A$58-'Mapping Calculation'!$A$57)+1,FALSE)) ->  | V22: 18
I23: 19 | J23: =IF(HLOOKUP($I23,'Mapping Calculation'!$C$3:$GU$4,-('Mapping Calculation'!$A$4-'Mapping Calculation'!$A$3)+1,FALSE)="Libre","",HLOOKUP($I23,'Mapping Calculation'!$C$3:$GU$4,-('Mapping Calculation'!$A$4-'Mapping Calculation'!$A$3)+1,FALSE)) ->  | K23: =IF(HLOOKUP($I23,'Mapping Calculation'!$C$57:$GU$58,-('Mapping Calculation'!$A$58-'Mapping Calculation'!$A$57)+1,FALSE)="Libre","",HLOOKUP($I23,'Mapping Calculation'!$C$57:$GU$58,-('Mapping Calculation'!$A$58-'Mapping Calculation'!$A$57)+1,FALSE)) ->  | V23: 19
I24: 20 | J24: =IF(HLOOKUP($I24,'Mapping Calculation'!$C$3:$GU$4,-('Mapping Calculation'!$A$4-'Mapping Calculation'!$A$3)+1,FALSE)="Libre","",HLOOKUP($I24,'Mapping Calculation'!$C$3:$GU$4,-('Mapping Calculation'!$A$4-'Mapping Calculation'!$A$3)+1,FALSE)) ->  | K24: =IF(HLOOKUP($I24,'Mapping Calculation'!$C$57:$GU$58,-('Mapping Calculation'!$A$58-'Mapping Calculation'!$A$57)+1,FALSE)="Libre","",HLOOKUP($I24,'Mapping Calculation'!$C$57:$GU$58,-('Mapping Calculation'!$A$58-'Mapping Calculation'!$A$57)+1,FALSE)) ->  | V24: 20
I25: 21 | J25: =IF(HLOOKUP($I25,'Mapping Calculation'!$C$3:$GU$4,-('Mapping Calculation'!$A$4-'Mapping Calculation'!$A$3)+1,FALSE)="Libre","",HLOOKUP($I25,'Mapping Calculation'!$C$3:$GU$4,-('Mapping Calculation'!$A$4-'Mapping Calculation'!$A$3)+1,FALSE)) ->  | K25: =IF(HLOOKUP($I25,'Mapping Calculation'!$C$57:$GU$58,-('Mapping Calculation'!$A$58-'Mapping Calculation'!$A$57)+1,FALSE)="Libre","",HLOOKUP($I25,'Mapping Calculation'!$C$57:$GU$58,-('Mapping Calculation'!$A$58-'Mapping Calculation'!$A$57)+1,FALSE)) ->  | V25: 21
I26: 22 | J26: =IF(HLOOKUP($I26,'Mapping Calculation'!$C$3:$GU$4,-('Mapping Calculation'!$A$4-'Mapping Calculation'!$A$3)+1,FALSE)="Libre","",HLOOKUP($I26,'Mapping Calculation'!$C$3:$GU$4,-('Mapping Calculation'!$A$4-'Mapping Calculation'!$A$3)+1,FALSE)) ->  | K26: =IF(HLOOKUP($I26,'Mapping Calculation'!$C$57:$GU$58,-('Mapping Calculation'!$A$58-'Mapping Calculation'!$A$57)+1,FALSE)="Libre","",HLOOKUP($I26,'Mapping Calculation'!$C$57:$GU$58,-('Mapping Calculation'!$A$58-'Mapping Calculation'!$A$57)+1,FALSE)) ->  | V26: 22
I27: 23 | J27: =IF(HLOOKUP($I27,'Mapping Calculation'!$C$3:$GU$4,-('Mapping Calculation'!$A$4-'Mapping Calculation'!$A$3)+1,FALSE)="Libre","",HLOOKUP($I27,'Mapping Calculation'!$C$3:$GU$4,-('Mapping Calculation'!$A$4-'Mapping Calculation'!$A$3)+1,FALSE)) ->  | K27: =IF(HLOOKUP($I27,'Mapping Calculation'!$C$57:$GU$58,-('Mapping Calculation'!$A$58-'Mapping Calculation'!$A$57)+1,FALSE)="Libre","",HLOOKUP($I27,'Mapping Calculation'!$C$57:$GU$58,-('Mapping Calculation'!$A$58-'Mapping Calculation'!$A$57)+1,FALSE)) ->  | V27: 23
I28: 24 | J28: =IF(HLOOKUP($I28,'Mapping Calculation'!$C$3:$GU$4,-('Mapping Calculation'!$A$4-'Mapping Calculation'!$A$3)+1,FALSE)="Libre","",HLOOKUP($I28,'Mapping Calculation'!$C$3:$GU$4,-('Mapping Calculation'!$A$4-'Mapping Calculation'!$A$3)+1,FALSE)) ->  | K28: =IF(HLOOKUP($I28,'Mapping Calculation'!$C$57:$GU$58,-('Mapping Calculation'!$A$58-'Mapping Calculation'!$A$57)+1,FALSE)="Libre","",HLOOKUP($I28,'Mapping Calculation'!$C$57:$GU$58,-('Mapping Calculation'!$A$58-'Mapping Calculation'!$A$57)+1,FALSE)) ->  | V28: 24
I29: 25 | J29: =IF(HLOOKUP($I29,'Mapping Calculation'!$C$3:$GU$4,-('Mapping Calculation'!$A$4-'Mapping Calculation'!$A$3)+1,FALSE)="Libre","",HLOOKUP($I29,'Mapping Calculation'!$C$3:$GU$4,-('Mapping Calculation'!$A$4-'Mapping Calculation'!$A$3)+1,FALSE)) ->  | K29: =IF(HLOOKUP($I29,'Mapping Calculation'!$C$57:$GU$58,-('Mapping Calculation'!$A$58-'Mapping Calculation'!$A$57)+1,FALSE)="Libre","",HLOOKUP($I29,'Mapping Calculation'!$C$57:$GU$58,-('Mapping Calculation'!$A$58-'Mapping Calculation'!$A$57)+1,FALSE)) ->  | V29: 25
I30: 26 | J30: =IF(HLOOKUP($I30,'Mapping Calculation'!$C$3:$GU$4,-('Mapping Calculation'!$A$4-'Mapping Calculation'!$A$3)+1,FALSE)="Libre","",HLOOKUP($I30,'Mapping Calculation'!$C$3:$GU$4,-('Mapping Calculation'!$A$4-'Mapping Calculation'!$A$3)+1,FALSE)) ->  | K30: =IF(HLOOKUP($I30,'Mapping Calculation'!$C$57:$GU$58,-('Mapping Calculation'!$A$58-'Mapping Calculation'!$A$57)+1,FALSE)="Libre","",HLOOKUP($I30,'Mapping Calculation'!$C$57:$GU$58,-('Mapping Calculation'!$A$58-'Mapping Calculation'!$A$57)+1,FALSE)) ->  | V30: 26
I31: 27 | J31: =IF(HLOOKUP($I31,'Mapping Calculation'!$C$3:$GU$4,-('Mapping Calculation'!$A$4-'Mapping Calculation'!$A$3)+1,FALSE)="Libre","",HLOOKUP($I31,'Mapping Calculation'!$C$3:$GU$4,-('Mapping Calculation'!$A$4-'Mapping Calculation'!$A$3)+1,FALSE)) ->  | K31: =IF(HLOOKUP($I31,'Mapping Calculation'!$C$57:$GU$58,-('Mapping Calculation'!$A$58-'Mapping Calculation'!$A$57)+1,FALSE)="Libre","",HLOOKUP($I31,'Mapping Calculation'!$C$57:$GU$58,-('Mapping Calculation'!$A$58-'Mapping Calculation'!$A$57)+1,FALSE)) ->  | L31: 100 | N31: 100 | V31: 27
I32: 28 | J32: =IF(HLOOKUP($I32,'Mapping Calculation'!$C$3:$GU$4,-('Mapping Calculation'!$A$4-'Mapping Calculation'!$A$3)+1,FALSE)="Libre","",HLOOKUP($I32,'Mapping Calculation'!$C$3:$GU$4,-('Mapping Calculation'!$A$4-'Mapping Calculation'!$A$3)+1,FALSE)) ->  | K32: =IF(HLOOKUP($I32,'Mapping Calculation'!$C$57:$GU$58,-('Mapping Calculation'!$A$58-'Mapping Calculation'!$A$57)+1,FALSE)="Libre","",HLOOKUP($I32,'Mapping Calculation'!$C$57:$GU$58,-('Mapping Calculation'!$A$58-'Mapping Calculation'!$A$57)+1,FALSE)) ->  | L32: 100 | N32: 100 | V32: 28
I33: 29 | J33: =IF(HLOOKUP($I33,'Mapping Calculation'!$C$3:$GU$4,-('Mapping Calculation'!$A$4-'Mapping Calculation'!$A$3)+1,FALSE)="Libre","",HLOOKUP($I33,'Mapping Calculation'!$C$3:$GU$4,-('Mapping Calculation'!$A$4-'Mapping Calculation'!$A$3)+1,FALSE)) ->  | K33: =IF(HLOOKUP($I33,'Mapping Calculation'!$C$57:$GU$58,-('Mapping Calculation'!$A$58-'Mapping Calculation'!$A$57)+1,FALSE)="Libre","",HLOOKUP($I33,'Mapping Calculation'!$C$57:$GU$58,-('Mapping Calculation'!$A$58-'Mapping Calculation'!$A$57)+1,FALSE)) ->  | L33: 1 | N33: 1 | V33: 29
I34: 30 | J34: =IF(HLOOKUP($I34,'Mapping Calculation'!$C$3:$GU$4,-('Mapping Calculation'!$A$4-'Mapping Calculation'!$A$3)+1,FALSE)="Libre","",HLOOKUP($I34,'Mapping Calculation'!$C$3:$GU$4,-('Mapping Calculation'!$A$4-'Mapping Calculation'!$A$3)+1,FALSE)) ->  | K34: =IF(HLOOKUP($I34,'Mapping Calculation'!$C$57:$GU$58,-('Mapping Calculation'!$A$58-'Mapping Calculation'!$A$57)+1,FALSE)="Libre","",HLOOKUP($I34,'Mapping Calculation'!$C$57:$GU$58,-('Mapping Calculation'!$A$58-'Mapping Calculation'!$A$57)+1,FALSE)) ->  | L34: 1 | N34: 1 | V34: 30
I35: 31 | J35: =IF(HLOOKUP($I35,'Mapping Calculation'!$C$3:$GU$4,-('Mapping Calculation'!$A$4-'Mapping Calculation'!$A$3)+1,FALSE)="Libre","",HLOOKUP($I35,'Mapping Calculation'!$C$3:$GU$4,-('Mapping Calculation'!$A$4-'Mapping Calculation'!$A$3)+1,FALSE)) ->  | K35: =IF(HLOOKUP($I35,'Mapping Calculation'!$C$57:$GU$58,-('Mapping Calculation'!$A$58-'Mapping Calculation'!$A$57)+1,FALSE)="Libre","",HLOOKUP($I35,'Mapping Calculation'!$C$57:$GU$58,-('Mapping Calculation'!$A$58-'Mapping Calculation'!$A$57)+1,FALSE)) ->  | L35: 1 | N35: 1 | V35: 31
I36: 32 | J36: =IF(HLOOKUP($I36,'Mapping Calculation'!$C$3:$GU$4,-('Mapping Calculation'!$A$4-'Mapping Calculation'!$A$3)+1,FALSE)="Libre","",HLOOKUP($I36,'Mapping Calculation'!$C$3:$GU$4,-('Mapping Calculation'!$A$4-'Mapping Calculation'!$A$3)+1,FALSE)) ->  | K36: =IF(HLOOKUP($I36,'Mapping Calculation'!$C$57:$GU$58,-('Mapping Calculation'!$A$58-'Mapping Calculation'!$A$57)+1,FALSE)="Libre","",HLOOKUP($I36,'Mapping Calculation'!$C$57:$GU$58,-('Mapping Calculation'!$A$58-'Mapping Calculation'!$A$57)+1,FALSE)) ->  | L36: 1 | N36: 1 | V36: 32
I37: 33 | J37: =IF(HLOOKUP($I37,'Mapping Calculation'!$C$3:$GU$4,-('Mapping Calculation'!$A$4-'Mapping Calculation'!$A$3)+1,FALSE)="Libre","",HLOOKUP($I37,'Mapping Calculation'!$C$3:$GU$4,-('Mapping Calculation'!$A$4-'Mapping Calculation'!$A$3)+1,FALSE)) ->  | K37: =IF(HLOOKUP($I37,'Mapping Calculation'!$C$57:$GU$58,-('Mapping Calculation'!$A$58-'Mapping Calculation'!$A$57)+1,FALSE)="Libre","",HLOOKUP($I37,'Mapping Calculation'!$C$57:$GU$58,-('Mapping Calculation'!$A$58-'Mapping Calculation'!$A$57)+1,FALSE)) ->  | V37: 33
I38: 34 | J38: =IF(HLOOKUP($I38,'Mapping Calculation'!$C$3:$GU$4,-('Mapping Calculation'!$A$4-'Mapping Calculation'!$A$3)+1,FALSE)="Libre","",HLOOKUP($I38,'Mapping Calculation'!$C$3:$GU$4,-('Mapping Calculation'!$A$4-'Mapping Calculation'!$A$3)+1,FALSE)) ->  | K38: =IF(HLOOKUP($I38,'Mapping Calculation'!$C$57:$GU$58,-('Mapping Calculation'!$A$58-'Mapping Calculation'!$A$57)+1,FALSE)="Libre","",HLOOKUP($I38,'Mapping Calculation'!$C$57:$GU$58,-('Mapping Calculation'!$A$58-'Mapping Calculation'!$A$57)+1,FALSE)) ->  | V38: 34
I39: 35 | J39: =IF(HLOOKUP($I39,'Mapping Calculation'!$C$3:$GU$4,-('Mapping Calculation'!$A$4-'Mapping Calculation'!$A$3)+1,FALSE)="Libre","",HLOOKUP($I39,'Mapping Calculation'!$C$3:$GU$4,-('Mapping Calculation'!$A$4-'Mapping Calculation'!$A$3)+1,FALSE)) ->  | K39: =IF(HLOOKUP($I39,'Mapping Calculation'!$C$57:$GU$58,-('Mapping Calculation'!$A$58-'Mapping Calculation'!$A$57)+1,FALSE)="Libre","",HLOOKUP($I39,'Mapping Calculation'!$C$57:$GU$58,-('Mapping Calculation'!$A$58-'Mapping Calculation'!$A$57)+1,FALSE)) ->  | V39: 35
I40: 36 | J40: =IF(HLOOKUP($I40,'Mapping Calculation'!$C$3:$GU$4,-('Mapping Calculation'!$A$4-'Mapping Calculation'!$A$3)+1,FALSE)="Libre","",HLOOKUP($I40,'Mapping Calculation'!$C$3:$GU$4,-('Mapping Calculation'!$A$4-'Mapping Calculation'!$A$3)+1,FALSE)) ->  | K40: =IF(HLOOKUP($I40,'Mapping Calculation'!$C$57:$GU$58,-('Mapping Calculation'!$A$58-'Mapping Calculation'!$A$57)+1,FALSE)="Libre","",HLOOKUP($I40,'Mapping Calculation'!$C$57:$GU$58,-('Mapping Calculation'!$A$58-'Mapping Calculation'!$A$57)+1,FALSE)) ->  | V40: 36
I41: 37 | J41: =IF(HLOOKUP($I41,'Mapping Calculation'!$C$3:$GU$4,-('Mapping Calculation'!$A$4-'Mapping Calculation'!$A$3)+1,FALSE)="Libre","",HLOOKUP($I41,'Mapping Calculation'!$C$3:$GU$4,-('Mapping Calculation'!$A$4-'Mapping Calculation'!$A$3)+1,FALSE)) ->  | K41: =IF(HLOOKUP($I41,'Mapping Calculation'!$C$57:$GU$58,-('Mapping Calculation'!$A$58-'Mapping Calculation'!$A$57)+1,FALSE)="Libre","",HLOOKUP($I41,'Mapping Calculation'!$C$57:$GU$58,-('Mapping Calculation'!$A$58-'Mapping Calculation'!$A$57)+1,FALSE)) ->  | V41: 37
I42: 38 | J42: =IF(HLOOKUP($I42,'Mapping Calculation'!$C$3:$GU$4,-('Mapping Calculation'!$A$4-'Mapping Calculation'!$A$3)+1,FALSE)="Libre","",HLOOKUP($I42,'Mapping Calculation'!$C$3:$GU$4,-('Mapping Calculation'!$A$4-'Mapping Calculation'!$A$3)+1,FALSE)) ->  | K42: =IF(HLOOKUP($I42,'Mapping Calculation'!$C$57:$GU$58,-('Mapping Calculation'!$A$58-'Mapping Calculation'!$A$57)+1,FALSE)="Libre","",HLOOKUP($I42,'Mapping Calculation'!$C$57:$GU$58,-('Mapping Calculation'!$A$58-'Mapping Calculation'!$A$57)+1,FALSE)) ->  | V42: 38
I43: 39 | J43: =IF(HLOOKUP($I43,'Mapping Calculation'!$C$3:$GU$4,-('Mapping Calculation'!$A$4-'Mapping Calculation'!$A$3)+1,FALSE)="Libre","",HLOOKUP($I43,'Mapping Calculation'!$C$3:$GU$4,-('Mapping Calculation'!$A$4-'Mapping Calculation'!$A$3)+1,FALSE)) ->  | K43: =IF(HLOOKUP($I43,'Mapping Calculation'!$C$57:$GU$58,-('Mapping Calculation'!$A$58-'Mapping Calculation'!$A$57)+1,FALSE)="Libre","",HLOOKUP($I43,'Mapping Calculation'!$C$57:$GU$58,-('Mapping Calculation'!$A$58-'Mapping Calculation'!$A$57)+1,FALSE)) ->  | V43: 39
I44: 40 | J44: =IF(HLOOKUP($I44,'Mapping Calculation'!$C$3:$GU$4,-('Mapping Calculation'!$A$4-'Mapping Calculation'!$A$3)+1,FALSE)="Libre","",HLOOKUP($I44,'Mapping Calculation'!$C$3:$GU$4,-('Mapping Calculation'!$A$4-'Mapping Calculation'!$A$3)+1,FALSE)) ->  | K44: =IF(HLOOKUP($I44,'Mapping Calculation'!$C$57:$GU$58,-('Mapping Calculation'!$A$58-'Mapping Calculation'!$A$57)+1,FALSE)="Libre","",HLOOKUP($I44,'Mapping Calculation'!$C$57:$GU$58,-('Mapping Calculation'!$A$58-'Mapping Calculation'!$A$57)+1,FALSE)) ->  | V44: 40
I45: 41 | J45: =IF(HLOOKUP($I45,'Mapping Calculation'!$C$3:$GU$4,-('Mapping Calculation'!$A$4-'Mapping Calculation'!$A$3)+1,FALSE)="Libre","",HLOOKUP($I45,'Mapping Calculation'!$C$3:$GU$4,-('Mapping Calculation'!$A$4-'Mapping Calculation'!$A$3)+1,FALSE)) ->  | K45: =IF(HLOOKUP($I45,'Mapping Calculation'!$C$57:$GU$58,-('Mapping Calculation'!$A$58-'Mapping Calculation'!$A$57)+1,FALSE)="Libre","",HLOOKUP($I45,'Mapping Calculation'!$C$57:$GU$58,-('Mapping Calculation'!$A$58-'Mapping Calculation'!$A$57)+1,FALSE)) ->  | V45: 41
I46: 42 | J46: =IF(HLOOKUP($I46,'Mapping Calculation'!$C$3:$GU$4,-('Mapping Calculation'!$A$4-'Mapping Calculation'!$A$3)+1,FALSE)="Libre","",HLOOKUP($I46,'Mapping Calculation'!$C$3:$GU$4,-('Mapping Calculation'!$A$4-'Mapping Calculation'!$A$3)+1,FALSE)) ->  | K46: =IF(HLOOKUP($I46,'Mapping Calculation'!$C$57:$GU$58,-('Mapping Calculation'!$A$58-'Mapping Calculation'!$A$57)+1,FALSE)="Libre","",HLOOKUP($I46,'Mapping Calculation'!$C$57:$GU$58,-('Mapping Calculation'!$A$58-'Mapping Calculation'!$A$57)+1,FALSE)) ->  | V46: 42
I47: 43 | J47: =IF(HLOOKUP($I47,'Mapping Calculation'!$C$3:$GU$4,-('Mapping Calculation'!$A$4-'Mapping Calculation'!$A$3)+1,FALSE)="Libre","",HLOOKUP($I47,'Mapping Calculation'!$C$3:$GU$4,-('Mapping Calculation'!$A$4-'Mapping Calculation'!$A$3)+1,FALSE)) ->  | K47: =IF(HLOOKUP($I47,'Mapping Calculation'!$C$57:$GU$58,-('Mapping Calculation'!$A$58-'Mapping Calculation'!$A$57)+1,FALSE)="Libre","",HLOOKUP($I47,'Mapping Calculation'!$C$57:$GU$58,-('Mapping Calculation'!$A$58-'Mapping Calculation'!$A$57)+1,FALSE)) ->  | V47: 43
I48: 44 | J48: =IF(HLOOKUP($I48,'Mapping Calculation'!$C$3:$GU$4,-('Mapping Calculation'!$A$4-'Mapping Calculation'!$A$3)+1,FALSE)="Libre","",HLOOKUP($I48,'Mapping Calculation'!$C$3:$GU$4,-('Mapping Calculation'!$A$4-'Mapping Calculation'!$A$3)+1,FALSE)) ->  | K48: =IF(HLOOKUP($I48,'Mapping Calculation'!$C$57:$GU$58,-('Mapping Calculation'!$A$58-'Mapping Calculation'!$A$57)+1,FALSE)="Libre","",HLOOKUP($I48,'Mapping Calculation'!$C$57:$GU$58,-('Mapping Calculation'!$A$58-'Mapping Calculation'!$A$57)+1,FALSE)) ->  | V48: 44
I49: 45 | J49: =IF(HLOOKUP($I49,'Mapping Calculation'!$C$3:$GU$4,-('Mapping Calculation'!$A$4-'Mapping Calculation'!$A$3)+1,FALSE)="Libre","",HLOOKUP($I49,'Mapping Calculation'!$C$3:$GU$4,-('Mapping Calculation'!$A$4-'Mapping Calculation'!$A$3)+1,FALSE)) ->  | K49: =IF(HLOOKUP($I49,'Mapping Calculation'!$C$57:$GU$58,-('Mapping Calculation'!$A$58-'Mapping Calculation'!$A$57)+1,FALSE)="Libre","",HLOOKUP($I49,'Mapping Calculation'!$C$57:$GU$58,-('Mapping Calculation'!$A$58-'Mapping Calculation'!$A$57)+1,FALSE)) ->  | V49: 45
I50: 46 | J50: =IF(HLOOKUP($I50,'Mapping Calculation'!$C$3:$GU$4,-('Mapping Calculation'!$A$4-'Mapping Calculation'!$A$3)+1,FALSE)="Libre","",HLOOKUP($I50,'Mapping Calculation'!$C$3:$GU$4,-('Mapping Calculation'!$A$4-'Mapping Calculation'!$A$3)+1,FALSE)) ->  | K50: =IF(HLOOKUP($I50,'Mapping Calculation'!$C$57:$GU$58,-('Mapping Calculation'!$A$58-'Mapping Calculation'!$A$57)+1,FALSE)="Libre","",HLOOKUP($I50,'Mapping Calculation'!$C$57:$GU$58,-('Mapping Calculation'!$A$58-'Mapping Calculation'!$A$57)+1,FALSE)) ->  | V50: 46
I51: 47 | J51: =IF(HLOOKUP($I51,'Mapping Calculation'!$C$3:$GU$4,-('Mapping Calculation'!$A$4-'Mapping Calculation'!$A$3)+1,FALSE)="Libre","",HLOOKUP($I51,'Mapping Calculation'!$C$3:$GU$4,-('Mapping Calculation'!$A$4-'Mapping Calculation'!$A$3)+1,FALSE)) ->  | K51: =IF(HLOOKUP($I51,'Mapping Calculation'!$C$57:$GU$58,-('Mapping Calculation'!$A$58-'Mapping Calculation'!$A$57)+1,FALSE)="Libre","",HLOOKUP($I51,'Mapping Calculation'!$C$57:$GU$58,-('Mapping Calculation'!$A$58-'Mapping Calculation'!$A$57)+1,FALSE)) ->  | V51: 47
I52: 48 | J52: =IF(HLOOKUP($I52,'Mapping Calculation'!$C$3:$GU$4,-('Mapping Calculation'!$A$4-'Mapping Calculation'!$A$3)+1,FALSE)="Libre","",HLOOKUP($I52,'Mapping Calculation'!$C$3:$GU$4,-('Mapping Calculation'!$A$4-'Mapping Calculation'!$A$3)+1,FALSE)) ->  | K52: =IF(HLOOKUP($I52,'Mapping Calculation'!$C$57:$GU$58,-('Mapping Calculation'!$A$58-'Mapping Calculation'!$A$57)+1,FALSE)="Libre","",HLOOKUP($I52,'Mapping Calculation'!$C$57:$GU$58,-('Mapping Calculation'!$A$58-'Mapping Calculation'!$A$57)+1,FALSE)) ->  | V52: 48
I53: 49 | J53: =IF(HLOOKUP($I53,'Mapping Calculation'!$C$3:$GU$4,-('Mapping Calculation'!$A$4-'Mapping Calculation'!$A$3)+1,FALSE)="Libre","",HLOOKUP($I53,'Mapping Calculation'!$C$3:$GU$4,-('Mapping Calculation'!$A$4-'Mapping Calculation'!$A$3)+1,FALSE)) ->  | K53: =IF(HLOOKUP($I53,'Mapping Calculation'!$C$57:$GU$58,-('Mapping Calculation'!$A$58-'Mapping Calculation'!$A$57)+1,FALSE)="Libre","",HLOOKUP($I53,'Mapping Calculation'!$C$57:$GU$58,-('Mapping Calculation'!$A$58-'Mapping Calculation'!$A$57)+1,FALSE)) ->  | V53: 49
I54: 50 | J54: =IF(HLOOKUP($I54,'Mapping Calculation'!$C$3:$GU$4,-('Mapping Calculation'!$A$4-'Mapping Calculation'!$A$3)+1,FALSE)="Libre","",HLOOKUP($I54,'Mapping Calculation'!$C$3:$GU$4,-('Mapping Calculation'!$A$4-'Mapping Calculation'!$A$3)+1,FALSE)) ->  | K54: =IF(HLOOKUP($I54,'Mapping Calculation'!$C$57:$GU$58,-('Mapping Calculation'!$A$58-'Mapping Calculation'!$A$57)+1,FALSE)="Libre","",HLOOKUP($I54,'Mapping Calculation'!$C$57:$GU$58,-('Mapping Calculation'!$A$58-'Mapping Calculation'!$A$57)+1,FALSE)) ->  | L54: 1 | V54: 50
I55: 51 | J55: =IF(HLOOKUP($I55,'Mapping Calculation'!$C$3:$GU$4,-('Mapping Calculation'!$A$4-'Mapping Calculation'!$A$3)+1,FALSE)="Libre","",HLOOKUP($I55,'Mapping Calculation'!$C$3:$GU$4,-('Mapping Calculation'!$A$4-'Mapping Calculation'!$A$3)+1,FALSE)) ->  | K55: =IF(HLOOKUP($I55,'Mapping Calculation'!$C$57:$GU$58,-('Mapping Calculation'!$A$58-'Mapping Calculation'!$A$57)+1,FALSE)="Libre","",HLOOKUP($I55,'Mapping Calculation'!$C$57:$GU$58,-('Mapping Calculation'!$A$58-'Mapping Calculation'!$A$57)+1,FALSE)) ->  | L55: 1 | V55: 51
I56: 52 | J56: =IF(HLOOKUP($I56,'Mapping Calculation'!$C$3:$GU$4,-('Mapping Calculation'!$A$4-'Mapping Calculation'!$A$3)+1,FALSE)="Libre","",HLOOKUP($I56,'Mapping Calculation'!$C$3:$GU$4,-('Mapping Calculation'!$A$4-'Mapping Calculation'!$A$3)+1,FALSE)) ->  | K56: =IF(HLOOKUP($I56,'Mapping Calculation'!$C$57:$GU$58,-('Mapping Calculation'!$A$58-'Mapping Calculation'!$A$57)+1,FALSE)="Libre","",HLOOKUP($I56,'Mapping Calculation'!$C$57:$GU$58,-('Mapping Calculation'!$A$58-'Mapping Calculation'!$A$57)+1,FALSE)) ->  | L56: 1 | V56: 52
I57: 53 | J57: =IF(HLOOKUP($I57,'Mapping Calculation'!$C$3:$GU$4,-('Mapping Calculation'!$A$4-'Mapping Calculation'!$A$3)+1,FALSE)="Libre","",HLOOKUP($I57,'Mapping Calculation'!$C$3:$GU$4,-('Mapping Calculation'!$A$4-'Mapping Calculation'!$A$3)+1,FALSE)) ->  | K57: =IF(HLOOKUP($I57,'Mapping Calculation'!$C$57:$GU$58,-('Mapping Calculation'!$A$58-'Mapping Calculation'!$A$57)+1,FALSE)="Libre","",HLOOKUP($I57,'Mapping Calculation'!$C$57:$GU$58,-('Mapping Calculation'!$A$58-'Mapping Calculation'!$A$57)+1,FALSE)) ->  | L57: 1 | V57: 53
I58: 54 | J58: =IF(HLOOKUP($I58,'Mapping Calculation'!$C$3:$GU$4,-('Mapping Calculation'!$A$4-'Mapping Calculation'!$A$3)+1,FALSE)="Libre","",HLOOKUP($I58,'Mapping Calculation'!$C$3:$GU$4,-('Mapping Calculation'!$A$4-'Mapping Calculation'!$A$3)+1,FALSE)) ->  | K58: =IF(HLOOKUP($I58,'Mapping Calculation'!$C$57:$GU$58,-('Mapping Calculation'!$A$58-'Mapping Calculation'!$A$57)+1,FALSE)="Libre","",HLOOKUP($I58,'Mapping Calculation'!$C$57:$GU$58,-('Mapping Calculation'!$A$58-'Mapping Calculation'!$A$57)+1,FALSE)) ->  | V58: 54
I59: 55 | J59: =IF(HLOOKUP($I59,'Mapping Calculation'!$C$3:$GU$4,-('Mapping Calculation'!$A$4-'Mapping Calculation'!$A$3)+1,FALSE)="Libre","",HLOOKUP($I59,'Mapping Calculation'!$C$3:$GU$4,-('Mapping Calculation'!$A$4-'Mapping Calculation'!$A$3)+1,FALSE)) ->  | K59: =IF(HLOOKUP($I59,'Mapping Calculation'!$C$57:$GU$58,-('Mapping Calculation'!$A$58-'Mapping Calculation'!$A$57)+1,FALSE)="Libre","",HLOOKUP($I59,'Mapping Calculation'!$C$57:$GU$58,-('Mapping Calculation'!$A$58-'Mapping Calculation'!$A$57)+1,FALSE)) ->  | V59: 55
I60: 56 | J60: =IF(HLOOKUP($I60,'Mapping Calculation'!$C$3:$GU$4,-('Mapping Calculation'!$A$4-'Mapping Calculation'!$A$3)+1,FALSE)="Libre","",HLOOKUP($I60,'Mapping Calculation'!$C$3:$GU$4,-('Mapping Calculation'!$A$4-'Mapping Calculation'!$A$3)+1,FALSE)) ->  | K60: =IF(HLOOKUP($I60,'Mapping Calculation'!$C$57:$GU$58,-('Mapping Calculation'!$A$58-'Mapping Calculation'!$A$57)+1,FALSE)="Libre","",HLOOKUP($I60,'Mapping Calculation'!$C$57:$GU$58,-('Mapping Calculation'!$A$58-'Mapping Calculation'!$A$57)+1,FALSE)) ->  | V60: 56
I61: 57 | J61: =IF(HLOOKUP($I61,'Mapping Calculation'!$C$3:$GU$4,-('Mapping Calculation'!$A$4-'Mapping Calculation'!$A$3)+1,FALSE)="Libre","",HLOOKUP($I61,'Mapping Calculation'!$C$3:$GU$4,-('Mapping Calculation'!$A$4-'Mapping Calculation'!$A$3)+1,FALSE)) ->  | K61: =IF(HLOOKUP($I61,'Mapping Calculation'!$C$57:$GU$58,-('Mapping Calculation'!$A$58-'Mapping Calculation'!$A$57)+1,FALSE)="Libre","",HLOOKUP($I61,'Mapping Calculation'!$C$57:$GU$58,-('Mapping Calculation'!$A$58-'Mapping Calculation'!$A$57)+1,FALSE)) ->  | V61: 57
I62: 58 | J62: =IF(HLOOKUP($I62,'Mapping Calculation'!$C$3:$GU$4,-('Mapping Calculation'!$A$4-'Mapping Calculation'!$A$3)+1,FALSE)="Libre","",HLOOKUP($I62,'Mapping Calculation'!$C$3:$GU$4,-('Mapping Calculation'!$A$4-'Mapping Calculation'!$A$3)+1,FALSE)) ->  | K62: =IF(HLOOKUP($I62,'Mapping Calculation'!$C$57:$GU$58,-('Mapping Calculation'!$A$58-'Mapping Calculation'!$A$57)+1,FALSE)="Libre","",HLOOKUP($I62,'Mapping Calculation'!$C$57:$GU$58,-('Mapping Calculation'!$A$58-'Mapping Calculation'!$A$57)+1,FALSE)) ->  | V62: 58
I63: 59 | J63: =IF(HLOOKUP($I63,'Mapping Calculation'!$C$3:$GU$4,-('Mapping Calculation'!$A$4-'Mapping Calculation'!$A$3)+1,FALSE)="Libre","",HLOOKUP($I63,'Mapping Calculation'!$C$3:$GU$4,-('Mapping Calculation'!$A$4-'Mapping Calculation'!$A$3)+1,FALSE)) ->  | K63: =IF(HLOOKUP($I63,'Mapping Calculation'!$C$57:$GU$58,-('Mapping Calculation'!$A$58-'Mapping Calculation'!$A$57)+1,FALSE)="Libre","",HLOOKUP($I63,'Mapping Calculation'!$C$57:$GU$58,-('Mapping Calculation'!$A$58-'Mapping Calculation'!$A$57)+1,FALSE)) ->  | V63: 59
I64: 60 | J64: =IF(HLOOKUP($I64,'Mapping Calculation'!$C$3:$GU$4,-('Mapping Calculation'!$A$4-'Mapping Calculation'!$A$3)+1,FALSE)="Libre","",HLOOKUP($I64,'Mapping Calculation'!$C$3:$GU$4,-('Mapping Calculation'!$A$4-'Mapping Calculation'!$A$3)+1,FALSE)) ->  | K64: =IF(HLOOKUP($I64,'Mapping Calculation'!$C$57:$GU$58,-('Mapping Calculation'!$A$58-'Mapping Calculation'!$A$57)+1,FALSE)="Libre","",HLOOKUP($I64,'Mapping Calculation'!$C$57:$GU$58,-('Mapping Calculation'!$A$58-'Mapping Calculation'!$A$57)+1,FALSE)) ->  | L64: 100 | N64: 100 | V64: 60
I65: 61 | J65: =IF(HLOOKUP($I65,'Mapping Calculation'!$C$3:$GU$4,-('Mapping Calculation'!$A$4-'Mapping Calculation'!$A$3)+1,FALSE)="Libre","",HLOOKUP($I65,'Mapping Calculation'!$C$3:$GU$4,-('Mapping Calculation'!$A$4-'Mapping Calculation'!$A$3)+1,FALSE)) ->  | K65: =IF(HLOOKUP($I65,'Mapping Calculation'!$C$57:$GU$58,-('Mapping Calculation'!$A$58-'Mapping Calculation'!$A$57)+1,FALSE)="Libre","",HLOOKUP($I65,'Mapping Calculation'!$C$57:$GU$58,-('Mapping Calculation'!$A$58-'Mapping Calculation'!$A$57)+1,FALSE)) ->  | L65: 100 | N65: 100 | V65: 61
I66: 62 | J66: =IF(HLOOKUP($I66,'Mapping Calculation'!$C$3:$GU$4,-('Mapping Calculation'!$A$4-'Mapping Calculation'!$A$3)+1,FALSE)="Libre","",HLOOKUP($I66,'Mapping Calculation'!$C$3:$GU$4,-('Mapping Calculation'!$A$4-'Mapping Calculation'!$A$3)+1,FALSE)) ->  | K66: =IF(HLOOKUP($I66,'Mapping Calculation'!$C$57:$GU$58,-('Mapping Calculation'!$A$58-'Mapping Calculation'!$A$57)+1,FALSE)="Libre","",HLOOKUP($I66,'Mapping Calculation'!$C$57:$GU$58,-('Mapping Calculation'!$A$58-'Mapping Calculation'!$A$57)+1,FALSE)) ->  | L66: 100 | N66: 100 | V66: 62
I67: 63 | J67: =IF(HLOOKUP($I67,'Mapping Calculation'!$C$3:$GU$4,-('Mapping Calculation'!$A$4-'Mapping Calculation'!$A$3)+1,FALSE)="Libre","",HLOOKUP($I67,'Mapping Calculation'!$C$3:$GU$4,-('Mapping Calculation'!$A$4-'Mapping Calculation'!$A$3)+1,FALSE)) ->  | K67: =IF(HLOOKUP($I67,'Mapping Calculation'!$C$57:$GU$58,-('Mapping Calculation'!$A$58-'Mapping Calculation'!$A$57)+1,FALSE)="Libre","",HLOOKUP($I67,'Mapping Calculation'!$C$57:$GU$58,-('Mapping Calculation'!$A$58-'Mapping Calculation'!$A$57)+1,FALSE)) ->  | L67: 100 | N67: 100 | V67: 63
I68: 64 | J68: =IF(HLOOKUP($I68,'Mapping Calculation'!$C$3:$GU$4,-('Mapping Calculation'!$A$4-'Mapping Calculation'!$A$3)+1,FALSE)="Libre","",HLOOKUP($I68,'Mapping Calculation'!$C$3:$GU$4,-('Mapping Calculation'!$A$4-'Mapping Calculation'!$A$3)+1,FALSE)) ->  | K68: =IF(HLOOKUP($I68,'Mapping Calculation'!$C$57:$GU$58,-('Mapping Calculation'!$A$58-'Mapping Calculation'!$A$57)+1,FALSE)="Libre","",HLOOKUP($I68,'Mapping Calculation'!$C$57:$GU$58,-('Mapping Calculation'!$A$58-'Mapping Calculation'!$A$57)+1,FALSE)) ->  | L68: 100 | N68: 100 | V68: 64
I69: 65 | J69: =IF(HLOOKUP($I69,'Mapping Calculation'!$C$3:$GU$4,-('Mapping Calculation'!$A$4-'Mapping Calculation'!$A$3)+1,FALSE)="Libre","",HLOOKUP($I69,'Mapping Calculation'!$C$3:$GU$4,-('Mapping Calculation'!$A$4-'Mapping Calculation'!$A$3)+1,FALSE)) ->  | K69: =IF(HLOOKUP($I69,'Mapping Calculation'!$C$57:$GU$58,-('Mapping Calculation'!$A$58-'Mapping Calculation'!$A$57)+1,FALSE)="Libre","",HLOOKUP($I69,'Mapping Calculation'!$C$57:$GU$58,-('Mapping Calculation'!$A$58-'Mapping Calculation'!$A$57)+1,FALSE)) ->  | L69: 100 | N69: 100 | V69: 65
I70: 66 | J70: =IF(HLOOKUP($I70,'Mapping Calculation'!$C$3:$GU$4,-('Mapping Calculation'!$A$4-'Mapping Calculation'!$A$3)+1,FALSE)="Libre","",HLOOKUP($I70,'Mapping Calculation'!$C$3:$GU$4,-('Mapping Calculation'!$A$4-'Mapping Calculation'!$A$3)+1,FALSE)) ->  | K70: =IF(HLOOKUP($I70,'Mapping Calculation'!$C$57:$GU$58,-('Mapping Calculation'!$A$58-'Mapping Calculation'!$A$57)+1,FALSE)="Libre","",HLOOKUP($I70,'Mapping Calculation'!$C$57:$GU$58,-('Mapping Calculation'!$A$58-'Mapping Calculation'!$A$57)+1,FALSE)) ->  | L70: 100 | N70: 100 | V70: =I70 -> 66
I71: =I70+1 -> 67 | J71: =IF(HLOOKUP($I71,'Mapping Calculation'!$C$3:$GU$4,-('Mapping Calculation'!$A$4-'Mapping Calculation'!$A$3)+1,FALSE)="Libre","",HLOOKUP($I71,'Mapping Calculation'!$C$3:$GU$4,-('Mapping Calculation'!$A$4-'Mapping Calculation'!$A$3)+1,FALSE)) ->  | K71: =IF(HLOOKUP($I71,'Mapping Calculation'!$C$57:$GU$58,-('Mapping Calculation'!$A$58-'Mapping Calculation'!$A$57)+1,FALSE)="Libre","",HLOOKUP($I71,'Mapping Calculation'!$C$57:$GU$58,-('Mapping Calculation'!$A$58-'Mapping Calculation'!$A$57)+1,FALSE)) ->  | L71: 100 | N71: 100 | V71: 67
I72: 68 | J72: =IF(HLOOKUP($I72,'Mapping Calculation'!$C$3:$GU$4,-('Mapping Calculation'!$A$4-'Mapping Calculation'!$A$3)+1,FALSE)="Libre","",HLOOKUP($I72,'Mapping Calculation'!$C$3:$GU$4,-('Mapping Calculation'!$A$4-'Mapping Calculation'!$A$3)+1,FALSE)) ->  | K72: =IF(HLOOKUP($I72,'Mapping Calculation'!$C$57:$GU$58,-('Mapping Calculation'!$A$58-'Mapping Calculation'!$A$57)+1,FALSE)="Libre","",HLOOKUP($I72,'Mapping Calculation'!$C$57:$GU$58,-('Mapping Calculation'!$A$58-'Mapping Calculation'!$A$57)+1,FALSE)) ->  | V72: 68
I73: 69 | J73: =IF(HLOOKUP($I73,'Mapping Calculation'!$C$3:$GU$4,-('Mapping Calculation'!$A$4-'Mapping Calculation'!$A$3)+1,FALSE)="Libre","",HLOOKUP($I73,'Mapping Calculation'!$C$3:$GU$4,-('Mapping Calculation'!$A$4-'Mapping Calculation'!$A$3)+1,FALSE)) ->  | K73: =IF(HLOOKUP($I73,'Mapping Calculation'!$C$57:$GU$58,-('Mapping Calculation'!$A$58-'Mapping Calculation'!$A$57)+1,FALSE)="Libre","",HLOOKUP($I73,'Mapping Calculation'!$C$57:$GU$58,-('Mapping Calculation'!$A$58-'Mapping Calculation'!$A$57)+1,FALSE)) ->  | V73: 69
I74: 70 | J74: =IF(HLOOKUP($I74,'Mapping Calculation'!$C$3:$GU$4,-('Mapping Calculation'!$A$4-'Mapping Calculation'!$A$3)+1,FALSE)="Libre","",HLOOKUP($I74,'Mapping Calculation'!$C$3:$GU$4,-('Mapping Calculation'!$A$4-'Mapping Calculation'!$A$3)+1,FALSE)) ->  | K74: =IF(HLOOKUP($I74,'Mapping Calculation'!$C$57:$GU$58,-('Mapping Calculation'!$A$58-'Mapping Calculation'!$A$57)+1,FALSE)="Libre","",HLOOKUP($I74,'Mapping Calculation'!$C$57:$GU$58,-('Mapping Calculation'!$A$58-'Mapping Calculation'!$A$57)+1,FALSE)) ->  | V74: 70
I75: 71 | J75: =IF(HLOOKUP($I75,'Mapping Calculation'!$C$3:$GU$4,-('Mapping Calculation'!$A$4-'Mapping Calculation'!$A$3)+1,FALSE)="Libre","",HLOOKUP($I75,'Mapping Calculation'!$C$3:$GU$4,-('Mapping Calculation'!$A$4-'Mapping Calculation'!$A$3)+1,FALSE)) ->  | K75: =IF(HLOOKUP($I75,'Mapping Calculation'!$C$57:$GU$58,-('Mapping Calculation'!$A$58-'Mapping Calculation'!$A$57)+1,FALSE)="Libre","",HLOOKUP($I75,'Mapping Calculation'!$C$57:$GU$58,-('Mapping Calculation'!$A$58-'Mapping Calculation'!$A$57)+1,FALSE)) ->  | V75: 71
I76: 72 | J76: =IF(HLOOKUP($I76,'Mapping Calculation'!$C$3:$GU$4,-('Mapping Calculation'!$A$4-'Mapping Calculation'!$A$3)+1,FALSE)="Libre","",HLOOKUP($I76,'Mapping Calculation'!$C$3:$GU$4,-('Mapping Calculation'!$A$4-'Mapping Calculation'!$A$3)+1,FALSE)) ->  | K76: =IF(HLOOKUP($I76,'Mapping Calculation'!$C$57:$GU$58,-('Mapping Calculation'!$A$58-'Mapping Calculation'!$A$57)+1,FALSE)="Libre","",HLOOKUP($I76,'Mapping Calculation'!$C$57:$GU$58,-('Mapping Calculation'!$A$58-'Mapping Calculation'!$A$57)+1,FALSE)) ->  | V76: 72
I77: 73 | J77: =IF(HLOOKUP($I77,'Mapping Calculation'!$C$3:$GU$4,-('Mapping Calculation'!$A$4-'Mapping Calculation'!$A$3)+1,FALSE)="Libre","",HLOOKUP($I77,'Mapping Calculation'!$C$3:$GU$4,-('Mapping Calculation'!$A$4-'Mapping Calculation'!$A$3)+1,FALSE)) ->  | K77: =IF(HLOOKUP($I77,'Mapping Calculation'!$C$57:$GU$58,-('Mapping Calculation'!$A$58-'Mapping Calculation'!$A$57)+1,FALSE)="Libre","",HLOOKUP($I77,'Mapping Calculation'!$C$57:$GU$58,-('Mapping Calculation'!$A$58-'Mapping Calculation'!$A$57)+1,FALSE)) ->  | V77: 73
I78: 74 | J78: =IF(HLOOKUP($I78,'Mapping Calculation'!$C$3:$GU$4,-('Mapping Calculation'!$A$4-'Mapping Calculation'!$A$3)+1,FALSE)="Libre","",HLOOKUP($I78,'Mapping Calculation'!$C$3:$GU$4,-('Mapping Calculation'!$A$4-'Mapping Calculation'!$A$3)+1,FALSE)) ->  | K78: =IF(HLOOKUP($I78,'Mapping Calculation'!$C$57:$GU$58,-('Mapping Calculation'!$A$58-'Mapping Calculation'!$A$57)+1,FALSE)="Libre","",HLOOKUP($I78,'Mapping Calculation'!$C$57:$GU$58,-('Mapping Calculation'!$A$58-'Mapping Calculation'!$A$57)+1,FALSE)) ->  | V78: 74
I79: 75 | J79: =IF(HLOOKUP($I79,'Mapping Calculation'!$C$3:$GU$4,-('Mapping Calculation'!$A$4-'Mapping Calculation'!$A$3)+1,FALSE)="Libre","",HLOOKUP($I79,'Mapping Calculation'!$C$3:$GU$4,-('Mapping Calculation'!$A$4-'Mapping Calculation'!$A$3)+1,FALSE)) ->  | K79: =IF(HLOOKUP($I79,'Mapping Calculation'!$C$57:$GU$58,-('Mapping Calculation'!$A$58-'Mapping Calculation'!$A$57)+1,FALSE)="Libre","",HLOOKUP($I79,'Mapping Calculation'!$C$57:$GU$58,-('Mapping Calculation'!$A$58-'Mapping Calculation'!$A$57)+1,FALSE)) ->  | V79: 75
I80: 76 | J80: =IF(HLOOKUP($I80,'Mapping Calculation'!$C$3:$GU$4,-('Mapping Calculation'!$A$4-'Mapping Calculation'!$A$3)+1,FALSE)="Libre","",HLOOKUP($I80,'Mapping Calculation'!$C$3:$GU$4,-('Mapping Calculation'!$A$4-'Mapping Calculation'!$A$3)+1,FALSE)) ->  | K80: =IF(HLOOKUP($I80,'Mapping Calculation'!$C$57:$GU$58,-('Mapping Calculation'!$A$58-'Mapping Calculation'!$A$57)+1,FALSE)="Libre","",HLOOKUP($I80,'Mapping Calculation'!$C$57:$GU$58,-('Mapping Calculation'!$A$58-'Mapping Calculation'!$A$57)+1,FALSE)) ->  | V80: 76
I81: 77 | J81: =IF(HLOOKUP($I81,'Mapping Calculation'!$C$3:$GU$4,-('Mapping Calculation'!$A$4-'Mapping Calculation'!$A$3)+1,FALSE)="Libre","",HLOOKUP($I81,'Mapping Calculation'!$C$3:$GU$4,-('Mapping Calculation'!$A$4-'Mapping Calculation'!$A$3)+1,FALSE)) ->  | K81: =IF(HLOOKUP($I81,'Mapping Calculation'!$C$57:$GU$58,-('Mapping Calculation'!$A$58-'Mapping Calculation'!$A$57)+1,FALSE)="Libre","",HLOOKUP($I81,'Mapping Calculation'!$C$57:$GU$58,-('Mapping Calculation'!$A$58-'Mapping Calculation'!$A$57)+1,FALSE)) ->  | V81: 77
I82: 78 | J82: =IF(HLOOKUP($I82,'Mapping Calculation'!$C$3:$GU$4,-('Mapping Calculation'!$A$4-'Mapping Calculation'!$A$3)+1,FALSE)="Libre","",HLOOKUP($I82,'Mapping Calculation'!$C$3:$GU$4,-('Mapping Calculation'!$A$4-'Mapping Calculation'!$A$3)+1,FALSE)) ->  | K82: =IF(HLOOKUP($I82,'Mapping Calculation'!$C$57:$GU$58,-('Mapping Calculation'!$A$58-'Mapping Calculation'!$A$57)+1,FALSE)="Libre","",HLOOKUP($I82,'Mapping Calculation'!$C$57:$GU$58,-('Mapping Calculation'!$A$58-'Mapping Calculation'!$A$57)+1,FALSE)) ->  | V82: 78
I83: 79 | J83: =IF(HLOOKUP($I83,'Mapping Calculation'!$C$3:$GU$4,-('Mapping Calculation'!$A$4-'Mapping Calculation'!$A$3)+1,FALSE)="Libre","",HLOOKUP($I83,'Mapping Calculation'!$C$3:$GU$4,-('Mapping Calculation'!$A$4-'Mapping Calculation'!$A$3)+1,FALSE)) ->  | K83: =IF(HLOOKUP($I83,'Mapping Calculation'!$C$57:$GU$58,-('Mapping Calculation'!$A$58-'Mapping Calculation'!$A$57)+1,FALSE)="Libre","",HLOOKUP($I83,'Mapping Calculation'!$C$57:$GU$58,-('Mapping Calculation'!$A$58-'Mapping Calculation'!$A$57)+1,FALSE)) ->  | V83: 79
I84: 80 | J84: =IF(HLOOKUP($I84,'Mapping Calculation'!$C$3:$GU$4,-('Mapping Calculation'!$A$4-'Mapping Calculation'!$A$3)+1,FALSE)="Libre","",HLOOKUP($I84,'Mapping Calculation'!$C$3:$GU$4,-('Mapping Calculation'!$A$4-'Mapping Calculation'!$A$3)+1,FALSE)) ->  | K84: =IF(HLOOKUP($I84,'Mapping Calculation'!$C$57:$GU$58,-('Mapping Calculation'!$A$58-'Mapping Calculation'!$A$57)+1,FALSE)="Libre","",HLOOKUP($I84,'Mapping Calculation'!$C$57:$GU$58,-('Mapping Calculation'!$A$58-'Mapping Calculation'!$A$57)+1,FALSE)) ->  | L84: 100 | N84: 100 | V84: 80
I85: 81 | J85: =IF(HLOOKUP($I85,'Mapping Calculation'!$C$3:$GU$4,-('Mapping Calculation'!$A$4-'Mapping Calculation'!$A$3)+1,FALSE)="Libre","",HLOOKUP($I85,'Mapping Calculation'!$C$3:$GU$4,-('Mapping Calculation'!$A$4-'Mapping Calculation'!$A$3)+1,FALSE)) ->  | K85: =IF(HLOOKUP($I85,'Mapping Calculation'!$C$57:$GU$58,-('Mapping Calculation'!$A$58-'Mapping Calculation'!$A$57)+1,FALSE)="Libre","",HLOOKUP($I85,'Mapping Calculation'!$C$57:$GU$58,-('Mapping Calculation'!$A$58-'Mapping Calculation'!$A$57)+1,FALSE)) ->  | L85: 100 | N85: 100 | V85: 81
I86: 82 | J86: =IF(HLOOKUP($I86,'Mapping Calculation'!$C$3:$GU$4,-('Mapping Calculation'!$A$4-'Mapping Calculation'!$A$3)+1,FALSE)="Libre","",HLOOKUP($I86,'Mapping Calculation'!$C$3:$GU$4,-('Mapping Calculation'!$A$4-'Mapping Calculation'!$A$3)+1,FALSE)) ->  | K86: =IF(HLOOKUP($I86,'Mapping Calculation'!$C$57:$GU$58,-('Mapping Calculation'!$A$58-'Mapping Calculation'!$A$57)+1,FALSE)="Libre","",HLOOKUP($I86,'Mapping Calculation'!$C$57:$GU$58,-('Mapping Calculation'!$A$58-'Mapping Calculation'!$A$57)+1,FALSE)) ->  | V86: 82
I87: 83 | J87: =IF(HLOOKUP($I87,'Mapping Calculation'!$C$3:$GU$4,-('Mapping Calculation'!$A$4-'Mapping Calculation'!$A$3)+1,FALSE)="Libre","",HLOOKUP($I87,'Mapping Calculation'!$C$3:$GU$4,-('Mapping Calculation'!$A$4-'Mapping Calculation'!$A$3)+1,FALSE)) ->  | K87: =IF(HLOOKUP($I87,'Mapping Calculation'!$C$57:$GU$58,-('Mapping Calculation'!$A$58-'Mapping Calculation'!$A$57)+1,FALSE)="Libre","",HLOOKUP($I87,'Mapping Calculation'!$C$57:$GU$58,-('Mapping Calculation'!$A$58-'Mapping Calculation'!$A$57)+1,FALSE)) ->  | V87: 83
I88: 84 | J88: =IF(HLOOKUP($I88,'Mapping Calculation'!$C$3:$GU$4,-('Mapping Calculation'!$A$4-'Mapping Calculation'!$A$3)+1,FALSE)="Libre","",HLOOKUP($I88,'Mapping Calculation'!$C$3:$GU$4,-('Mapping Calculation'!$A$4-'Mapping Calculation'!$A$3)+1,FALSE)) ->  | K88: =IF(HLOOKUP($I88,'Mapping Calculation'!$C$57:$GU$58,-('Mapping Calculation'!$A$58-'Mapping Calculation'!$A$57)+1,FALSE)="Libre","",HLOOKUP($I88,'Mapping Calculation'!$C$57:$GU$58,-('Mapping Calculation'!$A$58-'Mapping Calculation'!$A$57)+1,FALSE)) ->  | V88: 84
I89: 85 | J89: =IF(HLOOKUP($I89,'Mapping Calculation'!$C$3:$GU$4,-('Mapping Calculation'!$A$4-'Mapping Calculation'!$A$3)+1,FALSE)="Libre","",HLOOKUP($I89,'Mapping Calculation'!$C$3:$GU$4,-('Mapping Calculation'!$A$4-'Mapping Calculation'!$A$3)+1,FALSE)) ->  | K89: =IF(HLOOKUP($I89,'Mapping Calculation'!$C$57:$GU$58,-('Mapping Calculation'!$A$58-'Mapping Calculation'!$A$57)+1,FALSE)="Libre","",HLOOKUP($I89,'Mapping Calculation'!$C$57:$GU$58,-('Mapping Calculation'!$A$58-'Mapping Calculation'!$A$57)+1,FALSE)) ->  | V89: 85
I90: 86 | J90: =IF(HLOOKUP($I90,'Mapping Calculation'!$C$3:$GU$4,-('Mapping Calculation'!$A$4-'Mapping Calculation'!$A$3)+1,FALSE)="Libre","",HLOOKUP($I90,'Mapping Calculation'!$C$3:$GU$4,-('Mapping Calculation'!$A$4-'Mapping Calculation'!$A$3)+1,FALSE)) ->  | K90: =IF(HLOOKUP($I90,'Mapping Calculation'!$C$57:$GU$58,-('Mapping Calculation'!$A$58-'Mapping Calculation'!$A$57)+1,FALSE)="Libre","",HLOOKUP($I90,'Mapping Calculation'!$C$57:$GU$58,-('Mapping Calculation'!$A$58-'Mapping Calculation'!$A$57)+1,FALSE)) ->  | V90: 86
I91: 87 | J91: =IF(HLOOKUP($I91,'Mapping Calculation'!$C$3:$GU$4,-('Mapping Calculation'!$A$4-'Mapping Calculation'!$A$3)+1,FALSE)="Libre","",HLOOKUP($I91,'Mapping Calculation'!$C$3:$GU$4,-('Mapping Calculation'!$A$4-'Mapping Calculation'!$A$3)+1,FALSE)) ->  | K91: =IF(HLOOKUP($I91,'Mapping Calculation'!$C$57:$GU$58,-('Mapping Calculation'!$A$58-'Mapping Calculation'!$A$57)+1,FALSE)="Libre","",HLOOKUP($I91,'Mapping Calculation'!$C$57:$GU$58,-('Mapping Calculation'!$A$58-'Mapping Calculation'!$A$57)+1,FALSE)) ->  | V91: 87
I92: 88 | J92: =IF(HLOOKUP($I92,'Mapping Calculation'!$C$3:$GU$4,-('Mapping Calculation'!$A$4-'Mapping Calculation'!$A$3)+1,FALSE)="Libre","",HLOOKUP($I92,'Mapping Calculation'!$C$3:$GU$4,-('Mapping Calculation'!$A$4-'Mapping Calculation'!$A$3)+1,FALSE)) ->  | K92: =IF(HLOOKUP($I92,'Mapping Calculation'!$C$57:$GU$58,-('Mapping Calculation'!$A$58-'Mapping Calculation'!$A$57)+1,FALSE)="Libre","",HLOOKUP($I92,'Mapping Calculation'!$C$57:$GU$58,-('Mapping Calculation'!$A$58-'Mapping Calculation'!$A$57)+1,FALSE)) ->  | V92: 88
I93: 89 | J93: =IF(HLOOKUP($I93,'Mapping Calculation'!$C$3:$GU$4,-('Mapping Calculation'!$A$4-'Mapping Calculation'!$A$3)+1,FALSE)="Libre","",HLOOKUP($I93,'Mapping Calculation'!$C$3:$GU$4,-('Mapping Calculation'!$A$4-'Mapping Calculation'!$A$3)+1,FALSE)) ->  | K93: =IF(HLOOKUP($I93,'Mapping Calculation'!$C$57:$GU$58,-('Mapping Calculation'!$A$58-'Mapping Calculation'!$A$57)+1,FALSE)="Libre","",HLOOKUP($I93,'Mapping Calculation'!$C$57:$GU$58,-('Mapping Calculation'!$A$58-'Mapping Calculation'!$A$57)+1,FALSE)) ->  | V93: 89
I94: 90 | J94: =IF(HLOOKUP($I94,'Mapping Calculation'!$C$3:$GU$4,-('Mapping Calculation'!$A$4-'Mapping Calculation'!$A$3)+1,FALSE)="Libre","",HLOOKUP($I94,'Mapping Calculation'!$C$3:$GU$4,-('Mapping Calculation'!$A$4-'Mapping Calculation'!$A$3)+1,FALSE)) ->  | K94: =IF(HLOOKUP($I94,'Mapping Calculation'!$C$57:$GU$58,-('Mapping Calculation'!$A$58-'Mapping Calculation'!$A$57)+1,FALSE)="Libre","",HLOOKUP($I94,'Mapping Calculation'!$C$57:$GU$58,-('Mapping Calculation'!$A$58-'Mapping Calculation'!$A$57)+1,FALSE)) ->  | L94: 100 | N94: 100 | V94: 90
I95: 91 | J95: =IF(HLOOKUP($I95,'Mapping Calculation'!$C$3:$GU$4,-('Mapping Calculation'!$A$4-'Mapping Calculation'!$A$3)+1,FALSE)="Libre","",HLOOKUP($I95,'Mapping Calculation'!$C$3:$GU$4,-('Mapping Calculation'!$A$4-'Mapping Calculation'!$A$3)+1,FALSE)) ->  | K95: =IF(HLOOKUP($I95,'Mapping Calculation'!$C$57:$GU$58,-('Mapping Calculation'!$A$58-'Mapping Calculation'!$A$57)+1,FALSE)="Libre","",HLOOKUP($I95,'Mapping Calculation'!$C$57:$GU$58,-('Mapping Calculation'!$A$58-'Mapping Calculation'!$A$57)+1,FALSE)) ->  | L95: 100 | N95: 100 | V95: 91
I96: 92 | J96: =IF(HLOOKUP($I96,'Mapping Calculation'!$C$3:$GU$4,-('Mapping Calculation'!$A$4-'Mapping Calculation'!$A$3)+1,FALSE)="Libre","",HLOOKUP($I96,'Mapping Calculation'!$C$3:$GU$4,-('Mapping Calculation'!$A$4-'Mapping Calculation'!$A$3)+1,FALSE)) ->  | K96: =IF(HLOOKUP($I96,'Mapping Calculation'!$C$57:$GU$58,-('Mapping Calculation'!$A$58-'Mapping Calculation'!$A$57)+1,FALSE)="Libre","",HLOOKUP($I96,'Mapping Calculation'!$C$57:$GU$58,-('Mapping Calculation'!$A$58-'Mapping Calculation'!$A$57)+1,FALSE)) ->  | L96: 100 | N96: 100 | V96: 92
I97: 93 | J97: =IF(HLOOKUP($I97,'Mapping Calculation'!$C$3:$GU$4,-('Mapping Calculation'!$A$4-'Mapping Calculation'!$A$3)+1,FALSE)="Libre","",HLOOKUP($I97,'Mapping Calculation'!$C$3:$GU$4,-('Mapping Calculation'!$A$4-'Mapping Calculation'!$A$3)+1,FALSE)) ->  | K97: =IF(HLOOKUP($I97,'Mapping Calculation'!$C$57:$GU$58,-('Mapping Calculation'!$A$58-'Mapping Calculation'!$A$57)+1,FALSE)="Libre","",HLOOKUP($I97,'Mapping Calculation'!$C$57:$GU$58,-('Mapping Calculation'!$A$58-'Mapping Calculation'!$A$57)+1,FALSE)) ->  | L97: 100 | N97: 100 | V97: 93
I98: 94 | J98: =IF(HLOOKUP($I98,'Mapping Calculation'!$C$3:$GU$4,-('Mapping Calculation'!$A$4-'Mapping Calculation'!$A$3)+1,FALSE)="Libre","",HLOOKUP($I98,'Mapping Calculation'!$C$3:$GU$4,-('Mapping Calculation'!$A$4-'Mapping Calculation'!$A$3)+1,FALSE)) ->  | K98: =IF(HLOOKUP($I98,'Mapping Calculation'!$C$57:$GU$58,-('Mapping Calculation'!$A$58-'Mapping Calculation'!$A$57)+1,FALSE)="Libre","",HLOOKUP($I98,'Mapping Calculation'!$C$57:$GU$58,-('Mapping Calculation'!$A$58-'Mapping Calculation'!$A$57)+1,FALSE)) ->  | L98: 100 | N98: 100 | V98: 94
I99: 95 | J99: =IF(HLOOKUP($I99,'Mapping Calculation'!$C$3:$GU$4,-('Mapping Calculation'!$A$4-'Mapping Calculation'!$A$3)+1,FALSE)="Libre","",HLOOKUP($I99,'Mapping Calculation'!$C$3:$GU$4,-('Mapping Calculation'!$A$4-'Mapping Calculation'!$A$3)+1,FALSE)) ->  | K99: =IF(HLOOKUP($I99,'Mapping Calculation'!$C$57:$GU$58,-('Mapping Calculation'!$A$58-'Mapping Calculation'!$A$57)+1,FALSE)="Libre","",HLOOKUP($I99,'Mapping Calculation'!$C$57:$GU$58,-('Mapping Calculation'!$A$58-'Mapping Calculation'!$A$57)+1,FALSE)) ->  | L99: 100 | N99: 100 | V99: 95
I100: 96 | J100: =IF(HLOOKUP($I100,'Mapping Calculation'!$C$3:$GU$4,-('Mapping Calculation'!$A$4-'Mapping Calculation'!$A$3)+1,FALSE)="Libre","",HLOOKUP($I100,'Mapping Calculation'!$C$3:$GU$4,-('Mapping Calculation'!$A$4-'Mapping Calculation'!$A$3)+1,FALSE)) ->  | K100: =IF(HLOOKUP($I100,'Mapping Calculation'!$C$57:$GU$58,-('Mapping Calculation'!$A$58-'Mapping Calculation'!$A$57)+1,FALSE)="Libre","",HLOOKUP($I100,'Mapping Calculation'!$C$57:$GU$58,-('Mapping Calculation'!$A$58-'Mapping Calculation'!$A$57)+1,FALSE)) ->  | L100: 100 | N100: 100 | V100: 96
I101: 97 | J101: =IF(HLOOKUP($I101,'Mapping Calculation'!$C$3:$GU$4,-('Mapping Calculation'!$A$4-'Mapping Calculation'!$A$3)+1,FALSE)="Libre","",HLOOKUP($I101,'Mapping Calculation'!$C$3:$GU$4,-('Mapping Calculation'!$A$4-'Mapping Calculation'!$A$3)+1,FALSE)) ->  | K101: =IF(HLOOKUP($I101,'Mapping Calculation'!$C$57:$GU$58,-('Mapping Calculation'!$A$58-'Mapping Calculation'!$A$57)+1,FALSE)="Libre","",HLOOKUP($I101,'Mapping Calculation'!$C$57:$GU$58,-('Mapping Calculation'!$A$58-'Mapping Calculation'!$A$57)+1,FALSE)) ->  | L101: 100 | N101: 100 | V101: 97
I102: 98 | J102: =IF(HLOOKUP($I102,'Mapping Calculation'!$C$3:$GU$4,-('Mapping Calculation'!$A$4-'Mapping Calculation'!$A$3)+1,FALSE)="Libre","",HLOOKUP($I102,'Mapping Calculation'!$C$3:$GU$4,-('Mapping Calculation'!$A$4-'Mapping Calculation'!$A$3)+1,FALSE)) ->  | K102: =IF(HLOOKUP($I102,'Mapping Calculation'!$C$57:$GU$58,-('Mapping Calculation'!$A$58-'Mapping Calculation'!$A$57)+1,FALSE)="Libre","",HLOOKUP($I102,'Mapping Calculation'!$C$57:$GU$58,-('Mapping Calculation'!$A$58-'Mapping Calculation'!$A$57)+1,FALSE)) ->  | V102: 98
I103: 99 | J103: =IF(HLOOKUP($I103,'Mapping Calculation'!$C$3:$GU$4,-('Mapping Calculation'!$A$4-'Mapping Calculation'!$A$3)+1,FALSE)="Libre","",HLOOKUP($I103,'Mapping Calculation'!$C$3:$GU$4,-('Mapping Calculation'!$A$4-'Mapping Calculation'!$A$3)+1,FALSE)) ->  | K103: =IF(HLOOKUP($I103,'Mapping Calculation'!$C$57:$GU$58,-('Mapping Calculation'!$A$58-'Mapping Calculation'!$A$57)+1,FALSE)="Libre","",HLOOKUP($I103,'Mapping Calculation'!$C$57:$GU$58,-('Mapping Calculation'!$A$58-'Mapping Calculation'!$A$57)+1,FALSE)) ->  | V103: 99
I104: 100 | J104: =IF(HLOOKUP($I104,'Mapping Calculation'!$C$3:$GU$4,-('Mapping Calculation'!$A$4-'Mapping Calculation'!$A$3)+1,FALSE)="Libre","",HLOOKUP($I104,'Mapping Calculation'!$C$3:$GU$4,-('Mapping Calculation'!$A$4-'Mapping Calculation'!$A$3)+1,FALSE)) ->  | K104: =IF(HLOOKUP($I104,'Mapping Calculation'!$C$57:$GU$58,-('Mapping Calculation'!$A$58-'Mapping Calculation'!$A$57)+1,FALSE)="Libre","",HLOOKUP($I104,'Mapping Calculation'!$C$57:$GU$58,-('Mapping Calculation'!$A$58-'Mapping Calculation'!$A$57)+1,FALSE)) ->  | V104: 100
I105: 101 | J105: =IF(HLOOKUP($I105,'Mapping Calculation'!$C$3:$GU$4,-('Mapping Calculation'!$A$4-'Mapping Calculation'!$A$3)+1,FALSE)="Libre","",HLOOKUP($I105,'Mapping Calculation'!$C$3:$GU$4,-('Mapping Calculation'!$A$4-'Mapping Calculation'!$A$3)+1,FALSE)) ->  | K105: =IF(HLOOKUP($I105,'Mapping Calculation'!$C$57:$GU$58,-('Mapping Calculation'!$A$58-'Mapping Calculation'!$A$57)+1,FALSE)="Libre","",HLOOKUP($I105,'Mapping Calculation'!$C$57:$GU$58,-('Mapping Calculation'!$A$58-'Mapping Calculation'!$A$57)+1,FALSE)) ->  | V105: 101
I106: 102 | J106: =IF(HLOOKUP($I106,'Mapping Calculation'!$C$3:$GU$4,-('Mapping Calculation'!$A$4-'Mapping Calculation'!$A$3)+1,FALSE)="Libre","",HLOOKUP($I106,'Mapping Calculation'!$C$3:$GU$4,-('Mapping Calculation'!$A$4-'Mapping Calculation'!$A$3)+1,FALSE)) ->  | K106: =IF(HLOOKUP($I106,'Mapping Calculation'!$C$57:$GU$58,-('Mapping Calculation'!$A$58-'Mapping Calculation'!$A$57)+1,FALSE)="Libre","",HLOOKUP($I106,'Mapping Calculation'!$C$57:$GU$58,-('Mapping Calculation'!$A$58-'Mapping Calculation'!$A$57)+1,FALSE)) ->  | V106: 102
I107: 103 | J107: =IF(HLOOKUP($I107,'Mapping Calculation'!$C$3:$GU$4,-('Mapping Calculation'!$A$4-'Mapping Calculation'!$A$3)+1,FALSE)="Libre","",HLOOKUP($I107,'Mapping Calculation'!$C$3:$GU$4,-('Mapping Calculation'!$A$4-'Mapping Calculation'!$A$3)+1,FALSE)) ->  | K107: =IF(HLOOKUP($I107,'Mapping Calculation'!$C$57:$GU$58,-('Mapping Calculation'!$A$58-'Mapping Calculation'!$A$57)+1,FALSE)="Libre","",HLOOKUP($I107,'Mapping Calculation'!$C$57:$GU$58,-('Mapping Calculation'!$A$58-'Mapping Calculation'!$A$57)+1,FALSE)) ->  | V107: 103
I108: 104 | J108: =IF(HLOOKUP($I108,'Mapping Calculation'!$C$3:$GU$4,-('Mapping Calculation'!$A$4-'Mapping Calculation'!$A$3)+1,FALSE)="Libre","",HLOOKUP($I108,'Mapping Calculation'!$C$3:$GU$4,-('Mapping Calculation'!$A$4-'Mapping Calculation'!$A$3)+1,FALSE)) ->  | K108: =IF(HLOOKUP($I108,'Mapping Calculation'!$C$57:$GU$58,-('Mapping Calculation'!$A$58-'Mapping Calculation'!$A$57)+1,FALSE)="Libre","",HLOOKUP($I108,'Mapping Calculation'!$C$57:$GU$58,-('Mapping Calculation'!$A$58-'Mapping Calculation'!$A$57)+1,FALSE)) ->  | V108: 104
I109: 105 | J109: =IF(HLOOKUP($I109,'Mapping Calculation'!$C$3:$GU$4,-('Mapping Calculation'!$A$4-'Mapping Calculation'!$A$3)+1,FALSE)="Libre","",HLOOKUP($I109,'Mapping Calculation'!$C$3:$GU$4,-('Mapping Calculation'!$A$4-'Mapping Calculation'!$A$3)+1,FALSE)) ->  | K109: =IF(HLOOKUP($I109,'Mapping Calculation'!$C$57:$GU$58,-('Mapping Calculation'!$A$58-'Mapping Calculation'!$A$57)+1,FALSE)="Libre","",HLOOKUP($I109,'Mapping Calculation'!$C$57:$GU$58,-('Mapping Calculation'!$A$58-'Mapping Calculation'!$A$57)+1,FALSE)) ->  | L109: 100 | N109: 100 | V109: 105
I110: 106 | J110: =IF(HLOOKUP($I110,'Mapping Calculation'!$C$3:$GU$4,-('Mapping Calculation'!$A$4-'Mapping Calculation'!$A$3)+1,FALSE)="Libre","",HLOOKUP($I110,'Mapping Calculation'!$C$3:$GU$4,-('Mapping Calculation'!$A$4-'Mapping Calculation'!$A$3)+1,FALSE)) ->  | K110: =IF(HLOOKUP($I110,'Mapping Calculation'!$C$57:$GU$58,-('Mapping Calculation'!$A$58-'Mapping Calculation'!$A$57)+1,FALSE)="Libre","",HLOOKUP($I110,'Mapping Calculation'!$C$57:$GU$58,-('Mapping Calculation'!$A$58-'Mapping Calculation'!$A$57)+1,FALSE)) ->  | L110: 100 | N110: 100 | V110: 106
I111: 107 | J111: =IF(HLOOKUP($I111,'Mapping Calculation'!$C$3:$GU$4,-('Mapping Calculation'!$A$4-'Mapping Calculation'!$A$3)+1,FALSE)="Libre","",HLOOKUP($I111,'Mapping Calculation'!$C$3:$GU$4,-('Mapping Calculation'!$A$4-'Mapping Calculation'!$A$3)+1,FALSE)) ->  | K111: =IF(HLOOKUP($I111,'Mapping Calculation'!$C$57:$GU$58,-('Mapping Calculation'!$A$58-'Mapping Calculation'!$A$57)+1,FALSE)="Libre","",HLOOKUP($I111,'Mapping Calculation'!$C$57:$GU$58,-('Mapping Calculation'!$A$58-'Mapping Calculation'!$A$57)+1,FALSE)) ->  | L111: 100 | N111: 100 | V111: 107
I112: 108 | J112: =IF(HLOOKUP($I112,'Mapping Calculation'!$C$3:$GU$4,-('Mapping Calculation'!$A$4-'Mapping Calculation'!$A$3)+1,FALSE)="Libre","",HLOOKUP($I112,'Mapping Calculation'!$C$3:$GU$4,-('Mapping Calculation'!$A$4-'Mapping Calculation'!$A$3)+1,FALSE)) ->  | K112: =IF(HLOOKUP($I112,'Mapping Calculation'!$C$57:$GU$58,-('Mapping Calculation'!$A$58-'Mapping Calculation'!$A$57)+1,FALSE)="Libre","",HLOOKUP($I112,'Mapping Calculation'!$C$57:$GU$58,-('Mapping Calculation'!$A$58-'Mapping Calculation'!$A$57)+1,FALSE)) ->  | V112: 108
I113: 109 | J113: =IF(HLOOKUP($I113,'Mapping Calculation'!$C$3:$GU$4,-('Mapping Calculation'!$A$4-'Mapping Calculation'!$A$3)+1,FALSE)="Libre","",HLOOKUP($I113,'Mapping Calculation'!$C$3:$GU$4,-('Mapping Calculation'!$A$4-'Mapping Calculation'!$A$3)+1,FALSE)) ->  | K113: =IF(HLOOKUP($I113,'Mapping Calculation'!$C$57:$GU$58,-('Mapping Calculation'!$A$58-'Mapping Calculation'!$A$57)+1,FALSE)="Libre","",HLOOKUP($I113,'Mapping Calculation'!$C$57:$GU$58,-('Mapping Calculation'!$A$58-'Mapping Calculation'!$A$57)+1,FALSE)) ->  | V113: 109
I114: 110 | J114: =IF(HLOOKUP($I114,'Mapping Calculation'!$C$3:$GU$4,-('Mapping Calculation'!$A$4-'Mapping Calculation'!$A$3)+1,FALSE)="Libre","",HLOOKUP($I114,'Mapping Calculation'!$C$3:$GU$4,-('Mapping Calculation'!$A$4-'Mapping Calculation'!$A$3)+1,FALSE)) ->  | K114: =IF(HLOOKUP($I114,'Mapping Calculation'!$C$57:$GU$58,-('Mapping Calculation'!$A$58-'Mapping Calculation'!$A$57)+1,FALSE)="Libre","",HLOOKUP($I114,'Mapping Calculation'!$C$57:$GU$58,-('Mapping Calculation'!$A$58-'Mapping Calculation'!$A$57)+1,FALSE)) ->  | V114: 110
I115: 111 | J115: =IF(HLOOKUP($I115,'Mapping Calculation'!$C$3:$GU$4,-('Mapping Calculation'!$A$4-'Mapping Calculation'!$A$3)+1,FALSE)="Libre","",HLOOKUP($I115,'Mapping Calculation'!$C$3:$GU$4,-('Mapping Calculation'!$A$4-'Mapping Calculation'!$A$3)+1,FALSE)) ->  | K115: =IF(HLOOKUP($I115,'Mapping Calculation'!$C$57:$GU$58,-('Mapping Calculation'!$A$58-'Mapping Calculation'!$A$57)+1,FALSE)="Libre","",HLOOKUP($I115,'Mapping Calculation'!$C$57:$GU$58,-('Mapping Calculation'!$A$58-'Mapping Calculation'!$A$57)+1,FALSE)) ->  | L115: 100 | N115: 100 | V115: 111
I116: 112 | J116: =IF(HLOOKUP($I116,'Mapping Calculation'!$C$3:$GU$4,-('Mapping Calculation'!$A$4-'Mapping Calculation'!$A$3)+1,FALSE)="Libre","",HLOOKUP($I116,'Mapping Calculation'!$C$3:$GU$4,-('Mapping Calculation'!$A$4-'Mapping Calculation'!$A$3)+1,FALSE)) ->  | K116: =IF(HLOOKUP($I116,'Mapping Calculation'!$C$57:$GU$58,-('Mapping Calculation'!$A$58-'Mapping Calculation'!$A$57)+1,FALSE)="Libre","",HLOOKUP($I116,'Mapping Calculation'!$C$57:$GU$58,-('Mapping Calculation'!$A$58-'Mapping Calculation'!$A$57)+1,FALSE)) ->  | V116: 112
I117: 113 | J117: =IF(HLOOKUP($I117,'Mapping Calculation'!$C$3:$GU$4,-('Mapping Calculation'!$A$4-'Mapping Calculation'!$A$3)+1,FALSE)="Libre","",HLOOKUP($I117,'Mapping Calculation'!$C$3:$GU$4,-('Mapping Calculation'!$A$4-'Mapping Calculation'!$A$3)+1,FALSE)) ->  | K117: =IF(HLOOKUP($I117,'Mapping Calculation'!$C$57:$GU$58,-('Mapping Calculation'!$A$58-'Mapping Calculation'!$A$57)+1,FALSE)="Libre","",HLOOKUP($I117,'Mapping Calculation'!$C$57:$GU$58,-('Mapping Calculation'!$A$58-'Mapping Calculation'!$A$57)+1,FALSE)) ->  | V117: 113
I118: 114 | J118: =IF(HLOOKUP($I118,'Mapping Calculation'!$C$3:$GU$4,-('Mapping Calculation'!$A$4-'Mapping Calculation'!$A$3)+1,FALSE)="Libre","",HLOOKUP($I118,'Mapping Calculation'!$C$3:$GU$4,-('Mapping Calculation'!$A$4-'Mapping Calculation'!$A$3)+1,FALSE)) ->  | K118: =IF(HLOOKUP($I118,'Mapping Calculation'!$C$57:$GU$58,-('Mapping Calculation'!$A$58-'Mapping Calculation'!$A$57)+1,FALSE)="Libre","",HLOOKUP($I118,'Mapping Calculation'!$C$57:$GU$58,-('Mapping Calculation'!$A$58-'Mapping Calculation'!$A$57)+1,FALSE)) ->  | V118: 114
I119: 115 | J119: =IF(HLOOKUP($I119,'Mapping Calculation'!$C$3:$GU$4,-('Mapping Calculation'!$A$4-'Mapping Calculation'!$A$3)+1,FALSE)="Libre","",HLOOKUP($I119,'Mapping Calculation'!$C$3:$GU$4,-('Mapping Calculation'!$A$4-'Mapping Calculation'!$A$3)+1,FALSE)) ->  | K119: =IF(HLOOKUP($I119,'Mapping Calculation'!$C$57:$GU$58,-('Mapping Calculation'!$A$58-'Mapping Calculation'!$A$57)+1,FALSE)="Libre","",HLOOKUP($I119,'Mapping Calculation'!$C$57:$GU$58,-('Mapping Calculation'!$A$58-'Mapping Calculation'!$A$57)+1,FALSE)) ->  | V119: 115
I120: 116 | J120: =IF(HLOOKUP($I120,'Mapping Calculation'!$C$3:$GU$4,-('Mapping Calculation'!$A$4-'Mapping Calculation'!$A$3)+1,FALSE)="Libre","",HLOOKUP($I120,'Mapping Calculation'!$C$3:$GU$4,-('Mapping Calculation'!$A$4-'Mapping Calculation'!$A$3)+1,FALSE)) ->  | K120: =IF(HLOOKUP($I120,'Mapping Calculation'!$C$57:$GU$58,-('Mapping Calculation'!$A$58-'Mapping Calculation'!$A$57)+1,FALSE)="Libre","",HLOOKUP($I120,'Mapping Calculation'!$C$57:$GU$58,-('Mapping Calculation'!$A$58-'Mapping Calculation'!$A$57)+1,FALSE)) ->  | V120: 116
I121: 117 | J121: =IF(HLOOKUP($I121,'Mapping Calculation'!$C$3:$GU$4,-('Mapping Calculation'!$A$4-'Mapping Calculation'!$A$3)+1,FALSE)="Libre","",HLOOKUP($I121,'Mapping Calculation'!$C$3:$GU$4,-('Mapping Calculation'!$A$4-'Mapping Calculation'!$A$3)+1,FALSE)) ->  | K121: =IF(HLOOKUP($I121,'Mapping Calculation'!$C$57:$GU$58,-('Mapping Calculation'!$A$58-'Mapping Calculation'!$A$57)+1,FALSE)="Libre","",HLOOKUP($I121,'Mapping Calculation'!$C$57:$GU$58,-('Mapping Calculation'!$A$58-'Mapping Calculation'!$A$57)+1,FALSE)) ->  | V121: 117
I122: 118 | J122: =IF(HLOOKUP($I122,'Mapping Calculation'!$C$3:$GU$4,-('Mapping Calculation'!$A$4-'Mapping Calculation'!$A$3)+1,FALSE)="Libre","",HLOOKUP($I122,'Mapping Calculation'!$C$3:$GU$4,-('Mapping Calculation'!$A$4-'Mapping Calculation'!$A$3)+1,FALSE)) ->  | K122: =IF(HLOOKUP($I122,'Mapping Calculation'!$C$57:$GU$58,-('Mapping Calculation'!$A$58-'Mapping Calculation'!$A$57)+1,FALSE)="Libre","",HLOOKUP($I122,'Mapping Calculation'!$C$57:$GU$58,-('Mapping Calculation'!$A$58-'Mapping Calculation'!$A$57)+1,FALSE)) ->  | V122: 118
I123: 119 | J123: =IF(HLOOKUP($I123,'Mapping Calculation'!$C$3:$GU$4,-('Mapping Calculation'!$A$4-'Mapping Calculation'!$A$3)+1,FALSE)="Libre","",HLOOKUP($I123,'Mapping Calculation'!$C$3:$GU$4,-('Mapping Calculation'!$A$4-'Mapping Calculation'!$A$3)+1,FALSE)) ->  | K123: =IF(HLOOKUP($I123,'Mapping Calculation'!$C$57:$GU$58,-('Mapping Calculation'!$A$58-'Mapping Calculation'!$A$57)+1,FALSE)="Libre","",HLOOKUP($I123,'Mapping Calculation'!$C$57:$GU$58,-('Mapping Calculation'!$A$58-'Mapping Calculation'!$A$57)+1,FALSE)) ->  | V123: 119
I124: 120 | J124: =IF(HLOOKUP($I124,'Mapping Calculation'!$C$3:$GU$4,-('Mapping Calculation'!$A$4-'Mapping Calculation'!$A$3)+1,FALSE)="Libre","",HLOOKUP($I124,'Mapping Calculation'!$C$3:$GU$4,-('Mapping Calculation'!$A$4-'Mapping Calculation'!$A$3)+1,FALSE)) ->  | K124: =IF(HLOOKUP($I124,'Mapping Calculation'!$C$57:$GU$58,-('Mapping Calculation'!$A$58-'Mapping Calculation'!$A$57)+1,FALSE)="Libre","",HLOOKUP($I124,'Mapping Calculation'!$C$57:$GU$58,-('Mapping Calculation'!$A$58-'Mapping Calculation'!$A$57)+1,FALSE)) ->  | L124: 100 | N124: 100 | V124: 120
I125: 121 | J125: =IF(HLOOKUP($I125,'Mapping Calculation'!$C$3:$GU$4,-('Mapping Calculation'!$A$4-'Mapping Calculation'!$A$3)+1,FALSE)="Libre","",HLOOKUP($I125,'Mapping Calculation'!$C$3:$GU$4,-('Mapping Calculation'!$A$4-'Mapping Calculation'!$A$3)+1,FALSE)) ->  | K125: =IF(HLOOKUP($I125,'Mapping Calculation'!$C$57:$GU$58,-('Mapping Calculation'!$A$58-'Mapping Calculation'!$A$57)+1,FALSE)="Libre","",HLOOKUP($I125,'Mapping Calculation'!$C$57:$GU$58,-('Mapping Calculation'!$A$58-'Mapping Calculation'!$A$57)+1,FALSE)) ->  | V125: 121
I126: 122 | J126: =IF(HLOOKUP($I126,'Mapping Calculation'!$C$3:$GU$4,-('Mapping Calculation'!$A$4-'Mapping Calculation'!$A$3)+1,FALSE)="Libre","",HLOOKUP($I126,'Mapping Calculation'!$C$3:$GU$4,-('Mapping Calculation'!$A$4-'Mapping Calculation'!$A$3)+1,FALSE)) ->  | K126: =IF(HLOOKUP($I126,'Mapping Calculation'!$C$57:$GU$58,-('Mapping Calculation'!$A$58-'Mapping Calculation'!$A$57)+1,FALSE)="Libre","",HLOOKUP($I126,'Mapping Calculation'!$C$57:$GU$58,-('Mapping Calculation'!$A$58-'Mapping Calculation'!$A$57)+1,FALSE)) ->  | V126: 122
I127: 123 | J127: =IF(HLOOKUP($I127,'Mapping Calculation'!$C$3:$GU$4,-('Mapping Calculation'!$A$4-'Mapping Calculation'!$A$3)+1,FALSE)="Libre","",HLOOKUP($I127,'Mapping Calculation'!$C$3:$GU$4,-('Mapping Calculation'!$A$4-'Mapping Calculation'!$A$3)+1,FALSE)) ->  | K127: =IF(HLOOKUP($I127,'Mapping Calculation'!$C$57:$GU$58,-('Mapping Calculation'!$A$58-'Mapping Calculation'!$A$57)+1,FALSE)="Libre","",HLOOKUP($I127,'Mapping Calculation'!$C$57:$GU$58,-('Mapping Calculation'!$A$58-'Mapping Calculation'!$A$57)+1,FALSE)) ->  | L127: 100 | N127: 100 | V127: 123
I128: 124 | J128: =IF(HLOOKUP($I128,'Mapping Calculation'!$C$3:$GU$4,-('Mapping Calculation'!$A$4-'Mapping Calculation'!$A$3)+1,FALSE)="Libre","",HLOOKUP($I128,'Mapping Calculation'!$C$3:$GU$4,-('Mapping Calculation'!$A$4-'Mapping Calculation'!$A$3)+1,FALSE)) ->  | K128: =IF(HLOOKUP($I128,'Mapping Calculation'!$C$57:$GU$58,-('Mapping Calculation'!$A$58-'Mapping Calculation'!$A$57)+1,FALSE)="Libre","",HLOOKUP($I128,'Mapping Calculation'!$C$57:$GU$58,-('Mapping Calculation'!$A$58-'Mapping Calculation'!$A$57)+1,FALSE)) ->  | V128: 124
I129: 125 | J129: =IF(HLOOKUP($I129,'Mapping Calculation'!$C$3:$GU$4,-('Mapping Calculation'!$A$4-'Mapping Calculation'!$A$3)+1,FALSE)="Libre","",HLOOKUP($I129,'Mapping Calculation'!$C$3:$GU$4,-('Mapping Calculation'!$A$4-'Mapping Calculation'!$A$3)+1,FALSE)) ->  | K129: =IF(HLOOKUP($I129,'Mapping Calculation'!$C$57:$GU$58,-('Mapping Calculation'!$A$58-'Mapping Calculation'!$A$57)+1,FALSE)="Libre","",HLOOKUP($I129,'Mapping Calculation'!$C$57:$GU$58,-('Mapping Calculation'!$A$58-'Mapping Calculation'!$A$57)+1,FALSE)) ->  | V129: 125
I130: 126 | J130: =IF(HLOOKUP($I130,'Mapping Calculation'!$C$3:$GU$4,-('Mapping Calculation'!$A$4-'Mapping Calculation'!$A$3)+1,FALSE)="Libre","",HLOOKUP($I130,'Mapping Calculation'!$C$3:$GU$4,-('Mapping Calculation'!$A$4-'Mapping Calculation'!$A$3)+1,FALSE)) ->  | K130: =IF(HLOOKUP($I130,'Mapping Calculation'!$C$57:$GU$58,-('Mapping Calculation'!$A$58-'Mapping Calculation'!$A$57)+1,FALSE)="Libre","",HLOOKUP($I130,'Mapping Calculation'!$C$57:$GU$58,-('Mapping Calculation'!$A$58-'Mapping Calculation'!$A$57)+1,FALSE)) ->  | V130: 126
I131: 127 | J131: =IF(HLOOKUP($I131,'Mapping Calculation'!$C$3:$GU$4,-('Mapping Calculation'!$A$4-'Mapping Calculation'!$A$3)+1,FALSE)="Libre","",HLOOKUP($I131,'Mapping Calculation'!$C$3:$GU$4,-('Mapping Calculation'!$A$4-'Mapping Calculation'!$A$3)+1,FALSE)) ->  | K131: =IF(HLOOKUP($I131,'Mapping Calculation'!$C$57:$GU$58,-('Mapping Calculation'!$A$58-'Mapping Calculation'!$A$57)+1,FALSE)="Libre","",HLOOKUP($I131,'Mapping Calculation'!$C$57:$GU$58,-('Mapping Calculation'!$A$58-'Mapping Calculation'!$A$57)+1,FALSE)) ->  | V131: 127
I132: 128 | J132: =IF(HLOOKUP($I132,'Mapping Calculation'!$C$3:$GU$4,-('Mapping Calculation'!$A$4-'Mapping Calculation'!$A$3)+1,FALSE)="Libre","",HLOOKUP($I132,'Mapping Calculation'!$C$3:$GU$4,-('Mapping Calculation'!$A$4-'Mapping Calculation'!$A$3)+1,FALSE)) ->  | K132: =IF(HLOOKUP($I132,'Mapping Calculation'!$C$57:$GU$58,-('Mapping Calculation'!$A$58-'Mapping Calculation'!$A$57)+1,FALSE)="Libre","",HLOOKUP($I132,'Mapping Calculation'!$C$57:$GU$58,-('Mapping Calculation'!$A$58-'Mapping Calculation'!$A$57)+1,FALSE)) ->  | V132: 128
I133: 129 | J133: =IF(HLOOKUP($I133,'Mapping Calculation'!$C$3:$GU$4,-('Mapping Calculation'!$A$4-'Mapping Calculation'!$A$3)+1,FALSE)="Libre","",HLOOKUP($I133,'Mapping Calculation'!$C$3:$GU$4,-('Mapping Calculation'!$A$4-'Mapping Calculation'!$A$3)+1,FALSE)) ->  | K133: =IF(HLOOKUP($I133,'Mapping Calculation'!$C$57:$GU$58,-('Mapping Calculation'!$A$58-'Mapping Calculation'!$A$57)+1,FALSE)="Libre","",HLOOKUP($I133,'Mapping Calculation'!$C$57:$GU$58,-('Mapping Calculation'!$A$58-'Mapping Calculation'!$A$57)+1,FALSE)) ->  | V133: 129
I134: 130 | J134: =IF(HLOOKUP($I134,'Mapping Calculation'!$C$3:$GU$4,-('Mapping Calculation'!$A$4-'Mapping Calculation'!$A$3)+1,FALSE)="Libre","",HLOOKUP($I134,'Mapping Calculation'!$C$3:$GU$4,-('Mapping Calculation'!$A$4-'Mapping Calculation'!$A$3)+1,FALSE)) ->  | K134: =IF(HLOOKUP($I134,'Mapping Calculation'!$C$57:$GU$58,-('Mapping Calculation'!$A$58-'Mapping Calculation'!$A$57)+1,FALSE)="Libre","",HLOOKUP($I134,'Mapping Calculation'!$C$57:$GU$58,-('Mapping Calculation'!$A$58-'Mapping Calculation'!$A$57)+1,FALSE)) ->  | V134: =I134 -> 130
I135: =I134+1 -> 131 | J135: =IF(HLOOKUP($I135,'Mapping Calculation'!$C$3:$GU$4,-('Mapping Calculation'!$A$4-'Mapping Calculation'!$A$3)+1,FALSE)="Libre","",HLOOKUP($I135,'Mapping Calculation'!$C$3:$GU$4,-('Mapping Calculation'!$A$4-'Mapping Calculation'!$A$3)+1,FALSE)) ->  | K135: =IF(HLOOKUP($I135,'Mapping Calculation'!$C$57:$GU$58,-('Mapping Calculation'!$A$58-'Mapping Calculation'!$A$57)+1,FALSE)="Libre","",HLOOKUP($I135,'Mapping Calculation'!$C$57:$GU$58,-('Mapping Calculation'!$A$58-'Mapping Calculation'!$A$57)+1,FALSE)) ->  | V135: 131
I136: 132 | J136: =IF(HLOOKUP($I136,'Mapping Calculation'!$C$3:$GU$4,-('Mapping Calculation'!$A$4-'Mapping Calculation'!$A$3)+1,FALSE)="Libre","",HLOOKUP($I136,'Mapping Calculation'!$C$3:$GU$4,-('Mapping Calculation'!$A$4-'Mapping Calculation'!$A$3)+1,FALSE)) ->  | K136: =IF(HLOOKUP($I136,'Mapping Calculation'!$C$57:$GU$58,-('Mapping Calculation'!$A$58-'Mapping Calculation'!$A$57)+1,FALSE)="Libre","",HLOOKUP($I136,'Mapping Calculation'!$C$57:$GU$58,-('Mapping Calculation'!$A$58-'Mapping Calculation'!$A$57)+1,FALSE)) ->  | V136: 132
I137: 133 | J137: =IF(HLOOKUP($I137,'Mapping Calculation'!$C$3:$GU$4,-('Mapping Calculation'!$A$4-'Mapping Calculation'!$A$3)+1,FALSE)="Libre","",HLOOKUP($I137,'Mapping Calculation'!$C$3:$GU$4,-('Mapping Calculation'!$A$4-'Mapping Calculation'!$A$3)+1,FALSE)) ->  | K137: =IF(HLOOKUP($I137,'Mapping Calculation'!$C$57:$GU$58,-('Mapping Calculation'!$A$58-'Mapping Calculation'!$A$57)+1,FALSE)="Libre","",HLOOKUP($I137,'Mapping Calculation'!$C$57:$GU$58,-('Mapping Calculation'!$A$58-'Mapping Calculation'!$A$57)+1,FALSE)) ->  | V137: 133
I138: 134 | J138: =IF(HLOOKUP($I138,'Mapping Calculation'!$C$3:$GU$4,-('Mapping Calculation'!$A$4-'Mapping Calculation'!$A$3)+1,FALSE)="Libre","",HLOOKUP($I138,'Mapping Calculation'!$C$3:$GU$4,-('Mapping Calculation'!$A$4-'Mapping Calculation'!$A$3)+1,FALSE)) ->  | K138: =IF(HLOOKUP($I138,'Mapping Calculation'!$C$57:$GU$58,-('Mapping Calculation'!$A$58-'Mapping Calculation'!$A$57)+1,FALSE)="Libre","",HLOOKUP($I138,'Mapping Calculation'!$C$57:$GU$58,-('Mapping Calculation'!$A$58-'Mapping Calculation'!$A$57)+1,FALSE)) ->  | V138: 134
I139: 135 | J139: =IF(HLOOKUP($I139,'Mapping Calculation'!$C$3:$GU$4,-('Mapping Calculation'!$A$4-'Mapping Calculation'!$A$3)+1,FALSE)="Libre","",HLOOKUP($I139,'Mapping Calculation'!$C$3:$GU$4,-('Mapping Calculation'!$A$4-'Mapping Calculation'!$A$3)+1,FALSE)) ->  | K139: =IF(HLOOKUP($I139,'Mapping Calculation'!$C$57:$GU$58,-('Mapping Calculation'!$A$58-'Mapping Calculation'!$A$57)+1,FALSE)="Libre","",HLOOKUP($I139,'Mapping Calculation'!$C$57:$GU$58,-('Mapping Calculation'!$A$58-'Mapping Calculation'!$A$57)+1,FALSE)) ->  | V139: 135
I140: 136 | J140: =IF(HLOOKUP($I140,'Mapping Calculation'!$C$3:$GU$4,-('Mapping Calculation'!$A$4-'Mapping Calculation'!$A$3)+1,FALSE)="Libre","",HLOOKUP($I140,'Mapping Calculation'!$C$3:$GU$4,-('Mapping Calculation'!$A$4-'Mapping Calculation'!$A$3)+1,FALSE)) ->  | K140: =IF(HLOOKUP($I140,'Mapping Calculation'!$C$57:$GU$58,-('Mapping Calculation'!$A$58-'Mapping Calculation'!$A$57)+1,FALSE)="Libre","",HLOOKUP($I140,'Mapping Calculation'!$C$57:$GU$58,-('Mapping Calculation'!$A$58-'Mapping Calculation'!$A$57)+1,FALSE)) ->  | V140: 136
I141: 137 | J141: =IF(HLOOKUP($I141,'Mapping Calculation'!$C$3:$GU$4,-('Mapping Calculation'!$A$4-'Mapping Calculation'!$A$3)+1,FALSE)="Libre","",HLOOKUP($I141,'Mapping Calculation'!$C$3:$GU$4,-('Mapping Calculation'!$A$4-'Mapping Calculation'!$A$3)+1,FALSE)) ->  | K141: =IF(HLOOKUP($I141,'Mapping Calculation'!$C$57:$GU$58,-('Mapping Calculation'!$A$58-'Mapping Calculation'!$A$57)+1,FALSE)="Libre","",HLOOKUP($I141,'Mapping Calculation'!$C$57:$GU$58,-('Mapping Calculation'!$A$58-'Mapping Calculation'!$A$57)+1,FALSE)) ->  | V141: 137
I142: 138 | J142: =IF(HLOOKUP($I142,'Mapping Calculation'!$C$3:$GU$4,-('Mapping Calculation'!$A$4-'Mapping Calculation'!$A$3)+1,FALSE)="Libre","",HLOOKUP($I142,'Mapping Calculation'!$C$3:$GU$4,-('Mapping Calculation'!$A$4-'Mapping Calculation'!$A$3)+1,FALSE)) ->  | K142: =IF(HLOOKUP($I142,'Mapping Calculation'!$C$57:$GU$58,-('Mapping Calculation'!$A$58-'Mapping Calculation'!$A$57)+1,FALSE)="Libre","",HLOOKUP($I142,'Mapping Calculation'!$C$57:$GU$58,-('Mapping Calculation'!$A$58-'Mapping Calculation'!$A$57)+1,FALSE)) ->  | V142: 138
I143: 139 | J143: =IF(HLOOKUP($I143,'Mapping Calculation'!$C$3:$GU$4,-('Mapping Calculation'!$A$4-'Mapping Calculation'!$A$3)+1,FALSE)="Libre","",HLOOKUP($I143,'Mapping Calculation'!$C$3:$GU$4,-('Mapping Calculation'!$A$4-'Mapping Calculation'!$A$3)+1,FALSE)) ->  | K143: =IF(HLOOKUP($I143,'Mapping Calculation'!$C$57:$GU$58,-('Mapping Calculation'!$A$58-'Mapping Calculation'!$A$57)+1,FALSE)="Libre","",HLOOKUP($I143,'Mapping Calculation'!$C$57:$GU$58,-('Mapping Calculation'!$A$58-'Mapping Calculation'!$A$57)+1,FALSE)) ->  | V143: 139
I144: 140 | J144: =IF(HLOOKUP($I144,'Mapping Calculation'!$C$3:$GU$4,-('Mapping Calculation'!$A$4-'Mapping Calculation'!$A$3)+1,FALSE)="Libre","",HLOOKUP($I144,'Mapping Calculation'!$C$3:$GU$4,-('Mapping Calculation'!$A$4-'Mapping Calculation'!$A$3)+1,FALSE)) ->  | K144: =IF(HLOOKUP($I144,'Mapping Calculation'!$C$57:$GU$58,-('Mapping Calculation'!$A$58-'Mapping Calculation'!$A$57)+1,FALSE)="Libre","",HLOOKUP($I144,'Mapping Calculation'!$C$57:$GU$58,-('Mapping Calculation'!$A$58-'Mapping Calculation'!$A$57)+1,FALSE)) ->  | V144: 140
I145: 141 | J145: =IF(HLOOKUP($I145,'Mapping Calculation'!$C$3:$GU$4,-('Mapping Calculation'!$A$4-'Mapping Calculation'!$A$3)+1,FALSE)="Libre","",HLOOKUP($I145,'Mapping Calculation'!$C$3:$GU$4,-('Mapping Calculation'!$A$4-'Mapping Calculation'!$A$3)+1,FALSE)) ->  | K145: =IF(HLOOKUP($I145,'Mapping Calculation'!$C$57:$GU$58,-('Mapping Calculation'!$A$58-'Mapping Calculation'!$A$57)+1,FALSE)="Libre","",HLOOKUP($I145,'Mapping Calculation'!$C$57:$GU$58,-('Mapping Calculation'!$A$58-'Mapping Calculation'!$A$57)+1,FALSE)) ->  | V145: 141
I146: 142 | J146: =IF(HLOOKUP($I146,'Mapping Calculation'!$C$3:$GU$4,-('Mapping Calculation'!$A$4-'Mapping Calculation'!$A$3)+1,FALSE)="Libre","",HLOOKUP($I146,'Mapping Calculation'!$C$3:$GU$4,-('Mapping Calculation'!$A$4-'Mapping Calculation'!$A$3)+1,FALSE)) ->  | K146: =IF(HLOOKUP($I146,'Mapping Calculation'!$C$57:$GU$58,-('Mapping Calculation'!$A$58-'Mapping Calculation'!$A$57)+1,FALSE)="Libre","",HLOOKUP($I146,'Mapping Calculation'!$C$57:$GU$58,-('Mapping Calculation'!$A$58-'Mapping Calculation'!$A$57)+1,FALSE)) ->  | V146: 142
I147: 143 | J147: =IF(HLOOKUP($I147,'Mapping Calculation'!$C$3:$GU$4,-('Mapping Calculation'!$A$4-'Mapping Calculation'!$A$3)+1,FALSE)="Libre","",HLOOKUP($I147,'Mapping Calculation'!$C$3:$GU$4,-('Mapping Calculation'!$A$4-'Mapping Calculation'!$A$3)+1,FALSE)) ->  | K147: =IF(HLOOKUP($I147,'Mapping Calculation'!$C$57:$GU$58,-('Mapping Calculation'!$A$58-'Mapping Calculation'!$A$57)+1,FALSE)="Libre","",HLOOKUP($I147,'Mapping Calculation'!$C$57:$GU$58,-('Mapping Calculation'!$A$58-'Mapping Calculation'!$A$57)+1,FALSE)) ->  | V147: 143
I148: 144 | J148: =IF(HLOOKUP($I148,'Mapping Calculation'!$C$3:$GU$4,-('Mapping Calculation'!$A$4-'Mapping Calculation'!$A$3)+1,FALSE)="Libre","",HLOOKUP($I148,'Mapping Calculation'!$C$3:$GU$4,-('Mapping Calculation'!$A$4-'Mapping Calculation'!$A$3)+1,FALSE)) ->  | K148: =IF(HLOOKUP($I148,'Mapping Calculation'!$C$57:$GU$58,-('Mapping Calculation'!$A$58-'Mapping Calculation'!$A$57)+1,FALSE)="Libre","",HLOOKUP($I148,'Mapping Calculation'!$C$57:$GU$58,-('Mapping Calculation'!$A$58-'Mapping Calculation'!$A$57)+1,FALSE)) ->  | V148: 144
I149: 145 | J149: =IF(HLOOKUP($I149,'Mapping Calculation'!$C$3:$GU$4,-('Mapping Calculation'!$A$4-'Mapping Calculation'!$A$3)+1,FALSE)="Libre","",HLOOKUP($I149,'Mapping Calculation'!$C$3:$GU$4,-('Mapping Calculation'!$A$4-'Mapping Calculation'!$A$3)+1,FALSE)) ->  | K149: =IF(HLOOKUP($I149,'Mapping Calculation'!$C$57:$GU$58,-('Mapping Calculation'!$A$58-'Mapping Calculation'!$A$57)+1,FALSE)="Libre","",HLOOKUP($I149,'Mapping Calculation'!$C$57:$GU$58,-('Mapping Calculation'!$A$58-'Mapping Calculation'!$A$57)+1,FALSE)) ->  | V149: 145
I150: 146 | J150: =IF(HLOOKUP($I150,'Mapping Calculation'!$C$3:$GU$4,-('Mapping Calculation'!$A$4-'Mapping Calculation'!$A$3)+1,FALSE)="Libre","",HLOOKUP($I150,'Mapping Calculation'!$C$3:$GU$4,-('Mapping Calculation'!$A$4-'Mapping Calculation'!$A$3)+1,FALSE)) ->  | K150: =IF(HLOOKUP($I150,'Mapping Calculation'!$C$57:$GU$58,-('Mapping Calculation'!$A$58-'Mapping Calculation'!$A$57)+1,FALSE)="Libre","",HLOOKUP($I150,'Mapping Calculation'!$C$57:$GU$58,-('Mapping Calculation'!$A$58-'Mapping Calculation'!$A$57)+1,FALSE)) ->  | V150: 146
I151: 147 | J151: =IF(HLOOKUP($I151,'Mapping Calculation'!$C$3:$GU$4,-('Mapping Calculation'!$A$4-'Mapping Calculation'!$A$3)+1,FALSE)="Libre","",HLOOKUP($I151,'Mapping Calculation'!$C$3:$GU$4,-('Mapping Calculation'!$A$4-'Mapping Calculation'!$A$3)+1,FALSE)) ->  | K151: =IF(HLOOKUP($I151,'Mapping Calculation'!$C$57:$GU$58,-('Mapping Calculation'!$A$58-'Mapping Calculation'!$A$57)+1,FALSE)="Libre","",HLOOKUP($I151,'Mapping Calculation'!$C$57:$GU$58,-('Mapping Calculation'!$A$58-'Mapping Calculation'!$A$57)+1,FALSE)) ->  | V151: 147
I152: 148 | J152: =IF(HLOOKUP($I152,'Mapping Calculation'!$C$3:$GU$4,-('Mapping Calculation'!$A$4-'Mapping Calculation'!$A$3)+1,FALSE)="Libre","",HLOOKUP($I152,'Mapping Calculation'!$C$3:$GU$4,-('Mapping Calculation'!$A$4-'Mapping Calculation'!$A$3)+1,FALSE)) ->  | K152: =IF(HLOOKUP($I152,'Mapping Calculation'!$C$57:$GU$58,-('Mapping Calculation'!$A$58-'Mapping Calculation'!$A$57)+1,FALSE)="Libre","",HLOOKUP($I152,'Mapping Calculation'!$C$57:$GU$58,-('Mapping Calculation'!$A$58-'Mapping Calculation'!$A$57)+1,FALSE)) ->  | V152: 148
I153: 149 | J153: =IF(HLOOKUP($I153,'Mapping Calculation'!$C$3:$GU$4,-('Mapping Calculation'!$A$4-'Mapping Calculation'!$A$3)+1,FALSE)="Libre","",HLOOKUP($I153,'Mapping Calculation'!$C$3:$GU$4,-('Mapping Calculation'!$A$4-'Mapping Calculation'!$A$3)+1,FALSE)) ->  | K153: =IF(HLOOKUP($I153,'Mapping Calculation'!$C$57:$GU$58,-('Mapping Calculation'!$A$58-'Mapping Calculation'!$A$57)+1,FALSE)="Libre","",HLOOKUP($I153,'Mapping Calculation'!$C$57:$GU$58,-('Mapping Calculation'!$A$58-'Mapping Calculation'!$A$57)+1,FALSE)) ->  | V153: 149
I154: 150 | J154: =IF(HLOOKUP($I154,'Mapping Calculation'!$C$3:$GU$4,-('Mapping Calculation'!$A$4-'Mapping Calculation'!$A$3)+1,FALSE)="Libre","",HLOOKUP($I154,'Mapping Calculation'!$C$3:$GU$4,-('Mapping Calculation'!$A$4-'Mapping Calculation'!$A$3)+1,FALSE)) ->  | K154: =IF(HLOOKUP($I154,'Mapping Calculation'!$C$57:$GU$58,-('Mapping Calculation'!$A$58-'Mapping Calculation'!$A$57)+1,FALSE)="Libre","",HLOOKUP($I154,'Mapping Calculation'!$C$57:$GU$58,-('Mapping Calculation'!$A$58-'Mapping Calculation'!$A$57)+1,FALSE)) ->  | V154: 150
I155: 151 | J155: =IF(HLOOKUP($I155,'Mapping Calculation'!$C$3:$GU$4,-('Mapping Calculation'!$A$4-'Mapping Calculation'!$A$3)+1,FALSE)="Libre","",HLOOKUP($I155,'Mapping Calculation'!$C$3:$GU$4,-('Mapping Calculation'!$A$4-'Mapping Calculation'!$A$3)+1,FALSE)) ->  | K155: =IF(HLOOKUP($I155,'Mapping Calculation'!$C$57:$GU$58,-('Mapping Calculation'!$A$58-'Mapping Calculation'!$A$57)+1,FALSE)="Libre","",HLOOKUP($I155,'Mapping Calculation'!$C$57:$GU$58,-('Mapping Calculation'!$A$58-'Mapping Calculation'!$A$57)+1,FALSE)) ->  | V155: 151
I156: 152 | J156: =IF(HLOOKUP($I156,'Mapping Calculation'!$C$3:$GU$4,-('Mapping Calculation'!$A$4-'Mapping Calculation'!$A$3)+1,FALSE)="Libre","",HLOOKUP($I156,'Mapping Calculation'!$C$3:$GU$4,-('Mapping Calculation'!$A$4-'Mapping Calculation'!$A$3)+1,FALSE)) ->  | K156: =IF(HLOOKUP($I156,'Mapping Calculation'!$C$57:$GU$58,-('Mapping Calculation'!$A$58-'Mapping Calculation'!$A$57)+1,FALSE)="Libre","",HLOOKUP($I156,'Mapping Calculation'!$C$57:$GU$58,-('Mapping Calculation'!$A$58-'Mapping Calculation'!$A$57)+1,FALSE)) ->  | V156: 152
I157: 153 | J157: =IF(HLOOKUP($I157,'Mapping Calculation'!$C$3:$GU$4,-('Mapping Calculation'!$A$4-'Mapping Calculation'!$A$3)+1,FALSE)="Libre","",HLOOKUP($I157,'Mapping Calculation'!$C$3:$GU$4,-('Mapping Calculation'!$A$4-'Mapping Calculation'!$A$3)+1,FALSE)) ->  | K157: =IF(HLOOKUP($I157,'Mapping Calculation'!$C$57:$GU$58,-('Mapping Calculation'!$A$58-'Mapping Calculation'!$A$57)+1,FALSE)="Libre","",HLOOKUP($I157,'Mapping Calculation'!$C$57:$GU$58,-('Mapping Calculation'!$A$58-'Mapping Calculation'!$A$57)+1,FALSE)) ->  | V157: 153
I158: 154 | J158: =IF(HLOOKUP($I158,'Mapping Calculation'!$C$3:$GU$4,-('Mapping Calculation'!$A$4-'Mapping Calculation'!$A$3)+1,FALSE)="Libre","",HLOOKUP($I158,'Mapping Calculation'!$C$3:$GU$4,-('Mapping Calculation'!$A$4-'Mapping Calculation'!$A$3)+1,FALSE)) ->  | K158: =IF(HLOOKUP($I158,'Mapping Calculation'!$C$57:$GU$58,-('Mapping Calculation'!$A$58-'Mapping Calculation'!$A$57)+1,FALSE)="Libre","",HLOOKUP($I158,'Mapping Calculation'!$C$57:$GU$58,-('Mapping Calculation'!$A$58-'Mapping Calculation'!$A$57)+1,FALSE)) ->  | V158: 154
I159: 155 | J159: =IF(HLOOKUP($I159,'Mapping Calculation'!$C$3:$GU$4,-('Mapping Calculation'!$A$4-'Mapping Calculation'!$A$3)+1,FALSE)="Libre","",HLOOKUP($I159,'Mapping Calculation'!$C$3:$GU$4,-('Mapping Calculation'!$A$4-'Mapping Calculation'!$A$3)+1,FALSE)) ->  | K159: =IF(HLOOKUP($I159,'Mapping Calculation'!$C$57:$GU$58,-('Mapping Calculation'!$A$58-'Mapping Calculation'!$A$57)+1,FALSE)="Libre","",HLOOKUP($I159,'Mapping Calculation'!$C$57:$GU$58,-('Mapping Calculation'!$A$58-'Mapping Calculation'!$A$57)+1,FALSE)) ->  | V159: 155
I160: 156 | J160: =IF(HLOOKUP($I160,'Mapping Calculation'!$C$3:$GU$4,-('Mapping Calculation'!$A$4-'Mapping Calculation'!$A$3)+1,FALSE)="Libre","",HLOOKUP($I160,'Mapping Calculation'!$C$3:$GU$4,-('Mapping Calculation'!$A$4-'Mapping Calculation'!$A$3)+1,FALSE)) ->  | K160: =IF(HLOOKUP($I160,'Mapping Calculation'!$C$57:$GU$58,-('Mapping Calculation'!$A$58-'Mapping Calculation'!$A$57)+1,FALSE)="Libre","",HLOOKUP($I160,'Mapping Calculation'!$C$57:$GU$58,-('Mapping Calculation'!$A$58-'Mapping Calculation'!$A$57)+1,FALSE)) ->  | V160: 156
I161: 157 | J161: =IF(HLOOKUP($I161,'Mapping Calculation'!$C$3:$GU$4,-('Mapping Calculation'!$A$4-'Mapping Calculation'!$A$3)+1,FALSE)="Libre","",HLOOKUP($I161,'Mapping Calculation'!$C$3:$GU$4,-('Mapping Calculation'!$A$4-'Mapping Calculation'!$A$3)+1,FALSE)) ->  | K161: =IF(HLOOKUP($I161,'Mapping Calculation'!$C$57:$GU$58,-('Mapping Calculation'!$A$58-'Mapping Calculation'!$A$57)+1,FALSE)="Libre","",HLOOKUP($I161,'Mapping Calculation'!$C$57:$GU$58,-('Mapping Calculation'!$A$58-'Mapping Calculation'!$A$57)+1,FALSE)) ->  | V161: 157
I162: 158 | J162: =IF(HLOOKUP($I162,'Mapping Calculation'!$C$3:$GU$4,-('Mapping Calculation'!$A$4-'Mapping Calculation'!$A$3)+1,FALSE)="Libre","",HLOOKUP($I162,'Mapping Calculation'!$C$3:$GU$4,-('Mapping Calculation'!$A$4-'Mapping Calculation'!$A$3)+1,FALSE)) ->  | K162: =IF(HLOOKUP($I162,'Mapping Calculation'!$C$57:$GU$58,-('Mapping Calculation'!$A$58-'Mapping Calculation'!$A$57)+1,FALSE)="Libre","",HLOOKUP($I162,'Mapping Calculation'!$C$57:$GU$58,-('Mapping Calculation'!$A$58-'Mapping Calculation'!$A$57)+1,FALSE)) ->  | V162: 158
I163: 159 | J163: =IF(HLOOKUP($I163,'Mapping Calculation'!$C$3:$GU$4,-('Mapping Calculation'!$A$4-'Mapping Calculation'!$A$3)+1,FALSE)="Libre","",HLOOKUP($I163,'Mapping Calculation'!$C$3:$GU$4,-('Mapping Calculation'!$A$4-'Mapping Calculation'!$A$3)+1,FALSE)) ->  | K163: =IF(HLOOKUP($I163,'Mapping Calculation'!$C$57:$GU$58,-('Mapping Calculation'!$A$58-'Mapping Calculation'!$A$57)+1,FALSE)="Libre","",HLOOKUP($I163,'Mapping Calculation'!$C$57:$GU$58,-('Mapping Calculation'!$A$58-'Mapping Calculation'!$A$57)+1,FALSE)) ->  | V163: 159
I164: 160 | J164: =IF(HLOOKUP($I164,'Mapping Calculation'!$C$3:$GU$4,-('Mapping Calculation'!$A$4-'Mapping Calculation'!$A$3)+1,FALSE)="Libre","",HLOOKUP($I164,'Mapping Calculation'!$C$3:$GU$4,-('Mapping Calculation'!$A$4-'Mapping Calculation'!$A$3)+1,FALSE)) ->  | K164: =IF(HLOOKUP($I164,'Mapping Calculation'!$C$57:$GU$58,-('Mapping Calculation'!$A$58-'Mapping Calculation'!$A$57)+1,FALSE)="Libre","",HLOOKUP($I164,'Mapping Calculation'!$C$57:$GU$58,-('Mapping Calculation'!$A$58-'Mapping Calculation'!$A$57)+1,FALSE)) ->  | V164: 160
I165: 161 | J165: =IF(HLOOKUP($I165,'Mapping Calculation'!$C$3:$GU$4,-('Mapping Calculation'!$A$4-'Mapping Calculation'!$A$3)+1,FALSE)="Libre","",HLOOKUP($I165,'Mapping Calculation'!$C$3:$GU$4,-('Mapping Calculation'!$A$4-'Mapping Calculation'!$A$3)+1,FALSE)) ->  | K165: =IF(HLOOKUP($I165,'Mapping Calculation'!$C$57:$GU$58,-('Mapping Calculation'!$A$58-'Mapping Calculation'!$A$57)+1,FALSE)="Libre","",HLOOKUP($I165,'Mapping Calculation'!$C$57:$GU$58,-('Mapping Calculation'!$A$58-'Mapping Calculation'!$A$57)+1,FALSE)) ->  | V165: 161
I166: 162 | J166: =IF(HLOOKUP($I166,'Mapping Calculation'!$C$3:$GU$4,-('Mapping Calculation'!$A$4-'Mapping Calculation'!$A$3)+1,FALSE)="Libre","",HLOOKUP($I166,'Mapping Calculation'!$C$3:$GU$4,-('Mapping Calculation'!$A$4-'Mapping Calculation'!$A$3)+1,FALSE)) ->  | K166: =IF(HLOOKUP($I166,'Mapping Calculation'!$C$57:$GU$58,-('Mapping Calculation'!$A$58-'Mapping Calculation'!$A$57)+1,FALSE)="Libre","",HLOOKUP($I166,'Mapping Calculation'!$C$57:$GU$58,-('Mapping Calculation'!$A$58-'Mapping Calculation'!$A$57)+1,FALSE)) ->  | V166: 162
I167: 163 | J167: =IF(HLOOKUP($I167,'Mapping Calculation'!$C$3:$GU$4,-('Mapping Calculation'!$A$4-'Mapping Calculation'!$A$3)+1,FALSE)="Libre","",HLOOKUP($I167,'Mapping Calculation'!$C$3:$GU$4,-('Mapping Calculation'!$A$4-'Mapping Calculation'!$A$3)+1,FALSE)) ->  | K167: =IF(HLOOKUP($I167,'Mapping Calculation'!$C$57:$GU$58,-('Mapping Calculation'!$A$58-'Mapping Calculation'!$A$57)+1,FALSE)="Libre","",HLOOKUP($I167,'Mapping Calculation'!$C$57:$GU$58,-('Mapping Calculation'!$A$58-'Mapping Calculation'!$A$57)+1,FALSE)) ->  | V167: 163
I168: 164 | J168: =IF(HLOOKUP($I168,'Mapping Calculation'!$C$3:$GU$4,-('Mapping Calculation'!$A$4-'Mapping Calculation'!$A$3)+1,FALSE)="Libre","",HLOOKUP($I168,'Mapping Calculation'!$C$3:$GU$4,-('Mapping Calculation'!$A$4-'Mapping Calculation'!$A$3)+1,FALSE)) ->  | K168: =IF(HLOOKUP($I168,'Mapping Calculation'!$C$57:$GU$58,-('Mapping Calculation'!$A$58-'Mapping Calculation'!$A$57)+1,FALSE)="Libre","",HLOOKUP($I168,'Mapping Calculation'!$C$57:$GU$58,-('Mapping Calculation'!$A$58-'Mapping Calculation'!$A$57)+1,FALSE)) ->  | V168: 164
I169: 165 | J169: =IF(HLOOKUP($I169,'Mapping Calculation'!$C$3:$GU$4,-('Mapping Calculation'!$A$4-'Mapping Calculation'!$A$3)+1,FALSE)="Libre","",HLOOKUP($I169,'Mapping Calculation'!$C$3:$GU$4,-('Mapping Calculation'!$A$4-'Mapping Calculation'!$A$3)+1,FALSE)) ->  | K169: =IF(HLOOKUP($I169,'Mapping Calculation'!$C$57:$GU$58,-('Mapping Calculation'!$A$58-'Mapping Calculation'!$A$57)+1,FALSE)="Libre","",HLOOKUP($I169,'Mapping Calculation'!$C$57:$GU$58,-('Mapping Calculation'!$A$58-'Mapping Calculation'!$A$57)+1,FALSE)) ->  | V169: 165
I170: 166 | J170: =IF(HLOOKUP($I170,'Mapping Calculation'!$C$3:$GU$4,-('Mapping Calculation'!$A$4-'Mapping Calculation'!$A$3)+1,FALSE)="Libre","",HLOOKUP($I170,'Mapping Calculation'!$C$3:$GU$4,-('Mapping Calculation'!$A$4-'Mapping Calculation'!$A$3)+1,FALSE)) ->  | K170: =IF(HLOOKUP($I170,'Mapping Calculation'!$C$57:$GU$58,-('Mapping Calculation'!$A$58-'Mapping Calculation'!$A$57)+1,FALSE)="Libre","",HLOOKUP($I170,'Mapping Calculation'!$C$57:$GU$58,-('Mapping Calculation'!$A$58-'Mapping Calculation'!$A$57)+1,FALSE)) ->  | V170: 166
I171: 167 | J171: =IF(HLOOKUP($I171,'Mapping Calculation'!$C$3:$GU$4,-('Mapping Calculation'!$A$4-'Mapping Calculation'!$A$3)+1,FALSE)="Libre","",HLOOKUP($I171,'Mapping Calculation'!$C$3:$GU$4,-('Mapping Calculation'!$A$4-'Mapping Calculation'!$A$3)+1,FALSE)) ->  | K171: =IF(HLOOKUP($I171,'Mapping Calculation'!$C$57:$GU$58,-('Mapping Calculation'!$A$58-'Mapping Calculation'!$A$57)+1,FALSE)="Libre","",HLOOKUP($I171,'Mapping Calculation'!$C$57:$GU$58,-('Mapping Calculation'!$A$58-'Mapping Calculation'!$A$57)+1,FALSE)) ->  | V171: 167
I172: 168 | J172: =IF(HLOOKUP($I172,'Mapping Calculation'!$C$3:$GU$4,-('Mapping Calculation'!$A$4-'Mapping Calculation'!$A$3)+1,FALSE)="Libre","",HLOOKUP($I172,'Mapping Calculation'!$C$3:$GU$4,-('Mapping Calculation'!$A$4-'Mapping Calculation'!$A$3)+1,FALSE)) ->  | K172: =IF(HLOOKUP($I172,'Mapping Calculation'!$C$57:$GU$58,-('Mapping Calculation'!$A$58-'Mapping Calculation'!$A$57)+1,FALSE)="Libre","",HLOOKUP($I172,'Mapping Calculation'!$C$57:$GU$58,-('Mapping Calculation'!$A$58-'Mapping Calculation'!$A$57)+1,FALSE)) ->  | V172: 168
I173: 169 | J173: =IF(HLOOKUP($I173,'Mapping Calculation'!$C$3:$GU$4,-('Mapping Calculation'!$A$4-'Mapping Calculation'!$A$3)+1,FALSE)="Libre","",HLOOKUP($I173,'Mapping Calculation'!$C$3:$GU$4,-('Mapping Calculation'!$A$4-'Mapping Calculation'!$A$3)+1,FALSE)) ->  | K173: =IF(HLOOKUP($I173,'Mapping Calculation'!$C$57:$GU$58,-('Mapping Calculation'!$A$58-'Mapping Calculation'!$A$57)+1,FALSE)="Libre","",HLOOKUP($I173,'Mapping Calculation'!$C$57:$GU$58,-('Mapping Calculation'!$A$58-'Mapping Calculation'!$A$57)+1,FALSE)) ->  | V173: 169
I174: 170 | J174: =IF(HLOOKUP($I174,'Mapping Calculation'!$C$3:$GU$4,-('Mapping Calculation'!$A$4-'Mapping Calculation'!$A$3)+1,FALSE)="Libre","",HLOOKUP($I174,'Mapping Calculation'!$C$3:$GU$4,-('Mapping Calculation'!$A$4-'Mapping Calculation'!$A$3)+1,FALSE)) ->  | K174: =IF(HLOOKUP($I174,'Mapping Calculation'!$C$57:$GU$58,-('Mapping Calculation'!$A$58-'Mapping Calculation'!$A$57)+1,FALSE)="Libre","",HLOOKUP($I174,'Mapping Calculation'!$C$57:$GU$58,-('Mapping Calculation'!$A$58-'Mapping Calculation'!$A$57)+1,FALSE)) ->  | V174: 170
I175: 171 | J175: =IF(HLOOKUP($I175,'Mapping Calculation'!$C$3:$GU$4,-('Mapping Calculation'!$A$4-'Mapping Calculation'!$A$3)+1,FALSE)="Libre","",HLOOKUP($I175,'Mapping Calculation'!$C$3:$GU$4,-('Mapping Calculation'!$A$4-'Mapping Calculation'!$A$3)+1,FALSE)) ->  | K175: =IF(HLOOKUP($I175,'Mapping Calculation'!$C$57:$GU$58,-('Mapping Calculation'!$A$58-'Mapping Calculation'!$A$57)+1,FALSE)="Libre","",HLOOKUP($I175,'Mapping Calculation'!$C$57:$GU$58,-('Mapping Calculation'!$A$58-'Mapping Calculation'!$A$57)+1,FALSE)) ->  | V175: 171
I176: 172 | J176: =IF(HLOOKUP($I176,'Mapping Calculation'!$C$3:$GU$4,-('Mapping Calculation'!$A$4-'Mapping Calculation'!$A$3)+1,FALSE)="Libre","",HLOOKUP($I176,'Mapping Calculation'!$C$3:$GU$4,-('Mapping Calculation'!$A$4-'Mapping Calculation'!$A$3)+1,FALSE)) ->  | K176: =IF(HLOOKUP($I176,'Mapping Calculation'!$C$57:$GU$58,-('Mapping Calculation'!$A$58-'Mapping Calculation'!$A$57)+1,FALSE)="Libre","",HLOOKUP($I176,'Mapping Calculation'!$C$57:$GU$58,-('Mapping Calculation'!$A$58-'Mapping Calculation'!$A$57)+1,FALSE)) ->  | V176: 172
I177: 173 | J177: =IF(HLOOKUP($I177,'Mapping Calculation'!$C$3:$GU$4,-('Mapping Calculation'!$A$4-'Mapping Calculation'!$A$3)+1,FALSE)="Libre","",HLOOKUP($I177,'Mapping Calculation'!$C$3:$GU$4,-('Mapping Calculation'!$A$4-'Mapping Calculation'!$A$3)+1,FALSE)) ->  | K177: =IF(HLOOKUP($I177,'Mapping Calculation'!$C$57:$GU$58,-('Mapping Calculation'!$A$58-'Mapping Calculation'!$A$57)+1,FALSE)="Libre","",HLOOKUP($I177,'Mapping Calculation'!$C$57:$GU$58,-('Mapping Calculation'!$A$58-'Mapping Calculation'!$A$57)+1,FALSE)) ->  | V177: 173
I178: 174 | J178: =IF(HLOOKUP($I178,'Mapping Calculation'!$C$3:$GU$4,-('Mapping Calculation'!$A$4-'Mapping Calculation'!$A$3)+1,FALSE)="Libre","",HLOOKUP($I178,'Mapping Calculation'!$C$3:$GU$4,-('Mapping Calculation'!$A$4-'Mapping Calculation'!$A$3)+1,FALSE)) ->  | K178: =IF(HLOOKUP($I178,'Mapping Calculation'!$C$57:$GU$58,-('Mapping Calculation'!$A$58-'Mapping Calculation'!$A$57)+1,FALSE)="Libre","",HLOOKUP($I178,'Mapping Calculation'!$C$57:$GU$58,-('Mapping Calculation'!$A$58-'Mapping Calculation'!$A$57)+1,FALSE)) ->  | V178: 174
I179: 175 | J179: =IF(HLOOKUP($I179,'Mapping Calculation'!$C$3:$GU$4,-('Mapping Calculation'!$A$4-'Mapping Calculation'!$A$3)+1,FALSE)="Libre","",HLOOKUP($I179,'Mapping Calculation'!$C$3:$GU$4,-('Mapping Calculation'!$A$4-'Mapping Calculation'!$A$3)+1,FALSE)) ->  | K179: =IF(HLOOKUP($I179,'Mapping Calculation'!$C$57:$GU$58,-('Mapping Calculation'!$A$58-'Mapping Calculation'!$A$57)+1,FALSE)="Libre","",HLOOKUP($I179,'Mapping Calculation'!$C$57:$GU$58,-('Mapping Calculation'!$A$58-'Mapping Calculation'!$A$57)+1,FALSE)) ->  | V179: 175
I180: 176 | J180: =IF(HLOOKUP($I180,'Mapping Calculation'!$C$3:$GU$4,-('Mapping Calculation'!$A$4-'Mapping Calculation'!$A$3)+1,FALSE)="Libre","",HLOOKUP($I180,'Mapping Calculation'!$C$3:$GU$4,-('Mapping Calculation'!$A$4-'Mapping Calculation'!$A$3)+1,FALSE)) ->  | K180: =IF(HLOOKUP($I180,'Mapping Calculation'!$C$57:$GU$58,-('Mapping Calculation'!$A$58-'Mapping Calculation'!$A$57)+1,FALSE)="Libre","",HLOOKUP($I180,'Mapping Calculation'!$C$57:$GU$58,-('Mapping Calculation'!$A$58-'Mapping Calculation'!$A$57)+1,FALSE)) ->  | V180: 176
I181: 177 | J181: =IF(HLOOKUP($I181,'Mapping Calculation'!$C$3:$GU$4,-('Mapping Calculation'!$A$4-'Mapping Calculation'!$A$3)+1,FALSE)="Libre","",HLOOKUP($I181,'Mapping Calculation'!$C$3:$GU$4,-('Mapping Calculation'!$A$4-'Mapping Calculation'!$A$3)+1,FALSE)) ->  | K181: =IF(HLOOKUP($I181,'Mapping Calculation'!$C$57:$GU$58,-('Mapping Calculation'!$A$58-'Mapping Calculation'!$A$57)+1,FALSE)="Libre","",HLOOKUP($I181,'Mapping Calculation'!$C$57:$GU$58,-('Mapping Calculation'!$A$58-'Mapping Calculation'!$A$57)+1,FALSE)) ->  | V181: 177
I182: 178 | J182: =IF(HLOOKUP($I182,'Mapping Calculation'!$C$3:$GU$4,-('Mapping Calculation'!$A$4-'Mapping Calculation'!$A$3)+1,FALSE)="Libre","",HLOOKUP($I182,'Mapping Calculation'!$C$3:$GU$4,-('Mapping Calculation'!$A$4-'Mapping Calculation'!$A$3)+1,FALSE)) ->  | K182: =IF(HLOOKUP($I182,'Mapping Calculation'!$C$57:$GU$58,-('Mapping Calculation'!$A$58-'Mapping Calculation'!$A$57)+1,FALSE)="Libre","",HLOOKUP($I182,'Mapping Calculation'!$C$57:$GU$58,-('Mapping Calculation'!$A$58-'Mapping Calculation'!$A$57)+1,FALSE)) ->  | V182: 178
I183: 179 | J183: =IF(HLOOKUP($I183,'Mapping Calculation'!$C$3:$GU$4,-('Mapping Calculation'!$A$4-'Mapping Calculation'!$A$3)+1,FALSE)="Libre","",HLOOKUP($I183,'Mapping Calculation'!$C$3:$GU$4,-('Mapping Calculation'!$A$4-'Mapping Calculation'!$A$3)+1,FALSE)) ->  | K183: =IF(HLOOKUP($I183,'Mapping Calculation'!$C$57:$GU$58,-('Mapping Calculation'!$A$58-'Mapping Calculation'!$A$57)+1,FALSE)="Libre","",HLOOKUP($I183,'Mapping Calculation'!$C$57:$GU$58,-('Mapping Calculation'!$A$58-'Mapping Calculation'!$A$57)+1,FALSE)) ->  | V183: 179
I184: 180 | J184: =IF(HLOOKUP($I184,'Mapping Calculation'!$C$3:$GU$4,-('Mapping Calculation'!$A$4-'Mapping Calculation'!$A$3)+1,FALSE)="Libre","",HLOOKUP($I184,'Mapping Calculation'!$C$3:$GU$4,-('Mapping Calculation'!$A$4-'Mapping Calculation'!$A$3)+1,FALSE)) ->  | K184: =IF(HLOOKUP($I184,'Mapping Calculation'!$C$57:$GU$58,-('Mapping Calculation'!$A$58-'Mapping Calculation'!$A$57)+1,FALSE)="Libre","",HLOOKUP($I184,'Mapping Calculation'!$C$57:$GU$58,-('Mapping Calculation'!$A$58-'Mapping Calculation'!$A$57)+1,FALSE)) ->  | V184: 180
I185: 181 | J185: =IF(HLOOKUP($I185,'Mapping Calculation'!$C$3:$GU$4,-('Mapping Calculation'!$A$4-'Mapping Calculation'!$A$3)+1,FALSE)="Libre","",HLOOKUP($I185,'Mapping Calculation'!$C$3:$GU$4,-('Mapping Calculation'!$A$4-'Mapping Calculation'!$A$3)+1,FALSE)) ->  | K185: =IF(HLOOKUP($I185,'Mapping Calculation'!$C$57:$GU$58,-('Mapping Calculation'!$A$58-'Mapping Calculation'!$A$57)+1,FALSE)="Libre","",HLOOKUP($I185,'Mapping Calculation'!$C$57:$GU$58,-('Mapping Calculation'!$A$58-'Mapping Calculation'!$A$57)+1,FALSE)) ->  | V185: 181
I186: 182 | J186: =IF(HLOOKUP($I186,'Mapping Calculation'!$C$3:$GU$4,-('Mapping Calculation'!$A$4-'Mapping Calculation'!$A$3)+1,FALSE)="Libre","",HLOOKUP($I186,'Mapping Calculation'!$C$3:$GU$4,-('Mapping Calculation'!$A$4-'Mapping Calculation'!$A$3)+1,FALSE)) ->  | K186: =IF(HLOOKUP($I186,'Mapping Calculation'!$C$57:$GU$58,-('Mapping Calculation'!$A$58-'Mapping Calculation'!$A$57)+1,FALSE)="Libre","",HLOOKUP($I186,'Mapping Calculation'!$C$57:$GU$58,-('Mapping Calculation'!$A$58-'Mapping Calculation'!$A$57)+1,FALSE)) ->  | V186: 182
I187: 183 | J187: =IF(HLOOKUP($I187,'Mapping Calculation'!$C$3:$GU$4,-('Mapping Calculation'!$A$4-'Mapping Calculation'!$A$3)+1,FALSE)="Libre","",HLOOKUP($I187,'Mapping Calculation'!$C$3:$GU$4,-('Mapping Calculation'!$A$4-'Mapping Calculation'!$A$3)+1,FALSE)) ->  | K187: =IF(HLOOKUP($I187,'Mapping Calculation'!$C$57:$GU$58,-('Mapping Calculation'!$A$58-'Mapping Calculation'!$A$57)+1,FALSE)="Libre","",HLOOKUP($I187,'Mapping Calculation'!$C$57:$GU$58,-('Mapping Calculation'!$A$58-'Mapping Calculation'!$A$57)+1,FALSE)) ->  | V187: 183
I188: 184 | J188: =IF(HLOOKUP($I188,'Mapping Calculation'!$C$3:$GU$4,-('Mapping Calculation'!$A$4-'Mapping Calculation'!$A$3)+1,FALSE)="Libre","",HLOOKUP($I188,'Mapping Calculation'!$C$3:$GU$4,-('Mapping Calculation'!$A$4-'Mapping Calculation'!$A$3)+1,FALSE)) ->  | K188: =IF(HLOOKUP($I188,'Mapping Calculation'!$C$57:$GU$58,-('Mapping Calculation'!$A$58-'Mapping Calculation'!$A$57)+1,FALSE)="Libre","",HLOOKUP($I188,'Mapping Calculation'!$C$57:$GU$58,-('Mapping Calculation'!$A$58-'Mapping Calculation'!$A$57)+1,FALSE)) ->  | V188: 184
I189: 185 | J189: =IF(HLOOKUP($I189,'Mapping Calculation'!$C$3:$GU$4,-('Mapping Calculation'!$A$4-'Mapping Calculation'!$A$3)+1,FALSE)="Libre","",HLOOKUP($I189,'Mapping Calculation'!$C$3:$GU$4,-('Mapping Calculation'!$A$4-'Mapping Calculation'!$A$3)+1,FALSE)) ->  | K189: =IF(HLOOKUP($I189,'Mapping Calculation'!$C$57:$GU$58,-('Mapping Calculation'!$A$58-'Mapping Calculation'!$A$57)+1,FALSE)="Libre","",HLOOKUP($I189,'Mapping Calculation'!$C$57:$GU$58,-('Mapping Calculation'!$A$58-'Mapping Calculation'!$A$57)+1,FALSE)) ->  | V189: 185
I190: 186 | J190: =IF(HLOOKUP($I190,'Mapping Calculation'!$C$3:$GU$4,-('Mapping Calculation'!$A$4-'Mapping Calculation'!$A$3)+1,FALSE)="Libre","",HLOOKUP($I190,'Mapping Calculation'!$C$3:$GU$4,-('Mapping Calculation'!$A$4-'Mapping Calculation'!$A$3)+1,FALSE)) ->  | K190: =IF(HLOOKUP($I190,'Mapping Calculation'!$C$57:$GU$58,-('Mapping Calculation'!$A$58-'Mapping Calculation'!$A$57)+1,FALSE)="Libre","",HLOOKUP($I190,'Mapping Calculation'!$C$57:$GU$58,-('Mapping Calculation'!$A$58-'Mapping Calculation'!$A$57)+1,FALSE)) ->  | V190: 186
I191: 187 | J191: =IF(HLOOKUP($I191,'Mapping Calculation'!$C$3:$GU$4,-('Mapping Calculation'!$A$4-'Mapping Calculation'!$A$3)+1,FALSE)="Libre","",HLOOKUP($I191,'Mapping Calculation'!$C$3:$GU$4,-('Mapping Calculation'!$A$4-'Mapping Calculation'!$A$3)+1,FALSE)) ->  | K191: =IF(HLOOKUP($I191,'Mapping Calculation'!$C$57:$GU$58,-('Mapping Calculation'!$A$58-'Mapping Calculation'!$A$57)+1,FALSE)="Libre","",HLOOKUP($I191,'Mapping Calculation'!$C$57:$GU$58,-('Mapping Calculation'!$A$58-'Mapping Calculation'!$A$57)+1,FALSE)) ->  | V191: 187
I192: 188 | J192: =IF(HLOOKUP($I192,'Mapping Calculation'!$C$3:$GU$4,-('Mapping Calculation'!$A$4-'Mapping Calculation'!$A$3)+1,FALSE)="Libre","",HLOOKUP($I192,'Mapping Calculation'!$C$3:$GU$4,-('Mapping Calculation'!$A$4-'Mapping Calculation'!$A$3)+1,FALSE)) ->  | K192: =IF(HLOOKUP($I192,'Mapping Calculation'!$C$57:$GU$58,-('Mapping Calculation'!$A$58-'Mapping Calculation'!$A$57)+1,FALSE)="Libre","",HLOOKUP($I192,'Mapping Calculation'!$C$57:$GU$58,-('Mapping Calculation'!$A$58-'Mapping Calculation'!$A$57)+1,FALSE)) ->  | V192: 188
I193: 189 | J193: =IF(HLOOKUP($I193,'Mapping Calculation'!$C$3:$GU$4,-('Mapping Calculation'!$A$4-'Mapping Calculation'!$A$3)+1,FALSE)="Libre","",HLOOKUP($I193,'Mapping Calculation'!$C$3:$GU$4,-('Mapping Calculation'!$A$4-'Mapping Calculation'!$A$3)+1,FALSE)) ->  | K193: =IF(HLOOKUP($I193,'Mapping Calculation'!$C$57:$GU$58,-('Mapping Calculation'!$A$58-'Mapping Calculation'!$A$57)+1,FALSE)="Libre","",HLOOKUP($I193,'Mapping Calculation'!$C$57:$GU$58,-('Mapping Calculation'!$A$58-'Mapping Calculation'!$A$57)+1,FALSE)) ->  | V193: 189
I194: 190 | J194: =IF(HLOOKUP($I194,'Mapping Calculation'!$C$3:$GU$4,-('Mapping Calculation'!$A$4-'Mapping Calculation'!$A$3)+1,FALSE)="Libre","",HLOOKUP($I194,'Mapping Calculation'!$C$3:$GU$4,-('Mapping Calculation'!$A$4-'Mapping Calculation'!$A$3)+1,FALSE)) ->  | K194: =IF(HLOOKUP($I194,'Mapping Calculation'!$C$57:$GU$58,-('Mapping Calculation'!$A$58-'Mapping Calculation'!$A$57)+1,FALSE)="Libre","",HLOOKUP($I194,'Mapping Calculation'!$C$57:$GU$58,-('Mapping Calculation'!$A$58-'Mapping Calculation'!$A$57)+1,FALSE)) ->  | V194: 190
I195: 191 | J195: =IF(HLOOKUP($I195,'Mapping Calculation'!$C$3:$GU$4,-('Mapping Calculation'!$A$4-'Mapping Calculation'!$A$3)+1,FALSE)="Libre","",HLOOKUP($I195,'Mapping Calculation'!$C$3:$GU$4,-('Mapping Calculation'!$A$4-'Mapping Calculation'!$A$3)+1,FALSE)) ->  | K195: =IF(HLOOKUP($I195,'Mapping Calculation'!$C$57:$GU$58,-('Mapping Calculation'!$A$58-'Mapping Calculation'!$A$57)+1,FALSE)="Libre","",HLOOKUP($I195,'Mapping Calculation'!$C$57:$GU$58,-('Mapping Calculation'!$A$58-'Mapping Calculation'!$A$57)+1,FALSE)) ->  | V195: 191
I196: 192 | J196: =IF(HLOOKUP($I196,'Mapping Calculation'!$C$3:$GU$4,-('Mapping Calculation'!$A$4-'Mapping Calculation'!$A$3)+1,FALSE)="Libre","",HLOOKUP($I196,'Mapping Calculation'!$C$3:$GU$4,-('Mapping Calculation'!$A$4-'Mapping Calculation'!$A$3)+1,FALSE)) ->  | K196: =IF(HLOOKUP($I196,'Mapping Calculation'!$C$57:$GU$58,-('Mapping Calculation'!$A$58-'Mapping Calculation'!$A$57)+1,FALSE)="Libre","",HLOOKUP($I196,'Mapping Calculation'!$C$57:$GU$58,-('Mapping Calculation'!$A$58-'Mapping Calculation'!$A$57)+1,FALSE)) ->  | V196: 192
I197: 193 | J197: =IF(HLOOKUP($I197,'Mapping Calculation'!$C$3:$GU$4,-('Mapping Calculation'!$A$4-'Mapping Calculation'!$A$3)+1,FALSE)="Libre","",HLOOKUP($I197,'Mapping Calculation'!$C$3:$GU$4,-('Mapping Calculation'!$A$4-'Mapping Calculation'!$A$3)+1,FALSE)) ->  | K197: =IF(HLOOKUP($I197,'Mapping Calculation'!$C$57:$GU$58,-('Mapping Calculation'!$A$58-'Mapping Calculation'!$A$57)+1,FALSE)="Libre","",HLOOKUP($I197,'Mapping Calculation'!$C$57:$GU$58,-('Mapping Calculation'!$A$58-'Mapping Calculation'!$A$57)+1,FALSE)) ->  | V197: 193
I198: 194 | J198: =IF(HLOOKUP($I198,'Mapping Calculation'!$C$3:$GU$4,-('Mapping Calculation'!$A$4-'Mapping Calculation'!$A$3)+1,FALSE)="Libre","",HLOOKUP($I198,'Mapping Calculation'!$C$3:$GU$4,-('Mapping Calculation'!$A$4-'Mapping Calculation'!$A$3)+1,FALSE)) ->  | K198: =IF(HLOOKUP($I198,'Mapping Calculation'!$C$57:$GU$58,-('Mapping Calculation'!$A$58-'Mapping Calculation'!$A$57)+1,FALSE)="Libre","",HLOOKUP($I198,'Mapping Calculation'!$C$57:$GU$58,-('Mapping Calculation'!$A$58-'Mapping Calculation'!$A$57)+1,FALSE)) ->  | V198: =I198 -> 194
I199: =I198+1 -> 195 | J199: =IF(HLOOKUP($I199,'Mapping Calculation'!$C$3:$GU$4,-('Mapping Calculation'!$A$4-'Mapping Calculation'!$A$3)+1,FALSE)="Libre","",HLOOKUP($I199,'Mapping Calculation'!$C$3:$GU$4,-('Mapping Calculation'!$A$4-'Mapping Calculation'!$A$3)+1,FALSE)) ->  | K199: =IF(HLOOKUP($I199,'Mapping Calculation'!$C$57:$GU$58,-('Mapping Calculation'!$A$58-'Mapping Calculation'!$A$57)+1,FALSE)="Libre","",HLOOKUP($I199,'Mapping Calculation'!$C$57:$GU$58,-('Mapping Calculation'!$A$58-'Mapping Calculation'!$A$57)+1,FALSE)) ->  | V199: 195
I200: 196 | J200: =IF(HLOOKUP($I200,'Mapping Calculation'!$C$3:$GU$4,-('Mapping Calculation'!$A$4-'Mapping Calculation'!$A$3)+1,FALSE)="Libre","",HLOOKUP($I200,'Mapping Calculation'!$C$3:$GU$4,-('Mapping Calculation'!$A$4-'Mapping Calculation'!$A$3)+1,FALSE)) ->  | K200: =IF(HLOOKUP($I200,'Mapping Calculation'!$C$57:$GU$58,-('Mapping Calculation'!$A$58-'Mapping Calculation'!$A$57)+1,FALSE)="Libre","",HLOOKUP($I200,'Mapping Calculation'!$C$57:$GU$58,-('Mapping Calculation'!$A$58-'Mapping Calculation'!$A$57)+1,FALSE)) ->  | V200: 196
I201: 197 | J201: =IF(HLOOKUP($I201,'Mapping Calculation'!$C$3:$GU$4,-('Mapping Calculation'!$A$4-'Mapping Calculation'!$A$3)+1,FALSE)="Libre","",HLOOKUP($I201,'Mapping Calculation'!$C$3:$GU$4,-('Mapping Calculation'!$A$4-'Mapping Calculation'!$A$3)+1,FALSE)) ->  | K201: =IF(HLOOKUP($I201,'Mapping Calculation'!$C$57:$GU$58,-('Mapping Calculation'!$A$58-'Mapping Calculation'!$A$57)+1,FALSE)="Libre","",HLOOKUP($I201,'Mapping Calculation'!$C$57:$GU$58,-('Mapping Calculation'!$A$58-'Mapping Calculation'!$A$57)+1,FALSE)) ->  | V201: 197
... 4 more rows

Sheet Données Générales (hidden)
A1: =Mapping!E78 -> Ontario | L1: Légende de couleur | AA1: Crédit d’impôt pour dividendes - CFFP (usherbrooke.ca) | AN1: Tableau P4 - Paliers d'imposition - Québec | Raymond Chabot Grant Thornton | BH1: Federal | BR1: Alberta | CB1: British Columbia | CL1: Prince Edward Island | CV1: Manitoba | DF1: New Brunswick | DP1: Nova Scotia | DZ1: Nunavut | EJ1: Ontario | ET1: Quebec | EX1: Abattement du QC : | EY1: 0.165 | FD1: Saskatchewan | FN1: Newfoundland and Labrador | FX1: Northwest Territories | GH1: Yukon
B2: ="Table d'imposition particulier - " & A1 & " (Revenus d'emploi, d'intérêts, d'entreprise et autres revenus)" -> Table d'imposition particulier - Ontario (Revenus d'emploi, d'intérêts, d'entreprise et autres revenus) | L2: À remplir | BH2: Fédéral | BR2: Alberta | CB2: Colombie-Britannique | CL2: Île-du-Prince-Édouard | CV2: Manitoba | DF2: Nouveau-Brunswick | DP2: Nouvelle-Écosse | DZ2: Nunavut | EJ2: Ontario | ET2: Québec | FD2: Saskatchewan | FN2: Terre-Neuve-et-Labrador | FX2: Territoires du Nord-Ouest | GH2: Yukon
B3: Tranche de Revenu | D3: Taux impôt | G3: Impôt | L3: Ne pas remplir | BT3: Taux impôt | BW3: Impôt | CD3: Taux impôt | CG3: Impôt | CN3: Taux impôt | CQ3: Impôt | CX3: Taux impôt | DA3: Impôt | DH3: Taux impôt | DK3: Impôt | DR3: Taux impôt | DU3: Impôt | EB3: Taux impôt | EE3: Impôt | EL3: Taux impôt | EO3: Impôt | EV3: Taux impôt | EY3: Impôt | FF3: Taux impôt | FI3: Impôt | FP3: Taux impôt | FS3: Impôt | FZ3: Taux impôt | GC3: Impôt | GJ3: Taux impôt | GM3: Impôt
H4: Cumulatif du pallier précédent | I4: Taux marginal dividendes | L4: À remplir si nécessaire | BH4: ="Palier d'imposition " & BH2 -> Palier d'imposition Fédéral | BY4: Taux marginal dividendes | CI4: Taux marginal dividendes | CS4: Taux marginal dividendes | DC4: Taux marginal dividendes | DM4: Taux marginal dividendes | DW4: Taux marginal dividendes | EG4: Taux marginal dividendes | EQ4: Taux marginal dividendes | FA4: Taux marginal dividendes | FK4: Taux marginal dividendes | FU4: Taux marginal dividendes | GE4: Taux marginal dividendes | GO4: Taux marginal dividendes
B5: min | C5: max | D5: Fédéral | E5: Provincial | F5: Combiné | G5: Total du palier | I5: Div. ord. | J5: Div. dét. | L5: Liste déroulante | BH5: min | BI5: max | BJ5: Fédéral | BR5: min | BS5: max | BT5: Fédéral | BU5: Provincial | BV5: Combiné | BW5: Total du palier | BX5: Cumulatif du pallier précédent | BY5: Div. ord. | BZ5: Div. dét. | CB5: min | CC5: max | CD5: Fédéral | CE5: Provincial | CF5: Combiné | CG5: Total du palier | CH5: Cumulatif du pallier précédent | CI5: Div. ord. | CJ5: Div. dét. | CL5: min | CM5: max | CN5: Fédéral | CO5: Provincial | CP5: Combiné | CQ5: Total du palier | CR5: Cumulatif du pallier précédent | CS5: Div. ord. | CT5: Div. dét. | CV5: min | CW5: max | CX5: Fédéral | CY5: Provincial | CZ5: Combiné | DA5: Total du palier | DB5: Cumulatif du pallier précédent | DC5: Div. ord. | DD5: Div. dét. | DF5: min | DG5: max | DH5: Fédéral | DI5: Provincial | DJ5: Combiné | DK5: Total du palier | DL5: Cumulatif du pallier précédent | DM5: Div. ord. | DN5: Div. dét. | DP5: min | DQ5: max | DR5: Fédéral | DS5: Provincial | DT5: Combiné | DU5: Total du palier | DV5: Cumulatif du pallier précédent | DW5: Div. ord. | DX5: Div. dét. | DZ5: min | EA5: max | EB5: Fédéral | EC5: Provincial | ED5: Combiné | EE5: Total du palier | EF5: Cumulatif du pallier précédent | EG5: Div. ord. | EH5: Div. dét. | EJ5: min | EK5: max | EL5: Fédéral | EM5: Provincial | EN5: Combiné | EO5: Total du palier | EP5: Cumulatif du pallier précédent | EQ5: Div. ord. | ER5: Div. dét. | ET5: min | EU5: max | EV5: Fédéral | EW5: Provincial | EX5: Combiné | EY5: Total du palier | EZ5: Cumulatif du pallier précédent | FA5: Div. ord. | FB5: Div. dét. | FD5: min | FE5: max | FF5: Fédéral | FG5: Provincial | FH5: Combiné | FI5: Total du palier | FJ5: Cumulatif du pallier précédent | FK5: Div. ord. | FL5: Div. dét. | FN5: min | FO5: max | FP5: Fédéral | FQ5: Provincial | FR5: Combiné | FS5: Total du palier | FT5: Cumulatif du pallier précédent | FU5: Div. ord. | FV5: Div. dét. | FX5: min | FY5: max | FZ5: Fédéral | GA5: Provincial | GB5: Combiné | GC5: Total du palier | GD5: Cumulatif du pallier précédent | GE5: Div. ord. | GF5: Div. dét. | GH5: min | GI5: max | GJ5: Fédéral | GK5: Provincial | GL5: Combiné | GM5: Total du palier | GN5: Cumulatif du pallier précédent | GO5: Div. ord. | GP5: Div. dét.
B6: =IF($A$1=$BR$2,BR6,0)+IF($A$1=$CB$2,CB6,0)+IF($A$1=$CL$2,CL6,0)+IF($A$1=$CV$2,CV6,0)+IF($A$1=$DF$2,DF6,0)+IF($A$1=$DP$2,DP6,0)+IF($A$1=$DZ$2,DZ6,0)+IF($A$1=$EJ$2,EJ6,0)+IF($A$1=$ET$2,ET6,0)+IF($A$1=$FD$2,FD6,0)+IF($A$1=$FN$2,FN6,0)+IF($A$1=$FX$2,FX6,0)+IF($A$1=$GH$2,GH6,0) -> 0 | C6: =IF($A$1=$BR$2,BS6,0)+IF($A$1=$CB$2,CC6,0)+IF($A$1=$CL$2,CM6,0)+IF($A$1=$CV$2,CW6,0)+IF($A$1=$DF$2,DG6,0)+IF($A$1=$DP$2,DQ6,0)+IF($A$1=$DZ$2,EA6,0)+IF($A$1=$EJ$2,EK6,0)+IF($A$1=$ET$2,EU6,0)+IF($A$1=$FD$2,FE6,0)+IF($A$1=$FN$2,FO6,0)+IF($A$1=$FX$2,FY6,0)+IF($A$1=$GH$2,GI6,0) -> 12747 | D6: =IF($A$1=$BR$2,BT6,0)+IF($A$1=$CB$2,CD6,0)+IF($A$1=$CL$2,CN6,0)+IF($A$1=$CV$2,CX6,0)+IF($A$1=$DF$2,DH6,0)+IF($A$1=$DP$2,DR6,0)+IF($A$1=$DZ$2,EB6,0)+IF($A$1=$EJ$2,EL6,0)+IF($A$1=$ET$2,EV6,0)+IF($A$1=$FD$2,FF6,0)+IF($A$1=$FN$2,FP6,0)+IF($A$1=$FX$2,FZ6,0)+IF($A$1=$GH$2,GJ6,0) -> 0 | E6: 0 | F6: 0 | G6: 0 | H6: 0 | I6: 0 | J6: 0 | BH6: 0 | BI6: 16129 | BJ6: 0 | BK6: Rajustement de montants en fonction de l’indexation pour l’impôt des particuliers et les prestations - Canada.ca | BR6: 0 | BS6: 16129 | BT6: =IF(BR6="",0,VLOOKUP(BR6,$BH$6:$BJ$23,3,TRUE)) -> 0 | BU6: =IF(BR6="",0,VLOOKUP(BR6,BR$52:BT$61,3,TRUE)) -> 0 | BV6: =BT6+BU6 -> 0 | BW6: =IF(BS6>0,(BS6-BR6)*BV6,0) -> 0 | BX6: =BW6 -> 0 | BY6: 0 | BZ6: 0 | CB6: 0 | CC6: 12934 | CD6: =IF(CB6="",0,VLOOKUP(CB6,$BH$6:$BJ$23,3,TRUE)) -> 0 | CE6: =IF(CB6="",0,VLOOKUP(CB6,CB$52:CD$61,3,TRUE)) -> 0 | CF6: =CD6+CE6 -> 0 | CG6: =IF(CC6>0,(CC6-CB6)*CF6,0) -> 0 | CH6: =CG6 -> 0 | CI6: 0 | CJ6: 0 | CL6: 0 | CM6: 14250 | CN6: =IF(CL6="",0,VLOOKUP(CL6,$BH$6:$BJ$23,3,TRUE)) -> 0 | CO6: =IF(CL6="",0,VLOOKUP(CL6,CL$52:CN$61,3,TRUE)) -> 0 | CP6: =CN6+CO6 -> 0 | CQ6: =IF(CM6>0,(CM6-CL6)*CP6,0) -> 0 | CR6: =CQ6 -> 0 | CS6: 0 | CT6: 0 | CV6: 0 | CW6: 15969 | CX6: =IF(CV6="",0,VLOOKUP(CV6,$BH$6:$BJ$23,3,TRUE)) -> 0 | CY6: =IF(CV6="",0,VLOOKUP(CV6,CV$52:CX$61,3,TRUE)) -> 0 | CZ6: =CX6+CY6 -> 0 | DA6: =IF(CW6>0,(CW6-CV6)*CZ6,0) -> 0 | DB6: =DA6 -> 0 | DC6: 0 | DD6: 0 | DF6: 0 | DG6: 13396 | DH6: =IF(DF6="",0,VLOOKUP(DF6,$BH$6:$BJ$23,3,TRUE)) -> 0 | DI6: =IF(DF6="",0,VLOOKUP(DF6,DF$52:DH$61,3,TRUE)) -> 0 | DJ6: =DH6+DI6 -> 0 | DK6: =IF(DG6>0,(DG6-DF6)*DJ6,0) -> 0 | DL6: =DK6 -> 0 | DM6: 0 | DN6: 0 | DP6: 0 | DQ6: 11744 | DR6: =IF(DP6="",0,VLOOKUP(DP6,$BH$6:$BJ$23,3,TRUE)) -> 0 | DS6: =IF(DP6="",0,VLOOKUP(DP6,DP$52:DR$61,3,TRUE)) -> 0 | DT6: =DR6+DS6 -> 0 | DU6: =IF(DQ6>0,(DQ6-DP6)*DT6,0) -> 0 | DV6: =DU6 -> 0 | DW6: 0 | DX6: 0 | DZ6: 0 | EA6: 16129 | EB6: =IF(DZ6="",0,VLOOKUP(DZ6,$BH$6:$BJ$23,3,TRUE)) -> 0 | EC6: =IF(DZ6="",0,VLOOKUP(DZ6,DZ$52:EB$61,3,TRUE)) -> 0 | ED6: =EB6+EC6 -> 0 | EE6: =IF(EA6>0,(EA6-DZ6)*ED6,0) -> 0 | EF6: =EE6 -> 0 | EG6: 0 | EH6: 0 | EJ6: 0 | EK6: 12747 | EL6: =IF(EJ6="",0,VLOOKUP(EJ6,$BH$6:$BJ$23,3,TRUE)) -> 0 | EM6: =IF(EJ6="",0,VLOOKUP(EJ6,EJ$52:EL$61,3,TRUE)) -> 0 | EN6: =EL6+EM6 -> 0 | EO6: =IF(EK6>0,(EK6-EJ6)*EN6,0) -> 0 | EP6: =EO6 -> 0 | EQ6: 0 | ER6: 0 | ET6: 0 | EU6: 16129 | EV6: =IF(ET6="",0,VLOOKUP(ET6,$BH$6:$BJ$23,3,TRUE)*(1-$EY$1)) -> 0 | EW6: =IF(ET6="",0,VLOOKUP(ET6,ET$52:EV$61,3,TRUE)) -> 0 | EX6: =EV6+EW6 -> 0 | EY6: =IF(EU6>0,(EU6-ET6)*EX6,0) -> 0 | EZ6: =EY6 -> 0 | FA6: 0 | FB6: 0 | FD6: 0 | FE6: 16129 | FF6: =IF(FD6="",0,VLOOKUP(FD6,$BH$6:$BJ$23,3,TRUE)) -> 0 | FG6: =IF(FD6="",0,VLOOKUP(FD6,FD$52:FF$61,3,TRUE)) -> 0 | FH6: =FF6+FG6 -> 0 | FI6: =IF(FE6>0,(FE6-FD6)*FH6,0) -> 0 | FJ6: =FI6 -> 0 | FK6: 0 | FL6: 0 | FN6: 0 | FO6: 11067 | FP6: =IF(FN6="",0,VLOOKUP(FN6,$BH$6:$BJ$23,3,TRUE)) -> 0 | FQ6: =IF(FN6="",0,VLOOKUP(FN6,FN$52:FP$61,3,TRUE)) -> 0 | FR6: =FP6+FQ6 -> 0 | FS6: =IF(FO6>0,(FO6-FN6)*FR6,0) -> 0 | FT6: =FS6 -> 0 | FU6: 0 | FV6: 0 | FX6: 0 | FY6: 16129 | FZ6: =IF(FX6="",0,VLOOKUP(FX6,$BH$6:$BJ$23,3,TRUE)) -> 0 | GA6: =IF(FX6="",0,VLOOKUP(FX6,FX$52:FZ$61,3,TRUE)) -> 0 | GB6: =FZ6+GA6 -> 0 | GC6: =IF(FY6>0,(FY6-FX6)*GB6,0) -> 0 | GD6: =GC6 -> 0 | GE6: 0 | GF6: 0 | GH6: 0 | GI6: 16129 | GJ6: =IF(GH6="",0,VLOOKUP(GH6,$BH$6:$BJ$23,3,TRUE)) -> 0 | GK6: =IF(GH6="",0,VLOOKUP(GH6,GH$52:GJ$61,3,TRUE)) -> 0 | GL6: =GJ6+GK6 -> 0 | GM6: =IF(GI6>0,(GI6-GH6)*GL6,0) -> 0 | GN6: =GM6 -> 0 | GO6: 0 | GP6: 0
B7: =IF(C6=0,"",IF($A$1=$BR$2,BR7,0)+IF($A$1=$CB$2,CB7,0)+IF($A$1=$CL$2,CL7,0)+IF($A$1=$CV$2,CV7,0)+IF($A$1=$DF$2,DF7,0)+IF($A$1=$DP$2,DP7,0)+IF($A$1=$DZ$2,DZ7,0)+IF($A$1=$EJ$2,EJ7,0)+IF($A$1=$ET$2,ET7,0)+IF($A$1=$FD$2,FD7,0)+IF($A$1=$FN$2,FN7,0)+IF($A$1=$FX$2,FX7,0)+IF($A$1=$GH$2,GH7,0)) -> 12747 | C7: =IF($A$1=$BR$2,BS7,0)+IF($A$1=$CB$2,CC7,0)+IF($A$1=$CL$2,CM7,0)+IF($A$1=$CV$2,CW7,0)+IF($A$1=$DF$2,DG7,0)+IF($A$1=$DP$2,DQ7,0)+IF($A$1=$DZ$2,EA7,0)+IF($A$1=$EJ$2,EK7,0)+IF($A$1=$ET$2,EU7,0)+IF($A$1=$FD$2,FE7,0)+IF($A$1=$FN$2,FO7,0)+IF($A$1=$FX$2,FY7,0)+IF($A$1=$GH$2,GI7,0) -> 16129 | D7: 0 | E7: =IF($A$1=$BR$2,BU7,0)+IF($A$1=$CB$2,CE7,0)+IF($A$1=$CL$2,CO7,0)+IF($A$1=$CV$2,CY7,0)+IF($A$1=$DF$2,DI7,0)+IF($A$1=$DP$2,DS7,0)+IF($A$1=$DZ$2,EC7,0)+IF($A$1=$EJ$2,EM7,0)+IF($A$1=$ET$2,EW7,0)+IF($A$1=$FD$2,FG7,0)+IF($A$1=$FN$2,FQ7,0)+IF($A$1=$FX$2,GA7,0)+IF($A$1=$GH$2,GK7,0) -> 0.0505 | F7: 0 | G7: 0 | H7: 0 | I7: 0 | J7: 0 | K7: Impôt supplémentaire quand pas droit au crédit de base | BH7: =BI6 -> 16129 | BI7: 57375 | BJ7: 0.15 | BR7: =IF(BS6="","",BS6) -> 16129 | BS7: 22323 | BT7: 0.15 | BU7: 0 | BV7: =BT7+BU7 -> 0.15 | BW7: =IF(BS7>0,(BS7-BR7)*BV7,0) -> 929.1 | BX7: =BX6+BW6 -> 0 | BY7: 0.0687 | BZ7: -0.0003 | CB7: =IF(CC6="","",CC6) -> 12934 | CC7: 16129 | CD7: 0 | CE7: 0.0506 | CF7: 0 | CG7: =IF(CC7>0,(CC7-CB7)*CF7,0) -> 0 | CH7: =CH6+CG6 -> 0 | CI7: 0 | CJ7: 0 | CL7: =IF(CM6="","",CM6) -> 14250 | CM7: 16129 | CN7: 0 | CO7: 0.095 | CP7: 0 | CQ7: =IF(CM7>0,(CM7-CL7)*CP7,0) -> 0 | CR7: =CR6+CQ6 -> 0 | CS7: 0 | CT7: 0 | CV7: =IF(CW6="","",CW6) -> 15969 | CW7: 16129 | CX7: 0 | CY7: 0.108 | CZ7: =CX7+CY7 -> 0.108 | DA7: =IF(CW7>0,(CW7-CV7)*CZ7,0) -> 17.28 | DB7: =DB6+DA6 -> 0 | DC7: 0 | DD7: 0 | DF7: =IF(DG6="","",DG6) -> 13396 | DG7: 16129 | DH7: 0 | DI7: 0.094 | DJ7: 0 | DK7: =IF(DG7>0,(DG7-DF7)*DJ7,0) -> 0 | DL7: =DL6+DK6 -> 0 | DM7: 0 | DN7: 0 | DP7: =IF(DQ6="","",DQ6) -> 11744 | DQ7: 15296 | DR7: 0 | DS7: 0.0879 | DT7: 0 | DU7: =IF(DQ7>0,(DQ7-DP7)*DT7,0) -> 0 | DV7: =DV6+DU6 -> 0 | DW7: 0 | DX7: 0 | DZ7: =IF(EA6="","",EA6) -> 16129 | EA7: 19274 | EB7: 0.15 | EC7: 0 | ED7: =EB7+EC7 -> 0.15 | EE7: =IF(EA7>0,(EA7-DZ7)*ED7,0) -> 471.75 | EF7: =EF6+EE6 -> 0 | EG7: 0.0687 | EH7: -0.0003 | EJ7: =IF(EK6="","",EK6) -> 12747 | EK7: 16129 | EL7: 0 | EM7: 0.0505 | EN7: 0 | EO7: =IF(EK7>0,(EK7-EJ7)*EN7,0) -> 0 | EP7: =EP6+EO6 -> 0 | EQ7: 0 | ER7: 0 | ET7: =IF(EU6="","",EU6) -> 16129 | EU7: 18571 | EV7: 0.12525 | EW7: 0 | EX7: =EV7+EW7 -> 0.12525 | EY7: =IF(EU7>0,(EU7-ET7)*EX7,0) -> 305.8605 | EZ7: =EZ6+EY6 -> 0 | FA7: 0.0574 | FB7: -0.0003 | FD7: =IF(FE6="","",FE6) -> 16129 | FE7: 18991 | FF7: 0.15 | FG7: 0 | FH7: 0.15 | FI7: 429.3 | FJ7: =FJ6+FI6 -> 0 | FK7: 0.0687 | FL7: -0.0003 | FN7: =IF(FO6="","",FO6) -> 11067 | FO7: 16129 | FP7: 0 | FQ7: 0.087 | FR7: 0 | FS7: =IF(FO7>0,(FO7-FN7)*FR7,0) -> 0 | FT7: =FT6+FS6 -> 0 | FU7: 0 | FV7: 0 | FX7: =IF(FY6="","",FY6) -> 16129 | FY7: 17842 | FZ7: 0.15 | GA7: 0 | GB7: =FZ7+GA7 -> 0.15 | GC7: =IF(FY7>0,(FY7-FX7)*GB7,0) -> 256.95 | GD7: =GD6+GC6 -> 0 | GE7: 0.0687 | GF7: -0.0003 | GH7: =IF(GI6="","",GI6) -> 16129 | GI7: 57375 | GJ7: =IF(GH7="",0,VLOOKUP(GH7,$BH$6:$BJ$23,3,TRUE)) -> 0.15 | GK7: 0.064 | GL7: =GJ7+GK7 -> 0.214 | GM7: =IF(GI7>0,(GI7-GH7)*GL7,0) -> 8826.644 | GN7: =GN6+GM6 -> 0 | GO7: =IF(GL7>0,1*(1+GK$30)*GL7-1*(1+GK$30)*GN$30,0) -> 0.13454885 | GP7: =IF(GL7>0,1*(1+GK$29)*GL7-1*(1+GK$29)*GN$29,0) -> -0.07782924
B8: =IF(C7=0,"",IF($A$1=$BR$2,BR8,0)+IF($A$1=$CB$2,CB8,0)+IF($A$1=$CL$2,CL8,0)+IF($A$1=$CV$2,CV8,0)+IF($A$1=$DF$2,DF8,0)+IF($A$1=$DP$2,DP8,0)+IF($A$1=$DZ$2,DZ8,0)+IF($A$1=$EJ$2,EJ8,0)+IF($A$1=$ET$2,ET8,0)+IF($A$1=$FD$2,FD8,0)+IF($A$1=$FN$2,FN8,0)+IF($A$1=$FX$2,FX8,0)+IF($A$1=$GH$2,GH8,0)) -> 16129 | C8: 18574 | D8: 0.15 | E8: 0.0505 | F8: 0.15 | G8: 366.75 | H8: 0 | I8: 0.0687 | J8: -0.0003 | K8: Fédéral | BH8: 57375 | BI8: 114750 | BJ8: 0.205 | BR8: =IF(BS7="","",BS7) -> 22323 | BS8: 57375 | BT8: 0.15 | BU8: 0.1 | BV8: 0.25 | BW8: 8763 | BX8: =BX7+BW7 -> 929.1 | BY8: =IF(BV8>0,1*(1+BU$30)*BV8-1*(1+BU$30)*BX$30,0) -> 0.15858385 | BZ8: =IF(BV8>0,1*(1+BU$29)*BV8-1*(1+BU$29)*BX$29,0) -> 0.02567076 | CB8: =IF(CC7="","",CC7) -> 16129 | CC8: 24045 | CD8: 0.15 | CE8: 0.0506 | CF8: 0.15 | CG8: 1187.4 | CH8: =CH7+CG7 -> 0 | CI8: 0.0687 | CJ8: -0.0003 | CL8: =IF(CM7="","",CM7) -> 16129 | CM8: 17394 | CN8: 0.15 | CO8: 0.095 | CP8: 0.15 | CQ8: 189.75 | CR8: =CR7+CQ7 -> 0 | CS8: 0.0687 | CT8: -0.0003 | CV8: =IF(CW7="","",CW7) -> 16129 | CW8: 16545 | CX8: 0.15 | CY8: 0.108 | CZ8: 0.15 | DA8: 62.4 | DB8: =DB7+DA7 -> 17.28 | DC8: 0.0687 | DD8: -3e-05 | DF8: =IF(DG7="","",DG7) -> 16129 | DG8: 21918 | DH8: 0.15 | DI8: 0.094 | DJ8: 0.15 | DK8: 868.35 | DL8: =DL7+DK7 -> 0 | DM8: 0.0687 | DN8: -3e-05 | DP8: =IF(DQ7="","",DQ7) -> 15296 | DQ8: 15465 | DR8: =IF(DP8="",0,VLOOKUP(DP8,$BH$6:$BJ$23,3,TRUE)) -> 0 | DS8: 0.0879 | DT8: =DR8+DS8 -> 0.0879 | DU8: 14.8551 | DV8: =DV7+DU7 -> 0 | DW8: 0.0667 | DX8: -0.0008 | DZ8: =IF(EA7="","",EA7) -> 19274 | EA8: 54707 | EB8: 0.15 | EC8: 0.04 | ED8: 0.19 | EE8: 6732.27 | EF8: =EF7+EE7 -> 471.75 | EG8: =IF(ED8>0,1*(1+EC$30)*ED8-1*(1+EC$30)*EF$30,0) -> 0.08463885 | EH8: =IF(ED8>0,1*(1+EC$29)*ED8-1*(1+EC$29)*EF$29,0) -> -0.02111124 | EJ8: =IF(EK7="","",EK7) -> 16129 | EK8: 18574 | EL8: 0.15 | EM8: 0.0505 | EN8: 0.15 | EO8: 366.75 | EP8: =EP7+EO7 -> 0 | EQ8: 0.0687 | ER8: -0.0003 | ET8: =IF(EU7="","",EU7) -> 18571 | EU8: 53255 | EV8: 0.12525 | EW8: 0.14 | EX8: 0.26525 | EY8: 9199.931 | EZ8: =EZ7+EY7 -> 305.8605 | FA8: =IF(EX8>0,1*(1+EW$30)*EX8-1*(1+EW$30)*EZ$30,0) -> 0.1789959647 | FB8: =IF(EX8>0,1*(1+EW$29)*EX8-1*(1+EW$29)*EZ$29,0) -> 0.0315118446 | FD8: 18991 | FE8: 53463 | FF8: 0.15 | FG8: 0.105 | FH8: 0.255 | FI8: 8790.36 | FJ8: 429.3 | FK8: =IF(FH8>0,1*(1+FG$30)*FH8-1*(1+FG$30)*FJ$30,0) -> 0.15561685 | FL8: =IF(FH8>0,1*(1+FG$29)*FH8-1*(1+FG$29)*FJ$29,0) -> -0.00717324 | FN8: =IF(FO7="","",FO7) -> 16129 | FO8: 23928 | FP8: 0.15 | FQ8: 0.087 | FR8: 0.15 | FS8: 1169.85 | FT8: =FT7+FS7 -> 0 | FU8: 0.0687 | FV8: -0.0003 | FX8: =IF(FY7="","",FY7) -> 17842 | FY8: 51964 | FZ8: 0.15 | GA8: 0.059 | GB8: 0.209 | GC8: 7131.498 | GD8: =GD7+GC7 -> 256.95 | GE8: =IF(GB8>0,1*(1+GA$30)*GB8-1*(1+GA$30)*GD$30,0) -> 0.06750385 | GF8: =IF(GB8>0,1*(1+GA$29)*GB8-1*(1+GA$29)*GD$29,0) -> -0.07755324 | GH8: =IF(GI7="","",GI7) -> 57375 | GI8: 114750 | GJ8: 0.205 | GK8: 0.09 | GL8: 0.295 | GM8: 16925.625 | GN8: =GN7+GM7 -> 8826.644 | GO8: 0.22769885 | GP8: 0.03395076
B9: 18574 | C9: 24389 | D9: 0.15 | E9: 0.0505 | F9: 0.251 | G9: 1459.565 | H9: 366.75 | I9: 0.1163 | J9: -0.1369 | K9: min | L9: max | M9: taux | N9: Impôt max de plus | BH9: 114750 | BI9: 177882 | BJ9: 0.26 | BR9: 57375 | BS9: 114750 | BT9: 0.205 | BU9: 0.1 | BV9: 0.305 | BW9: 17499.375 | BX9: 9692.1 | BY9: 0.22183385 | BZ9: 0.10157076 | CB9: 24045 | CC9: 25019 | CD9: 0.15 | CE9: 0.0506 | CF9: =CD9+CE9 -> 0.2006 | CG9: 195.3844 | CH9: 1187.4 | CI9: =IF(CF9>0,1*(1+CE$30)*CF9-1*(1+CE$30)*CH$30,0) -> 0.10430385 | CJ9: =IF(CF9>0,1*(1+CE$29)*CF9-1*(1+CE$29)*CH$29,0) -> -0.09604524 | CL9: 17394 | CM9: 22499 | CN9: 0.15 | CO9: 0.095 | CP9: =CN9+CO9 -> 0.245 | CQ9: 1250.725 | CR9: 189.75 | CS9: =IF(CP9>0,1*(1+CO$30)*CP9-1*(1+CO$30)*CR$30,0) -> 0.16295385 | CT9: =IF(CP9>0,1*(1+CO$29)*CP9-1*(1+CO$29)*CR$29,0) -> -0.01407324 | CV9: 16545 | CW9: 22943 | CX9: 0.15 | CY9: 0.108 | CZ9: 0.2677 | DA9: 1712.7446 | DB9: 79.68 | DC9: =IF(CZ9>0,1*(1+CY$30)*CZ9-1*(1+CY$30)*DB$30,0) -> 0.1949986 | DD9: =IF(CZ9>0,1*(1+CY$29)*CZ9-1*(1+CY$29)*DB$29,0) -> 0.05175276 | DF9: 21918 | DG9: 48654 | DH9: 0.15 | DI9: 0.094 | DJ9: 0.274 | DK9: 7325.664 | DL9: 868.35 | DM9: =IF(DJ9>0,1*(1+DI$30)*DJ9-1*(1+DI$30)*DL$30,0) -> 0.17962885 | DN9: =IF(DJ9>0,1*(1+DI$29)*DJ9-1*(1+DI$29)*DL$29,0) -> -0.02235324 | DP9: 15465 | DQ9: 16129 | DR9: 0 | DS9: 0.0879 | DT9: 0.1379 | DU9: 91.5656 | DV9: 14.8551 | DW9: 0.1242 | DX9: 0.0682 | DZ9: 54707 | EA9: 57375 | EB9: 0.15 | EC9: 0.07 | ED9: 0.22 | EE9: 586.96 | EF9: 7204.02 | EG9: 0.11913885 | EH9: 0.02028876 | EJ9: 18574 | EK9: 24389 | EL9: 0.15 | EM9: 0.0505 | EN9: 0.251 | EO9: 1459.565 | EP9: 366.75 | EQ9: 0.1163 | ER9: -0.1369 | ET9: 53255 | EU9: 57375 | EV9: 0.12525 | EW9: 0.19 | EX9: 0.31525 | EY9: 1298.83 | EZ9: 9505.7915 | FA9: =IF(EX9>0,1*(1+EW$30)*EX9-1*(1+EW$30)*EZ$30,0) -> 0.2364959648 | FB9: =IF(EX9>0,1*(1+EW$29)*EX9-1*(1+EW$29)*EZ$29,0) -> 0.1005118446 | FD9: 53463 | FE9: 57375 | FF9: 0.15 | FG9: 0.125 | FH9: 0.275 | FI9: 1075.8 | FJ9: 9219.66 | FK9: 0.17861685 | FL9: 0.02042676 | FN9: 23928 | FO9: 30922 | FP9: 0.15 | FQ9: 0.087 | FR9: 0.397 | FS9: 2776.618 | FT9: 1169.85 | FU9: =IF(FR9>0,1*(1+FQ$30)*FR9-1*(1+FQ$30)*FT$30,0) -> 0.31590385 | FV9: =IF(FR9>0,1*(1+FQ$29)*FR9-1*(1+FQ$29)*FT$29,0) -> 0.25364676 | FX9: 51964 | FY9: 57375 | FZ9: 0.15 | GA9: 0.086 | GB9: 0.236 | GC9: 1276.996 | GD9: 7388.448 | GE9: 0.09855385 | GF9: -0.04029324 | GH9: 114750 | GI9: 177882 | GJ9: 0.26 | GK9: 0.109 | GL9: 0.369 | GM9: 23295.708 | GN9: 25752.269 | GO9: 0.31279885 | GP9: 0.13607076
B10: 24389 | C10: 52886 | D10: 0.15 | E10: 0.0505 | F10: 0.2005 | G10: 5713.6485 | H10: 1826.315 | I10: 0.0923864 | J10: -0.06858324 | K10: 0 | L10: =BI6 -> 16129 | M10: =IF($A$1=$ET$2,BJ7*(1-$EY$1),BJ7) -> 0.15 | N10: =L10*M10 -> 2419.35 | BH10: 177882 | BI10: 253414 | BJ10: 0.29 | BR10: 114750 | BS10: 151234 | BT10: 0.26 | BU10: 0.1 | BV10: 0.36 | BW10: 13134.24 | BX10: 27191.475 | BY10: 0.28508385 | BZ10: 0.17747076 | CB10: 25019 | CC10: 40814 | CD10: 0.15 | CE10: 0.0506 | CF10: 0.2362 | CG10: 3730.779 | CH10: 1382.7844 | CI10: 0.14524385 | CJ10: -0.04691724 | CL10: 22499 | CM10: 29499 | CN10: 0.15 | CO10: 0.095 | CP10: 0.295 | CQ10: 2065 | CR10: 1440.475 | CS10: 0.22045385 | CT10: 0.05492676 | CV10: 22943 | CW10: 47564 | CX10: 0.15 | CY10: 0.108 | CZ10: =CX10+CY10 -> 0.258 | DA10: 6352.218 | DB10: 1792.4246 | DC10: 0.1838436 | DD10: 0.03836676 | DF10: 48654 | DG10: 51306 | DH10: 0.15 | DI10: 0.094 | DJ10: =DH10+DI10 -> 0.244 | DK10: 647.088 | DL10: 8194.014 | DM10: 0.14512885 | DN10: -0.06375324 | DP10: 16129 | DQ10: 16192 | DR10: 0.15 | DS10: 0.0879 | DT10: 0.2879 | DU10: 18.1377 | DV10: 106.4207 | DW10: =IF(DT10>0,1*(1+DS$30)*DT10-1*(1+DS$30)*DV$30,0) -> 0.19285385 | DX10: =IF(DT10>0,1*(1+DS$29)*DT10-1*(1+DS$29)*DV$29,0) -> 0.06789876 | DZ10: 57375 | EA10: 109413 | EB10: 0.205 | EC10: 0.07 | ED10: 0.275 | EE10: 14310.45 | EF10: 7790.98 | EG10: 0.18238885 | EH10: 0.09618876 | EJ10: 24389 | EK10: 52886 | EL10: 0.15 | EM10: 0.0505 | EN10: =(1+IF(EJ10>=$EO$25,$EN$25,0)+IF(EJ10>=$EO$26,$EN$26,0))*EM10+EL10 -> 0.2005 | EO10: 5713.6485 | EP10: 1826.315 | EQ10: =IF(EN10>0,1*(1+EM$30)*EN10-1*(1+EM$30)*EP$30,0) -> 0.0923864 | ER10: =IF(EN10>0,1*(1+EM$29)*EN10-1*(1+EM$29)*EP$29,0) -> -0.06858324 | ET10: 57375 | EU10: 106495 | EV10: 0.171175 | EW10: 0.19 | EX10: 0.361175 | EY10: 17740.916 | EZ10: 10804.6215 | FA10: 0.2893097148 | FB10: =IF(EX10>0,1*(1+EW$29)*EX10-1*(1+EW$29)*EZ$29,0) -> 0.1638883446 | FD10: 57375 | FE10: 114750 | FF10: 0.205 | FG10: 0.125 | FH10: 0.33 | FI10: 18933.75 | FJ10: 10295.46 | FK10: 0.24186685 | FL10: 0.09632676 | FN10: 30922 | FO10: 44192 | FP10: 0.15 | FQ10: 0.087 | FR10: =FP10+FQ10 -> 0.237 | FS10: 3144.99 | FT10: 3946.468 | FU10: 0.13190385 | FV10: 0.03284676 | FX10: 57375 | FY10: 103930 | FZ10: 0.205 | GA10: 0.086 | GB10: 0.291 | GC10: 13547.505 | GD10: 8665.444 | GE10: 0.16180385 | GF10: 0.03560676 | GH10: 177882 | GI10: 253414 | GJ10: 0.29 | GK10: 0.128 | GL10: 0.4225 | GM10: 31912.27 | GN10: 49047.977 | GO10: 0.37432385 | GP10: 0.20990076
B11: 52886 | C11: 57375 | D11: 0.15 | E11: 0.0915 | F11: 0.2415 | G11: 1084.0935 | H11: 7539.9635 | I11: 0.1395364 | J11: -0.01200324 | K11: Provincial | BH11: 253414 | BJ11: 0.33 | BR11: 151234 | BS11: 177882 | BT11: 0.26 | BU11: 0.12 | BV11: 0.38 | BW11: 10126.24 | BX11: 40325.715 | BY11: 0.30808385 | BZ11: 0.20507076 | CB11: 40814 | CC11: 49279 | CD11: 0.15 | CE11: 0.0506 | CF11: 0.2006 | CG11: 1698.079 | CH11: 5113.5634 | CI11: 0.10430385 | CJ11: -0.09604524 | CL11: 29499 | CM11: 33328 | CN11: 0.15 | CO11: 0.095 | CP11: 0.245 | CQ11: 938.105 | CR11: 3505.475 | CS11: 0.16295385 | CT11: -0.01407324 | CV11: 47564 | CW11: 57375 | CX11: 0.15 | CY11: 0.1275 | CZ11: 0.2775 | DA11: 2722.5525 | DB11: 8144.6426 | DC11: 0.2062686 | DD11: 0.06527676 | DF11: 51306 | DG11: 57375 | DH11: 0.15 | DI11: 0.14 | DJ11: 0.29 | DK11: 1760.01 | DL11: 8841.102 | DM11: 0.19802885 | DN11: -0.00027324 | DP11: 16192 | DQ11: 21651 | DR11: 0.15 | DS11: 0.0879 | DT11: =DR11+DS11 -> 0.2379 | DU11: 1298.6961 | DV11: 124.5584 | DW11: 0.13535385 | DX11: -0.00110124 | DZ11: 109413 | EA11: 114750 | EB11: 0.205 | EC11: 0.09 | ED11: 0.295 | EE11: 1574.415 | EF11: 22101.43 | EG11: 0.20538885 | EH11: 0.12378876 | EJ11: 52886 | EK11: 57375 | EL11: 0.15 | EM11: 0.0915 | EN11: =(1+IF(EJ11>=$EO$25,$EN$25,0)+IF(EJ11>=$EO$26,$EN$26,0))*EM11+EL11 -> 0.2415 | EO11: 1084.0935 | EP11: 7539.9635 | EQ11: 0.1395364 | ER11: -0.01200324 | ET11: 106495 | EU11: 114750 | EV11: 0.171175 | EW11: 0.24 | EX11: 0.411175 | EY11: 3394.249625 | EZ11: 28545.5375 | FA11: 0.3468097147 | FB11: 0.2328883446 | FD11: 114750 | FE11: 152750 | FF11: 0.26 | FG11: 0.125 | FH11: 0.385 | FI11: 14630 | FJ11: 29229.21 | FK11: 0.30511685 | FL11: 0.17222676 | FN11: 44192 | FO11: 57375 | FP11: 0.15 | FQ11: 0.145 | FR11: 0.295 | FS11: 3888.985 | FT11: 7091.458 | FU11: 0.19860385 | FV11: 0.11288676 | FX11: 103930 | FY11: 114750 | FZ11: 0.205 | GA11: 0.122 | GB11: 0.327 | GC11: 3538.14 | GD11: 22212.949 | GE11: 0.20320385 | GF11: 0.08528676 | GH11: 253414 | GI11: 500000 | GJ11: 0.33 | GK11: 0.128 | GL11: 0.458 | GM11: 112936.388 | GN11: 80960.247 | GO11: 0.41514885 | GP11: 0.25889076
B12: 57375 | C12: 93132 | D12: 0.205 | E12: 0.0915 | F12: 0.2965 | G12: 10601.9505 | H12: 8624.057 | I12: 0.2027864 | J12: 0.06389676 | K12: min | L12: max | M12: taux | N12: Impôt max de plus | BR12: 177882 | BS12: 181481 | BT12: 0.29 | BU12: 0.12 | BV12: 0.4132 | BW12: 1487.1068 | BX12: 50451.955 | BY12: 0.34626385 | BZ12: 0.25088676 | CB12: 49279 | CC12: 57375 | CD12: 0.15 | CE12: 0.077 | CF12: 0.227 | CG12: 1837.792 | CH12: 6811.6424 | CI12: 0.13466385 | CJ12: -0.05961324 | CL12: 33328 | CM12: 57375 | CN12: 0.15 | CO12: 0.1347 | CP12: 0.2847 | CQ12: 6846.1809 | CR12: 4443.58 | CS12: 0.20860885 | CT12: 0.04071276 | CV12: 57375 | CW12: 101200 | CX12: 0.205 | CY12: 0.1275 | CZ12: 0.3325 | DA12: 14571.8125 | DB12: 10867.1951 | DC12: 0.2695186 | DD12: 0.14117676 | DF12: 57375 | DG12: 102614 | DH12: 0.205 | DI12: 0.14 | DJ12: 0.345 | DK12: 15607.455 | DL12: 10601.112 | DM12: 0.26127885 | DN12: 0.07562676 | DP12: 21651 | DQ12: 25775 | DR12: 0.15 | DS12: 0.0879 | DT12: 0.2432 | DU12: 1002.9568 | DV12: 1423.2545 | DW12: 0.14144885 | DX12: 0.00621276 | DZ12: 114750 | EA12: 177881 | EB12: 0.26 | EC12: 0.09 | ED12: 0.35 | EE12: 22095.85 | EF12: 23675.845 | EG12: 0.26863885 | EH12: 0.19968876 | EJ12: 57375 | EK12: 93132 | EL12: 0.205 | EM12: 0.0915 | EN12: =(1+IF(EJ12>=$EO$25,$EN$25,0)+IF(EJ12>=$EO$26,$EN$26,0))*EM12+EL12 -> 0.2965 | EO12: 10601.9505 | EP12: 8624.057 | EQ12: 0.2027864 | ER12: 0.06389676 | ET12: 114750 | EU12: 129590 | EV12: 0.2171 | EW12: 0.24 | EX12: 0.4571 | EY12: 6783.364 | EZ12: 31939.78712 | FA12: 0.3996234647 | FB12: 0.2962648446 | FD12: 152750 | FE12: 177882 | FF12: 0.26 | FG12: 0.145 | FH12: 0.405 | FI12: 10178.46 | FJ12: 43859.21 | FK12: 0.32811685 | FL12: 0.19982676 | FN12: 57375 | FO12: 88382 | FP12: 0.205 | FQ12: 0.145 | FR12: 0.35 | FS12: 10852.45 | FT12: 10980.443 | FU12: 0.26185385 | FV12: 0.18878676 | FX12: 114750 | FY12: 168967 | FZ12: 0.26 | GA12: 0.122 | GB12: 0.382 | GC12: 20710.894 | GD12: 25751.089 | GE12: 0.26645385 | GF12: 0.16118676 | GH12: 500000 | GJ12: 0.33 | GK12: 0.15 | GL12: 0.48 | GM12: 0 | GN12: 193896.635 | GO12: 0.44044885 | GP12: 0.28925076
B13: 93132 | C13: 105775 | D13: 0.205 | E13: 0.0915 | F13: 0.3148 | G13: 3980.0164 | H13: 19226.0075 | I13: 0.2238314 | J13: 0.08915076 | K13: 0 | L13: =IF($A$1=$BR$2,BS52,0)+IF($A$1=$CB$2,CC52,0)+IF($A$1=$CL$2,CM52,0)+IF($A$1=$CV$2,CW52,0)+IF($A$1=$DF$2,DG52,0)+IF($A$1=$DP$2,DQ52,0)+IF($A$1=$DZ$2,EA52,0)+IF($A$1=$EJ$2,EK52,0)+IF($A$1=$ET$2,EU52,0)+IF($A$1=$FD$2,FE52,0)+IF($A$1=$FN$2,FO52,0)+IF($A$1=$FX$2,FY52,0)+IF($A$1=$GH$2,GI52,0) -> 12747 | M13: =IF($A$1=$BR$2,BT53,0)+IF($A$1=$CB$2,CD53,0)+IF($A$1=$CL$2,CN53,0)+IF($A$1=$CV$2,CX53,0)+IF($A$1=$DF$2,DH53,0)+IF($A$1=$DP$2,DR53,0)+IF($A$1=$DZ$2,EB53,0)+IF($A$1=$EJ$2,EL53,0)+IF($A$1=$ET$2,EV53,0)+IF($A$1=$FD$2,FF53,0)+IF($A$1=$FN$2,FP53,0)+IF($A$1=$FX$2,FZ53,0)+IF($A$1=$GH$2,GJ53,0) -> 0.0505 | N13: =L13*M13 -> 643.7235 | BR13: 181481 | BS13: 241974 | BT13: 0.29 | BU13: 0.13 | BV13: 0.4232 | BW13: 25600.6376 | BX13: 51939.0618 | BY13: 0.35776385 | BZ13: 0.26468676 | CB13: 57375 | CC13: 98560 | CD13: 0.205 | CE13: 0.077 | CF13: 0.282 | CG13: 11614.17 | CH13: 8649.4344 | CI13: 0.19791385 | CJ13: 0.01628676 | CL13: 57375 | CM13: 64656 | CN13: 0.205 | CO13: 0.1347 | CP13: 0.3397 | CQ13: 2473.3557 | CR13: 11289.7609 | CS13: 0.27185885 | CT13: 0.11661276 | CV13: 101200 | CW13: 114750 | CX13: 0.205 | CY13: 0.174 | CZ13: 0.379 | DA13: 5135.45 | DB13: 25439.0076 | DC13: 0.3229936 | DD13: 0.20534676 | DF13: 102614 | DG13: 114750 | DH13: 0.205 | DI13: 0.16 | DJ13: =DH13+DI13 -> 0.365 | DK13: 4429.64 | DL13: 26208.567 | DM13: 0.28427885 | DN13: 0.10322676 | DP13: 25775 | DQ13: 30507 | DR13: 0.15 | DS13: 0.0879 | DT13: 0.3048 | DU13: 1442.3136 | DV13: 2426.2113 | DW13: 0.21228885 | DX13: 0.09122076 | DZ13: 177881 | EA13: 253414 | EB13: 0.26 | EC13: 0.115 | ED13: 0.4082 | EE13: 30832.5706 | EF13: 45771.695 | EG13: 0.33556885 | EH13: 0.28000476 | EJ13: 93132 | EK13: 105775 | EL13: 0.205 | EM13: 0.0915 | EN13: 0.3148 | EO13: 3980.0164 | EP13: 19226.0075 | EQ13: 0.2238314 | ER13: 0.08915076 | ET13: 129590 | EU13: 177882 | EV13: 0.2171 | EW13: 0.2575 | EX13: 0.4746 | EY13: 22919.3832 | EZ13: 38723.15112 | FA13: 0.4197484648 | FB13: 0.3204148446 | FD13: 177882 | FE13: 253414 | FF13: 0.29 | FG13: 0.145 | FH13: 0.4382 | FI13: 33098.1224 | FJ13: 54037.67 | FK13: 0.36629685 | FL13: 0.24564276 | FN13: 88382 | FO13: 114750 | FP13: 0.205 | FQ13: 0.158 | FR13: 0.363 | FS13: 9571.584 | FT13: 21832.893 | FU13: 0.27680385 | FV13: 0.20672676 | FX13: 168967 | FY13: 177882 | FZ13: 0.26 | GA13: 0.1405 | GB13: 0.4005 | GC13: 3570.4575 | GD13: 46461.983 | GE13: 0.28772885 | GF13: 0.18671676 | GJ13: 0 | GK13: 0 | GL13: 0 | GM13: 0 | GN13: 193896.635 | GO13: 0 | GP13: 0
B14: 105775 | C14: =IF($A$1=$BR$2,BS14,0)+IF($A$1=$CB$2,CC14,0)+IF($A$1=$CL$2,CM14,0)+IF($A$1=$CV$2,CW14,0)+IF($A$1=$DF$2,DG14,0)+IF($A$1=$DP$2,DQ14,0)+IF($A$1=$DZ$2,EA14,0)+IF($A$1=$EJ$2,EK14,0)+IF($A$1=$ET$2,EU14,0)+IF($A$1=$FD$2,FE14,0)+IF($A$1=$FN$2,FO14,0)+IF($A$1=$FX$2,FY14,0)+IF($A$1=$GH$2,GI14,0) -> 109727 | D14: 0.205 | E14: 0.1116 | F14: 0.3389 | G14: 1339.3328 | H14: 23206.0239 | I14: 0.2515464 | J14: 0.12240876 | BR14: 241974 | BS14: 253414 | BT14: 0.29 | BU14: 0.14 | BV14: 0.4332 | BW14: 4955.808 | BX14: 77539.6994 | BY14: 0.36926385 | BZ14: 0.27848676 | CB14: 98560 | CC14: 113158 | CD14: 0.205 | CE14: 0.105 | CF14: 0.31 | CG14: 4525.38 | CH14: 20263.6044 | CI14: 0.23011385 | CJ14: 0.05492676 | CL14: 64656 | CM14: 105000 | CN14: 0.205 | CO14: 0.166 | CP14: 0.371 | CQ14: =IF(CM14>0,(CM14-CL14)*CP14,0) -> 14967.624 | CR14: 13763.1166 | CS14: 0.30785385 | CT14: 0.15980676 | CV14: 114750 | CW14: 177882 | CX14: 0.26 | CY14: 0.174 | CZ14: 0.434 | DA14: 27399.288 | DB14: 30574.4576 | DC14: 0.3862436 | DD14: 0.28124676 | DF14: 114750 | DG14: 177882 | DH14: 0.26 | DI14: 0.16 | DJ14: 0.42 | DK14: 26515.44 | DL14: 30638.207 | DM14: 0.34752885 | DN14: 0.17912676 | DP14: 30507 | DQ14: 57375 | DR14: 0.15 | DS14: 0.1495 | DT14: 0.3598 | DU14: 9667.1064 | DV14: 3868.5249 | DW14: 0.27553885 | DX14: 0.16712076 | DZ14: 253414 | EB14: 0.33 | EC14: 0.115 | ED14: 0.445 | EE14: 0 | EF14: 76604.2656 | EG14: 0.37788885 | EH14: 0.33078876 | EJ14: 105775 | EK14: 109727 | EL14: 0.205 | EM14: 0.1116 | EN14: 0.3389 | EO14: 1339.3328 | EP14: 23206.0239 | EQ14: 0.2515464 | ER14: 0.12240876 | ET14: 177882 | EU14: 253414 | EV14: 0.24215 | EW14: 0.2575 | EX14: 0.5024 | EY14: 37947.2768 | EZ14: 61642.53433 | FA14: =IF(EX14>0,1*(1+EW$30)*EX14-1*(1+EW$30)*EZ$30,0) -> 0.4517184647 | FB14: 0.3587788446 | FD14: 253414 | FF14: 0.33 | FG14: 0.145 | FH14: =FF14+FG14 -> 0.475 | FI14: 0 | FJ14: 87135.7924 | FK14: 0.40861685 | FL14: 0.29642676 | FN14: 114750 | FO14: 157792 | FP14: 0.26 | FQ14: 0.158 | FR14: 0.418 | FS14: 17991.556 | FT14: 31404.477 | FU14: 0.34005385 | FV14: 0.28262676 | FX14: 177882 | FY14: 253414 | FZ14: 0.29 | GA14: 0.1405 | GB14: 0.4337 | GC14: 32758.2284 | GD14: 50032.4405 | GE14: 0.32590885 | GF14: 0.23253276 | GJ14: 0 | GK14: 0 | GL14: 0 | GM14: 0 | GN14: 193896.635 | GO14: 0 | GP14: 0
B15: 109727 | C15: =IF($A$1=$BR$2,BS15,0)+IF($A$1=$CB$2,CC15,0)+IF($A$1=$CL$2,CM15,0)+IF($A$1=$CV$2,CW15,0)+IF($A$1=$DF$2,DG15,0)+IF($A$1=$DP$2,DQ15,0)+IF($A$1=$DZ$2,EA15,0)+IF($A$1=$EJ$2,EK15,0)+IF($A$1=$ET$2,EU15,0)+IF($A$1=$FD$2,FE15,0)+IF($A$1=$FN$2,FO15,0)+IF($A$1=$FX$2,FY15,0)+IF($A$1=$GH$2,GI15,0) -> 114750 | D15: 0.205 | E15: 0.1116 | F15: 0.379096 | G15: 1904.199208 | H15: 24545.3567 | I15: 0.2977718 | J15: 0.17787924 | BR15: 253414 | BS15: 362961 | BT15: 0.33 | BU15: 0.14 | BV15: =BT15+BU15 -> 0.47 | BW15: 51487.09 | BX15: 82495.5074 | BY15: 0.41158385 | BZ15: 0.32927076 | CB15: 113158 | CC15: 114750 | CD15: 0.205 | CE15: 0.1229 | CF15: 0.3279 | CG15: 522.0168 | CH15: 24788.9844 | CI15: 0.25069885 | CJ15: 0.07962876 | CL15: =IF(CM14="","",CM14) -> 105000 | CM15: 114750 | CN15: 0.205 | CO15: 0.1762 | CP15: 0.3812 | CQ15: =IF(CM15>0,(CM15-CL15)*CP15,0) -> 3716.7 | CR15: 28730.7406 | CS15: 0.31958385 | CT15: 0.17388276 | CV15: 177882 | CW15: 200000 | CX15: 0.29 | CY15: 0.174 | CZ15: 0.4672 | DA15: 10333.5296 | DB15: 57973.7456 | DC15: 0.4244236 | DD15: 0.32706276 | DF15: 177882 | DG15: 190060 | DH15: 0.29 | DI15: 0.16 | DJ15: 0.4532 | DK15: 5519.0696 | DL15: 57153.647 | DM15: 0.38570885 | DN15: 0.22494276 | DP15: 57375 | DQ15: 61015 | DR15: 0.205 | DS15: 0.1495 | DT15: 0.377 | DU15: 1372.28 | DV15: 13535.6313 | DW15: 0.29531885 | DX15: 0.19085676 | EB15: 0 | EC15: 0 | ED15: 0 | EE15: 0 | EF15: 76604.2656 | EG15: 0 | EH15: 0 | EJ15: 109727 | EK15: 114750 | EL15: 0.205 | EM15: 0.1116 | EN15: =(1+IF(EJ15>=$EO$25,$EN$25,0)+IF(EJ15>=$EO$26,$EN$26,0))*EM15+EL15 -> 0.379096 | EO15: 1904.199208 | EP15: 24545.3567 | EQ15: 0.2977718 | ER15: 0.17787924 | ET15: 253414 | EV15: 0.27555 | EW15: 0.2575 | EX15: 0.53305 | EY15: 0 | EZ15: 99589.81113 | FA15: =IF(EX15>0,1*(1+EW$30)*EX15-1*(1+EW$30)*EZ$30,0) -> 0.4869659647 | FB15: 0.4010758446 | FF15: 0 | FG15: 0 | FH15: 0 | FI15: 0 | FJ15: 87135.7924 | FK15: 0 | FL15: 0 | FN15: 157792 | FO15: 177882 | FP15: 0.26 | FQ15: 0.178 | FR15: 0.438 | FS15: 8799.42 | FT15: 49396.033 | FU15: 0.36305385 | FV15: 0.31022676 | FX15: 253414 | FZ15: 0.33 | GA15: 0.1405 | GB15: 0.4705 | GC15: 0 | GD15: 82790.6689 | GE15: 0.36822885 | GF15: 0.28331676 | GJ15: 0 | GK15: 0 | GL15: 0 | GM15: 0 | GN15: 193896.635 | GO15: 0 | GP15: 0
B16: 114750 | C16: =IF($A$1=$BR$2,BS16,0)+IF($A$1=$CB$2,CC16,0)+IF($A$1=$CL$2,CM16,0)+IF($A$1=$CV$2,CW16,0)+IF($A$1=$DF$2,DG16,0)+IF($A$1=$DP$2,DQ16,0)+IF($A$1=$DZ$2,EA16,0)+IF($A$1=$EJ$2,EK16,0)+IF($A$1=$ET$2,EU16,0)+IF($A$1=$FD$2,FE16,0)+IF($A$1=$FN$2,FO16,0)+IF($A$1=$FX$2,FY16,0)+IF($A$1=$GH$2,GI16,0) -> 150000 | D16: 0.26 | E16: 0.1116 | F16: 0.434096 | G16: 15301.884 | H16: 26449.55591 | I16: 0.3610218 | J16: 0.25377924 | BR16: 362961 | BT16: 0.33 | BU16: 0.15 | BV16: =BT16+BU16 -> 0.48 | BW16: 0 | BX16: 133982.5974 | BY16: 0.42308385 | BZ16: 0.34307076 | CB16: 114750 | CC16: 137407 | CD16: 0.26 | CE16: 0.1229 | CF16: 0.3829 | CG16: 8675.3653 | CH16: 25311.0012 | CI16: 0.31394885 | CJ16: 0.15552876 | CL16: =IF(CM15="","",CM15) -> 114750 | CM16: 140000 | CN16: 0.26 | CO16: 0.1762 | CP16: 0.4362 | CQ16: =IF(CM16>0,(CM16-CL16)*CP16,0) -> 11014.05 | CR16: 32447.4406 | CS16: 0.38283385 | CT16: 0.24978276 | CV16: 200000 | CW16: 253414 | CX16: 0.29 | CY16: 0.174 | CZ16: 0.4758 | DA16: 25414.3812 | DB16: 68307.2752 | DC16: 0.4343136 | DD16: 0.33893076 | DF16: 190060 | DG16: 253414 | DH16: 0.29 | DI16: 0.195 | DJ16: 0.4882 | DK16: 30929.4228 | DL16: 62672.7166 | DM16: 0.42595885 | DN16: 0.27324276 | DP16: 61015 | DQ16: 95883 | DR16: 0.205 | DS16: 0.1667 | DT16: =DR16+DS16 -> 0.3717 | DU16: 12960.4356 | DV16: 14907.9113 | DW16: 0.28922385 | DX16: 0.18354276 | EB16: 0 | EC16: 0 | ED16: 0 | EE16: 0 | EF16: 76604.2656 | EG16: 0 | EH16: 0 | EJ16: 114750 | EK16: 150000 | EL16: 0.26 | EM16: 0.1116 | EN16: =(1+IF(EJ16>=$EO$25,$EN$25,0)+IF(EJ16>=$EO$26,$EN$26,0))*EM16+EL16 -> 0.434096 | EO16: 15301.884 | EP16: 26449.55591 | EQ16: 0.3610218 | ER16: 0.25377924 | EV16: 0 | EW16: 0 | EX16: 0 | EY16: 0 | EZ16: 99589.81113 | FA16: 0 | FB16: 0 | FF16: 0 | FG16: 0 | FH16: 0 | FI16: 0 | FJ16: 87135.7924 | FK16: 0 | FL16: 0 | FN16: 177882 | FO16: 220910 | FP16: 0.29 | FQ16: 0.178 | FR16: 0.4712 | FS16: 20274.7936 | FT16: 58195.453 | FU16: 0.40123385 | FV16: 0.35604276 | FZ16: 0 | GA16: 0 | GB16: 0 | GC16: 0 | GD16: 82790.6689 | GE16: 0 | GF16: 0 | GJ16: 0 | GK16: 0 | GL16: 0 | GM16: 0 | GN16: 193896.635 | GO16: 0 | GP16: 0
B17: 150000 | C17: =IF($A$1=$BR$2,BS17,0)+IF($A$1=$CB$2,CC17,0)+IF($A$1=$CL$2,CM17,0)+IF($A$1=$CV$2,CW17,0)+IF($A$1=$DF$2,DG17,0)+IF($A$1=$DP$2,DQ17,0)+IF($A$1=$DZ$2,EA17,0)+IF($A$1=$EJ$2,EK17,0)+IF($A$1=$ET$2,EU17,0)+IF($A$1=$FD$2,FE17,0)+IF($A$1=$FN$2,FO17,0)+IF($A$1=$FX$2,FY17,0)+IF($A$1=$GH$2,GI17,0) -> 177882 | D17: 0.26 | E17: 0.1216 | F17: 0.449696 | G17: 12538.42387 | H17: 41751.43991 | I17: 0.3789618 | J17: 0.27530724 | BT17: 0 | BU17: 0 | BV17: 0 | BW17: 0 | BX17: 133982.5974 | BY17: 0 | BZ17: 0 | CB17: 137407 | CC17: 177882 | CD17: 0.26 | CE17: 0.147 | CF17: 0.407 | CG17: 16473.325 | CH17: 33986.3665 | CI17: 0.34166385 | CJ17: 0.18878676 | CL17: =IF(CM16="","",CM16) -> 140000 | CM17: 177882 | CN17: 0.26 | CO17: 0.19 | CP17: 0.45 | CQ17: =IF(CM17>0,(CM17-CL17)*CP17,0) -> 17046.9 | CR17: 43461.4906 | CS17: 0.39870385 | CT17: 0.26882676 | CV17: 253414 | CW17: 400000 | CX17: 0.33 | CY17: 0.174 | CZ17: 0.5126 | DA17: 75139.9836 | DB17: 93721.6564 | DC17: 0.4766336 | DD17: 0.38971476 | DF17: 253414 | DH17: 0.33 | DI17: 0.195 | DJ17: =DH17+DI17 -> 0.525 | DK17: 0 | DL17: 93602.1394 | DM17: 0.46827885 | DN17: 0.32402676 | DP17: 95883 | DQ17: 114750 | DR17: 0.205 | DS17: 0.175 | DT17: =DR17+DS17 -> 0.38 | DU17: 7169.46 | DV17: 27868.3469 | DW17: 0.29876885 | DX17: 0.19499676 | EB17: 0 | EC17: 0 | ED17: 0 | EE17: 0 | EF17: 76604.2656 | EG17: 0 | EH17: 0 | EJ17: 150000 | EK17: 177882 | EL17: 0.26 | EM17: 0.1216 | EN17: =(1+IF(EJ17>=$EO$25,$EN$25,0)+IF(EJ17>=$EO$26,$EN$26,0))*EM17+EL17 -> 0.449696 | EO17: 12538.42387 | EP17: 41751.43991 | EQ17: 0.3789618 | ER17: 0.27530724 | EV17: 0 | EW17: 0 | EX17: 0 | EY17: 0 | EZ17: 99589.81113 | FA17: 0 | FB17: 0 | FF17: 0 | FG17: 0 | FH17: 0 | FI17: 0 | FJ17: 87135.7924 | FK17: 0 | FL17: 0 | FN17: 220910 | FO17: 253414 | FP17: 0.29 | FQ17: 0.198 | FR17: 0.4912 | FS17: 15965.9648 | FT17: 78470.2466 | FU17: 0.42423385 | FV17: 0.38364276 | FZ17: 0 | GA17: 0 | GB17: 0 | GC17: 0 | GD17: 82790.6689 | GE17: 0 | GF17: 0 | GJ17: 0 | GK17: 0 | GL17: 0 | GM17: 0 | GN17: 193896.635 | GO17: 0 | GP17: 0
B18: 177882 | C18: 220000 | D18: 0.29 | E18: 0.1216 | F18: 0.4829 | G18: 20338.7822 | H18: 54289.86378 | I18: 0.4171464 | J18: 0.32112876 | BT18: 0 | BU18: 0 | BV18: 0 | BW18: 0 | BX18: 133982.5974 | BY18: 0 | BZ18: 0 | CB18: 177882 | CC18: 186306 | CD18: 0.29 | CE18: 0.147 | CF18: 0.4402 | CG18: 3708.2448 | CH18: 50459.6915 | CI18: 0.37984385 | CJ18: 0.23460276 | CL18: =IF(CM17="","",CM17) -> 177882 | CM18: 253414 | CN18: 0.29 | CO18: 0.19 | CP18: 0.4832 | CQ18: 36497.0624 | CR18: 60508.3906 | CS18: 0.43688385 | CT18: 0.31464276 | CV18: 400000 | CX18: 0.33 | CY18: 0.174 | CZ18: =CX18+CY18 -> 0.504 | DA18: 0 | DB18: 168861.64 | DC18: 0.4667436 | DD18: 0.37784676 | DH18: 0 | DI18: 0 | DJ18: 0 | DK18: 0 | DL18: 93602.1394 | DM18: 0 | DN18: 0 | DP18: 114750 | DQ18: 154650 | DR18: 0.26 | DS18: 0.175 | DT18: =DR18+DS18 -> 0.435 | DU18: 17356.5 | DV18: 35037.8069 | DW18: 0.36201885 | DX18: 0.27089676 | EB18: 0 | EC18: 0 | ED18: 0 | EE18: 0 | EF18: 76604.2656 | EG18: 0 | EH18: 0 | EJ18: 177882 | EK18: 220000 | EL18: 0.29 | EM18: 0.1216 | EN18: 0.4829 | EO18: 20338.7822 | EP18: 54289.86378 | EQ18: 0.4171464 | ER18: 0.32112876 | EV18: 0 | EW18: 0 | EX18: 0 | EY18: 0 | EZ18: 99589.81113 | FA18: 0 | FB18: 0 | FF18: 0 | FG18: 0 | FH18: 0 | FI18: 0 | FJ18: 87135.7924 | FK18: 0 | FL18: 0 | FN18: 253414 | FO18: 282214 | FP18: 0.33 | FQ18: 0.198 | FR18: 0.528 | FS18: 15206.4 | FT18: 94436.2114 | FU18: 0.46655385 | FV18: 0.43442676 | FZ18: 0 | GA18: 0 | GB18: 0 | GC18: 0 | GD18: 82790.6689 | GE18: 0 | GF18: 0 | GJ18: 0 | GK18: 0 | GL18: 0 | GM18: 0 | GN18: 193896.635 | GO18: 0 | GP18: 0
B19: 220000 | C19: 253414 | D19: 0.29 | E19: 0.1316 | F19: 0.4985 | G19: 16656.879 | H19: 74628.64598 | I19: 0.4350864 | J19: 0.34265676 | BT19: 0 | BU19: 0 | BV19: 0 | BW19: 0 | BX19: 133982.5974 | BY19: 0 | BZ19: 0 | CB19: 186306 | CC19: 253414 | CD19: 0.29 | CE19: 0.168 | CF19: 0.4612 | CG19: 30950.2096 | CH19: 54167.9363 | CI19: 0.40399385 | CJ19: 0.26358276 | CL19: 253414 | CN19: 0.33 | CO19: 0.19 | CP19: =CN19+CO19 -> 0.52 | CQ19: 0 | CR19: 97005.453 | CS19: 0.47920385 | CT19: 0.36542676 | CX19: 0 | CY19: 0 | CZ19: 0 | DA19: 0 | DB19: 168861.64 | DC19: 0 | DD19: 0 | DH19: 0 | DI19: 0 | DJ19: 0 | DK19: 0 | DL19: 93602.1394 | DM19: 0 | DN19: 0 | DP19: 154650 | DQ19: 177882 | DR19: 0.26 | DS19: 0.21 | DT19: =DR19+DS19 -> 0.47 | DU19: 10919.04 | DV19: 52394.3069 | DW19: 0.40226885 | DX19: 0.31919676 | EB19: 0 | EC19: 0 | ED19: 0 | EE19: 0 | EF19: 76604.2656 | EG19: 0 | EH19: 0 | EJ19: 220000 | EK19: 253414 | EL19: 0.29 | EM19: 0.1316 | EN19: 0.4985 | EO19: 16656.879 | EP19: 74628.64598 | EQ19: 0.4350864 | ER19: 0.34265676 | EV19: 0 | EW19: 0 | EX19: 0 | EY19: 0 | EZ19: 99589.81113 | FA19: 0 | FB19: 0 | FF19: 0 | FG19: 0 | FH19: 0 | FI19: 0 | FJ19: 87135.7924 | FK19: 0 | FL19: 0 | FN19: 282214 | FO19: 564429 | FP19: 0.33 | FQ19: 0.208 | FR19: 0.538 | FS19: 151831.67 | FT19: 109642.6114 | FU19: 0.47805385 | FV19: 0.44822676 | FZ19: 0 | GA19: 0 | GB19: 0 | GC19: 0 | GD19: 82790.6689 | GE19: 0 | GF19: 0 | GJ19: 0 | GK19: 0 | GL19: 0 | GM19: 0 | GN19: 193896.635 | GO19: 0 | GP19: 0
B20: 253414 | C20: 0 | D20: 0.33 | E20: 0.1316 | F20: 0.535296 | G20: 0 | H20: 91285.52498 | I20: 0.4774018 | J20: 0.39343524 | BT20: 0 | BU20: 0 | BV20: 0 | BW20: 0 | BX20: 133982.5974 | BY20: 0 | BZ20: 0 | CB20: 253414 | CC20: 259829 | CD20: 0.33 | CE20: 0.168 | CF20: 0.498 | CG20: 3194.67 | CH20: 85118.1459 | CI20: 0.44631385 | CJ20: 0.31436676 | CN20: 0 | CO20: 0 | CP20: 0 | CQ20: 0 | CR20: 97005.453 | CS20: 0 | CT20: 0 | CX20: 0 | CY20: 0 | CZ20: 0 | DA20: 0 | DB20: 168861.64 | DC20: 0 | DD20: 0 | DH20: 0 | DI20: 0 | DJ20: 0 | DK20: 0 | DL20: 93602.1394 | DM20: 0 | DN20: 0 | DP20: 177882 | DQ20: 253414 | DR20: 0.29 | DS20: 0.21 | DT20: 0.5032 | DU20: 38007.7024 | DV20: 63313.3469 | DW20: 0.44044885 | DX20: 0.36501276 | EB20: 0 | EC20: 0 | ED20: 0 | EE20: 0 | EF20: 76604.2656 | EG20: 0 | EH20: 0 | EJ20: 253414 | EL20: 0.33 | EM20: =IF(EJ20="",0,VLOOKUP(EJ20,EJ$52:EL$61,3,TRUE)) -> 0.1316 | EN20: =(1+IF(EJ20>=$EO$25,$EN$25,0)+IF(EJ20>=$EO$26,$EN$26,0))*EM20+EL20 -> 0.535296 | EO20: 0 | EP20: 91285.52498 | EQ20: 0.4774018 | ER20: 0.39343524 | EV20: 0 | EW20: 0 | EX20: 0 | EY20: 0 | EZ20: 99589.81113 | FA20: 0 | FB20: 0 | FF20: 0 | FG20: 0 | FH20: 0 | FI20: 0 | FJ20: 87135.7924 | FK20: 0 | FL20: 0 | FN20: 564429 | FO20: 1128858 | FP20: 0.33 | FQ20: 0.213 | FR20: 0.543 | FS20: 306484.947 | FT20: 261474.2814 | FU20: 0.48380385 | FV20: 0.45512676 | FZ20: 0 | GA20: 0 | GB20: 0 | GC20: 0 | GD20: 82790.6689 | GE20: 0 | GF20: 0 | GJ20: 0 | GK20: 0 | GL20: 0 | GM20: 0 | GN20: 193896.635 | GO20: 0 | GP20: 0
C21: 0 | D21: 0 | E21: 0 | F21: 0 | G21: 0 | H21: 91285.52498 | I21: 0 | J21: 0 | BT21: 0 | BU21: 0 | BV21: 0 | BW21: 0 | BX21: 133982.5974 | BY21: 0 | BZ21: 0 | CB21: 259829 | CD21: 0.33 | CE21: 0.205 | CF21: 0.535 | CG21: 0 | CH21: 88312.8159 | CI21: 0.48886385 | CJ21: 0.36542676 | CN21: 0 | CO21: 0 | CP21: 0 | CQ21: 0 | CR21: 97005.453 | CS21: 0 | CT21: 0 | CX21: 0 | CY21: 0 | CZ21: 0 | DA21: 0 | DB21: 168861.64 | DC21: 0 | DD21: 0 | DH21: 0 | DI21: 0 | DJ21: 0 | DK21: 0 | DL21: 93602.1394 | DM21: 0 | DN21: 0 | DP21: 253414 | DR21: 0.33 | DS21: 0.21 | DT21: =DR21+DS21 -> 0.54 | DU21: 0 | DV21: 101321.0493 | DW21: 0.48276885 | DX21: 0.41579676 | EB21: 0 | EC21: 0 | ED21: 0 | EE21: 0 | EF21: 76604.2656 | EG21: 0 | EH21: 0 | EL21: 0 | EM21: 0 | EN21: =EL21+EM21 -> 0 | EO21: 0 | EP21: 91285.52498 | EQ21: 0 | ER21: 0 | EV21: 0 | EW21: 0 | EX21: 0 | EY21: 0 | EZ21: 99589.81113 | FA21: 0 | FB21: 0 | FF21: 0 | FG21: 0 | FH21: 0 | FI21: 0 | FJ21: 87135.7924 | FK21: 0 | FL21: 0 | FN21: 1128858 | FP21: 0.33 | FQ21: 0.218 | FR21: 0.548 | FS21: 0 | FT21: 567959.2284 | FU21: 0.48955385 | FV21: 0.46202676 | FZ21: 0 | GA21: 0 | GB21: 0 | GC21: 0 | GD21: 82790.6689 | GE21: 0 | GF21: 0 | GJ21: 0 | GK21: 0 | GL21: 0 | GM21: 0 | GN21: 193896.635 | GO21: 0 | GP21: 0
C22: 0 | D22: 0 | E22: 0 | F22: 0 | G22: 0 | H22: 91285.52498 | I22: 0 | J22: 0 | BT22: 0 | BU22: 0 | BV22: 0 | BW22: 0 | BX22: 133982.5974 | BY22: 0 | BZ22: 0 | CD22: 0 | CE22: 0 | CF22: 0 | CG22: 0 | CH22: 88312.8159 | CI22: 0 | CJ22: 0 | CN22: 0 | CO22: 0 | CP22: 0 | CQ22: 0 | CR22: 97005.453 | CS22: 0 | CT22: 0 | CX22: 0 | CY22: 0 | CZ22: 0 | DA22: 0 | DB22: 168861.64 | DC22: 0 | DD22: 0 | DH22: 0 | DI22: 0 | DJ22: 0 | DK22: 0 | DL22: 93602.1394 | DM22: 0 | DN22: 0 | DR22: 0 | DS22: 0 | DT22: =DR22+DS22 -> 0 | DU22: 0 | DV22: 101321.0493 | DW22: 0 | DX22: 0 | EB22: 0 | EC22: 0 | ED22: 0 | EE22: 0 | EF22: 76604.2656 | EG22: 0 | EH22: 0 | EL22: 0 | EM22: 0 | EN22: =EL22+EM22 -> 0 | EO22: 0 | EP22: 91285.52498 | EQ22: 0 | ER22: 0 | EV22: 0 | EW22: 0 | EX22: 0 | EY22: 0 | EZ22: 99589.81113 | FA22: 0 | FB22: 0 | FF22: 0 | FG22: 0 | FH22: 0 | FI22: 0 | FJ22: 87135.7924 | FK22: 0 | FL22: 0 | FP22: 0 | FQ22: 0 | FR22: 0 | FS22: 0 | FT22: 567959.2284 | FU22: 0 | FV22: 0 | FZ22: 0 | GA22: 0 | GB22: 0 | GC22: 0 | GD22: 82790.6689 | GE22: 0 | GF22: 0 | GJ22: 0 | GK22: 0 | GL22: 0 | GM22: 0 | GN22: 193896.635 | GO22: 0 | GP22: 0
C23: =IF($A$1=$BR$2,BS23,0)+IF($A$1=$CB$2,CC23,0)+IF($A$1=$CL$2,CM23,0)+IF($A$1=$CV$2,CW23,0)+IF($A$1=$DF$2,DG23,0)+IF($A$1=$DP$2,DQ23,0)+IF($A$1=$DZ$2,EA23,0)+IF($A$1=$EJ$2,EK23,0)+IF($A$1=$ET$2,EU23,0)+IF($A$1=$FD$2,FE23,0)+IF($A$1=$FN$2,FO23,0)+IF($A$1=$FX$2,FY23,0)+IF($A$1=$GH$2,GI23,0) -> 0 | D23: 0 | E23: 0 | F23: 0 | G23: 0 | H23: 91285.52498 | I23: 0 | J23: 0 | BT23: 0 | BU23: 0 | BV23: 0 | BW23: 0 | BX23: 133982.5974 | BY23: 0 | BZ23: 0 | CD23: 0 | CE23: 0 | CF23: 0 | CG23: 0 | CH23: 88312.8159 | CI23: 0 | CJ23: 0 | CN23: 0 | CO23: 0 | CP23: 0 | CQ23: 0 | CR23: 97005.453 | CS23: 0 | CT23: 0 | CX23: 0 | CY23: 0 | CZ23: 0 | DA23: 0 | DB23: 168861.64 | DC23: 0 | DD23: 0 | DH23: 0 | DI23: 0 | DJ23: 0 | DK23: 0 | DL23: 93602.1394 | DM23: 0 | DN23: 0 | DR23: 0 | DS23: 0 | DT23: =DR23+DS23 -> 0 | DU23: 0 | DV23: 101321.0493 | DW23: 0 | DX23: 0 | EB23: 0 | EC23: 0 | ED23: 0 | EE23: 0 | EF23: 76604.2656 | EG23: 0 | EH23: 0 | EL23: 0 | EM23: 0 | EN23: =EL23+EM23 -> 0 | EO23: 0 | EP23: 91285.52498 | EQ23: 0 | ER23: 0 | EV23: 0 | EW23: 0 | EX23: 0 | EY23: 0 | EZ23: 99589.81113 | FA23: 0 | FB23: 0 | FF23: 0 | FG23: 0 | FH23: 0 | FI23: 0 | FJ23: 87135.7924 | FK23: 0 | FL23: 0 | FP23: 0 | FQ23: 0 | FR23: 0 | FS23: 0 | FT23: 567959.2284 | FU23: 0 | FV23: 0 | FZ23: 0 | GA23: 0 | GB23: 0 | GC23: 0 | GD23: 82790.6689 | GE23: 0 | GF23: 0 | GJ23: 0 | GK23: 0 | GL23: 0 | GM23: 0 | GN23: 193896.635 | GO23: 0 | GP23: 0
I24: Voir tableau + note CQFF | BH24: https://nethris.com/fr/reglementation/credits-impot-personnels/ | EN24: Taux | EO24: Seuil $ | FA24: Voir tableau + note CQFF
I25: https://www.revenuquebec.ca/fr/entreprises/retenues-et-cotisations/trousse-employeur/principaux-changements-pour-2021/ | BH25: Les taux d'imposition canadiens pour les particuliers - année courante et années passées - Canada.ca | EM25: Surtaxe #1 | EN25: 0.2 | EO25: 90599
B26: ="Dividende particulier " & A1 -> Dividende particulier Ontario | BH26: ="Dividende particulier " & BH2 -> Dividende particulier Fédéral | BK26: https://www.canada.ca/fr/agence-revenu/services/impot/particuliers/sujets/tout-votre-declaration-revenus/declaration-revenus/remplir-declaration-revenus/deductions-credits-depenses/ligne-40425-credit-impot-federal-dividendes.html | BR26: ="Dividende particulier " & BR2 -> Dividende particulier Alberta | CB26: ="Dividende particulier " & CB2 -> Dividende particulier Colombie-Britannique | CL26: ="Dividende particulier " & CL2 -> Dividende particulier Île-du-Prince-Édouard | CV26: ="Dividende particulier " & CV2 -> Dividende particulier Manitoba | DF26: ="Dividende particulier " & DF2 -> Dividende particulier Nouveau-Brunswick | DP26: ="Dividende particulier " & DP2 -> Dividende particulier Nouvelle-Écosse | DZ26: ="Dividende particulier " & DZ2 -> Dividende particulier Nunavut | EJ26: ="Dividende particulier " & EJ2 -> Dividende particulier Ontario | EM26: Surtaxe #2 | EN26: 0.36 | EO26: 106732 | ET26: ="Dividende particulier " & ET2 -> Dividende particulier Québec | FD26: ="Dividende particulier " & FD2 -> Dividende particulier Saskatchewan | FN26: ="Dividende particulier " & FN2 -> Dividende particulier Terre-Neuve-et-Labrador | FX26: ="Dividende particulier " & FX2 -> Dividende particulier Territoires du Nord-Ouest | GH26: ="Dividende particulier " & GH2 -> Dividende particulier Yukon
E27: Majoration | F27: Crédit (sur montant majoré) | BK27: Majoration | BM27: Crédit (sur montant majoré) | BU27: Majoration | BW27: Crédit (sur montant majoré) | CE27: Majoration | CG27: Crédit (sur montant majoré) | CO27: Majoration | CQ27: Crédit (sur montant majoré) | CY27: Majoration | DA27: Crédit (sur montant majoré) | DI27: Majoration | DK27: Crédit (sur montant majoré) | DS27: Majoration | DU27: Crédit (sur montant majoré) | EC27: Majoration | EE27: Crédit (sur montant majoré) | EM27: Majoration | EO27: Crédit (sur montant majoré) | ER27: 57000 | EW27: Majoration | EY27: Crédit (sur montant majoré) | FG27: Majoration | FI27: Crédit (sur montant majoré) | FQ27: Majoration | FS27: Crédit (sur montant majoré) | GA27: Majoration | GC27: Crédit (sur montant majoré) | GK27: Majoration | GM27: Crédit (sur montant majoré)
F28: Fédéral | G28: Provincial | H28: Combiné | BL28: Fédéral | BM28: Provincial | BN28: Combiné | BV28: Fédéral | BW28: Provincial | BX28: Combiné | CF28: Fédéral | CG28: Provincial | CH28: Combiné | CP28: Fédéral | CQ28: Provincial | CR28: Combiné | CZ28: Fédéral | DA28: Provincial | DB28: Combiné | DJ28: Fédéral | DK28: Provincial | DL28: Combiné | DT28: Fédéral | DU28: Provincial | DV28: Combiné | ED28: Fédéral | EE28: Provincial | EF28: Combiné | EN28: Fédéral | EO28: Provincial | EP28: Combiné | ER28: =ER27/(1-EN20) -> 122658.7247 | EX28: Fédéral | EY28: Provincial | EZ28: Combiné | FH28: Fédéral | FI28: Provincial | FJ28: Combiné | FR28: Fédéral | FS28: Provincial | FT28: Combiné | GB28: Fédéral | GC28: Provincial | GD28: Combiné | GL28: Fédéral | GM28: Provincial | GN28: Combiné
B29: Déterminé | E29: =IF($A$1=$BR$2,BU29,0)+IF($A$1=$CB$2,CE29,0)+IF($A$1=$CL$2,CO29,0)+IF($A$1=$CV$2,CY29,0)+IF($A$1=$DF$2,DI29,0)+IF($A$1=$DP$2,DS29,0)+IF($A$1=$DZ$2,EC29,0)+IF($A$1=$EJ$2,EM29,0)+IF($A$1=$ET$2,EW29,0)+IF($A$1=$FD$2,FG29,0)+IF($A$1=$FN$2,FQ29,0)+IF($A$1=$FX$2,GA29,0)+IF($A$1=$GH$2,GK29,0) -> 0.38 | F29: =IF($A$1=$BR$2,BV29,0)+IF($A$1=$CB$2,CF29,0)+IF($A$1=$CL$2,CP29,0)+IF($A$1=$CV$2,CZ29,0)+IF($A$1=$DF$2,DJ29,0)+IF($A$1=$DP$2,DT29,0)+IF($A$1=$DZ$2,ED29,0)+IF($A$1=$EJ$2,EN29,0)+IF($A$1=$ET$2,EX29,0)+IF($A$1=$FD$2,FH29,0)+IF($A$1=$FN$2,FR29,0)+IF($A$1=$FX$2,GB29,0)+IF($A$1=$GH$2,GL29,0) -> 0.150198 | G29: 0.1 | H29: 0.250198 | BH29: Déterminé | BK29: 0.38 | BL29: =15.0198% -> 0.150198 | BM29: 0 | BN29: =BL29+BM29 -> 0.150198 | BR29: Déterminé | BU29: =$BK$29 -> 0.38 | BV29: =$BL$29 -> 0.150198 | BW29: 0.0812 | BX29: =BV29+BW29 -> 0.231398 | CB29: Déterminé | CE29: =$BK$29 -> 0.38 | CF29: =$BL$29 -> 0.150198 | CG29: 0.12 | CH29: =CF29+CG29 -> 0.270198 | CL29: Déterminé | CO29: =$BK$29 -> 0.38 | CP29: =$BL$29 -> 0.150198 | CQ29: 0.105 | CR29: =CP29+CQ29 -> 0.255198 | CV29: Déterminé | CY29: =$BK$29 -> 0.38 | CZ29: =$BL$29 -> 0.150198 | DA29: 0.08 | DB29: =CZ29+DA29 -> 0.230198 | DF29: Déterminé | DI29: =$BK$29 -> 0.38 | DJ29: =$BL$29 -> 0.150198 | DK29: 0.14 | DL29: =DJ29+DK29 -> 0.290198 | DP29: Déterminé | DS29: =$BK$29 -> 0.38 | DT29: =$BL$29 -> 0.150198 | DU29: 0.0885 | DV29: =DT29+DU29 -> 0.238698 | DZ29: Déterminé | EC29: =$BK$29 -> 0.38 | ED29: =$BL$29 -> 0.150198 | EE29: 0.0551 | EF29: =ED29+EE29 -> 0.205298 | EJ29: Déterminé | EM29: =$BK$29 -> 0.38 | EN29: =$BL$29 -> 0.150198 | EO29: 0.1 | EP29: =EN29+EO29 -> 0.250198 | ER29: =ER27/(1-EX15) -> 122068.744 | ET29: Déterminé | EW29: =$BK$29 -> 0.38 | EX29: =$BL$29*(1-$EY$1) -> 0.12541533 | EY29: 0.117 | EZ29: =EX29+EY29 -> 0.24241533 | FD29: Déterminé | FG29: =$BK$29 -> 0.38 | FH29: =$BL$29 -> 0.150198 | FI29: 0.11 | FJ29: =FH29+FI29 -> 0.260198 | FN29: Déterminé | FQ29: =$BK$29 -> 0.38 | FR29: =$BL$29 -> 0.150198 | FS29: 0.063 | FT29: =FR29+FS29 -> 0.213198 | FX29: Déterminé | GA29: =$BK$29 -> 0.38 | GB29: =$BL$29 -> 0.150198 | GC29: 0.115 | GD29: =GB29+GC29 -> 0.265198 | GH29: Déterminé | GK29: =$BK$29 -> 0.38 | GL29: =$BL$29 -> 0.150198 | GM29: 0.1202 | GN29: =GL29+GM29 -> 0.270398
B30: Non déterminé (ordinaire) | E30: =IF($A$1=$BR$2,BU30,0)+IF($A$1=$CB$2,CE30,0)+IF($A$1=$CL$2,CO30,0)+IF($A$1=$CV$2,CY30,0)+IF($A$1=$DF$2,DI30,0)+IF($A$1=$DP$2,DS30,0)+IF($A$1=$DZ$2,EC30,0)+IF($A$1=$EJ$2,EM30,0)+IF($A$1=$ET$2,EW30,0)+IF($A$1=$FD$2,FG30,0)+IF($A$1=$FN$2,FQ30,0)+IF($A$1=$FX$2,GA30,0)+IF($A$1=$GH$2,GK30,0) -> 0.15 | F30: 0.090301 | G30: 0.029863 | H30: 0.120164 | BH30: Non déterminé (ordinaire) | BK30: 0.15 | BL30: =9.0301% -> 0.090301 | BM30: 0 | BN30: =BL30+BM30 -> 0.090301 | BR30: Non déterminé (ordinaire) | BU30: =$BK$30 -> 0.15 | BV30: =$BL$30 -> 0.090301 | BW30: 0.0218 | BX30: =BV30+BW30 -> 0.112101 | CB30: Non déterminé (ordinaire) | CE30: =$BK$30 -> 0.15 | CF30: =$BL$30 -> 0.090301 | CG30: 0.0196 | CH30: =CF30+CG30 -> 0.109901 | CL30: Non déterminé (ordinaire) | CO30: =$BK$30 -> 0.15 | CP30: =$BL$30 -> 0.090301 | CQ30: 0.013 | CR30: =CP30+CQ30 -> 0.103301 | CV30: Non déterminé (ordinaire) | CY30: =$BK$30 -> 0.15 | CZ30: =$BL$30 -> 0.090301 | DA30: 0.007835 | DB30: =CZ30+DA30 -> 0.098136 | DF30: Non déterminé (ordinaire) | DI30: =$BK$30 -> 0.15 | DJ30: =$BL$30 -> 0.090301 | DK30: 0.0275 | DL30: =DJ30+DK30 -> 0.117801 | DP30: Non déterminé (ordinaire) | DS30: =$BK$30 -> 0.15 | DT30: =$BL$30 -> 0.090301 | DU30: 0.0299 | DV30: =DT30+DU30 -> 0.120201 | DZ30: Non déterminé (ordinaire) | EC30: =$BK$30 -> 0.15 | ED30: =$BL$30 -> 0.090301 | EE30: 0.0261 | EF30: =ED30+EE30 -> 0.116401 | EJ30: Non déterminé (ordinaire) | EM30: =$BK$30 -> 0.15 | EN30: =$BL$30 -> 0.090301 | EO30: 0.029863 | EP30: =EN30+EO30 -> 0.120164 | ET30: Non déterminé (ordinaire) | EW30: =$BK$30 -> 0.15 | EX30: =$BL$30*(1-$EY$1) -> 0.075401335 | EY30: 0.0342 | EZ30: =EX30+EY30 -> 0.109601335 | FD30: Non déterminé (ordinaire) | FG30: =$BK$30 -> 0.15 | FH30: =$BL$30 -> 0.090301 | FI30: 0.02938 | FJ30: =FH30+FI30 -> 0.119681 | FN30: Non déterminé (ordinaire) | FQ30: =$BK$30 -> 0.15 | FR30: =$BL$30 -> 0.090301 | FS30: 0.032 | FT30: =FR30+FS30 -> 0.122301 | FX30: Non déterminé (ordinaire) | GA30: =$BK$30 -> 0.15 | GB30: =$BL$30 -> 0.090301 | GC30: 0.06 | GD30: =GB30+GC30 -> 0.150301 | GH30: Non déterminé (ordinaire) | GK30: =$BK$30 -> 0.15 | GL30: =$BL$30 -> 0.090301 | GM30: 0.0067 | GN30: =GL30+GM30 -> 0.097001
B31: Étranger | E31: 0 | F31: Crédit pour impôt étranger possible | BH31: Étranger | BK31: 0 | BL31: Crédit pour impôt étranger possible | BR31: Étranger | BU31: =$BK$31 -> 0 | BV31: Crédit pour impôt étranger possible | CB31: Étranger | CE31: =$BK$31 -> 0 | CF31: Crédit pour impôt étranger possible | CL31: Étranger | CO31: =$BK$31 -> 0 | CP31: Crédit pour impôt étranger possible | CV31: Étranger | CY31: =$BK$31 -> 0 | CZ31: Crédit pour impôt étranger possible | DF31: Étranger | DI31: =$BK$31 -> 0 | DJ31: Crédit pour impôt étranger possible | DP31: Étranger | DS31: =$BK$31 -> 0 | DT31: Crédit pour impôt étranger possible | DZ31: Étranger | EC31: =$BK$31 -> 0 | ED31: Crédit pour impôt étranger possible | EJ31: Étranger | EM31: =$BK$31 -> 0 | EN31: Crédit pour impôt étranger possible | ER31: =ER27/(1-EL35) -> 77551.02041 | ET31: Étranger | EW31: =$BK$31 -> 0 | EX31: Crédit pour impôt étranger possible | FD31: Étranger | FG31: =$BK$31 -> 0 | FH31: Crédit pour impôt étranger possible | FN31: Étranger | FQ31: =$BK$31 -> 0 | FR31: Crédit pour impôt étranger possible | FX31: Étranger | GA31: =$BK$31 -> 0 | GB31: Crédit pour impôt étranger possible | GH31: Étranger | GK31: =$BK$31 -> 0 | GL31: Crédit pour impôt étranger possible
E32: https://www.cqff.com/wp-content/uploads/imrtd.pdf | BH32: TaxTips.ca - Dividend Tax Credit for Eligible Dividends | BR32: TaxTips.ca - Alberta dividend tax credit for eligible and non-eligible dividends | CB32: TaxTips.ca - BC dividend tax credit for eligible and non-eligible dividends | CL32: TaxTips.ca - Prince Edward Island Dividend Tax Credits | CV32: TaxTips.ca - Manitoba Dividend Tax Credits | DF32: TaxTips.ca - New Brunswick Dividend Tax Credit | DP32: TaxTips.ca - Nova Scotia Dividend Tax Credits | DZ32: TaxTips.ca - Nunavut Income Tax | EJ32: TaxTips.ca - Ontario Dividend Tax Credits | ER32: =ER27/(1-EL36) -> 64920.27335 | ET32: TaxTips.ca - Quebec Dividend Tax Credits - Eligible and Non-Eligible | EX32: Taux ajusté pour le Québec | FD32: TaxTips.ca - Saskatchewan Dividend Tax Credits | FN32: TaxTips.ca - Newfoundland and Labrador Dividend Tax Credit | FX32: TaxTips.ca - Northwest Territories Income Tax | GH32: TaxTips.ca - Yukon Income Tax
B34: ="Taux d'imposition des sociétés " & A1 -> Taux d'imposition des sociétés Ontario | AX34: Taux de cotisation à l'AE et maximums - Canada.ca | BH34: ="Taux d'imposition des sociétés (SPCC) " & BH2 -> Taux d'imposition des sociétés (SPCC) Fédéral | BR34: ="Taux d'imposition des sociétés (SPCC) " & BR2 -> Taux d'imposition des sociétés (SPCC) Alberta | CB34: ="Taux d'imposition des sociétés (SPCC) " & CB2 -> Taux d'imposition des sociétés (SPCC) Colombie-Britannique | CL34: ="Taux d'imposition des sociétés (SPCC) " & CL2 -> Taux d'imposition des sociétés (SPCC) Île-du-Prince-Édouard | CV34: ="Taux d'imposition des sociétés (SPCC) " & CV2 -> Taux d'imposition des sociétés (SPCC) Manitoba | DF34: ="Taux d'imposition des sociétés (SPCC) " & DF2 -> Taux d'imposition des sociétés (SPCC) Nouveau-Brunswick | DP34: ="Taux d'imposition des sociétés (SPCC) " & DP2 -> Taux d'imposition des sociétés (SPCC) Nouvelle-Écosse | DZ34: ="Taux d'imposition des sociétés (SPCC) " & DZ2 -> Taux d'imposition des sociétés (SPCC) Nunavut | EJ34: ="Taux d'imposition des sociétés (SPCC) " & EJ2 -> Taux d'imposition des sociétés (SPCC) Ontario | ET34: ="Taux d'imposition des sociétés (SPCC) " & ET2 -> Taux d'imposition des sociétés (SPCC) Québec | FD34: ="Taux d'imposition des sociétés (SPCC) " & FD2 -> Taux d'imposition des sociétés (SPCC) Saskatchewan | FJ34: Voir la note 1 ci-dessous | FN34: ="Taux d'imposition des sociétés (SPCC) " & FN2 -> Taux d'imposition des sociétés (SPCC) Terre-Neuve-et-Labrador | FX34: ="Taux d'imposition des sociétés (SPCC) " & FX2 -> Taux d'imposition des sociétés (SPCC) Territoires du Nord-Ouest | GH34: ="Taux d'imposition des sociétés (SPCC) " & GH2 -> Taux d'imposition des sociétés (SPCC) Yukon
B35: Taux REEA | D35: =IF($A$1=$BR$2,BT35,0)+IF($A$1=$CB$2,CD35,0)+IF($A$1=$CL$2,CN35,0)+IF($A$1=$CV$2,CX35,0)+IF($A$1=$DF$2,DH35,0)+IF($A$1=$DP$2,DR35,0)+IF($A$1=$DZ$2,EB35,0)+IF($A$1=$EJ$2,EL35,0)+IF($A$1=$ET$2,EV35,0)+IF($A$1=$FD$2,FF35,0)+IF($A$1=$FN$2,FP35,0)+IF($A$1=$FX$2,FZ35,0)+IF($A$1=$GH$2,GJ35,0) -> 0.265 | E35: agricole | F35: pas 5 500 heures au Québec | H35: DPE entre 500K et 600 K | BH35: Taux REEA | BJ35: 0.15 | BK35: agricole | BL35: pas 5 500 heures au Québec | BN35: DPE entre 500K et 600 K | BR35: Taux REEA | BT35: 0.23 | BU35: agricole | BV35: pas 5 500 heures au Québec | BX35: DPE entre 500K et 600 K | CB35: Taux REEA | CD35: 0.27 | CE35: agricole | CF35: pas 5 500 heures au Québec | CH35: DPE entre 500K et 600 K | CL35: Taux REEA | CN35: 0.31 | CO35: agricole | CP35: pas 5 500 heures au Québec | CR35: DPE entre 500K et 600 K | CV35: Taux REEA | CX35: 0.27 | CY35: agricole | CZ35: pas 5 500 heures au Québec | DB35: DPE entre 500K et 600 K | DF35: Taux REEA | DH35: 0.29 | DI35: agricole | DJ35: pas 5 500 heures au Québec | DL35: DPE entre 500K et 600 K | DP35: Taux REEA | DR35: 0.29 | DS35: agricole | DT35: pas 5 500 heures au Québec | DV35: DPE entre 500K et 600 K | DZ35: Taux REEA | EB35: 0.27 | EC35: agricole | ED35: pas 5 500 heures au Québec | EF35: DPE entre 500K et 600 K | EJ35: Taux REEA | EL35: 0.265 | EM35: agricole | EN35: pas 5 500 heures au Québec | EP35: DPE entre 500K et 600 K | ET35: Taux REEA | EV35: 0.265 | EW35: agricole | EX35: pas 5 500 heures au Québec | EZ35: DPE entre 500K et 600 K | FD35: Taux REEA | FF35: 0.27 | FG35: agricole | FH35: pas 5 500 heures au Québec | FJ35: DPE entre 500K et 600 K | FN35: Taux REEA | FP35: 0.3 | FQ35: agricole | FR35: pas 5 500 heures au Québec | FT35: DPE entre 500K et 600 K | FX35: Taux REEA | FZ35: 0.265 | GA35: agricole | GB35: pas 5 500 heures au Québec | GD35: DPE entre 500K et 600 K | GH35: Taux REEA | GJ35: 0.27 | GK35: agricole | GL35: pas 5 500 heures au Québec | GN35: DPE entre 500K et 600 K
B36: Taux DPE | C36: en général | D36: =IF($A$1=$BR$2,BT36,0)+IF($A$1=$CB$2,CD36,0)+IF($A$1=$CL$2,CN36,0)+IF($A$1=$CV$2,CX36,0)+IF($A$1=$DF$2,DH36,0)+IF($A$1=$DP$2,DR36,0)+IF($A$1=$DZ$2,EB36,0)+IF($A$1=$EJ$2,EL36,0)+IF($A$1=$ET$2,EV36,0)+IF($A$1=$FD$2,FF36,0)+IF($A$1=$FN$2,FP36,0)+IF($A$1=$FX$2,FZ36,0)+IF($A$1=$GH$2,GJ36,0) -> 0.122 | E36: =IF($A$1=$BR$2,BU36,0)+IF($A$1=$CB$2,CE36,0)+IF($A$1=$CL$2,CO36,0)+IF($A$1=$CV$2,CY36,0)+IF($A$1=$DF$2,DI36,0)+IF($A$1=$DP$2,DS36,0)+IF($A$1=$DZ$2,EC36,0)+IF($A$1=$EJ$2,EM36,0)+IF($A$1=$ET$2,EW36,0)+IF($A$1=$FD$2,FG36,0)+IF($A$1=$FN$2,FQ36,0)+IF($A$1=$FX$2,GA36,0)+IF($A$1=$GH$2,GK36,0) -> 0.13 | F36: =IF($A$1=$BR$2,BV36,0)+IF($A$1=$CB$2,CF36,0)+IF($A$1=$CL$2,CP36,0)+IF($A$1=$CV$2,CZ36,0)+IF($A$1=$DF$2,DJ36,0)+IF($A$1=$DP$2,DT36,0)+IF($A$1=$DZ$2,ED36,0)+IF($A$1=$EJ$2,EN36,0)+IF($A$1=$ET$2,EX36,0)+IF($A$1=$FD$2,FH36,0)+IF($A$1=$FN$2,FR36,0)+IF($A$1=$FX$2,GB36,0)+IF($A$1=$GH$2,GL36,0) -> 0 | G36: =IF($A$1=$BR$2,BW36,0)+IF($A$1=$CB$2,CG36,0)+IF($A$1=$CL$2,CQ36,0)+IF($A$1=$CV$2,DA36,0)+IF($A$1=$DF$2,DK36,0)+IF($A$1=$DP$2,DU36,0)+IF($A$1=$DZ$2,EE36,0)+IF($A$1=$EJ$2,EO36,0)+IF($A$1=$ET$2,EY36,0)+IF($A$1=$FD$2,FI36,0)+IF($A$1=$FN$2,FS36,0)+IF($A$1=$FX$2,GC36,0)+IF($A$1=$GH$2,GM36,0) -> 0 | H36: =IF($A$1=$BR$2,BX36,0)+IF($A$1=$CB$2,CH36,0)+IF($A$1=$CL$2,CR36,0)+IF($A$1=$CV$2,DB36,0)+IF($A$1=$DF$2,DL36,0)+IF($A$1=$DP$2,DV36,0)+IF($A$1=$DZ$2,EF36,0)+IF($A$1=$EJ$2,EP36,0)+IF($A$1=$ET$2,EZ36,0)+IF($A$1=$FD$2,FJ36,0)+IF($A$1=$FN$2,FT36,0)+IF($A$1=$FX$2,GD36,0)+IF($A$1=$GH$2,GN36,0) -> 0 | I36: =IF($A$1=$BR$2,BY36,0)+IF($A$1=$CB$2,CI36,0)+IF($A$1=$CL$2,CS36,0)+IF($A$1=$CV$2,DC36,0)+IF($A$1=$DF$2,DM36,0)+IF($A$1=$DP$2,DW36,0)+IF($A$1=$DZ$2,EG36,0)+IF($A$1=$EJ$2,EQ36,0)+IF($A$1=$ET$2,FA36,0)+IF($A$1=$FD$2,FK36,0)+IF($A$1=$FN$2,FU36,0)+IF($A$1=$FX$2,GE36,0)+IF($A$1=$GH$2,GO36,0) -> 0 | BG36: Voir La note 3 ci-dessous | BH36: Taux DPE | BI36: en général | BJ36: 0.09 | BN36: 0 | BO36: 0 | BR36: Taux DPE | BS36: en général | BT36: 0.11 | BU36: 0.13 | BX36: 0 | BY36: 0 | CB36: Taux DPE | CC36: en général | CD36: 0.11 | CE36: 0.13 | CH36: 0 | CI36: 0 | CL36: Taux DPE | CM36: en général | CN36: 0.1 | CO36: 0.13 | CR36: 0 | CS36: 0 | CV36: Taux DPE | CW36: en général | CX36: 0.09 | CY36: 0.13 | DB36: 0 | DC36: 0 | DF36: Taux DPE | DG36: en général | DH36: 0.115 | DI36: 0.13 | DL36: 0 | DM36: 0 | DP36: Taux DPE | DQ36: en général | DR36: 0.115 | DS36: 0.13 | DV36: 0 | DW36: 0 | DZ36: Taux DPE | EA36: en général | EB36: 0.12 | EC36: 0.13 | EF36: 0 | EG36: 0 | EJ36: Taux DPE | EK36: en général | EL36: 0.122 | EM36: 0.13 | EP36: 0 | EQ36: 0 | ET36: Taux DPE | EU36: en général | EV36: 0.122 | EW36: 0.122 | EX36: 0.205 | EY36: 0.445 | EZ36: 0 | FA36: 0 | FD36: Taux DPE | FE36: en général | FF36: 0.105 | FG36: 0.13 | FJ36: 0.155 | FK36: 500000 | FL36: Reste | FN36: Taux DPE | FO36: en général | FP36: 0.12 | FQ36: 0.13 | FT36: 0 | FU36: 0 | FX36: Taux DPE | FY36: en général | FZ36: 0.11 | GA36: 0.13 | GD36: 0 | GE36: 0 | GH36: Taux DPE | GI36: en général | GJ36: 0.09 | GK36: 0.13 | GN36: 0 | GO36: 0
B37: Taux placement | D37: 0.5017 | E37: BFT (fabrication & transformation) | F37: =IF($A$1=$BR$2,BV37,0)+IF($A$1=$CB$2,CF37,0)+IF($A$1=$CL$2,CP37,0)+IF($A$1=$CV$2,CZ37,0)+IF($A$1=$DF$2,DJ37,0)+IF($A$1=$DP$2,DT37,0)+IF($A$1=$DZ$2,ED37,0)+IF($A$1=$EJ$2,EN37,0)+IF($A$1=$ET$2,EX37,0)+IF($A$1=$FD$2,FH37,0)+IF($A$1=$FN$2,FR37,0)+IF($A$1=$FX$2,GB37,0)+IF($A$1=$GH$2,GL37,0) -> 0.25 | G37: Prestation de service | I37: 0 | BH37: Taux placement (SPCC) | BJ37: 0.3867 | BK37: BFT (fabrication & transformation) | BL37: =BJ35 -> 0.15 | BM37: Prestation de service | BO37: 0 | BR37: Taux placement (SPCC) | BT37: 0.4667 | BU37: BFT (fabrication & transformation) | BV37: 0.23 | BW37: Prestation de service | BY37: 0 | CB37: Taux placement (SPCC) | CD37: 0.5067 | CE37: BFT (fabrication & transformation) | CF37: =CD35 -> 0.27 | CG37: Prestation de service | CI37: 0 | CL37: Taux placement (SPCC) | CN37: 0.5467 | CO37: BFT (fabrication & transformation) | CP37: =CN35 -> 0.31 | CQ37: Prestation de service | CS37: 0 | CV37: Taux placement (SPCC) | CX37: 0.5067 | CY37: BFT (fabrication & transformation) | CZ37: =CX35 -> 0.27 | DA37: Prestation de service | DC37: 0 | DF37: Taux placement (SPCC) | DH37: 0.5267 | DI37: BFT (fabrication & transformation) | DJ37: =DH35 -> 0.29 | DK37: Prestation de service | DM37: 0 | DP37: Taux placement (SPCC) | DR37: 0.5267 | DS37: BFT (fabrication & transformation) | DT37: =DR35 -> 0.29 | DU37: Prestation de service | DW37: 0 | DZ37: Taux placement (SPCC) | EB37: 0.5067 | EC37: BFT (fabrication & transformation) | ED37: =EB35 -> 0.27 | EE37: Prestation de service | EG37: 0 | EJ37: Taux placement (SPCC) | EL37: 0.5017 | EM37: BFT (fabrication & transformation) | EN37: 0.25 | EO37: Prestation de service | EQ37: 0 | ET37: Taux placement (SPCC) | EV37: 0.5017 | EW37: BFT (fabrication & transformation) | EX37: =EV35 -> 0.265 | EY37: Prestation de service | FA37: 0 | FD37: Taux placement (SPCC) | FF37: 0.5067 | FG37: BFT (fabrication & transformation) | FH37: 0.25 | FI37: Prestation de service | FK37: 600000 | FN37: Taux placement (SPCC) | FP37: 0.5367 | FQ37: BFT (fabrication & transformation) | FR37: =FP35 -> 0.3 | FS37: Prestation de service | FU37: 0 | FX37: Taux placement (SPCC) | FZ37: 0.5017 | GA37: BFT (fabrication & transformation) | GB37: =FZ35 -> 0.265 | GC37: Prestation de service | GE37: 0 | GH37: Taux placement (SPCC) | GJ37: 0.5067 | GK37: BFT (fabrication & transformation) | GL37: 0.175 | GM37: Prestation de service | GO37: 0
B38: IMRTD | D38: Taux IMRTD | E38: Taux impôt | F38: RTD | G38: =IF($A$1=$BR$2,BW38,0)+IF($A$1=$CB$2,CG38,0)+IF($A$1=$CL$2,CQ38,0)+IF($A$1=$CV$2,DA38,0)+IF($A$1=$DF$2,DK38,0)+IF($A$1=$DP$2,DU38,0)+IF($A$1=$DZ$2,EE38,0)+IF($A$1=$EJ$2,EO38,0)+IF($A$1=$ET$2,EY38,0)+IF($A$1=$FD$2,FI38,0)+IF($A$1=$FN$2,FS38,0)+IF($A$1=$FX$2,GC38,0)+IF($A$1=$GH$2,GM38,0) -> 0.122 | H38: BFT avec DPE | BH38: IMRTD | BJ38: Taux IMRTD | BK38: Taux impôt | BL38: RTD | BM38: =BJ36 -> 0.09 | BN38: BFT avec DPE | BR38: IMRTD | BT38: Taux IMRTD | BU38: Taux impôt | BV38: RTD | BW38: =BT36 -> 0.11 | BX38: BFT avec DPE | CB38: IMRTD | CD38: Taux IMRTD | CE38: Taux impôt | CF38: RTD | CG38: =CD36 -> 0.11 | CH38: BFT avec DPE | CL38: IMRTD | CN38: Taux IMRTD | CO38: Taux impôt | CP38: RTD | CQ38: =CN36 -> 0.1 | CR38: BFT avec DPE | CV38: IMRTD | CX38: Taux IMRTD | CY38: Taux impôt | CZ38: RTD | DA38: =CX36 -> 0.09 | DB38: BFT avec DPE | DF38: IMRTD | DH38: Taux IMRTD | DI38: Taux impôt | DJ38: RTD | DK38: =DH36 -> 0.115 | DL38: BFT avec DPE | DP38: IMRTD | DR38: Taux IMRTD | DS38: Taux impôt | DT38: RTD | DU38: =DR36 -> 0.115 | DV38: BFT avec DPE | DZ38: IMRTD | EB38: Taux IMRTD | EC38: Taux impôt | ED38: RTD | EE38: =EB36 -> 0.12 | EF38: BFT avec DPE | EJ38: IMRTD | EL38: Taux IMRTD | EM38: Taux impôt | EN38: RTD | EO38: =EL36 -> 0.122 | EP38: BFT avec DPE | ET38: IMRTD | EV38: Taux IMRTD | EW38: Taux impôt | EX38: RTD | EY38: =EV36 -> 0.122 | EZ38: BFT avec DPE | FD38: IMRTD | FF38: Taux IMRTD | FG38: Taux impôt | FH38: RTD | FI38: =FF36 -> 0.105 | FJ38: BFT avec DPE | FN38: IMRTD | FP38: Taux IMRTD | FQ38: Taux impôt | FR38: RTD | FS38: =FP36 -> 0.12 | FT38: BFT avec DPE | FX38: IMRTD | FZ38: Taux IMRTD | GA38: Taux impôt | GB38: RTD | GC38: =FZ36 -> 0.11 | GD38: BFT avec DPE | GH38: IMRTD | GJ38: Taux IMRTD | GK38: Taux impôt | GL38: RTD | GM38: =GJ36 -> 0.09 | GN38: BFT avec DPE
C39: Intérêt | D39: =IF($A$1=$BR$2,BT39,0)+IF($A$1=$CB$2,CD39,0)+IF($A$1=$CL$2,CN39,0)+IF($A$1=$CV$2,CX39,0)+IF($A$1=$DF$2,DH39,0)+IF($A$1=$DP$2,DR39,0)+IF($A$1=$DZ$2,EB39,0)+IF($A$1=$EJ$2,EL39,0)+IF($A$1=$ET$2,EV39,0)+IF($A$1=$FD$2,FF39,0)+IF($A$1=$FN$2,FP39,0)+IF($A$1=$FX$2,FZ39,0)+IF($A$1=$GH$2,GJ39,0) -> 0.3067 | E39: 0.5017 | F39: =IF($A$1=$BR$2,BV39,0)+IF($A$1=$CB$2,CF39,0)+IF($A$1=$CL$2,CP39,0)+IF($A$1=$CV$2,CZ39,0)+IF($A$1=$DF$2,DJ39,0)+IF($A$1=$DP$2,DT39,0)+IF($A$1=$DZ$2,ED39,0)+IF($A$1=$EJ$2,EN39,0)+IF($A$1=$ET$2,EX39,0)+IF($A$1=$FD$2,FH39,0)+IF($A$1=$FN$2,FR39,0)+IF($A$1=$FX$2,GB39,0)+IF($A$1=$GH$2,GL39,0) -> 0.3833 | G39: =IF($A$1=$BR$2,BW39,0)+IF($A$1=$CB$2,CG39,0)+IF($A$1=$CL$2,CQ39,0)+IF($A$1=$CV$2,DA39,0)+IF($A$1=$DF$2,DK39,0)+IF($A$1=$DP$2,DU39,0)+IF($A$1=$DZ$2,EE39,0)+IF($A$1=$EJ$2,EO39,0)+IF($A$1=$ET$2,EY39,0)+IF($A$1=$FD$2,FI39,0)+IF($A$1=$FN$2,FS39,0)+IF($A$1=$FX$2,GC39,0)+IF($A$1=$GH$2,GM39,0) -> 2.608922515 | BI39: Intérêt | BJ39: =BJ41 -> 0.3067 | BK39: =BJ37 -> 0.3867 | BL39: 0.3833 | BM39: =1/BL39 -> 2.608922515 | BS39: Intérêt | BT39: =$BJ$39 -> 0.3067 | BU39: =BT37 -> 0.4667 | BV39: =$BL$39 -> 0.3833 | BW39: =1/BV39 -> 2.608922515 | CC39: Intérêt | CD39: =$BJ$39 -> 0.3067 | CE39: =CD37 -> 0.5067 | CF39: =$BL$39 -> 0.3833 | CG39: =1/CF39 -> 2.608922515 | CM39: Intérêt | CN39: =$BJ$39 -> 0.3067 | CO39: =CN37 -> 0.5467 | CP39: =$BL$39 -> 0.3833 | CQ39: =1/CP39 -> 2.608922515 | CW39: Intérêt | CX39: =$BJ$39 -> 0.3067 | CY39: =CX37 -> 0.5067 | CZ39: =$BL$39 -> 0.3833 | DA39: =1/CZ39 -> 2.608922515 | DG39: Intérêt | DH39: =$BJ$39 -> 0.3067 | DI39: =DH37 -> 0.5267 | DJ39: =$BL$39 -> 0.3833 | DK39: =1/DJ39 -> 2.608922515 | DQ39: Intérêt | DR39: =$BJ$39 -> 0.3067 | DS39: =DR37 -> 0.5267 | DT39: =$BL$39 -> 0.3833 | DU39: =1/DT39 -> 2.608922515 | EA39: Intérêt | EB39: =$BJ$39 -> 0.3067 | EC39: =EB37 -> 0.5067 | ED39: =$BL$39 -> 0.3833 | EE39: =1/ED39 -> 2.608922515 | EK39: Intérêt | EL39: =$BJ$39 -> 0.3067 | EM39: =EL37 -> 0.5017 | EN39: =$BL$39 -> 0.3833 | EO39: =1/EN39 -> 2.608922515 | EU39: Intérêt | EV39: =$BJ$39 -> 0.3067 | EW39: =EV37 -> 0.5017 | EX39: =$BL$39 -> 0.3833 | EY39: =1/EX39 -> 2.608922515 | FE39: Intérêt | FF39: =$BJ$39 -> 0.3067 | FG39: =FF37 -> 0.5067 | FH39: =$BL$39 -> 0.3833 | FI39: =1/FH39 -> 2.608922515 | FO39: Intérêt | FP39: =$BJ$39 -> 0.3067 | FQ39: =FP37 -> 0.5367 | FR39: =$BL$39 -> 0.3833 | FS39: =1/FR39 -> 2.608922515 | FY39: Intérêt | FZ39: =$BJ$39 -> 0.3067 | GA39: =FZ37 -> 0.5017 | GB39: =$BL$39 -> 0.3833 | GC39: =1/GB39 -> 2.608922515 | GI39: Intérêt | GJ39: =$BJ$39 -> 0.3067 | GK39: =GJ37 -> 0.5067 | GL39: =$BL$39 -> 0.3833 | GM39: =1/GL39 -> 2.608922515
C40: Déterminé | D40: 0.3833 | E40: 0.3833 | G40: 2.61 | BI40: Déterminé | BJ40: 0.3833 | BK40: 0.3833 | BM40: =FIXED(BM39,2) -> 2.61 | BS40: Déterminé | BT40: =$BJ$40 -> 0.3833 | BU40: =$BK$40 -> 0.3833 | BW40: =FIXED(BW39,2) -> 2.61 | CC40: Déterminé | CD40: =$BJ$40 -> 0.3833 | CE40: =$BK$40 -> 0.3833 | CG40: =FIXED(CG39,2) -> 2.61 | CM40: Déterminé | CN40: =$BJ$40 -> 0.3833 | CO40: =$BK$40 -> 0.3833 | CQ40: =FIXED(CQ39,2) -> 2.61 | CW40: Déterminé | CX40: =$BJ$40 -> 0.3833 | CY40: =$BK$40 -> 0.3833 | DA40: =FIXED(DA39,2) -> 2.61 | DG40: Déterminé | DH40: =$BJ$40 -> 0.3833 | DI40: =$BK$40 -> 0.3833 | DK40: =FIXED(DK39,2) -> 2.61 | DQ40: Déterminé | DR40: =$BJ$40 -> 0.3833 | DS40: =$BK$40 -> 0.3833 | DU40: =FIXED(DU39,2) -> 2.61 | EA40: Déterminé | EB40: =$BJ$40 -> 0.3833 | EC40: =$BK$40 -> 0.3833 | EE40: =FIXED(EE39,2) -> 2.61 | EK40: Déterminé | EL40: =$BJ$40 -> 0.3833 | EM40: =$BK$40 -> 0.3833 | EO40: =FIXED(EO39,2) -> 2.61 | EU40: Déterminé | EV40: =$BJ$40 -> 0.3833 | EW40: =$BK$40 -> 0.3833 | EY40: =FIXED(EY39,2) -> 2.61 | FE40: Déterminé | FF40: =$BJ$40 -> 0.3833 | FG40: =$BK$40 -> 0.3833 | FI40: =FIXED(FI39,2) -> 2.61 | FO40: Déterminé | FP40: =$BJ$40 -> 0.3833 | FQ40: =$BK$40 -> 0.3833 | FS40: =FIXED(FS39,2) -> 2.61 | FY40: Déterminé | FZ40: =$BJ$40 -> 0.3833 | GA40: =$BK$40 -> 0.3833 | GC40: =FIXED(GC39,2) -> 2.61 | GI40: Déterminé | GJ40: =$BJ$40 -> 0.3833 | GK40: =$BK$40 -> 0.3833 | GM40: =FIXED(GM39,2) -> 2.61
C41: Non déterminé (ordinaire) | D41: 0.3067 | E41: 0.5017 | BI41: Non déterminé (ordinaire) | BJ41: 0.3067 | BK41: =BJ37 -> 0.3867 | BS41: Non déterminé (ordinaire) | BT41: =$BJ$41 -> 0.3067 | BU41: =BT37 -> 0.4667 | CC41: Non déterminé (ordinaire) | CD41: =$BJ$41 -> 0.3067 | CE41: =CD37 -> 0.5067 | CM41: Non déterminé (ordinaire) | CN41: =$BJ$41 -> 0.3067 | CO41: =CN37 -> 0.5467 | CW41: Non déterminé (ordinaire) | CX41: =$BJ$41 -> 0.3067 | CY41: =CX37 -> 0.5067 | DG41: Non déterminé (ordinaire) | DH41: =$BJ$41 -> 0.3067 | DI41: =DH37 -> 0.5267 | DQ41: Non déterminé (ordinaire) | DR41: =$BJ$41 -> 0.3067 | DS41: =DR37 -> 0.5267 | EA41: Non déterminé (ordinaire) | EB41: =$BJ$41 -> 0.3067 | EC41: =EB37 -> 0.5067 | EK41: Non déterminé (ordinaire) | EL41: =$BJ$41 -> 0.3067 | EM41: =EL37 -> 0.5017 | EU41: Non déterminé (ordinaire) | EV41: =$BJ$41 -> 0.3067 | EW41: =EV37 -> 0.5017 | FE41: Non déterminé (ordinaire) | FF41: =$BJ$41 -> 0.3067 | FG41: =FF37 -> 0.5067 | FO41: Non déterminé (ordinaire) | FP41: =$BJ$41 -> 0.3067 | FQ41: =FP37 -> 0.5367 | FY41: Non déterminé (ordinaire) | FZ41: =$BJ$41 -> 0.3067 | GA41: =FZ37 -> 0.5017 | GI41: Non déterminé (ordinaire) | GJ41: =$BJ$41 -> 0.3067 | GK41: =GJ37 -> 0.5067
C42: Revenu étranger | D42: 0.1877 | E42: 0.5017 | BI42: Revenu étranger | BJ42: 0.1877 | BK42: =BJ37 -> 0.3867 | BS42: Revenu étranger | BT42: =$BJ$42 -> 0.1877 | BU42: =BT37 -> 0.4667 | CC42: Revenu étranger | CD42: =$BJ$42 -> 0.1877 | CE42: =CD37 -> 0.5067 | CM42: Revenu étranger | CN42: =$BJ$42 -> 0.1877 | CO42: =CN37 -> 0.5467 | CW42: Revenu étranger | CX42: =$BJ$42 -> 0.1877 | CY42: =CX37 -> 0.5067 | DG42: Revenu étranger | DH42: =$BJ$42 -> 0.1877 | DI42: =DH37 -> 0.5267 | DQ42: Revenu étranger | DR42: =$BJ$42 -> 0.1877 | DS42: =DR37 -> 0.5267 | EA42: Revenu étranger | EB42: =$BJ$42 -> 0.1877 | EC42: =EB37 -> 0.5067 | EK42: Revenu étranger | EL42: =$BJ$42 -> 0.1877 | EM42: =EL37 -> 0.5017 | EU42: Revenu étranger | EV42: =$BJ$42 -> 0.1877 | EW42: =EV37 -> 0.5017 | FE42: Revenu étranger | FF42: =$BJ$42 -> 0.1877 | FG42: =FF37 -> 0.5067 | FO42: Revenu étranger | FP42: =$BJ$42 -> 0.1877 | FQ42: =FP37 -> 0.5367 | FY42: Revenu étranger | FZ42: =$BJ$42 -> 0.1877 | GA42: =FZ37 -> 0.5017 | GI42: Revenu étranger | GJ42: =$BJ$42 -> 0.1877 | GK42: =GJ37 -> 0.5067
C43: Gain en capital | D43: 0.3067 | E43: 0.5017 | BI43: Gain en capital | BJ43: =BJ41 -> 0.3067 | BK43: =BJ37 -> 0.3867 | BS43: Gain en capital | BT43: =$BJ$43 -> 0.3067 | BU43: =BT37 -> 0.4667 | CC43: Gain en capital | CD43: =$BJ$43 -> 0.3067 | CE43: =CD37 -> 0.5067 | CM43: Gain en capital | CN43: =$BJ$43 -> 0.3067 | CO43: =CN37 -> 0.5467 | CW43: Gain en capital | CX43: =$BJ$43 -> 0.3067 | CY43: =CX37 -> 0.5067 | DG43: Gain en capital | DH43: =$BJ$43 -> 0.3067 | DI43: =DH37 -> 0.5267 | DQ43: Gain en capital | DR43: =$BJ$43 -> 0.3067 | DS43: =DR37 -> 0.5267 | EA43: Gain en capital | EB43: =$BJ$43 -> 0.3067 | EC43: =EB37 -> 0.5067 | EK43: Gain en capital | EL43: =$BJ$43 -> 0.3067 | EM43: =EL37 -> 0.5017 | EU43: Gain en capital | EV43: =$BJ$43 -> 0.3067 | EW43: =EV37 -> 0.5017 | FE43: Gain en capital | FF43: =$BJ$43 -> 0.3067 | FG43: =FF37 -> 0.5067 | FO43: Gain en capital | FP43: =$BJ$43 -> 0.3067 | FQ43: =FP37 -> 0.5367 | FY43: Gain en capital | FZ43: =$BJ$43 -> 0.3067 | GA43: =FZ37 -> 0.5017 | GI43: Gain en capital | GJ43: =$BJ$43 -> 0.3067 | GK43: =GJ37 -> 0.5067
B44: Plafond des affaires | D44: =IF($A$1=$BR$2,BT44,0)+IF($A$1=$CB$2,CD44,0)+IF($A$1=$CL$2,CN44,0)+IF($A$1=$CV$2,CX44,0)+IF($A$1=$DF$2,DH44,0)+IF($A$1=$DP$2,DR44,0)+IF($A$1=$DZ$2,EB44,0)+IF($A$1=$EJ$2,EL44,0)+IF($A$1=$ET$2,EV44,0)+IF($A$1=$FD$2,FF44,0)+IF($A$1=$FN$2,FP44,0)+IF($A$1=$FX$2,FZ44,0)+IF($A$1=$GH$2,GJ44,0) -> 500000 | E44: Taux d'indexation : | F44: =IF($A$1=$BR$2,BV44,0)+IF($A$1=$CB$2,CF44,0)+IF($A$1=$CL$2,CP44,0)+IF($A$1=$CV$2,CZ44,0)+IF($A$1=$DF$2,DJ44,0)+IF($A$1=$DP$2,DT44,0)+IF($A$1=$DZ$2,ED44,0)+IF($A$1=$EJ$2,EN44,0)+IF($A$1=$ET$2,EX44,0)+IF($A$1=$FD$2,FH44,0)+IF($A$1=$FN$2,FR44,0)+IF($A$1=$FX$2,GB44,0)+IF($A$1=$GH$2,GL44,0) -> 0 | BH44: Plafond des affaires | BJ44: 500000 | BK44: Taux d'indexation : | BL44: 0 | BR44: Plafond des affaires | BT44: =$BJ$44 -> 500000 | BU44: Taux d'indexation : | BV44: =$BL$44 -> 0 | CB44: Plafond des affaires | CD44: =$BJ$44 -> 500000 | CE44: Taux d'indexation : | CF44: =$BL$44 -> 0 | CL44: Plafond des affaires | CN44: =$BJ$44 -> 500000 | CO44: Taux d'indexation : | CP44: =$BL$44 -> 0 | CV44: Plafond des affaires | CX44: =$BJ$44 -> 500000 | CY44: Taux d'indexation : | CZ44: =$BL$44 -> 0 | DF44: Plafond des affaires | DH44: =$BJ$44 -> 500000 | DI44: Taux d'indexation : | DJ44: =$BL$44 -> 0 | DP44: Plafond des affaires | DR44: =$BJ$44 -> 500000 | DS44: Taux d'indexation : | DT44: =$BL$44 -> 0 | DZ44: Plafond des affaires | EB44: =$BJ$44 -> 500000 | EC44: Taux d'indexation : | ED44: =$BL$44 -> 0 | EJ44: Plafond des affaires | EL44: =$BJ$44 -> 500000 | EM44: Taux d'indexation : | EN44: =$BL$44 -> 0 | ET44: Plafond des affaires | EV44: =$BJ$44 -> 500000 | EW44: Taux d'indexation : | EX44: =$BL$44 -> 0 | FD44: Plafond des affaires | FF44: =$BJ$44 -> 500000 | FG44: Taux d'indexation : | FH44: =$BL$44 -> 0 | FN44: Plafond des affaires | FP44: =$BJ$44 -> 500000 | FQ44: Taux d'indexation : | FR44: =$BL$44 -> 0 | FX44: Plafond des affaires | FZ44: =$BJ$44 -> 500000 | GA44: Taux d'indexation : | GB44: =$BL$44 -> 0 | GH44: Plafond des affaires | GJ44: =$BJ$44 -> 500000 | GK44: Taux d'indexation : | GL44: =$BL$44 -> 0
B45: Revenus passifs | BH45: Revenus passifs | BR45: Revenus passifs | CB45: Revenus passifs | CL45: Revenus passifs | CV45: Revenus passifs | DF45: Revenus passifs | DP45: Revenus passifs | DZ45: Revenus passifs | EJ45: Revenus passifs | ET45: Revenus passifs | FD45: Revenus passifs | FN45: Revenus passifs | FX45: Revenus passifs | GH45: Revenus passifs
C46: Exemption | D46: =IF($A$1=$BR$2,BT46,0)+IF($A$1=$CB$2,CD46,0)+IF($A$1=$CL$2,CN46,0)+IF($A$1=$CV$2,CX46,0)+IF($A$1=$DF$2,DH46,0)+IF($A$1=$DP$2,DR46,0)+IF($A$1=$DZ$2,EB46,0)+IF($A$1=$EJ$2,EL46,0)+IF($A$1=$ET$2,EV46,0)+IF($A$1=$FD$2,FF46,0)+IF($A$1=$FN$2,FP46,0)+IF($A$1=$FX$2,FZ46,0)+IF($A$1=$GH$2,GJ46,0) -> 50000 | BI46: Exemption | BJ46: 50000 | BS46: Exemption | BT46: =$BJ$46 -> 50000 | CC46: Exemption | CD46: =$BJ$46 -> 50000 | CM46: Exemption | CN46: =$BJ$46 -> 50000 | CW46: Exemption | CX46: =$BJ$46 -> 50000 | DG46: Exemption | DH46: =$BJ$46 -> 50000 | DQ46: Exemption | DR46: =$BJ$46 -> 50000 | EA46: Exemption | EB46: =$BJ$46 -> 50000 | EK46: Exemption | EL46: =$BJ$46 -> 50000 | EU46: Exemption | EV46: =$BJ$46 -> 50000 | FE46: Exemption | FF46: =$BJ$46 -> 50000 | FO46: Exemption | FP46: =$BJ$46 -> 50000 | FY46: Exemption | FZ46: =$BJ$46 -> 50000 | GI46: Exemption | GJ46: =$BJ$46 -> 50000
C47: Taux réduction DPE | D47: =IF($A$1=$BR$2,BT47,0)+IF($A$1=$CB$2,CD47,0)+IF($A$1=$CL$2,CN47,0)+IF($A$1=$CV$2,CX47,0)+IF($A$1=$DF$2,DH47,0)+IF($A$1=$DP$2,DR47,0)+IF($A$1=$DZ$2,EB47,0)+IF($A$1=$EJ$2,EL47,0)+IF($A$1=$ET$2,EV47,0)+IF($A$1=$FD$2,FF47,0)+IF($A$1=$FN$2,FP47,0)+IF($A$1=$FX$2,FZ47,0)+IF($A$1=$GH$2,GJ47,0) -> 5 | E47: =IF($A$1=$BR$2,BU47,0)+IF($A$1=$CB$2,CE47,0)+IF($A$1=$CL$2,CO47,0)+IF($A$1=$CV$2,CY47,0)+IF($A$1=$DF$2,DI47,0)+IF($A$1=$DP$2,DS47,0)+IF($A$1=$DZ$2,EC47,0)+IF($A$1=$EJ$2,EM47,0)+IF($A$1=$ET$2,EW47,0)+IF($A$1=$FD$2,FG47,0)+IF($A$1=$FN$2,FQ47,0)+IF($A$1=$FX$2,GA47,0)+IF($A$1=$GH$2,GK47,0) -> 5 | BI47: Taux réduction DPE | BJ47: 5 | BK47: =BJ47 -> 5 | BS47: Taux réduction DPE | BT47: =$BJ$47 -> 5 | BU47: =BT47 -> 5 | CC47: Taux réduction DPE | CD47: =$BJ$47 -> 5 | CE47: =CD47 -> 5 | CM47: Taux réduction DPE | CN47: =$BJ$47 -> 5 | CO47: =CN47 -> 5 | CW47: Taux réduction DPE | CX47: =$BJ$47 -> 5 | CY47: =CX47 -> 5 | DG47: Taux réduction DPE | DH47: =$BJ$47 -> 5 | DI47: =DH47 -> 5 | DQ47: Taux réduction DPE | DR47: =$BJ$47 -> 5 | DS47: =DR47 -> 5 | EA47: Taux réduction DPE | EB47: =$BJ$47 -> 5 | EC47: =EB47 -> 5 | EK47: Taux réduction DPE | EL47: =$BJ$47 -> 5 | EM47: =EL47 -> 5 | EU47: Taux réduction DPE | EV47: =$BJ$47 -> 5 | EW47: =EV47 -> 5 | FE47: Taux réduction DPE | FF47: =$BJ$47 -> 5 | FG47: =FF47 -> 5 | FO47: Taux réduction DPE | FP47: =$BJ$47 -> 5 | FQ47: =FP47 -> 5 | FY47: Taux réduction DPE | FZ47: =$BJ$47 -> 5 | GA47: =FZ47 -> 5 | GI47: Taux réduction DPE | GJ47: =$BJ$47 -> 5 | GK47: =GJ47 -> 5
E48: https://www.canada.ca/fr/agence-revenu/services/impot/particuliers/foire-questions-particuliers/rajustement-montants-fonction-indexation-impot-particuliers-prestations.html
C49: Le gouvernement du Canada annonce le report de la mise en œuvre du changement au taux d’inclusion des gains en capital - Canada.ca | H49: Incitatif aux entrepreneurs CDN (disposition AAPE admissible) | BH49: https://www.canada.ca/fr/agence-revenu/services/impot/entreprises/sujets/societes/taux-impot-societes.html
B50: Divers | F50: Exo Indexé à compté de : | H50: Solde actuel | I50: Majoration | J50: Maximum | K50: Taux | BR50: ="Palier d'imposition " & BR2 -> Palier d'imposition Alberta | CB50: ="Palier d'imposition " & CB2 -> Palier d'imposition Colombie-Britannique | CL50: ="Palier d'imposition " & CL2 -> Palier d'imposition Île-du-Prince-Édouard | CV50: ="Palier d'imposition " & CV2 -> Palier d'imposition Manitoba | DF50: ="Palier d'imposition " & DF2 -> Palier d'imposition Nouveau-Brunswick | DP50: ="Palier d'imposition " & DP2 -> Palier d'imposition Nouvelle-Écosse | DZ50: ="Palier d'imposition " & DZ2 -> Palier d'imposition Nunavut | EJ50: ="Palier d'imposition " & EJ2 -> Palier d'imposition Ontario | ET50: ="Palier d'imposition " & ET2 -> Palier d'imposition Québec | FD50: ="Palier d'imposition " & FD2 -> Palier d'imposition Saskatchewan | FN50: ="Palier d'imposition " & FN2 -> Palier d'imposition Terre-Neuve-et-Labrador | FX50: ="Palier d'imposition " & FX2 -> Palier d'imposition Territoires du Nord-Ouest | GH50: ="Palier d'imposition " & GH2 -> Palier d'imposition Yukon
B51: Max Exonération | E51: 1250000 | F51: 2026 | H51: 400000 | I51: 400000 | J51: 2000000 | K51: =1/3 -> 0.3333333333 | BR51: min | BS51: max | BT51: Taux | CB51: min | CC51: max | CD51: Taux | CL51: min | CM51: max | CN51: Taux | CO51: Crédit base | CP51: Majoration | CV51: min | CW51: max | CX51: Taux | DF51: min | DG51: max | DH51: Taux | DP51: min | DQ51: max | DR51: Taux | DZ51: min | EA51: max | EB51: Taux | EJ51: min | EK51: max | EL51: Taux | ET51: min | EU51: max | EV51: Taux | FD51: min | FE51: max | FF51: Taux | FN51: min | FO51: max | FP51: Taux | FX51: min | FY51: max | FZ51: Taux | GH51: min | GI51: max | GJ51: Taux
B52: Max Exonération (Agriculture/pêche) | E52: =MAX(1000000,E51) -> 1250000 | F52: On ne considère pas l'IMR | H52: 2025 | I52: par année | J52: 2029 | BR52: 0 | BS52: 22323 | BT52: 0 | CB52: 0 | CC52: 12934 | CD52: 0 | CL52: 0 | CM52: 14250 | CN52: 0 | CO52: 12719 | CP52: 1679 | CQ52: =CO52+CP52 -> 14398 | CV52: 0 | CW52: 15969 | CX52: 0 | DF52: 0 | DG52: 13396 | DH52: 0 | DP52: 0 | DQ52: 11744 | DR52: 0 | DZ52: 0 | EA52: 19274 | EB52: 0 | EJ52: 0 | EK52: 12747 | EL52: 0 | ET52: 0 | EU52: 18571 | EV52: 0 | FD52: 0 | FE52: 18991 | FF52: 0 | FN52: 0 | FO52: 11067 | FP52: 0 | FX52: 0 | FY52: 17842 | FZ52: 0 | GH52: 0 | GI52: 16129 | GJ52: 0
B53: Taux d'inclusion G/C | D53: Perso | E53: 0.5 | F53: 250000 | G53: 0.5 | H53: Corpo | I53: 0.5 | J53: Fiducie | K53: =I53 -> 0.5 | BR53: =BS52 -> 22323 | BS53: 151234 | BT53: 0.1 | CB53: =CC52 -> 12934 | CC53: 49279 | CD53: 0.0506 | CL53: =CM52 -> 14250 | CM53: 33328 | CN53: 0.095 | CV53: =CW52 -> 15969 | CW53: 47564 | CX53: 0.108 | DF53: =DG52 -> 13396 | DG53: 51306 | DH53: 0.094 | DP53: =DQ52 -> 11744 | DQ53: 30507 | DR53: 0.0879 | DZ53: =EA52 -> 19274 | EA53: 54707 | EB53: 0.04 | EJ53: =EK52 -> 12747 | EK53: 52886 | EL53: 0.0505 | ET53: =EU52 -> 18571 | EU53: 53255 | EV53: 0.14 | FD53: =FE52 -> 18991 | FE53: 53463 | FF53: 0.105 | FN53: =FO52 -> 11067 | FO53: 44192 | FP53: 0.087 | FX53: =FY52 -> 17842 | FY53: 51964 | FZ53: 0.059 | GH53: =GI52 -> 16129 | GI53: 57375 | GJ53: 0.064
B54: Rotation des actifs (épargne perso) | E54: 0.5 | F54: $ max 1er taux | G54: 2e taux | H54: =E54 -> 0.5 | I54: Taux | J54: Solution 164(6) | K54: 0.5 | BR54: =BS53 -> 151234 | BS54: 181481 | BT54: 0.12 | CB54: 49279 | CC54: 98560 | CD54: 0.077 | CL54: =CM53 -> 33328 | CM54: 64656 | CN54: 0.1347 | CV54: =CW53 -> 47564 | CW54: 101200 | CX54: 0.1275 | DF54: =DG53 -> 51306 | DG54: 102614 | DH54: 0.14 | DP54: =DQ53 -> 30507 | DQ54: 61015 | DR54: 0.1495 | DZ54: =EA53 -> 54707 | EA54: 109413 | EB54: 0.07 | EJ54: =EK53 -> 52886 | EK54: 105775 | EL54: 0.0915 | ET54: =EU53 -> 53255 | EU54: 106495 | EV54: 0.19 | FD54: =FE53 -> 53463 | FE54: 152750 | FF54: 0.125 | FN54: 44192 | FO54: 88382 | FP54: 0.145 | FX54: =FY53 -> 51964 | FY54: 103930 | FZ54: 0.086 | GH54: =GI53 -> 57375 | GI54: 114750 | GJ54: 0.09
B55: Limite d'excédent de revenu avant de replacer | E55: 0 | F55: Max CELI 2025 | H55: Rotation actifs (épargne corpo) | J55: (minimisation pertes) | K55: =1-K54 -> 0.5 | BR55: =BS54 -> 181481 | BS55: 241974 | BT55: 0.13 | CB55: 98560 | CC55: 113158 | CD55: 0.105 | CL55: =CM54 -> 64656 | CM55: 105000 | CN55: 0.166 | CV55: =CW54 -> 101200 | CX55: 0.174 | DF55: =DG54 -> 102614 | DG55: 190060 | DH55: 0.16 | DP55: =DQ54 -> 61015 | DQ55: 95883 | DR55: 0.1667 | DZ55: =EA54 -> 109413 | EA55: 177881 | EB55: 0.09 | EJ55: =EK54 -> 105775 | EK55: 150000 | EL55: 0.1116 | ET55: =EU54 -> 106495 | EU55: 129590 | EV55: 0.24 | FD55: =FE54 -> 152750 | FF55: 0.145 | FN55: 88382 | FO55: 157792 | FP55: 0.158 | FX55: =FY54 -> 103930 | FY55: 168967 | FZ55: 0.122 | GH55: =GI54 -> 114750 | GI55: 177882 | GJ55: 0.109
B56: CELI | C56: Cotisation maximale annuelle | E56: =5500*1.013*1.014*1.022*1.019*1.01*1.024*1.063*1.047*1.027 -> 6955.156232 | F56: =MROUND(E56,500) -> 7000 | BR56: =BS55 -> 241974 | BS56: 362961 | BT56: 0.14 | CB56: 113158 | CC56: 137407 | CD56: 0.1229 | CL56: =CM55 -> 105000 | CM56: 140000 | CN56: 0.1762 | DF56: =DG55 -> 190060 | DH56: 0.195 | DP56: =DQ55 -> 95883 | DQ56: 154650 | DR56: 0.175 | DZ56: =EA55 -> 177881 | EB56: 0.115 | EJ56: =EK55 -> 150000 | EK56: 220000 | EL56: 0.1216 | ET56: =EU55 -> 129590 | EV56: 0.2575 | FN56: 157792 | FO56: 220910 | FP56: 0.178 | FX56: =FY55 -> 168967 | FZ56: 0.1405 | GH56: =GI55 -> 177882 | GI56: 500000 | GJ56: 0.128
C57: Maximum cumulatif | E57: =5000*4+5500*2+10000+5500*3+6000*4+6500+7000+7000 -> 102000 | F57: https://www.canada.ca/fr/agence-revenu/services/impot/administrateurs-regimes-enregistres/fesp/plafonds-cd-reer-rpdb-celi-mgap.html | BR57: =BS56 -> 362961 | BT57: 0.15 | CB57: 137407 | CC57: 186306 | CD57: 0.147 | CL57: =CM56 -> 140000 | CN57: 0.19 | DP57: =DQ56 -> 154650 | DR57: 0.21 | EJ57: =EK56 -> 220000 | EL57: 0.1316 | FN57: 220910 | FO57: 282214 | FP57: 0.198 | GH57: =GI56 -> 500000 | GJ57: 0.15
B58: REER | C58: Cotisation maximale annuelle | E58: 32490 | F58: Ne sert pas pour l'instant | CB58: 186306 | CC58: 259829 | CD58: 0.168 | FN58: 282214 | FO58: 564429 | FP58: 0.208
B59: FRV | C59: Taux calcul du max | E59: 0.06 | F59: https://www.rrq.gouv.qc.ca/fr/professionnels/cri_frv/Pages/taux_reference.aspx | CB59: 259829 | CD59: 0.205 | FN59: 564429 | FO59: 1128858 | FP59: 0.213
B60: Crédit pension | C60: Fédéral | D60: 0 | E60: 0 | F60: Ne sert pas pour l'instant | FN60: 1128858 | FP60: 0.218
C61: Québec | D61: 0 | E61: 0 | F61: Ne sert pas pour l'instant
F62: Retraite Québec - Montants des prestations et données de base | BR62: https://www.canada.ca/fr/agence-revenu/services/impot/particuliers/foire-questions-particuliers/taux-imposition-canadiens-particuliers-annee-courante-annees-passees.html#provincial
B64: ="Charges sociales " & A1 -> Charges sociales Ontario | BH64: ="Charges sociales " & BH2 -> Charges sociales Fédéral | BR64: ="Charges sociales " & BR2 -> Charges sociales Alberta | CB64: ="Charges sociales " & CB2 -> Charges sociales Colombie-Britannique | CL64: ="Charges sociales " & CL2 -> Charges sociales Île-du-Prince-Édouard | CV64: ="Charges sociales " & CV2 -> Charges sociales Manitoba | DF64: ="Charges sociales " & DF2 -> Charges sociales Nouveau-Brunswick | DP64: ="Charges sociales " & DP2 -> Charges sociales Nouvelle-Écosse | DZ64: ="Charges sociales " & DZ2 -> Charges sociales Nunavut | EJ64: ="Charges sociales " & EJ2 -> Charges sociales Ontario | ET64: ="Charges sociales " & ET2 -> Charges sociales Québec | FD64: ="Charges sociales " & FD2 -> Charges sociales Saskatchewan | FN64: ="Charges sociales " & FN2 -> Charges sociales Terre-Neuve-et-Labrador | FX64: ="Charges sociales " & FX2 -> Charges sociales Territoires du Nord-Ouest | GH64: ="Charges sociales " & GH2 -> Charges sociales Yukon
B65: AE | BH65: AE | BR65: AE | CB65: AE | CL65: AE | CV65: AE | DF65: AE | DP65: AE | DZ65: AE | EJ65: AE | ET65: AE | FD65: AE | FN65: AE | FX65: AE | GH65: AE
B66: Maximum de rémunération assurable | C66: Taux de cotisation de l'employé
BH67: Maximum de rémunération assurable | BI67: Taux de cotisation de l'employé | BR67: Maximum de rémunération assurable | BS67: Taux de cotisation de l'employé | CB67: Maximum de rémunération assurable | CC67: Taux de cotisation de l'employé | CL67: Maximum de rémunération assurable | CM67: Taux de cotisation de l'employé | CV67: Maximum de rémunération assurable | CW67: Taux de cotisation de l'employé | DF67: Maximum de rémunération assurable | DG67: Taux de cotisation de l'employé | DP67: Maximum de rémunération assurable | DQ67: Taux de cotisation de l'employé | DZ67: Maximum de rémunération assurable | EA67: Taux de cotisation de l'employé | EJ67: Maximum de rémunération assurable | EK67: Taux de cotisation de l'employé | ET67: Maximum de rémunération assurable | EU67: Taux de cotisation de l'employé | EY67: Taux de cotisation à l'AE et maximums - Canada.ca | FD67: Maximum de rémunération assurable | FE67: Taux de cotisation de l'employé | FN67: Maximum de rémunération assurable | FO67: Taux de cotisation de l'employé | FX67: Maximum de rémunération assurable | FY67: Taux de cotisation de l'employé | GH67: Maximum de rémunération assurable | GI67: Taux de cotisation de l'employé
B68: =IF($A$1=$BR$2,BR68,0)+IF($A$1=$CB$2,CB68,0)+IF($A$1=$CL$2,CL68,0)+IF($A$1=$CV$2,CV68,0)+IF($A$1=$DF$2,DF68,0)+IF($A$1=$DP$2,DP68,0)+IF($A$1=$DZ$2,DZ68,0)+IF($A$1=$EJ$2,EJ68,0)+IF($A$1=$ET$2,ET68,0)+IF($A$1=$FD$2,FD68,0)+IF($A$1=$FN$2,FN68,0)+IF($A$1=$FX$2,FX68,0)+IF($A$1=$GH$2,GH68,0) -> 65700 | C68: 0.0164 | H68: https://www.canada.ca/fr/agence-revenu/services/impot/entreprises/sujets/retenues-paie/retenues-paie-cotisations/assurance-emploi-ae/taux-cotisation-a-ae-maximums.html#tb2 | BH68: 65700 | BI68: 0.0164 | BR68: =$BH$68 -> 65700 | BS68: =$BI$68 -> 0.0164 | CB68: =$BH$68 -> 65700 | CC68: =$BI$68 -> 0.0164 | CL68: =$BH$68 -> 65700 | CM68: =$BI$68 -> 0.0164 | CV68: =$BH$68 -> 65700 | CW68: =$BI$68 -> 0.0164 | DF68: =$BH$68 -> 65700 | DG68: =$BI$68 -> 0.0164 | DP68: =$BH$68 -> 65700 | DQ68: =$BI$68 -> 0.0164 | DZ68: =$BH$68 -> 65700 | EA68: =$BI$68 -> 0.0164 | EJ68: =$BH$68 -> 65700 | EK68: =$BI$68 -> 0.0164 | ET68: =$BH$68 -> 65700 | EU68: 0.0131 | FD68: =$BH$68 -> 65700 | FE68: =$BI$68 -> 0.0164 | FN68: =$BH$68 -> 65700 | FO68: =$BI$68 -> 0.0164 | FX68: =$BH$68 -> 65700 | FY68: =$BI$68 -> 0.0164 | GH68: =$BH$68 -> 65700 | GI68: =$BI$68 -> 0.0164
B70: RQAP | D70: Taux cotisation du travailleur autonome | BH70: RQAP | BR70: RQAP | CB70: RQAP | CL70: RQAP | CV70: RQAP | DF70: RQAP | DP70: RQAP | DZ70: RQAP | EJ70: RQAP | ET70: RQAP | FD70: RQAP | FN70: RQAP | FX70: RQAP | GH70: RQAP
B71: Maximum de rémunération assurable | C71: Taux de cotisation de l'employé
H72: https://www.rqap.gouv.qc.ca/fr/actualites/revenu-maximal-assurable-et-taux-de-cotisation-en-2021 | BH72: Maximum de rémunération assurable | BI72: Taux de cotisation de l'employé | BJ72: Taux cotisation du travailleur autonome | BR72: Maximum de rémunération assurable | BS72: Taux de cotisation de l'employé | BT72: Taux cotisation du travailleur autonome | CB72: Maximum de rémunération assurable | CC72: Taux de cotisation de l'employé | CD72: Taux cotisation du travailleur autonome | CL72: Maximum de rémunération assurable | CM72: Taux de cotisation de l'employé | CN72: Taux cotisation du travailleur autonome | CV72: Maximum de rémunération assurable | CW72: Taux de cotisation de l'employé | CX72: Taux cotisation du travailleur autonome | DF72: Maximum de rémunération assurable | DG72: Taux de cotisation de l'employé | DH72: Taux cotisation du travailleur autonome | DP72: Maximum de rémunération assurable | DQ72: Taux de cotisation de l'employé | DR72: Taux cotisation du travailleur autonome | DZ72: Maximum de rémunération assurable | EA72: Taux de cotisation de l'employé | EB72: Taux cotisation du travailleur autonome | EJ72: Maximum de rémunération assurable | EK72: Taux de cotisation de l'employé | EL72: Taux cotisation du travailleur autonome | ET72: Maximum de rémunération assurable | EU72: Taux de cotisation de l'employé | EV72: Taux cotisation du travailleur autonome | FD72: Maximum de rémunération assurable | FE72: Taux de cotisation de l'employé | FF72: Taux cotisation du travailleur autonome | FN72: Maximum de rémunération assurable | FO72: Taux de cotisation de l'employé | FP72: Taux cotisation du travailleur autonome | FX72: Maximum de rémunération assurable | FY72: Taux de cotisation de l'employé | FZ72: Taux cotisation du travailleur autonome | GH72: Maximum de rémunération assurable | GI72: Taux de cotisation de l'employé | GJ72: Taux cotisation du travailleur autonome
B73: =IF($A$1=$BR$2,BR73,0)+IF($A$1=$CB$2,CB73,0)+IF($A$1=$CL$2,CL73,0)+IF($A$1=$CV$2,CV73,0)+IF($A$1=$DF$2,DF73,0)+IF($A$1=$DP$2,DP73,0)+IF($A$1=$DZ$2,DZ73,0)+IF($A$1=$EJ$2,EJ73,0)+IF($A$1=$ET$2,ET73,0)+IF($A$1=$FD$2,FD73,0)+IF($A$1=$FN$2,FN73,0)+IF($A$1=$FX$2,FX73,0)+IF($A$1=$GH$2,GH73,0) -> 0 | C73: 0 | D73: 0 | H73: https://www.quebec.ca/nouvelles/actualites/details/regime-quebecois-dassurance-parentale-maintien-des-taux-de-cotisation-pour-2021/ | BH73: 0 | BI73: 0 | BJ73: 0 | BR73: =$BH$73 -> 0 | BS73: =$BI$73 -> 0 | BT73: =$BJ$73 -> 0 | CB73: =$BH$73 -> 0 | CC73: =$BI$73 -> 0 | CD73: =$BJ$73 -> 0 | CL73: =$BH$73 -> 0 | CM73: =$BI$73 -> 0 | CN73: =$BJ$73 -> 0 | CV73: =$BH$73 -> 0 | CW73: =$BI$73 -> 0 | CX73: =$BJ$73 -> 0 | DF73: =$BH$73 -> 0 | DG73: =$BI$73 -> 0 | DH73: =$BJ$73 -> 0 | DP73: =$BH$73 -> 0 | DQ73: =$BI$73 -> 0 | DR73: =$BJ$73 -> 0 | DZ73: =$BH$73 -> 0 | EA73: =$BI$73 -> 0 | EB73: =$BJ$73 -> 0 | EJ73: =$BH$73 -> 0 | EK73: =$BI$73 -> 0 | EL73: =$BJ$73 -> 0 | ET73: 98000 | EU73: 0.00494 | EV73: =0.878% -> 0.00878 | EY73: https://www.rqap.gouv.qc.ca/fr/a-propos-du-regime/information-generale/cotisations-et-revenu-maximal-assurable | FD73: =$BH$73 -> 0 | FE73: =$BI$73 -> 0 | FF73: =$BJ$73 -> 0 | FN73: =$BH$73 -> 0 | FO73: =$BI$73 -> 0 | FP73: =$BJ$73 -> 0 | FX73: =$BH$73 -> 0 | FY73: =$BI$73 -> 0 | FZ73: =$BJ$73 -> 0 | GH73: =$BH$73 -> 0 | GI73: =$BI$73 -> 0 | GJ73: =$BJ$73 -> 0
AX74: https://www.canada.ca/fr/agence-revenu/services/impot/entreprises/sujets/retenues-paie/retenues-paie-cotisations/regime-pensions-canada-rpc/taux-cotisations-rpc-maximums-exemptions.html
B75: RRQ | D75: Taux de cotisation de l'employé (régime de base) | E75: Taux de cotisation de l'employé (Régime supplémentaire) | F75: Total des cotisations des 2 régimes (jusqu'au maximum du MGA) | G75: Taux de cotisation (Régime supplémentaire --> Salaire entre MGA & MSGA) | H75: https://www.rrq.gouv.qc.ca/fr/programmes/regime_rentes/regime_chiffres/Pages/regime_chiffres.aspx | BH75: RRQ/RPC | BR75: RPC | CB75: RPC | CL75: RPC | CV75: RPC | DF75: RPC | DP75: RPC | DZ75: RPC | EJ75: RPC | ET75: RRQ | FD75: RPC | FN75: RPC | FX75: RPC | GH75: RPC
B76: Maximum de rémunération assurable | C76: Exemption
BM77: Validation RPC
BM78: =(BH80-BI80)*BL80 -> 4034.1 | BN78: =BM78*2 -> 8068.2 | BO78: =(BM80-BH80)*BN80 -> 396 | BP78: =BO78*2 -> 792
BH79: Maximum de rémunération assurable | BI79: Exemption | BJ79: Taux de cotisation de l'employé (régime de base) | BK79: Taux de cotisation de l'employé (Régime supplémentaire) | BL79: Total des cotisations des 2 régimes | BM79: Maximum régime supplémentaire | BN79: Taux de cotisation régime supplémeentaire | BR79: Maximum de rémunération assurable | BS79: Exemption | BT79: Taux de cotisation de l'employé (régime de base) | BU79: Taux de cotisation de l'employé (Régime supplémentaire) | BV79: Total des cotisations des 2 régimes | BW79: Maximum régime supplémentaire | BX79: Taux de cotisation régime supplémeentaire | CB79: Maximum de rémunération assurable | CC79: Exemption | CD79: Taux de cotisation de l'employé (régime de base) | CE79: Taux de cotisation de l'employé (Régime supplémentaire) | CF79: Total des cotisations des 2 régimes | CG79: Maximum régime supplémentaire | CH79: Taux de cotisation régime supplémeentaire | CL79: Maximum de rémunération assurable | CM79: Exemption | CN79: Taux de cotisation de l'employé (régime de base) | CO79: Taux de cotisation de l'employé (Régime supplémentaire) | CP79: Total des cotisations des 2 régimes | CQ79: Maximum régime supplémentaire | CR79: Taux de cotisation régime supplémeentaire | CV79: Maximum de rémunération assurable | CW79: Exemption | CX79: Taux de cotisation de l'employé (régime de base) | CY79: Taux de cotisation de l'employé (Régime supplémentaire) | CZ79: Total des cotisations des 2 régimes | DA79: Maximum régime supplémentaire | DB79: Taux de cotisation régime supplémeentaire | DF79: Maximum de rémunération assurable | DG79: Exemption | DH79: Taux de cotisation de l'employé (régime de base) | DI79: Taux de cotisation de l'employé (Régime supplémentaire) | DJ79: Total des cotisations des 2 régimes | DK79: Maximum régime supplémentaire | DL79: Taux de cotisation régime supplémeentaire | DP79: Maximum de rémunération assurable | DQ79: Exemption | DR79: Taux de cotisation de l'employé (régime de base) | DS79: Taux de cotisation de l'employé (Régime supplémentaire) | DT79: Total des cotisations des 2 régimes | DU79: Maximum régime supplémentaire | DV79: Taux de cotisation régime supplémeentaire | DZ79: Maximum de rémunération assurable | EA79: Exemption | EB79: Taux de cotisation de l'employé (régime de base) | EC79: Taux de cotisation de l'employé (Régime supplémentaire) | ED79: Total des cotisations des 2 régimes | EE79: Maximum régime supplémentaire | EF79: Taux de cotisation régime supplémeentaire | EJ79: Maximum de rémunération assurable | EK79: Exemption | EL79: Taux de cotisation de l'employé (régime de base) | EM79: Taux de cotisation de l'employé (Régime supplémentaire) | EN79: Total des cotisations des 2 régimes | EO79: Maximum régime supplémentaire | EP79: Taux de cotisation régime supplémeentaire | ET79: Maximum de rémunération assurable | EU79: Exemption | EV79: Taux de cotisation de l'employé (régime de base) | EW79: Taux de cotisation de l'employé (Régime supplémentaire) | EX79: Total des cotisations des 2 régimes | EY79: Maximum régime supplémentaire | EZ79: Taux de cotisation régime supplémeentaire | FD79: Maximum de rémunération assurable | FE79: Exemption | FF79: Taux de cotisation de l'employé (régime de base) | FG79: Taux de cotisation de l'employé (Régime supplémentaire) | FH79: Total des cotisations des 2 régimes | FI79: Maximum régime supplémentaire | FJ79: Taux de cotisation régime supplémeentaire | FN79: Maximum de rémunération assurable | FO79: Exemption | FP79: Taux de cotisation de l'employé (régime de base) | FQ79: Taux de cotisation de l'employé (Régime supplémentaire) | FR79: Total des cotisations des 2 régimes | FS79: Maximum régime supplémentaire | FT79: Taux de cotisation régime supplémeentaire | FX79: Maximum de rémunération assurable | FY79: Exemption | FZ79: Taux de cotisation de l'employé (régime de base) | GA79: Taux de cotisation de l'employé (Régime supplémentaire) | GB79: Total des cotisations des 2 régimes | GC79: Maximum régime supplémentaire | GD79: Taux de cotisation régime supplémeentaire | GH79: Maximum de rémunération assurable | GI79: Exemption | GJ79: Taux de cotisation de l'employé (régime de base) | GK79: Taux de cotisation de l'employé (Régime supplémentaire) | GL79: Total des cotisations des 2 régimes | GM79: Maximum régime supplémentaire | GN79: Taux de cotisation régime supplémeentaire
B80: =IF($A$1=$BR$2,BR80,0)+IF($A$1=$CB$2,CB80,0)+IF($A$1=$CL$2,CL80,0)+IF($A$1=$CV$2,CV80,0)+IF($A$1=$DF$2,DF80,0)+IF($A$1=$DP$2,DP80,0)+IF($A$1=$DZ$2,DZ80,0)+IF($A$1=$EJ$2,EJ80,0)+IF($A$1=$ET$2,ET80,0)+IF($A$1=$FD$2,FD80,0)+IF($A$1=$FN$2,FN80,0)+IF($A$1=$FX$2,FX80,0)+IF($A$1=$GH$2,GH80,0) -> 71300 | C80: 3500 | D80: 0.0495 | E80: 0.01 | F80: =IF($A$1=$BR$2,BV80,0)+IF($A$1=$CB$2,CF80,0)+IF($A$1=$CL$2,CP80,0)+IF($A$1=$CV$2,CZ80,0)+IF($A$1=$DF$2,DJ80,0)+IF($A$1=$DP$2,DT80,0)+IF($A$1=$DZ$2,ED80,0)+IF($A$1=$EJ$2,EN80,0)+IF($A$1=$ET$2,EX80,0)+IF($A$1=$FD$2,FH80,0)+IF($A$1=$FN$2,FR80,0)+IF($A$1=$FX$2,GB80,0)+IF($A$1=$GH$2,GL80,0) -> 0.0595 | G80: =IF($A$1=$BR$2,BX80,0)+IF($A$1=$CB$2,CH80,0)+IF($A$1=$CL$2,CR80,0)+IF($A$1=$CV$2,DB80,0)+IF($A$1=$DF$2,DL80,0)+IF($A$1=$DP$2,DV80,0)+IF($A$1=$DZ$2,EF80,0)+IF($A$1=$EJ$2,EP80,0)+IF($A$1=$ET$2,EZ80,0)+IF($A$1=$FD$2,FJ80,0)+IF($A$1=$FN$2,FT80,0)+IF($A$1=$FX$2,GD80,0)+IF($A$1=$GH$2,GN80,0) -> 0.04 | BH80: 71300 | BI80: 3500 | BJ80: 0.0495 | BK80: 0.01 | BL80: =BJ80+BK80 -> 0.0595 | BM80: 81200 | BN80: 0.04 | BR80: =$BH$80 -> 71300 | BS80: =$BI$80 -> 3500 | BT80: =$BJ$80 -> 0.0495 | BU80: =$BK$80 -> 0.01 | BV80: =$BL$80 -> 0.0595 | BW80: =$BM$80 -> 81200 | BX80: =$BN$80 -> 0.04 | CB80: =$BH$80 -> 71300 | CC80: =$BI$80 -> 3500 | CD80: =$BJ$80 -> 0.0495 | CE80: =$BK$80 -> 0.01 | CF80: =$BL$80 -> 0.0595 | CG80: =$BM$80 -> 81200 | CH80: =$BN$80 -> 0.04 | CL80: =$BH$80 -> 71300 | CM80: =$BI$80 -> 3500 | CN80: =$BJ$80 -> 0.0495 | CO80: =$BK$80 -> 0.01 | CP80: =$BL$80 -> 0.0595 | CQ80: =$BM$80 -> 81200 | CR80: =$BN$80 -> 0.04 | CV80: =$BH$80 -> 71300 | CW80: =$BI$80 -> 3500 | CX80: =$BJ$80 -> 0.0495 | CY80: =$BK$80 -> 0.01 | CZ80: =$BL$80 -> 0.0595 | DA80: =$BM$80 -> 81200 | DB80: =$BN$80 -> 0.04 | DF80: =$BH$80 -> 71300 | DG80: =$BI$80 -> 3500 | DH80: =$BJ$80 -> 0.0495 | DI80: =$BK$80 -> 0.01 | DJ80: =$BL$80 -> 0.0595 | DK80: =$BM$80 -> 81200 | DL80: =$BN$80 -> 0.04 | DP80: =$BH$80 -> 71300 | DQ80: =$BI$80 -> 3500 | DR80: =$BJ$80 -> 0.0495 | DS80: =$BK$80 -> 0.01 | DT80: =$BL$80 -> 0.0595 | DU80: =$BM$80 -> 81200 | DV80: =$BN$80 -> 0.04 | DZ80: =$BH$80 -> 71300 | EA80: =$BI$80 -> 3500 | EB80: =$BJ$80 -> 0.0495 | EC80: =$BK$80 -> 0.01 | ED80: =$BL$80 -> 0.0595 | EE80: =$BM$80 -> 81200 | EF80: =$BN$80 -> 0.04 | EJ80: =$BH$80 -> 71300 | EK80: =$BI$80 -> 3500 | EL80: =$BJ$80 -> 0.0495 | EM80: =$BK$80 -> 0.01 | EN80: =$BL$80 -> 0.0595 | EO80: =$BM$80 -> 81200 | EP80: =$BN$80 -> 0.04 | ET80: 71300 | EU80: 3500 | EV80: 0.054 | EW80: 0.01 | EX80: =EV80+EW80 -> 0.064 | EY80: 81200 | EZ80: 0.04 | FD80: =$BH$80 -> 71300 | FE80: =$BI$80 -> 3500 | FF80: =$BJ$80 -> 0.0495 | FG80: =$BK$80 -> 0.01 | FH80: =$BL$80 -> 0.0595 | FI80: =$BM$80 -> 81200 | FJ80: =$BN$80 -> 0.04 | FN80: =$BH$80 -> 71300 | FO80: =$BI$80 -> 3500 | FP80: =$BJ$80 -> 0.0495 | FQ80: =$BK$80 -> 0.01 | FR80: =$BL$80 -> 0.0595 | FS80: =$BM$80 -> 81200 | FT80: =$BN$80 -> 0.04 | FX80: =$BH$80 -> 71300 | FY80: =$BI$80 -> 3500 | FZ80: =$BJ$80 -> 0.0495 | GA80: =$BK$80 -> 0.01 | GB80: =$BL$80 -> 0.0595 | GC80: =$BM$80 -> 81200 | GD80: =$BN$80 -> 0.04 | GH80: =$BH$80 -> 71300 | GI80: =$BI$80 -> 3500 | GJ80: =$BJ$80 -> 0.0495 | GK80: =$BK$80 -> 0.01 | GL80: =$BL$80 -> 0.0595 | GM80: =$BM$80 -> 81200 | GN80: =$BN$80 -> 0.04
C81: Travailleur autonome > | D81: 0.099 | E81: 0.02 | F81: 0.119 | G81: =IF($A$1=$BR$2,BX81,0)+IF($A$1=$CB$2,CH81,0)+IF($A$1=$CL$2,CR81,0)+IF($A$1=$CV$2,DB81,0)+IF($A$1=$DF$2,DL81,0)+IF($A$1=$DP$2,DV81,0)+IF($A$1=$DZ$2,EF81,0)+IF($A$1=$EJ$2,EP81,0)+IF($A$1=$ET$2,EZ81,0)+IF($A$1=$FD$2,FJ81,0)+IF($A$1=$FN$2,FT81,0)+IF($A$1=$FX$2,GD81,0)+IF($A$1=$GH$2,GN81,0) -> 0.08 | BI81: Travailleur autonome > | BJ81: =BJ80*2 -> 0.099 | BK81: =BK80*2 -> 0.02 | BL81: =BJ81+BK81 -> 0.119 | BN81: =BN80*2 -> 0.08 | BS81: Travailleur autonome > | BT81: =$BJ$81 -> 0.099 | BU81: =$BK$81 -> 0.02 | BV81: =$BL$81 -> 0.119 | BX81: =$BN$81 -> 0.08 | CC81: Travailleur autonome > | CD81: =$BJ$81 -> 0.099 | CE81: =$BK$81 -> 0.02 | CF81: =$BL$81 -> 0.119 | CH81: =$BN$81 -> 0.08 | CM81: Travailleur autonome > | CN81: =$BJ$81 -> 0.099 | CO81: =$BK$81 -> 0.02 | CP81: =$BL$81 -> 0.119 | CR81: =$BN$81 -> 0.08 | CW81: Travailleur autonome > | CX81: =$BJ$81 -> 0.099 | CY81: =$BK$81 -> 0.02 | CZ81: =$BL$81 -> 0.119 | DB81: =$BN$81 -> 0.08 | DG81: Travailleur autonome > | DH81: =$BJ$81 -> 0.099 | DI81: =$BK$81 -> 0.02 | DJ81: =$BL$81 -> 0.119 | DL81: =$BN$81 -> 0.08 | DQ81: Travailleur autonome > | DR81: =$BJ$81 -> 0.099 | DS81: =$BK$81 -> 0.02 | DT81: =$BL$81 -> 0.119 | DV81: =$BN$81 -> 0.08 | EA81: Travailleur autonome > | EB81: =$BJ$81 -> 0.099 | EC81: =$BK$81 -> 0.02 | ED81: =$BL$81 -> 0.119 | EF81: =$BN$81 -> 0.08 | EK81: Travailleur autonome > | EL81: =$BJ$81 -> 0.099 | EM81: =$BK$81 -> 0.02 | EN81: =$BL$81 -> 0.119 | EP81: =$BN$81 -> 0.08 | EU81: Travailleur autonome > | EV81: =EV80*2 -> 0.108 | EW81: =EW80*2 -> 0.02 | EX81: =EV81+EW81 -> 0.128 | EZ81: =EZ80*2 -> 0.08 | FE81: Travailleur autonome > | FF81: =$BJ$81 -> 0.099 | FG81: =$BK$81 -> 0.02 | FH81: =$BL$81 -> 0.119 | FJ81: =$BN$81 -> 0.08 | FO81: Travailleur autonome > | FP81: =$BJ$81 -> 0.099 | FQ81: =$BK$81 -> 0.02 | FR81: =$BL$81 -> 0.119 | FT81: =$BN$81 -> 0.08 | FY81: Travailleur autonome > | FZ81: =$BJ$81 -> 0.099 | GA81: =$BK$81 -> 0.02 | GB81: =$BL$81 -> 0.119 | GD81: =$BN$81 -> 0.08 | GI81: Travailleur autonome > | GJ81: =$BJ$81 -> 0.099 | GK81: =$BK$81 -> 0.02 | GL81: =$BL$81 -> 0.119 | GN81: =$BN$81 -> 0.08
BH82: https://www.canada.ca/fr/agence-revenu/services/impot/entreprises/sujets/retenues-paie/retenues-paie-cotisations/regime-pensions-canada-rpc/taux-cotisations-rpc-maximums-exemptions.html | ET82: https://www.revenuquebec.ca/fr/entreprises/retenues-et-cotisations/trousse-employeur/principaux-changements-pour-lannee-2025-trousse-employeur/
D83: 2e volet | H83: 1er volet | ET83: https://www.rrq.gouv.qc.ca/fr/programmes/regime_rentes/regime_chiffres/Pages/regime_chiffres.aspx
B84: RRQ/RPC - Prestation retraite | D84: 107% du MGA en 2024 et 114 % du MGA à partir de 2025. | H84: Taux d'intégration | BH84: https://www.canada.ca/fr/agence-revenu/services/formulaires-publications/retenues-paie/t4032-tables-retenues-paie.html | EM84: Retraite Québec - La bonification du Régime de rentes du Québec (gouv.qc.ca)
B85: MGA | D85: 71300 | E85: MSGA (2025 et +) | F85: =ROUNDDOWN(D85*1.14,-2) -> 81200 | G85: 2019 | H85: 0.15 | ED85: RRQ | EE85: Année (fin des cotisations)
B86: MGAM | D86: =(71300+68500+66600+64900+61600)/5 -> 66580 | E86: MSGA (2024) | F86: =ROUNDDOWN(D85*1.07,-2) -> 76200 | G86: 2020 | H86: 0.3 | EB86: 1971-01-01 | EC86: 50 ans | ED86: 65 ans | EE86: =1971+64 -> 2035
B87: Rente mensuelle à 65 ans | D87: 1433 | E87: MMSGA (2025 et +) | F87: =ROUNDDOWN(D86*1.14,-2) -> 75900 | G87: 2021 | H87: 0.5
B88: Taux de réduction | D88: 0.005 | E88: MMSGA (2024) | F88: =ROUNDDOWN(D86*1.07,-2) -> 71200 | G88: 2022 | H88: 0.75
C89: Ajustement de la réduction | D89: 0.001 | E89: Facteur annuel | F89: 0.3333 | G89: 2023 | H89: 1 | EA89: 2019 à 2022 | EC89: 21.7 | ED89: =1.7+EE86-2022 -> 14.7
B90: Taux de majoration | D90: 0.007 | E90: Nbre années intégration | F90: 40 | G90: Facteur annuel | H90: =33.33%-(1-H89) -> 0.3333 | EA90: 2023 et + | EC90: =EC89/40*DZ99*8.33%/12 -> 212.5448092 | ED90: =ED89/40*DZ95*8.33%/12 -> 169.8497413
D91: =D87*12 -> 17196 | F91: Nombre d'années d'intégration | EC91: =EC90*12 -> 2550.53771 | ED91: =ED90*12 -> 2038.196895
G92: https://www.canada.ca/fr/services/prestations/pensionspubliques/rpc/montants-paiement.html
B93: PSV - Prestation de base | D93: Janvier à mars 2025 | G93: Statistiques concernant le programme de la Sécurité de la vieillesse et le Régime de pensions du Canada - Canada.ca | R93: Retraite Québec - Flash retraite - Capsule 7 | AA93: Impôt de récupération de la Sécurité de la vieillesse - Canada.ca | DY93: =DZ94*1.14 -> 70224 | EA93: 2024 | EB93: h | EC93: 0.5 | ED93: 0.5
B94: Rente mensuelle | D94: 727.67 | E94: =E95 & " ans et +" -> 75 ans et + | F94: =D94*(1+F95) -> 800.437 | G94: https://www.canada.ca/fr/services/prestations/pensionspubliques/rpc/securite-vieillesse/paiements.html | DX94: 2021 | DY94: MGA | DZ94: 61600 | EC94: =EC93/40*DY101*33.33%/12 -> 2.72889375 | ED94: =ED93/40*DY97*33.33%/12 -> -0.27080625
B95: Taux de majoration | D95: 0.006 | E95: 75 | F95: 0.1 | G95: https://www.retraitequebec.gouv.qc.ca/fr/flashretraite/Pages/capsule_retraite_007.aspx | DY95: MMGA | DZ95: =D86 -> 66580 | EC95: =EC94*12 -> 32.746725 | ED95: =ED94*12 -> -3.249675
B96: Taux de récupération | D96: 0.15 | E96: Âge | F96: Hausse | G96: https://www.canada.ca/fr/services/prestations/pensionspubliques/rpc/securite-vieillesse/impot-recuperation.html | DY96: MSGA | DZ96: =DZ95*1.14 -> 75901.2 | EB96: =2043-2025 -> 18
B97: Récupération | C97: PSV | D97: Rev. Min | E97: Rev. Max | F97: ="Rev. Max " & E95 & "+" -> Rev. Max 75+ | DY97: =DZ97-DZ95 -> -780 | DZ97: 65800 | EA97: 2025 | EC97: 18 | ED97: =EE86-EA97 -> 10
B98: 65 | C98: =D94*12 -> 8732.04 | D98: 93454 | E98: =D98+C98/$D$96 -> 151667.6 | F98: =D98+$F$94*12*(1+$D$95*(B98-$B$98)*12)/$D$96 -> 157488.96 | G98: Est-ce que la prestation à 75 ans est majorée si on avait reporté le début de la rente ? | DX98: 2020 | DY98: MGA | DZ98: 58700 | EC98: =EC97/40*DY101*33.33%/12 -> 98.240175 | ED98: =11/40*8020*33.33%/12 -> 61.2577625
B99: 66 | C99: =$C$98*(1+$D$95*(B99-$B$98)*12) -> 9360.74688 | D99: =D98 -> 93454 | E99: =D99+C99/$D$96 -> 155858.9792 | F99: =D99+$F$94*12*(1+$D$95*(B99-$B$98)*12)/$D$96 -> 162099.4771 | DY99: MMGA | DZ99: 56440 | EC99: =EC98*12 -> 1178.8821 | ED99: =ED98*12 -> 735.09315
B100: 67 | C100: =$C$98*(1+$D$95*(B100-$B$98)*12) -> 9989.45376 | D100: =D99 -> 93454 | E100: =D100+C100/$D$96 -> 160050.3584 | F100: =D100+$F$94*12*(1+$D$95*(B100-$B$98)*12)/$D$96 -> 166709.9942 | DY100: MSGA | DZ100: =DZ99*1.14 -> 64341.6 | EC100: =EC94+EC98 -> 100.9690688 | ED100: =ED94+ED98 -> 60.98695625 | EE100: 14499.12
B101: 68 | C101: =$C$98*(1+$D$95*(B101-$B$98)*12) -> 10618.16064 | D101: =D100 -> 93454 | E101: 164241.7376 | F101: 171320.5114 | DY101: =DZ101-DZ99 -> 7860 | DZ101: 64300 | EB101: =EC101*12 -> 3762.166535 | EC101: =EC90+EC100 -> 313.5138779 | ED101: =ED90+ED100 -> 230.8366975 | EE101: =ED101*12 -> 2770.04037
B102: 69 | C102: =$C$98*(1+$D$95*(B102-$B$98)*12) -> 11246.86752 | D102: =D101 -> 93454 | E102: 168433.1168 | F102: 175931.0285 | DY102: =DZ98*1.14 -> 66918 | EE102: =SUM(EE100:EE101) -> 17269.16037
B103: 70 | C103: =$C$98*(1+$D$95*(B103-$B$98)*12) -> 11875.5744 | D103: =D102 -> 93454 | E103: 172624.496 | F103: 180541.5456 | EA103: 2019 | EB103: 0.0833 | EC103: 0.15 | ED103: =EB103*EC103 -> 0.012495
EA104: 2020 | EB104: =EB103 -> 0.0833 | EC104: 0.3 | ED104: =EB104*EC104 -> 0.02499
EA105: 2021 | EB105: =EB104 -> 0.0833 | EC105: 0.5 | ED105: =EB105*EC105 -> 0.04165
B106: Répartition selon le profil d'investisseur | EA106: 2022 | EB106: =EB105 -> 0.0833 | EC106: 0.75 | ED106: =EB106*EC106 -> 0.062475
C107: Revenu | D107: Actions | E107: Assurance | F107: Pour graphiques des PPT | EB107: =EB106 -> 0.0833 | EC107: =SUM(EC103:EC106) -> 1.7 | ED107: =EB107*EC107 -> 0.14161
B108: Prudent | C108: 0.75 | D108: 0.25 | E108: 0.15 | EA108: 2023 et + | EB108: =EB107 -> 0.0833 | EC108: 1
B109: Modéré | C109: 0.6 | D109: 0.4 | E109: 0.15
B110: Équilibré | C110: 0.45 | D110: 0.55 | E110: 0.15 | DY110: Méthode de calcul de la rente de retraite du Régime de rentes du Québec 2020 (gouv.qc.ca)
B111: Croissance | C111: 0.3 | D111: 0.7 | E111: 0.15
B112: Audacieux | C112: 0.15 | D112: 0.85 | E112: 0.15 | DX112: RRQ | DY112: PRESTATION | DZ112: COTISATION | EC112: 2043
DX113: Base | DY113: MMGA | DZ113: MGA | EB113: =1983+18 -> 2001
DX114: 1er volet | DY114: MSGA | DZ114: MSGA | EB114: 2023 | EC114: =EC112-EB114 -> 20 | ED114: =EE86-EB114 -> 12
B115: Taux de rendement par catégorie (inspiré de l'IPF) | F115: Taux d'emprunt (IPF) | DX115: 2eme | DY115: ?? | DZ115: MSGA
C116: Brut | D116: Frais gestion et + | E116: Net | F116: 0.044 | DX116: IQPF | DY116: PRESTATION | DZ116: COTISATION
B117: Revenus fixes | C117: 0.034 | D117: 0.005 | E117: =C117-D117 -> 0.029 | F117: https://app.institutpf.org/?locale=fr#/guidelines | DX117: Base | DY117: MMGA | DZ117: MGA
B118: Actions canadiennes | C118: 0.064 | D118: 0.015 | E118: =C118-D118 -> 0.049 | DX118: 1er volet | DY118: MMGA | DZ118: MGA
B119: Actions étrangères | C119: 0.065 | D119: 0.015 | E119: =C119-D119 -> 0.05 | DX119: 2eme | DY119: MMSGA | DZ119: MSGA
B120: Actions des pays émergents | C120: 0.083 | D120: 0.015 | E120: =C120-D120 -> 0.068
C121: Date de la MAJ de l'IPF : | D121: 2024-04-30 | DY121: 2021 | DZ121: 2020 | EA121: 2019
DX122: MGA | DY122: 61600 | DZ122: 58700 | EA122: 57400
B123: Répartition du rendement selon les catégories | DX123: MMGA | DY123: 57780 | DZ123: 56440 | EA123: 53900
C124: =C135 -> 100% CPG | D124: =B117 -> Revenus fixes | E124: =B118 -> Actions canadiennes | F124: =B119 -> Actions étrangères | G124: =B120 -> Actions des pays émergents | BC124: https://www.taxtips.ca/dtc/eligible-dividends/eligible-dividend-tax-credit-rates.htm | DX124: MSGA | DY124: =ROUNDDOWN(DY122*1.14,-2) -> 70200 | DZ124: 66900 | EA124: 65400
DX125: MMSGA | DY125: 65800 | DZ125: 64300 | EA125: 61400
B126: Revenu d'intérêt | C126: =C131-C130 -> 0.024 | D126: =D131-D130 -> 0.024 | AA126: Régime de pensions du Canada – Paiements mensuels - Canada.ca | DX126: MMSGA-MMGA | DY126: =DY125-DY123 -> 8020 | DZ126: =DZ125-DZ123 -> 7860 | EA126: =EA125-EA123 -> 7500
B127: Dividende déterminé | E127: 0.015 | F127: 0 | G127: 0
B128: Dividende ordinaire (non déter.) | E128: 0 | F128: 0 | G128: 0 | DX128: Rentes premier volet
B129: Dividende étranger | F129: 0.015 | G129: 0.015 | DX129: (MIN C et D) * Proportion années / mois * 8,33%
B130: Gain capital | C130: 0 | D130: 0.005 | E130: =E131-E127 -> 0.034 | F130: =F131-F129 -> 0.035 | G130: =G131-G129 -> 0.053 | DX130: G = Années cotisations
B131: Total | C131: =2.4% -> 0.024 | D131: =E117 -> 0.029 | E131: =E118 -> 0.049 | F131: =E119 -> 0.05 | G131: =E120 -> 0.068 | DX131: C = RevenuS admissibleS annuelS
D132: =D130/D131 -> 0.1724137931 | E132: =E130/E131 -> 0.693877551 | F132: 0.7 | G132: 0.7794117647 | R132: L’indexation du RREGOP en 2025 - AREQ | DX132: D = MMGA de l'année
B134: Répartition des revenus d'épargne (selon le profil) | DX134: Rentes deuxième volet
B135: Profil | C135: 100% CPG | D135: Prudent | E135: Modéré | F135: Équilibré | G135: Croissance | H135: Audacieux | DX135: F * Proportion années / mois *33,33%
B136: =B117 -> Revenus fixes | C136: 1 | D136: 0.75 | E136: 0.6 | F136: 0.45 | G136: =F136*(C111/C110) -> 0.3 | H136: =F136*(C112/C110) -> 0.15 | DX136: F = MIN(C et E) - D
B137: =B118 -> Actions canadiennes | C137: 0 | D137: 0.2 | E137: 0.3 | F137: 0.37 | G137: 0.42 | H137: 0.45 | DX137: C = RevenuS admissibleS annuelS
B138: =B119 -> Actions étrangères | C138: 0 | D138: 0.05 | E138: 0.07 | F138: 0.13 | G138: 0.2 | H138: 0.3 | DX138: D = MMGA de l'année
B139: =B120 -> Actions des pays émergents | C139: 0 | D139: 0 | E139: 0.03 | F139: 0.05 | G139: 0.08 | H139: 0.1 | DX139: E = MMSGA de l'année
B140: Total | C140: =SUM(C136:C139) -> 1 | D140: 1 | E140: 1 | F140: 1 | G140: 1 | H140: 1
C141: Pas un vrai profil, mais c'est nécessaire pour les gens pleinement investis en CPG
B143: Taux d'inflation (inspiré de l'IQPF) | F143: Taux assurance
B144: Inflation | D144: 0.021 | F144: Participation iA PAR | G144: Taux du fonds Capital valeur | H144: Taux utilisé Genesis
B145: Inflation RRQ & PSV | D145: 0.021
B146: Inflation RPA | D146: 0.01 | F146: 0.0635 | G146: 0.055 | H146: 0.05
B147: Inflation Alternatif | D147: =D144+1% -> 0.031 | E147: (ex. pour plus value d'une entreprise/salaire/MGAP/MGA)
B148: https://www.canada.ca/fr/agence-revenu/services/impot/particuliers/foire-questions-particuliers/rajustement-montants-fonction-indexation-impot-particuliers-prestations.html | E148: https://www.rrq.gouv.qc.ca/fr/planification/reflexions/Pages/inflation-et-indexation.aspx
B150: Différents taux en fonction de l'âge
C151: FERR (retrait minimum)1 | D151: FRV2 : facteur de retrait max QC (Annexe 0.6) | E151: FRVR : facteur de retrait max Fédéral | F151: Espérance de vie - Homme | G151: Espérance de vie - Femme | H151: https://www.canada.ca/fr/agence-revenu/services/impot/entreprises/sujets/remplir-feuillets-sommaires/declaration-renseignements-t4rsp-t4rif/paiements/tableau-facteurs-prescrits.html
H152: https://www.canada.ca/fr/agence-revenu/services/formulaires-publications/publications/ic78-18/fonds-enregistres-revenu-retraite.html#Top
B153: Âge | H153: https://www.rrq.gouv.qc.ca/fr/professionnels/cri_frv/Pages/taux_reference.aspx
B154: 0 | F154: 79.9 | G154: 84
B155: 1 | F155: 79.3 | G155: 83.4
B156: 2 | F156: 78.3 | G156: 82.4
B157: 3 | F157: 77.3 | G157: 81.4
B158: 4 | F158: 76.3 | G158: 80.4
B159: 5 | F159: 75.3 | G159: 79.4
B160: 6 | F160: 74.3 | G160: 78.4 | Z160: Plafonds des CD, des PD, des REER, des RPDB, des RVDAA, des CELI et le MGAP - Canada.ca
B161: 7 | F161: 73.4 | G161: 77.4
B162: 8 | F162: 72.4 | G162: 76.4
B163: 9 | F163: 71.4 | G163: 75.4
B164: 10 | F164: 70.4 | G164: 74.4
B165: 11 | F165: 69.4 | G165: 73.5
B166: 12 | F166: 68.4 | G166: 72.5
B167: 13 | F167: 67.4 | G167: 71.5
B168: 14 | F168: 66.4 | G168: 70.5
B169: 15 | F169: 65.4 | G169: 69.5
B170: 16 | F170: 64.4 | G170: 68.5
B171: 17 | F171: 63.4 | G171: 67.5
B172: 18 | C172: =1/(90-B172) -> 0.01388888889 | D172: 0.06 | F172: 62.5 | G172: 66.5
B173: 19 | C173: =1/(90-B173) -> 0.01408450704 | D173: =D172 -> 0.06 | F173: 61.5 | G173: 65.5
B174: 20 | C174: =1/(90-B174) -> 0.01428571429 | D174: =D173 -> 0.06 | F174: 60.5 | G174: 64.6
B175: 21 | C175: 0.01449275362 | D175: 0.06 | F175: 59.6 | G175: 63.6
B176: 22 | C176: 0.01470588235 | D176: 0.06 | F176: 58.6 | G176: 62.6
B177: 23 | C177: 0.01492537313 | D177: 0.06 | F177: 57.7 | G177: 61.6
B178: 24 | C178: 0.01515151515 | D178: 0.06 | F178: 56.7 | G178: 60.6
B179: 25 | C179: 0.01538461538 | D179: 0.06 | F179: 55.8 | G179: 59.7
B180: 26 | C180: 0.015625 | D180: 0.06 | F180: 54.8 | G180: 58.7
B181: 27 | C181: 0.01587301587 | D181: 0.06 | F181: 53.9 | G181: 57.7 | BC181: https://www.taxtips.ca/dtc/non-eligible-dividend-tax-credit.htm
B182: 28 | C182: 0.01612903226 | D182: 0.06 | F182: 52.9 | G182: 56.7
B183: 29 | C183: 0.01639344262 | D183: 0.06 | F183: 52 | G183: 55.8
B184: 30 | C184: 0.01666666667 | D184: 0.06 | F184: 51 | G184: 54.8
B185: 31 | C185: 0.01694915254 | D185: 0.06 | F185: 50.1 | G185: 53.8 | L185: Québec | O185: Fédéral
B186: 32 | C186: 0.01724137931 | D186: 0.06 | F186: 49.1 | G186: 52.8
B187: 33 | C187: 0.01754385965 | D187: 0.06 | F187: 48.2 | G187: 51.9 | AA187: Retraite Québec - Comprendre l’indexation des rentes du Régime de rentes du Québec
B188: 34 | C188: 0.01785714286 | D188: 0.06 | F188: 47.2 | G188: 50.9
B189: 35 | C189: 0.01818181818 | D189: 0.06 | F189: 46.3 | G189: 49.9
B190: 36 | C190: 0.01851851852 | D190: 0.06 | F190: 45.3 | G190: 48.9
B191: 37 | C191: 0.01886792453 | D191: 0.06 | F191: 44.4 | G191: 48
B192: 38 | C192: 0.01923076923 | D192: 0.06 | F192: 43.4 | G192: 47
B193: 39 | C193: 0.01960784314 | D193: 0.06 | F193: 42.5 | G193: 46
B194: 40 | C194: 0.02 | D194: 0.06 | F194: 41.5 | G194: 45
B195: 41 | C195: 0.02040816327 | D195: 0.06 | F195: 40.6 | G195: 44.1
B196: 42 | C196: 0.02083333333 | D196: 0.06 | F196: 39.6 | G196: 43.1
B197: 43 | C197: 0.02127659574 | D197: 0.06 | F197: 38.7 | G197: 42.2
B198: 44 | C198: 0.02173913043 | D198: 0.06 | F198: 37.7 | G198: 41.2
B199: 45 | C199: 0.02222222222 | D199: 0.06 | F199: 36.8 | G199: 40.2
B200: 46 | C200: 0.02272727273 | D200: 0.06 | F200: 35.9 | G200: 39.3
B201: 47 | C201: 0.02325581395 | D201: 0.06 | F201: 35 | G201: 38.4
B202: 48 | C202: 0.02380952381 | D202: 0.06 | F202: 34 | G202: 37.4
B203: 49 | C203: 0.0243902439 | D203: 0.06 | F203: 33.1 | G203: 36.5
B204: 50 | C204: 0.025 | D204: 0.06 | E204: 0.0413 | F204: 32.2 | G204: 35.5
B205: 51 | C205: 0.02564102564 | D205: 0.06 | E205: 0.0416 | F205: 31.3 | G205: 34.6
B206: 52 | C206: 0.02631578947 | D206: 0.06 | E206: 0.042 | F206: 30.4 | G206: 33.7
... 151 more rows

Sheet Scénario initial (hidden)
A1: 1 | B1: 2 | C1: 3 | D1: 4 | E1: 5 | F1: 6 | G1: 7 | H1: 8 | I1: 9 | J1: 10 | K1: 11 | L1: 12 | M1: 13 | N1: 14 | O1: 15 | P1: 16 | Q1: 17 | R1: 18 | S1: 19 | T1: 20 | U1: 21 | V1: 22 | W1: 23 | X1: 24 | Y1: 25 | Z1: 26 | AA1: 27 | AB1: 28 | AC1: 29 | AD1: 30 | AE1: 31 | AF1: 32 | AG1: 33 | AH1: 34 | AI1: 35 | AJ1: 36 | AK1: 37 | AL1: 38 | AM1: 39 | AN1: 40 | AO1: 41 | AP1: 42 | AQ1: 43 | AR1: 44 | AS1: 45 | AT1: 46 | AU1: 47 | AV1: 48 | AW1: 49 | AX1: 50 | AY1: 51 | AZ1: 52
... 216 more rows

Sheet Input MGPP (hidden)
A1: ='Mapping Concepts'!C1 -> CRITICAL ILLNESS INSURANCE | L1: Langue | M1: A | N1: A
D5: =Mapping!J4 -> Name : | M5: Date du jour
